Workbook

Sheet 學期 (hidden)
B2: 年級: | C2: 四 | F2: 高雄市左營區福山國小106學年度第二學期__四年級各領域教學進度總表
B3: 上課總天數:82天
D4: 彈性學習課程/節數 | N4: 非領域課程 | P4: 語文 | R4: 本土語言 | T4: 英語 | V4: 數學 | X4: 社會 | Z4: 藝術與人文 | AB4: 自然與科技 | AD4: 健康與體育 | AF4: 綜合活動
B5: 週別 | C5: 週別日期 | D5: 學校年級活動 | E5: 節數 | F5: 三鐵特色課程 | G5: 節數 | H5: 閱讀理解 | I5: 節數 | J5: 生活藝文 | K5: 節數 | L5: 學習診斷與補救 | M5: 節數 | N5: D:非領域課程 | O5: 節數 | P5: 國語 ( 南一版) 第8冊 | Q5: 節數 | R5: 本土語言 (真平臺羅版)第8冊 | S5: 節數 | T5: 英語 ( 翰林版Dino)第3冊 | U5: 節數 | V5: 數學 ( 康軒版)第8冊 | W5: 節數 | X5: 社會 ( 南一版 )第4冊 | Y5: 節數 | Z5: 藝術與人文 （康軒版）第4冊 | AA5: 節數 | AB5: 自然與科技 ( 翰林版 )第4冊 | AC5: 節數 | AD5: 健康與體育翰林 ( 翰林版)第8冊 | AE5: 節數 | AF5: 綜合活動 ( 南一版)第8冊 | AG5: 節數 | AH5: 備 註

Sheet 課程研發小組
A1: AAAAAAABBBBL
A2: ※ | B2: 著作權所有: | C2: 課程研發小組 | E2: 研發設計 | F2: 侯泰耀
E3: 教育訓練 | F3: 林梅芬
E4: 企劃推廣 | F4: 吳耿良
E5: 研發特助 | F5: 楊靜芳
B15: 圖解來源: | E15: 素養:是持續的自我學習改變
E17: 面對未來:需要的是抱持自我成長的態度，有自我調整、持續學習、解決問題等能力。

Sheet 全市 (hidden)
A4: 行政區 | B4: 學校
A5: 三民區 | B5: 三民國小
B6: 鼎金國小
B7: 愛國國小
B8: 十全國小
B9: 正興國小
B10: 博愛國小
B11: 獅湖國小
B12: 民族國小
B13: 莊敬國小
B14: 光武國小
B15: 東光國小
B16: 河濱國小
B17: 陽明國小
B18: 河堤國小
A19: 大社區 | B19: 大社國小
B20: 嘉誠國小
B21: 觀音國小
A22: 大寮區 | B22: 永芳國小
B23: 翁園國小
B24: 忠義國小
B25: 昭明國小
B26: 潮寮國小
B27: 中庄國小
B28: 溪寮國小
B29: 大寮國小
B30: 山頂國小
B31: 後庄國小
A32: 大樹區 | B32: 大樹國小
B33: 九曲國小
B34: 溪埔國小
B35: 姑山國小
B36: 水寮國小
B37: 小坪國小
B38: 興田國小
B39: 龍目國小
B40: 私立義大國際高中附設國小
A41: 小港區 | B41: 小港國小
B42: 鳳林國小
B43: 青山國小
B44: 太平國小
B45: 鳳鳴國小
B46: 坪頂國小
B47: 二苓國小
B48: 桂林國小
B49: 漢民國小
B50: 華山國小
B51: 港和國小
B52: 鳳陽國小
B53: 明義國小
A54: 仁武區 | B54: 仁武國小
B55: 烏林國小
B56: 八卦國小
B57: 灣內國小
B58: 登發國小
B59: 竹後國小
A60: 內門區 | B60: 內門國小
B61: 觀亭國小
B62: 溝坪國小
B63: 金竹國小
B64: 木柵國小
B65: 西門國小
B66: 景義國小
A67: 六龜區 | B67: 六龜國小
B68: 荖濃國小
B69: 新發國小
B70: 龍興國小
B71: 新威國小
B72: 寶來國小
A73: 左營區 | B73: 左營國小
B74: 舊城國小
B75: 新莊國小
B76: 新民國小
B77: 明德國小
B78: 勝利國小
B79: 屏山國小
B80: 永清國小
B81: 新上國小
B82: 福山國小
B83: 文府國小
B84: 新光國小
A85: 永安區 | B85: 永安國小
B86: 新港國小
B87: 維新國小
A88: 田寮區 | B88: 新興國小
B89: 崇德國小
A90: 甲仙區 | B90: 甲仙國小
B91: 小林國小
B92: 寶隆國小
A93: 杉林區 | B93: 月美國小
B94: 上平國小
B95: 新庄國小
B96: 集來國小
B97: 杉林國小
B98: 巴楠花部落中小學
A99: 那瑪夏 | B99: 民生國小
B100: 那瑪夏區民權國小
A101: 岡山區 | B101: 岡山國小
B102: 前峰國小
B103: 嘉興國小
B104: 兆湘國小
B105: 後紅國小
B106: 和平國小
B107: 竹圍國小
B108: 壽天國小
A109: 林園區 | B109: 林園國小
B110: 中芸國小
B111: 港埔國小
B112: 金潭國小
B113: 汕尾國小
B114: 王公國小
A115: 阿蓮區 | B115: 阿蓮國小
B116: 中路國小
B117: 復安國小
A118: 前金區 | B118: 前金國小
B119: 建國國小
A120: 前鎮區 | B120: 前鎮國小
B121: 獅甲國小
B122: 仁愛國小
B123: 樂群國小
B124: 愛群國小
B125: 復興國小
B126: 瑞豐國小
B127: 明正國小
B128: 光華國小
B129: 瑞祥國小
B130: 鎮昌國小
B131: 佛公國小
B132: 民權國小
B133: 紅毛港國小
A134: 美濃區 | B134: 美濃國小
B135: 東門國小
B136: 吉洋國小
B137: 龍肚國小
B138: 中壇國小
B139: 廣興國小
B140: 龍山國小
B141: 福安國小
B142: 吉東國小
A143: 苓雅區 | B143: 苓洲國小
B144: 苓雅區成功國小
B145: 五權國小
B146: 凱旋國小
B147: 四維國小
B148: 福東國小
B149: 中正國小
B150: 福康國小
B151: 國立高師大附設國小
A152: 茂林區 | B152: 茂林國小
B153: 多納國小
A154: 茄萣區 | B154: 茄萣國小
B155: 成功國小
B156: 砂崙國小
B157: 興達國小
A158: 桃源區 | B158: 桃源國小
B159: 建山國小
B160: 興中國小
B161: 寶山國小
B162: 樟山國小
A163: 梓官區 | B163: 梓官國小
B164: 蚵寮國小
A165: 鳥松區 | B165: 鳥松國小
B166: 仁美國小
B167: 大華國小
A168: 湖內區 | B168: 文賢國小
B169: 明宗國小
B170: 大湖國小
B171: 海埔國小
B172: 三侯國小
A173: 新興區 | B173: 新興國小
B174: 大同國小
B175: 信義國小
B176: 七賢國小
A177: 楠梓區 | B177: 楠梓國小
B178: 後勁國小
B179: 援中國小
B180: 右昌國小
B181: 莒光國小
B182: 加昌國小
B183: 楠陽國小
B184: 翠屏國(中)小
B185: 油廠國小
A186: 路竹區 | B186: 路竹國小
B187: 大社國小
B188: 下坑國小
B189: 竹滬國小
B190: 三埤國小
B191: 北嶺國小
B192: 一甲國小
B193: 蔡文國小
A194: 鼓山區 | B194: 鼓山區鼓山國小
B195: 鼓岩國小
B196: 內惟國小
B197: 鼓山區中山國小
B198: 壽山國小
B199: 龍華國小
B200: 九如國小
B201: 私立明誠高中附設國小
B202: 私立大榮高中附設國小
B203: 私立中華藝校附設國小
... 49 more rows

Sheet 使用說明
A1: 12021 | B1: 高雄市 | C1: 左營區 | D1: 屏山國小 | G1: 學年度: | H1: 109 | I1: 年級: | J1: 一年級 | L1: 今天 | M1: =TODAY() -> 2020-06-23 | Q1: 製作行事曆: | AB1: * | AG1: * | BA1: 4321 | CI1: 6 | CJ1: 16 | CK1: 89 | CL1: 1 | CM1: 2 | CN1: 3 | CO1: 4 | CP1: 5 | CQ1: 6
A2: 9876 | B2: 縣/市 | C2: 行政區 | D2: 學校: | M2: 起 | N2: 迄 | O2: 週次 | P2: 上課日數 | AB2: 2
A3: 1 | C3: 先選行政區 再選校名 | J3: 上 | K3: 學期第一週起迄: | M3: 2020-08-30 | N3: 2020-09-05 | O3: 21 | P3: 100 | Q3: (內定最多22週)
B4: 使用說明: | C4: 1.excel版2007~2010版巨集安全性設定,按__<啟用內容>__即可使用 | J4: 下 | K4: 學期第一週起迄: | M4: 2021-02-14 | N4: 2021-02-20 | O4: 20 | P4: 92 | AL4: 97 | CK4: 週次 | CL4: 1 | CM4: 2 | CN4: 3 | CO4: 4 | CP4: 5 | CQ4: 6 | CR4: 7 | CS4: 8 | CT4: 9 | CU4: 10 | CV4: 11 | CW4: 12 | CX4: 13 | CY4: 14 | CZ4: 15 | DA4: 16 | DB4: 17 | DC4: 18 | DD4: 19 | DE4: 20
C5: 2.請千萬注意__勿任意刪除任何工作表之欄(A,B,C,...)或列(1,2,3,….) | N5: 6年級下學期上課週次: | O5: 17 | P5: 76 | Q5: (6年級依畢業典禮日期_請更改[週次][上課天數])
B6: ※ | C6: 修正1~6 | D6: 在本工作表完成 | H6: ※ | I6: 檢查1~5 | J6: 在本工作表完成 | P6: J | AF6: 107學年度 | AG6: 108學年度 | CK6: 已設定節數: | CL6: 5 | CM6: 4 | CN6: 5 | CO6: 5 | CP6: 4 | CQ6: 4 | CR6: 5 | CS6: 5 | CT6: 4 | CU6: 4 | CV6: 4 | CW6: 5 | CX6: 5 | CY6: 4 | CZ6: 5 | DA6: 5 | DB6: 5 | DC6: 4 | DD6: 4 | DE6: 4
B7: ※ | C7: 修正7~11 | D7: 在[學校行事和國定假日]工作表完成 | H7: ※ | I7: 檢查6 | J7: 在[上學期]工作表AL欄 | K7: 檢查6 | L7: 在[下學期]工作表AL欄 | P7: * | AE7: 低: | AF7: 20 | AG7: 20 | AM7: 中 | AQ7: 語文領域 | AT7: 其他領域 | AV7: 生活 | CK7: 跨領域已設定節數:
B8: 五年級上學期A國語文課程計畫 | C8: 修正12 | D8: 在[上學期]工作表AL欄完成(備註選取) | H8: ※ | I8: 檢查7 | J8: 在[上學期]工作表AU欄和列69交叉處 | K8: 檢查7 | L8: 在[下學期]工作表AU欄和列69交叉處 | AD8: 部規定107年前課程標準領域節數: | AE8: 中 | AF8: 25 | AG8: 25 | AM8: 高 | AO8: 低 | AP8: % | AQ8: 0.2 | AT8: 0.1 | AV8: 0.3 | CI8: T | CJ8: A | CK8: 國語文 | DI8: =SUM(CL8:DG8) -> 0
B9: ※ | C9: 修正13 | D9: 在[下學期]工作表AL欄完成(備註選取) | H9: ※ | I9: 檢查8 | J9: 在[作業平台_教..]工作表 | AE9: 高 | AF9: 27 | AG9: 26 | AO9: 高 | AP9: % | AQ9: 0.3 | AT9: 0.15 | AV9: 0.45 | CI9: V | CJ9: B | CK9: 本土語言 | DI9: =SUM(CL9:DG9) -> 0
C10: 快速鍵:[按黃色儲存格可到修正工作表] | L10: =H1&"學年度各年級_上課總節數統計表" -> 109學年度各年級_上課總節數統計表 | X10: *. | Z10: 各週節數參考(以學校課發會通過為準),節數要正確 | AO10: 各週節數正確檢核(全校確認無誤) | CI10: X | CJ10: C | CK10: 英語 | DI10: 0
B11: 表一:部定_各年彈性節數 | G11: 上學期 | H11: 放假前 | J11: 放假後(扣掉放假日) | M11: =IF(COUNTIF(M13:M26,"=Y")<>6,"※請各年級選取Y確認","正確") -> 正確 | W11: 選取年級版本 | X11: 項目(節) | Z11: 語文 | AD11: 生活 | AK11: =IF(COUNTIF(AK13:AK26,"錯誤")>0,"※請各年級修正節數","正確") -> 正確 | AM11: =COUNTIF(AK13:AK18,"錯誤") -> 0 | AO11: 各領域節數檢核: | AS11: =IF(BC11=0,"正確","錯誤請修正!") -> 正確 | BC11: =COUNTIF(AP13:BC18,"錯誤") -> 0 | CI11: Z | CJ11: D | CK11: 數學 | DI11: 0
B12: 年級 | C12: 上學期 | D12: 下學期 | E12: =IF(COUNTIF(E13:E18,"Y")=6,"正確","錯誤!") -> 正確 | F12: 流水號 | G12: 年級 | H12: 上學期 | I12: 下學期 | J12: ="上學期" & P3 & "天" -> 上學期100天 | K12: ="下學期" & P4 & "天" -> 下學期92天 | L12: 備註 | M12: 本校中年級週四或週五半天選取(高年級也要選取Y) | N12: 六年級下學期上課天數 | X12: 年級 | Y12: 彈性學習節數 | Z12: 國語文 | AA12: 本土 語言 | AB12: 英語 | AC12: 數學 | AD12: 社會 | AE12: 藝術與人文 | AF12: 自然與科技 | AG12: 健康與體育 | AH12: 綜合活動 | AI12: 學習總節數 | AJ12: 領域節數 | AK12: 領域節數是否正確 | AO12: 語文 (國+本土+英) | AP12: 檢核 | AR12: 數學 | AS12: 檢核 | AT12: 生活/社會 | AU12: 檢核 | AV12: 藝術與人文 | AW12: 檢核 | AX12: 自然與科技 | AY12: 檢核 | AZ12: 健康與體育 | BA12: 檢核 | BB12: 綜合活動 | BC12: 檢核 | BO12: 語文 (國+本土+英) | BP12: 檢核 | BR12: 數學 | BS12: 檢核 | BT12: 生活/社會 | BU12: 檢核 | BV12: 藝術與人文 | BW12: 檢核 | BX12: 自然與科技 | BY12: 檢核 | BZ12: 健康與體育 | CA12: 檢核 | CB12: 綜合活動 | CC12: 檢核 | CI12: AB | CJ12: E | CK12: 社會 | DI12: 0
B13: 1 | C13: 63 | D13: 60 | E13: =IF(OR(C13<>C21,D13<>D21),"節數不可更改","Y") -> Y | F13: 1 | G13: 一 | H13: =AI13*$O$3 -> 483 | I13: =AI13*$O$4 -> 460 | J13: 463 | K13: 425 | M13: Y | O13: =IF(M13="","尚未選取",IF(M13="Y","OK",)) -> OK | W13: 新 | X13: 一 | Y13: 3 | Z13: 6 | AA13: 1 | AB13: 0 | AC13: 4 | AD13: 6 | AG13: 3 | AH13: 0 | AI13: =SUM(Y13:AH13) -> 23 | AJ13: =SUM(Z13:AH13) -> 20 | AK13: =IF(AND(W13="新",SUM(Z13:AH13)=20,Y13=3),"正確",IF(AND(W13="舊",SUM(Z13:AH13)=20,Y13=3),"正確","錯誤")) -> 正確 | AO13: =IF(W13="新","*",IF(W13="舊",(Z13+AA13+AB13)/AF7,"")) -> * | AP13: =IF(AND(W13="新",Z13=6,AA13=1,AB13=0),"Y",IF(AND(AO13>=$AQ$8,AO13<=$AQ$9),"Y","錯誤")) -> Y | AR13: =IF(W13="新","*",IF(W13="舊",(AC13)/AF7,"")) -> * | AS13: =IF(AND(W13="新",AC13=4),"Y",IF(AND(AR13>=$AT$8,AR13<=$AT$9),"Y","錯誤")) -> Y | AT13: =IF(W13="新","*",IF(W13="舊",(AD13)/AF7,"")) -> * | AU13: =IF(AND(W13="新",AD13=6),"Y",IF(AND(AT13>=$AV$8,AT13<=$AV$9),"Y","錯誤")) -> Y | AZ13: =IF(W13="新","*",IF(W13="舊",(AG13)/AF7,"")) -> * | BA13: =IF(AND(W13="新",AG13=3),"Y",IF(AND(AZ13>=$AT$8,AZ13<=$AT$9),"Y","錯誤")) -> Y | BB13: =IF(W13="新","*",IF(W13="舊",(AH13)/AF7,"")) -> * | BC13: =IF(AND(W13="新",AH13=0),"Y",IF(AND(BB13>=$AT$8,BB13<=$AT$9),"Y","錯誤")) -> Y | BO13: =IF(AW13="新","*",IF(AW13="舊",(AZ13+BA13+BB13)/BF7,"")) ->  | BP13: =IF(AND(AW13="新",AZ13=6,BA13=1,BB13=0),"Y",IF(AND(BO13>=$AQ$8,BO13<=$AQ$9),"Y","錯誤")) -> 錯誤 | BR13: =IF(AW13="新","*",IF(AW13="舊",(BC13)/BF7,"")) ->  | BS13: =IF(AND(AW13="新",BC13=4),"Y",IF(AND(BR13>=$AT$8,BR13<=$AT$9),"Y","錯誤")) -> 錯誤 | BT13: =IF(AW13="新","*",IF(AW13="舊",(BD13)/BF7,"")) ->  | BU13: =IF(AND(AW13="新",BD13=6),"Y",IF(AND(BT13>=$AV$8,BT13<=$AV$9),"Y","錯誤")) -> 錯誤 | BZ13: =IF(AW13="新","*",IF(AW13="舊",(BG13)/BF7,"")) ->  | CA13: =IF(AND(AW13="新",BG13=3),"Y",IF(AND(BZ13>=$AT$8,BZ13<=$AT$9),"Y","錯誤")) -> 錯誤 | CB13: =IF(AW13="新","*",IF(AW13="舊",(BH13)/BF7,"")) ->  | CC13: =IF(AND(AW13="新",BH13=0),"Y",IF(AND(CB13>=$AT$8,CB13<=$AT$9),"Y","錯誤")) -> 錯誤 | CI13: AD | CJ13: F | CK13: 藝術與人文 | DI13: 0
B14: 2 | C14: 63 | D14: 60 | E14: Y | F14: 2 | G14: 二 | H14: =AI14*$O$3 -> 483 | I14: =AI14*$O$4 -> 460 | J14: 463 | K14: 425 | M14: Y | O14: =IF(M14="","尚未選取",IF(M14="Y","OK",)) -> OK | W14: 新 | X14: 二 | Y14: 3 | Z14: 6 | AA14: 1 | AB14: 0 | AC14: 4 | AD14: 6 | AG14: 3 | AH14: 0 | AI14: 23 | AJ14: =IF(SUM(Z14:AH14)<>$AF$7,"錯誤",SUM(Z14:AH14)) -> 20 | AK14: =IF(AND(W14="新",SUM(Z14:AH14)=20,Y14=3),"正確",IF(AND(W14="舊",SUM(Z14:AH14)=20,Y14=3),"正確","錯誤")) -> 正確 | AO14: =IF(W14="新","*",IF(W14="舊",(Z14+AA14+AB14)/AF7,"")) -> * | AP14: =IF(AND(W14="新",Z14=6,AA14=1,AB14=0),"Y",IF(AND(AO14>=$AQ$8,AO14<=$AQ$9),"Y","錯誤")) -> Y | AR14: =IF(W14="新","*",IF(W14="舊",(AC14)/AF7,"")) -> * | AS14: Y | AT14: =IF(W14="新","*",IF(W14="舊",(AD14)/AF7,"")) -> * | AU14: =IF(AND(W14="新",AD14=6),"Y",IF(AND(AT14>=$AV$8,AT14<=$AV$9),"Y","錯誤")) -> Y | AZ14: =IF(W14="新","*",IF(W14="舊",(AG14)/AF7,"")) -> * | BA14: Y | BB14: =IF(W14="新","*",IF(W14="舊",(AH14)/AF7,"")) -> * | BC14: =IF(AND(W14="新",AH14=0),"Y",IF(AND(BB14>=$AT$8,BB14<=$AT$9),"Y","錯誤")) -> Y | BO14: =IF(AW14="新","*",IF(AW14="舊",(AZ14+BA14+BB14)/BF7,"")) ->  | BP14: =IF(AND(AW14="新",AZ14=6,BA14=1,BB14=0),"Y",IF(AND(BO14>=$AQ$8,BO14<=$AQ$9),"Y","錯誤")) -> 錯誤 | BR14: =IF(AW14="新","*",IF(AW14="舊",(BC14)/BF7,"")) ->  | BS14: 錯誤 | BT14: =IF(AW14="新","*",IF(AW14="舊",(BD14)/BF7,"")) ->  | BU14: =IF(AND(AW14="新",BD14=6),"Y",IF(AND(BT14>=$AV$8,BT14<=$AV$9),"Y","錯誤")) -> 錯誤 | BZ14: =IF(AW14="新","*",IF(AW14="舊",(BG14)/BF7,"")) ->  | CA14: 錯誤 | CB14: =IF(AW14="新","*",IF(AW14="舊",(BH14)/BF7,"")) ->  | CC14: =IF(AND(AW14="新",BH14=0),"Y",IF(AND(CB14>=$AT$8,CB14<=$AT$9),"Y","錯誤")) -> 錯誤 | CI14: AF | CJ14: G | CK14: 自然與科技 | DI14: 0
B15: 3 | C15: 84 | D15: 80 | E15: Y | F15: 3 | G15: 三 | H15: =AI15*$O$3 -> 609 | I15: =AI15*$O$4 -> 580 | J15: 583 | K15: 530 | L15: 週五半天者 | M15: Y | O15: =IF(M15="","",IF(AND(M15="Y",M16="Y"),"三年級只能選一個","OK")) -> OK | W15: 舊 | X15: 三 | Y15: 4 | Z15: 5 | AA15: 1 | AB15: 1 | AC15: 3 | AD15: 3 | AE15: 3 | AF15: 3 | AG15: 3 | AH15: 3 | AI15: 29 | AJ15: =IF(SUM(Z15:AH15)<>$AF$8,"錯誤",SUM(Z15:AH15)) -> 25 | AK15: =IF(AND(W15="新",SUM(Z15:AH15)=25,Y15=4),"正確",IF(AND(W15="舊",SUM(Z15:AH15)=25,Y15=4),"正確","錯誤")) -> 正確 | AO15: =IF(W15="新","*",IF(W15="舊",(Z15+AA15+AB15)/AF8,"")) -> 0.28 | AP15: =IF(AND(W15="新",Z15=5,AA15=1,AB15=1),"Y",IF(AND(AO15>=$AQ$8,AO15<=$AQ$9),"Y","錯誤")) -> Y | AR15: =IF(W15="新","*",IF(W15="舊",(AC15)/AF8,"")) -> 0.12 | AS15: Y | AT15: =IF(W15="新","*",IF(W15="舊",(AD15)/AF8,"")) -> 0.12 | AU15: =IF(AND(W15="新",(AD15+AE15+AF15)=9),"Y",IF(AND($AT$15>=$AT$8,$AT$15<=$AT$9),"Y","錯誤")) -> Y | AV15: =IF(W15="新","*",IF(W15="舊",(AE15)/AF8,"")) -> 0.12 | AW15: =IF(AND(W15="新",(AE15)=3),"Y",IF(AND(AV15>=$AT$8,AV15<=$AT$9),"Y","錯誤")) -> Y | AX15: =IF(W15="新","*",IF(W15="舊",(AF15)/AF8,"")) -> 0.12 | AY15: =IF(AND(W15="新",(AF15)=3),"Y",IF(AND(AX15>=$AT$8,AX15<=$AT$9),"Y","錯誤")) -> Y | AZ15: =IF(W15="新","*",IF(W15="舊",(AG15)/AF8,"")) -> 0.12 | BA15: Y | BB15: =IF(W15="新","*",IF(W15="舊",(AH15)/AF8,"")) -> 0.12 | BC15: =IF(AND(W15="新"),"Y",IF(AND(BB15>=$AT$8,BB15<=$AT$9),"Y","錯誤")) -> Y | BO15: =IF(AW15="新","*",IF(AW15="舊",(AZ15+BA15+BB15)/BF8,"")) ->  | BP15: =IF(AND(AW15="新",AZ15=5,BA15=1,BB15=1),"Y",IF(AND(BO15>=$AQ$8,BO15<=$AQ$9),"Y","錯誤")) -> 錯誤 | BR15: =IF(AW15="新","*",IF(AW15="舊",(BC15)/BF8,"")) ->  | BS15: 錯誤 | BT15: =IF(AW15="新","*",IF(AW15="舊",(BD15)/BF8,"")) ->  | BU15: =IF(AND(AW15="新",(BD15+BE15+BF15)=9),"Y",IF(AND($AT$15>=$AT$8,$AT$15<=$AT$9),"Y","錯誤")) -> Y | BV15: =IF(AW15="新","*",IF(AW15="舊",(BE15)/BF8,"")) ->  | BW15: =IF(AND(AW15="新",(BE15)=3),"Y",IF(AND(BV15>=$AT$8,BV15<=$AT$9),"Y","錯誤")) -> 錯誤 | BX15: =IF(AW15="新","*",IF(AW15="舊",(BF15)/BF8,"")) ->  | BY15: =IF(AND(AW15="新",(BF15)=3),"Y",IF(AND(BX15>=$AT$8,BX15<=$AT$9),"Y","錯誤")) -> 錯誤 | BZ15: =IF(AW15="新","*",IF(AW15="舊",(BG15)/BF8,"")) ->  | CA15: 錯誤 | CB15: =IF(AW15="新","*",IF(AW15="舊",(BH15)/BF8,"")) ->  | CC15: =IF(AND(AW15="新"),"Y",IF(AND(CB15>=$AT$8,CB15<=$AT$9),"Y","錯誤")) -> 錯誤 | CI15: AH | CJ15: H | CK15: 健康與體育 | DI15: 0
B16: 4 | C16: 84 | D16: 80 | E16: Y | F16: 4 | G16: 三 | H16: =AI15*$O$3 -> 609 | I16: =AI15*$O$4 -> 580 | J16: 580 | K16: 527 | L16: 週四半天者 | O16: =IF(M16="","",IF(AND(M16="Y",M15="Y"),"三年級只能選一個","OK")) ->  | W16: 舊 | X16: 四 | Y16: 4 | Z16: 5 | AA16: 1 | AB16: 1 | AC16: 3 | AD16: 3 | AE16: 3 | AF16: 3 | AG16: 3 | AH16: 3 | AI16: 29 | AJ16: =IF(SUM(Z16:AH16)<>$AF$8,"錯誤",SUM(Z16:AH16)) -> 25 | AK16: =IF(AND(W16="新",SUM(Z16:AH16)=25,Y16=4),"正確",IF(AND(W16="舊",SUM(Z16:AH16)=25,Y16=4),"正確","錯誤")) -> 正確 | AO16: =IF(W16="新","*",IF(W16="舊",(Z16+AA16+AB16)/AF8,"")) -> 0.28 | AP16: =IF(AND(W16="新",Z16=5,AA16=1,AB16=1),"Y",IF(AND(AO16>=$AQ$8,AO16<=$AQ$9),"Y","錯誤")) -> Y | AR16: =IF(W16="新","*",IF(W16="舊",(AC16)/AF8,"")) -> 0.12 | AS16: Y | AT16: =IF(W16="新","*",IF(W16="舊",(AD16)/AF8,"")) -> 0.12 | AU16: =IF(AND(W16="新",(AD16+AE16+AF16)=9),"Y",IF(AND($AT$16>=$AT$8,$AT$16<=$AT$9),"Y","錯誤")) -> Y | AV16: =IF(W16="新","*",IF(W16="舊",(AE16)/AF8,"")) -> 0.12 | AW16: =IF(AND(W16="新",(AE16)=3),"Y",IF(AND(AV16>=$AT$8,AV16<=$AT$9),"Y","錯誤")) -> Y | AX16: =IF(W16="新","*",IF(W16="舊",(AF16)/AF8,"")) -> 0.12 | AY16: =IF(AND(W16="新",(AF16)=3),"Y",IF(AND(AX16>=$AT$8,AX16<=$AT$9),"Y","錯誤")) -> Y | AZ16: =IF(W16="新","*",IF(W16="舊",(AG16)/AF8,"")) -> 0.12 | BA16: Y | BB16: =IF(W16="新","*",IF(W16="舊",(AH16)/AF8,"")) -> 0.12 | BC16: =IF(AND(W16="新"),"Y",IF(AND(BB16>=$AT$8,BB16<=$AT$9),"Y","錯誤")) -> Y | BO16: =IF(AW16="新","*",IF(AW16="舊",(AZ16+BA16+BB16)/BF8,"")) ->  | BP16: =IF(AND(AW16="新",AZ16=5,BA16=1,BB16=1),"Y",IF(AND(BO16>=$AQ$8,BO16<=$AQ$9),"Y","錯誤")) -> 錯誤 | BR16: =IF(AW16="新","*",IF(AW16="舊",(BC16)/BF8,"")) ->  | BS16: 錯誤 | BT16: =IF(AW16="新","*",IF(AW16="舊",(BD16)/BF8,"")) ->  | BU16: =IF(AND(AW16="新",(BD16+BE16+BF16)=9),"Y",IF(AND($AT$16>=$AT$8,$AT$16<=$AT$9),"Y","錯誤")) -> Y | BV16: =IF(AW16="新","*",IF(AW16="舊",(BE16)/BF8,"")) ->  | BW16: =IF(AND(AW16="新",(BE16)=3),"Y",IF(AND(BV16>=$AT$8,BV16<=$AT$9),"Y","錯誤")) -> 錯誤 | BX16: =IF(AW16="新","*",IF(AW16="舊",(BF16)/BF8,"")) ->  | BY16: =IF(AND(AW16="新",(BF16)=3),"Y",IF(AND(BX16>=$AT$8,BX16<=$AT$9),"Y","錯誤")) -> 錯誤 | BZ16: =IF(AW16="新","*",IF(AW16="舊",(BG16)/BF8,"")) ->  | CA16: 錯誤 | CB16: =IF(AW16="新","*",IF(AW16="舊",(BH16)/BF8,"")) ->  | CC16: =IF(AND(AW16="新"),"Y",IF(AND(CB16>=$AT$8,CB16<=$AT$9),"Y","錯誤")) -> 錯誤 | CI16: AJ | CJ16: I | CK16: 綜合活動 | DI16: 0
B17: 5 | C17: 105 | D17: 100 | E17: Y | F17: 5 | G17: 四 | H17: =AI16*$O$3 -> 609 | I17: =AI16*$O$4 -> 580 | J17: 583 | K17: 530 | L17: 週五半天者 | M17: Y | O17: =IF(M17="","",IF(AND(M17="Y",M18="Y"),"四年級只能選一個","OK")) -> OK | W17: 舊 | X17: 五 | Y17: 5 | Z17: 5 | AA17: 1 | AB17: 1 | AC17: 4 | AD17: 3 | AE17: 3 | AF17: 4 | AG17: 3 | AH17: 3 | AI17: 32 | AJ17: =SUM($Z$17:$AH$17) -> 27 | AK17: =IF(AND(W17="新",SUM(Z17:AH17)=26,Y17=6),"正確",IF(AND(W17="舊",SUM(Z17:AH17)=27,Y17=5),"正確","錯誤")) -> 正確 | AO17: =IF(W17="新","*",IF(W17="舊",(Z17+AA17+AB17)/AF9,"")) -> 0.2592592593 | AP17: =IF(AND(W17="新",Z17=5,AA17=1,AB17=2),"Y",IF(AND(AO17>=$AQ$8,AO17<=$AQ$9),"Y","錯誤")) -> Y | AR17: =IF(W17="新","*",IF(W17="舊",(AC17)/AF9,"")) -> 0.1481481481 | AS17: Y | AT17: =IF(W17="新","*",IF(W17="舊",(AD17)/AF9,"")) -> 0.1111111111 | AU17: =IF(AND(W17="新",(AD17+AE17+AF17)=9),"Y",IF(AND($AT$17>=$AT$8,$AT$17<=$AT$9),"Y","錯誤")) -> Y | AV17: =IF(W17="新","*",IF(W17="舊",(AE17)/AF9,"")) -> 0.1111111111 | AW17: =IF(AND(W17="新",(AE17)=3),"Y",IF(AND(AV17>=$AT$8,AV17<=$AT$9),"Y","錯誤")) -> Y | AX17: =IF(W17="新","*",IF(W17="舊",(AF17)/AF9,"")) -> 0.1481481481 | AY17: =IF(AND(W17="新",(AF17)=3),"Y",IF(AND(AX17>=$AT$8,AX17<=$AT$9),"Y","錯誤")) -> Y | AZ17: =IF(W17="新","*",IF(W17="舊",(AG17)/AF9,"")) -> 0.1111111111 | BA17: Y | BB17: =IF(W17="新","*",IF(W17="舊",(AH17)/AF9,"")) -> 0.1111111111 | BC17: =IF(AND(W17="新"),"Y",IF(AND(BB17>=$AT$8,BB17<=$AT$9),"Y","錯誤")) -> Y | BO17: =IF(AW17="新","*",IF(AW17="舊",(AZ17+BA17+BB17)/BF9,"")) ->  | BP17: =IF(AND(AW17="新",AZ17=5,BA17=1,BB17=2),"Y",IF(AND(BO17>=$AQ$8,BO17<=$AQ$9),"Y","錯誤")) -> 錯誤 | BR17: =IF(AW17="新","*",IF(AW17="舊",(BC17)/BF9,"")) ->  | BS17: 錯誤 | BT17: =IF(AW17="新","*",IF(AW17="舊",(BD17)/BF9,"")) ->  | BU17: =IF(AND(AW17="新",(BD17+BE17+BF17)=9),"Y",IF(AND($AT$17>=$AT$8,$AT$17<=$AT$9),"Y","錯誤")) -> Y | BV17: =IF(AW17="新","*",IF(AW17="舊",(BE17)/BF9,"")) ->  | BW17: =IF(AND(AW17="新",(BE17)=3),"Y",IF(AND(BV17>=$AT$8,BV17<=$AT$9),"Y","錯誤")) -> 錯誤 | BX17: =IF(AW17="新","*",IF(AW17="舊",(BF17)/BF9,"")) ->  | BY17: =IF(AND(AW17="新",(BF17)=3),"Y",IF(AND(BX17>=$AT$8,BX17<=$AT$9),"Y","錯誤")) -> 錯誤 | BZ17: =IF(AW17="新","*",IF(AW17="舊",(BG17)/BF9,"")) ->  | CA17: 錯誤 | CB17: =IF(AW17="新","*",IF(AW17="舊",(BH17)/BF9,"")) ->  | CC17: =IF(AND(AW17="新"),"Y",IF(AND(CB17>=$AT$8,CB17<=$AT$9),"Y","錯誤")) -> 錯誤 | CJ17: R | CK17: 科技 | DI17: =SUM(CL17:DG17) -> 0
B18: 6 | C18: 105 | D18: 85 | E18: Y | F18: 6 | G18: 四 | H18: =AI16*$O$3 -> 609 | I18: =AI16*$O$4 -> 580 | J18: 580 | K18: 527 | L18: 週四半天者 | O18: =IF(M18="","",IF(AND(M17="Y",M18="Y"),"四年級只能選一個","OK")) ->  | W18: 舊 | X18: 六 | Y18: 5 | Z18: 5 | AA18: 1 | AB18: 1 | AC18: 4 | AD18: 3 | AE18: 3 | AF18: 4 | AG18: 3 | AH18: 3 | AI18: 32 | AJ18: =SUM($Z$18:$AH$18) -> 27 | AK18: =IF(AND(W18="新",SUM(Z18:AH18)=26,Y18=6),"正確",IF(AND(W18="舊",SUM(Z18:AH18)=27,Y18=5),"正確","錯誤")) -> 正確 | AO18: =IF(W18="新","*",IF(W18="舊",(Z18+AA18+AB18)/AF9,"")) -> 0.2592592593 | AP18: =IF(AND(W18="新",Z18=5,AA18=1,AB18=2),"Y",IF(AND(AO18>=$AQ$8,AO18<=$AQ$9),"Y","錯誤")) -> Y | AR18: =IF(W18="新","*",IF(W18="舊",(AC18)/AF9,"")) -> 0.1481481481 | AS18: Y | AT18: =IF(W18="新","*",IF(W18="舊",(AD18)/AF9,"")) -> 0.1111111111 | AU18: =IF(AND(W18="新",(AD18+AE18+AF18)=9),"Y",IF(AND($AT$18>=$AT$8,$AT$18<=$AT$9),"Y","錯誤")) -> Y | AV18: =IF(W18="新","*",IF(W18="舊",(AE18)/AF9,"")) -> 0.1111111111 | AW18: =IF(AND(W18="新",(AE18)=3),"Y",IF(AND(AV18>=$AT$8,AV18<=$AT$9),"Y","錯誤")) -> Y | AX18: =IF(W18="新","*",IF(W18="舊",(AF18)/AF9,"")) -> 0.1481481481 | AY18: =IF(AND(W18="新",(AF18)=3),"Y",IF(AND(AX18>=$AT$8,AX18<=$AT$9),"Y","錯誤")) -> Y | AZ18: =IF(W18="新","*",IF(W18="舊",(AG18)/AF9,"")) -> 0.1111111111 | BA18: Y | BB18: =IF(W18="新","*",IF(W18="舊",(AH18)/AF9,"")) -> 0.1111111111 | BC18: =IF(AND(W18="新"),"Y",IF(AND(BB18>=$AT$8,BB18<=$AT$9),"Y","錯誤")) -> Y | BO18: =IF(AW18="新","*",IF(AW18="舊",(AZ18+BA18+BB18)/BF9,"")) ->  | BP18: =IF(AND(AW18="新",AZ18=5,BA18=1,BB18=2),"Y",IF(AND(BO18>=$AQ$8,BO18<=$AQ$9),"Y","錯誤")) -> 錯誤 | BR18: =IF(AW18="新","*",IF(AW18="舊",(BC18)/BF9,"")) ->  | BS18: 錯誤 | BT18: =IF(AW18="新","*",IF(AW18="舊",(BD18)/BF9,"")) ->  | BU18: =IF(AND(AW18="新",(BD18+BE18+BF18)=9),"Y",IF(AND($AT$18>=$AT$8,$AT$18<=$AT$9),"Y","錯誤")) -> Y | BV18: =IF(AW18="新","*",IF(AW18="舊",(BE18)/BF9,"")) ->  | BW18: =IF(AND(AW18="新",(BE18)=3),"Y",IF(AND(BV18>=$AT$8,BV18<=$AT$9),"Y","錯誤")) -> 錯誤 | BX18: =IF(AW18="新","*",IF(AW18="舊",(BF18)/BF9,"")) ->  | BY18: =IF(AND(AW18="新",(BF18)=3),"Y",IF(AND(BX18>=$AT$8,BX18<=$AT$9),"Y","錯誤")) -> 錯誤 | BZ18: =IF(AW18="新","*",IF(AW18="舊",(BG18)/BF9,"")) ->  | CA18: 錯誤 | CB18: =IF(AW18="新","*",IF(AW18="舊",(BH18)/BF9,"")) ->  | CC18: =IF(AND(AW18="新"),"Y",IF(AND(CB18>=$AT$8,CB18<=$AT$9),"Y","錯誤")) -> 錯誤 | CK18: 0 | DI18: 0
F19: 7 | G19: 五 | H19: =AI17*$O$3 -> 672 | I19: =AI17*$O$4 -> 640 | J19: 637 | K19: 584 | M19: Y | O19: =IF(M19="","尚未選取",IF(M19="Y","OK",)) -> OK | W19: =COUNTA(W13:W18) -> 6 | DI19: 0
E20: =COUNTIF(E21:E26,"Y") -> 6 | F20: 8 | G20: 六 | H20: =$AI$18*$O$3 -> 672 | I20: =$AI$18*$O$5 -> 544 | J20: 637 | K20: 484 | L20: =$O$5& "週,6/7(一)" -> 17週,6/7(一) | M20: Y | N20: 76 | O20: =IF(M20="","",IF(COUNTIF($M$20:$M$26,"Y")>1,"六年級只能選一個","OK")) -> OK | CI20: F | CJ20: J | CK20: 校本課程d | DI20: 0
A21: 17 | B21: 1 | C21: 63 | D21: 60 | E21: =IF(OR($C$13<>$C$21,$D$13<>$D$21),"節數不可更改","Y") -> Y | F21: 9 | G21: 六 | H21: =$AI$18*$O$3 -> 672 | I21: =$AI$18*$O$5 -> 544 | J21: 637 | K21: 491 | L21: =$O$5& "週,6/8(二)" -> 17週,6/8(二) | N21: 77 | X21: 107年舊版本 | CI21: H | CJ21: K | CK21: 學習扶助(國語) | DI21: 0
A22: 18 | B22: 2 | C22: 63 | D22: 60 | E22: =IF(OR($C$14<>$C$22,$D$14<>$D$22),"節數不可更改","Y") -> Y | F22: 10 | G22: 六 | H22: 672 | I22: 544 | J22: 637 | K22: 495 | L22: =$O$5& "週,6/9(三)" -> 17週,6/9(三) | N22: 78 | Y22: 請注意:各週節數參考(以學校課發會通過為準)(在此修正節數,再選新舊版本) | CI22: J | CJ22: L | CK22: 學習扶助(數學) | DI22: 0
A23: 19 | B23: 3 | C23: 84 | D23: 80 | E23: =IF(OR($C$15<>$C$23,$D$15<>$D$23),"節數不可更改","Y") -> Y | F23: 11 | G23: 六 | H23: 672 | I23: 544 | J23: 637 | K23: 502 | L23: =$O$5& "週,6/10(四)" -> 17週,6/10(四) | N23: 79 | X23: 項目(節) | Z23: 語文 | AD23: 生活 | CI23: L | CJ23: M | CK23: 資訊教育 | DI23: 0
A24: 20 | B24: 4 | C24: 84 | D24: 80 | E24: =IF(OR($C$16<>$C$24,$D$16<>$D$24),"節數不可更改","Y") -> Y | F24: 12 | G24: 六 | H24: 672 | I24: 544 | J24: 637 | K24: 509 | L24: =$O$5& "週,6/11(五)" -> 17週,6/11(五) | N24: 80 | X24: 年級 | Y24: 彈性學習節數 | Z24: 國語文 | AA24: 本土 語言 | AB24: 英語 | AC24: 數學 | AD24: 社會 | AE24: 藝術與人文 | AF24: 自然與科技 | AG24: 健康與體育 | AH24: 綜合活動 | AI24: 學習總節數 | CI24: N | CJ24: N | DI24: 0
A25: 21 | B25: 5 | C25: 105 | D25: 100 | E25: =IF(OR($C$17<>$C$25,$D$17<>$D$25),"節數不可更改","Y") -> Y | F25: 13 | X25: 一 | Y25: 3 | Z25: 5 | AA25: 1 | AB25: 0 | AC25: 3 | AD25: 7 | AG25: 2 | AH25: 2 | AI25: =SUM(Y25:AH25) -> 23 | CI25: P | DI25: 0
B26: 6 | C26: 105 | D26: 85 | E26: =IF(OR($C$18<>$C$26,$D$18<>$D$26),"節數不可更改","Y") -> Y | F26: 14 | X26: 二 | Y26: 3 | Z26: 5 | AA26: 1 | AB26: 0 | AC26: 3 | AD26: 7 | AG26: 2 | AH26: 2 | AI26: 23 | DI26: =SUM(DI8:DI25) -> 0
X27: 三 | Y27: 4 | Z27: 5 | AA27: 1 | AB27: 1 | AC27: 3 | AD27: 3 | AE27: 3 | AF27: 3 | AG27: 3 | AH27: 3 | AI27: 29 | CK27: 108
X28: 四 | Y28: 4 | Z28: 5 | AA28: 1 | AB28: 1 | AC28: 3 | AD28: 3 | AE28: 3 | AF28: 3 | AG28: 3 | AH28: 3 | AI28: 29
X29: 五 | Y29: 5 | Z29: 6 | AA29: 1 | AB29: 1 | AC29: 4 | AD29: 3 | AE29: 3 | AF29: 3 | AG29: 3 | AH29: 3 | AI29: 32 | CH29: 最多節數 | CJ29: 學校設定節數
X30: 六 | Y30: 5 | Z30: 6 | AA30: 1 | AB30: 1 | AC30: 4 | AD30: 3 | AE30: 3 | AF30: 3 | AG30: 3 | AH30: 3 | AI30: 32 | CH30: 4 | CI30: 21 | CJ30: J | CK30: 校本課程d | CL30: 0 | CM30: 0 | CN30: 0 | CO30: 0 | CP30: 0 | CQ30: 0 | CR30: 0 | CS30: 0 | CT30: 0 | CU30: 0 | CV30: 0 | CW30: 0 | CX30: 0 | CY30: 0 | CZ30: 0 | DA30: 0 | DB30: 0 | DC30: 0 | DD30: 0 | DE30: 0
CH31: 4 | CI31: 21 | CJ31: K | CK31: 學習扶助(國語) | CL31: 0 | CM31: 0 | CN31: 0 | CO31: 0 | CP31: 0 | CQ31: 0 | CR31: 0 | CS31: 0 | CT31: 0 | CU31: 0 | CV31: 0 | CW31: 0 | CX31: 0 | CY31: 0 | CZ31: 0 | DA31: 0 | DB31: 0 | DC31: 0 | DD31: 0 | DE31: 0
C32: 簡易操作步驟流程 | X32: 108年以後新版本 | CH32: 3 | CI32: 17 | CJ32: L | CK32: 學習扶助(數學) | CL32: 0 | CM32: 0 | CN32: 0 | CO32: 0 | CP32: 0 | CQ32: 0 | CR32: 0 | CS32: 0 | CT32: 0 | CU32: 0 | CV32: 0 | CW32: 0 | CX32: 0 | CY32: 0 | CZ32: 0 | DA32: 0 | DB32: 0 | DC32: 0 | DD32: 0 | DE32: 0
B33: 3項重點 | C33: 主任_作業順序:(1)修正1~13 (2)檢查1~8 (3)最後完成跨節數分析 | Z33: 各週節數參考(以學校課發會通過為準) | CH33: 4 | CI33: 21 | CJ33: M | CK33: 資訊教育 | CL33: 1 | CM33: 1 | CN33: 1 | CO33: 1 | CP33: 1 | CQ33: 1 | CR33: 1 | CS33: 1 | CT33: 1 | CU33: 1 | CV33: 1 | CW33: 1 | CX33: 1 | CY33: 1 | CZ33: 1 | DA33: 1 | DB33: 1 | DC33: 1 | DD33: 1 | DE33: 1
B34: 說明如右: | C34: 1 | D34: 在電腦任何磁碟,開一個新資料夾(命名)_放檔案軟體,打開檔案 | X34: 項目(節) | Z34: 語文 | AD34: 生活課程 | CH34: 4 | CI34: 21 | CJ34: N | CL34: 1 | CM34: 1 | CN34: 1 | CO34: 1 | CP34: 1 | CQ34: 1 | CR34: 1 | CS34: 1 | CT34: 1 | CU34: 1 | CV34: 1 | CW34: 1 | CX34: 1 | CY34: 1 | CZ34: 1 | DA34: 1 | DB34: 1 | DC34: 1 | DD34: 1 | DE34: 1
C35: 2 | D35: 選取<使用說明>工作表:更改校名,同時修正__本年度各年級__正確彈性節數 | X35: 年級 | Y35: 彈性學習課程 | Z35: 國語文 | AA35: 本土 語文 | AB35: 英語文 | AC35: 數學 | AD35: 社會 | AE35: 藝術 | AF35: 自然科學 | AG35: 健康與體育 | AH35: 綜合活動 | AI35: 學習總節數 | CH35: 0 | CL35: 0 | CM35: 0 | CN35: 0 | CO35: 0 | CP35: 0 | CQ35: 0 | CR35: 0 | CS35: 0 | CT35: 0 | CU35: 0 | CV35: 0 | CW35: 0 | CX35: 0 | CY35: 0 | CZ35: 0 | DA35: 0 | DB35: 0 | DC35: 0 | DD35: 0 | DE35: 0
C36: 3 | D36: 選取<活動週次和國定假日>工作表:在D欄__輸入建立本年度__重要行事曆__全校性或各年級各項活動(可供各年級使用) | X36: 一 | Y36: 3 | Z36: 6 | AA36: 1 | AB36: 0 | AC36: 4 | AD36: 6 | AG36: 3 | AH36: 0 | AI36: =SUM(Y36:AH36) -> 23 | CH36: =INT(CI36*0.2) -> 0 | CI36: =SUM(CL36:DG36) -> 0
C37: 4 | D37: 選取< 上/下學期>工作表:在AF欄__輸入本年度__重要行事曆__全校性各項活動(各年級性質留給各年級自己輸入) | X37: 二 | Y37: 3 | Z37: 6 | AA37: 1 | AB37: 0 | AC37: 4 | AD37: 6 | AG37: 3 | AH37: 0 | AI37: 23 | CH37: 最多節數 | CI37: 0 | CJ37: 跨領域專用
C38: 5 | D38: 選取<作業平台__教育部局年度規定節數>工作表: 除了教育部教育局規定最低節數不能變更外,學校可依_校本課程_自行新增項目(只要符合法定節數即可) | X38: 三 | Y38: 4 | Z38: 5 | AA38: 1 | AB38: 1 | AC38: 4 | AD38: 3 | AE38: 3 | AF38: 3 | AG38: 3 | AH38: 2 | AI38: 29 | CH38: 21 | CI38: 0 | CJ38: A | CK38: 國語文 | CL38: 0 | CM38: 0 | CN38: 0 | CO38: 0 | CP38: 0 | CQ38: 0 | CR38: 0 | CS38: 0 | CT38: 0 | CU38: 0 | CV38: 0 | CW38: 0 | CX38: 0 | CY38: 0 | CZ38: 0 | DA38: 0 | DB38: 0 | DC38: 0 | DD38: 0 | DE38: 0
D39: Leader:操作方法_全校性活動 | X39: 四 | Y39: 4 | Z39: 5 | AA39: 1 | AB39: 1 | AC39: 4 | AD39: 3 | AE39: 3 | AF39: 3 | AG39: 3 | AH39: 2 | AI39: 29 | CH39: 4 | CI39: 0 | CJ39: B | CK39: 本土語言 | CL39: 0 | CM39: 0 | CN39: 0 | CO39: 0 | CP39: 0 | CQ39: 0 | CR39: 0 | CS39: 0 | CT39: 0 | CU39: 0 | CV39: 0 | CW39: 0 | CX39: 0 | CY39: 0 | CZ39: 0 | DA39: 0 | DB39: 0 | DC39: 0 | DD39: 0 | DE39: 0
E40: (1):在F欄輸入項目名稱 | X40: 五 | Y40: 6 | Z40: 5 | AA40: 1 | AB40: 2 | AC40: 4 | AD40: 3 | AE40: 3 | AF40: 3 | AG40: 3 | AH40: 2 | AI40: 32 | CH40: 8 | CI40: 0 | CJ40: C | CK40: 英語 | CL40: 0 | CM40: 0 | CN40: 0 | CO40: 0 | CP40: 0 | CQ40: 0 | CR40: 0 | CS40: 0 | CT40: 0 | CU40: 0 | CV40: 0 | CW40: 0 | CX40: 0 | CY40: 0 | CZ40: 0 | DA40: 0 | DB40: 0 | DC40: 0 | DD40: 0 | DE40: 0
E41: (2):在H欄輸入課程類別代號A,B,C…. | X41: 六 | Y41: 6 | Z41: 5 | AA41: 1 | AB41: 2 | AC41: 4 | AD41: 3 | AE41: 3 | AF41: 3 | AG41: 3 | AH41: 2 | AI41: 32 | CH41: 16 | CI41: 0 | CJ41: D | CK41: 數學 | CL41: 0 | CM41: 0 | CN41: 0 | CO41: 0 | CP41: 0 | CQ41: 0 | CR41: 0 | CS41: 0 | CT41: 0 | CU41: 0 | CV41: 0 | CW41: 0 | CX41: 0 | CY41: 0 | CZ41: 0 | DA41: 0 | DB41: 0 | DC41: 0 | DD41: 0 | DE41: 0
E42: (3):在I欄選取年級(請用下拉式選取,避免手動輸入錯誤格式) | CH42: 12 | CI42: 0 | CJ42: E | CK42: 社會 | CL42: 0 | CM42: 0 | CN42: 0 | CO42: 0 | CP42: 0 | CQ42: 0 | CR42: 0 | CS42: 0 | CT42: 0 | CU42: 0 | CV42: 0 | CW42: 0 | CX42: 0 | CY42: 0 | CZ42: 0 | DA42: 0 | DB42: 0 | DC42: 0 | DD42: 0 | DE42: 0
E43: (4):輸入節數 | CH43: 12 | CI43: 0 | CJ43: F | CK43: 藝術與人文 | CL43: 0 | CM43: 0 | CN43: 0 | CO43: 0 | CP43: 0 | CQ43: 0 | CR43: 0 | CS43: 0 | CT43: 0 | CU43: 0 | CV43: 0 | CW43: 0 | CX43: 0 | CY43: 0 | CZ43: 0 | DA43: 0 | DB43: 0 | DC43: 0 | DD43: 0 | DE43: 0
E44: 依序完成所有課程各類基本節數設定 | CH44: 12 | CI44: 0 | CJ44: G | CK44: 自然與科技 | CL44: 0 | CM44: 0 | CN44: 0 | CO44: 0 | CP44: 0 | CQ44: 0 | CR44: 0 | CS44: 0 | CT44: 0 | CU44: 0 | CV44: 0 | CW44: 0 | CX44: 0 | CY44: 0 | CZ44: 0 | DA44: 0 | DB44: 0 | DC44: 0 | DD44: 0 | DE44: 0
C45: 6 | D45: 說明:如果彈性節數不足,尚未符合上方:(表一)規定,主任可協助新增項目在此工作表完成不足的節數，或產生各年級檔案後由各學年討論,再輸入亦可(依各校規定) | CH45: 12 | CI45: 0 | CJ45: H | CK45: 健康與體育 | CL45: 0 | CM45: 0 | CN45: 0 | CO45: 0 | CP45: 0 | CQ45: 0 | CR45: 0 | CS45: 0 | CT45: 0 | CU45: 0 | CV45: 0 | CW45: 0 | CX45: 0 | CY45: 0 | CZ45: 0 | DA45: 0 | DB45: 0 | DC45: 0 | DD45: 0 | DE45: 0
C46: 7 | D46: 最後_按<Leader:各年級輸入檔案產出>執行紐即可產生各年級檔案 | CH46: 8 | CI46: 0 | CJ46: I | CK46: 綜合活動 | CL46: 0 | CM46: 0 | CN46: 0 | CO46: 0 | CP46: 0 | CQ46: 0 | CR46: 0 | CS46: 0 | CT46: 0 | CU46: 0 | CV46: 0 | CW46: 0 | CX46: 0 | CY46: 0 | CZ46: 0 | DA46: 0 | DB46: 0 | DC46: 0 | DD46: 0 | DE46: 0
B47: 2項重點 | C47: 教師_作業步驟(1).輸入(或copy貼上)個單元學習領域(2)完成步驟1~步驟13 | CH47: =INT(CI47*0.2) -> 0 | CI47: 0 | CJ47: R | CK47: 科技
C48: 1 | D48: 開新資料夾_放各年級檔案軟體,打開檔案 | CH48: =INT(CI48*0.2) -> 0 | CI48: 0
C49: (操作方法1):2 | D49: 點選<作業平台__教育部局年度規定節數>工作表上之__按步驟1:<顯示上/下/全部/學期作業平台>執行紐即可產生_(循環式)上/下/全部學期作業平台簡化輸入介面 | CH49: =INT(CI49*0.2) -> 0 | CI49: 0
C50: 3 | D50: 如有新增項目:同__(主任_開始作業之5__Leader:操作方法)_輸入年級性活動,設定符合部&局規定彈性節數 | CH50: 4 | CI50: 0 | CJ50: J | CK50: 校本課程d | CL50: 0 | CM50: 0 | CN50: 0 | CO50: 0 | CP50: 0 | CQ50: 0 | CR50: 0 | CS50: 0 | CT50: 0 | CU50: 0 | CV50: 0 | CW50: 0 | CX50: 0 | CY50: 0 | CZ50: 0 | DA50: 0 | DB50: 0 | DC50: 0 | DD50: 0 | DE50: 0
CH51: 4 | CI51: 0 | CJ51: K | CK51: 學習扶助(國語) | CL51: 0 | CM51: 0 | CN51: 0 | CO51: 0 | CP51: 0 | CQ51: 0 | CR51: 0 | CS51: 0 | CT51: 0 | CU51: 0 | CV51: 0 | CW51: 0 | CX51: 0 | CY51: 0 | CZ51: 0 | DA51: 0 | DB51: 0 | DC51: 0 | DD51: 0 | DE51: 0
C52: ※(操作方法2):4 | D52: 步驟2:依各年級設定節數是屬於哪一類別(含全校性&各班&特色校本&或融入&非課程,分別在(上學期)X~AF欄//(下學期)AR~AZ欄之間),正確選定欄與項目之儲存格,滑鼠左鍵快按2次選取_週次和節數 | CH52: 3 | CI52: 0 | CJ52: L | CK52: 學習扶助(數學) | CL52: 0 | CM52: 0 | CN52: 0 | CO52: 0 | CP52: 0 | CQ52: 0 | CR52: 0 | CS52: 0 | CT52: 0 | CU52: 0 | CV52: 0 | CW52: 0 | CX52: 0 | CY52: 0 | CZ52: 0 | DA52: 0 | DB52: 0 | DC52: 0 | DD52: 0 | DE52: 0
D53: 說明:(週次和節數輸入錯誤,可以隨時取消內容__重新輸入) | CH53: 4 | CI53: 0 | CJ53: M | CK53: 資訊教育 | CL53: 0 | CM53: 0 | CN53: 0 | CO53: 0 | CP53: 0 | CQ53: 0 | CR53: 0 | CS53: 0 | CT53: 0 | CU53: 0 | CV53: 0 | CW53: 0 | CX53: 0 | CY53: 0 | CZ53: 0 | DA53: 0 | DB53: 0 | DC53: 0 | DD53: 0 | DE53: 0
C54: 5 | D54: 依序完成所設新增項目 | CH54: 4 | CI54: 0 | CJ54: N | CL54: 0 | CM54: 0 | CN54: 0 | CO54: 0 | CP54: 0 | CQ54: 0 | CR54: 0 | CS54: 0 | CT54: 0 | CU54: 0 | CV54: 0 | CW54: 0 | CX54: 0 | CY54: 0 | CZ54: 0 | DA54: 0 | DB54: 0 | DC54: 0 | DD54: 0 | DE54: 0
C55: (操作方法3):6 | D55: 按步驟3_檢核節數是否完全正確__在Y3儲存格出現_<你很棒,輸入全部正確>!"代表作業完成" | CH55: 0 | CI55: 0 | CL55: 0 | CM55: 0 | CN55: 0 | CO55: 0 | CP55: 0 | CQ55: 0 | CR55: 0 | CS55: 0 | CT55: 0 | CU55: 0 | CV55: 0 | CW55: 0 | CX55: 0 | CY55: 0 | CZ55: 0 | DA55: 0 | DB55: 0 | DC55: 0 | DD55: 0 | DE55: 0
C56: (操作方法4):7 | D56: 可以按步驟4 // 完成上學期課程節數設定 | CH56: =INT(CI56*0.2) -> 0
D57: ※學習領域(個單元名稱)自動匯入-作法 | CH57: =INT(CI57*0.2) -> 0
C58: 8 | D58: 點選_(學習領域個單元)工作表,在E~U欄,輸入各學習領域單元名稱同時,在第2列輸入各年級各領域每週上課節數,第4列_輸入正確書局版本 | CH58: =INT(CI58*0.2) -> 0 | CK58: 0
D59: ( 下學期輸入方法同8) | CH59: 週次: | CJ59: 部定領域
C60: (操作方法5):9 | D60: 點選<上學期>工作表上之__按<步驟5...>執行紐即可匯入所有學習領域個單元名稱 | CH60: =INT(CI60*0.2) -> 21 | CI60: 105 | CJ60: A | CK60: 國語文
C61: 10 | D61: 下學期同2~9步驟 | CH61: 4 | CI61: 21 | CJ61: B | CK61: 本土語言
D62: ※上/下_相關議題撰寫統整表自動匯入-作法 | CH62: 8 | CI62: 42 | CJ62: C | CK62: 英語
C63: (操作方法6)11 | D63: 只要選取<上/下_相關議題撰寫統整表>工作表,按步驟7即可 | AO63: =IF(W63="新","*",IF(W63="舊",(Z63+AA63+AB63)/AF57,"")) ->  | CH63: 16 | CI63: 84 | CJ63: D | CK63: 數學
AO64: =IF(W64="新","*",IF(W64="舊",(Z64+AA64+AB64)/AF57,"")) ->  | CH64: 12 | CI64: 63 | CJ64: E | CK64: 社會
D65: ※匯出上/下學期進度總表-作法 | AO65: =IF(W65="新","*",IF(W65="舊",(Z65+AA65+AB65)/AF58,"")) ->  | CH65: 12 | CI65: 63 | CJ65: F | CK65: 藝術與人文
C66: (操作方法7)12 | D66: 按(步驟12)__即可完成 | AO66: =IF(W66="新","*",IF(W66="舊",(Z66+AA66+AB66)/AF58,"")) ->  | CH66: 12 | CI66: 63 | CJ66: G | CK66: 自然與科技
AO67: =IF(W67="新","*",IF(W67="舊",(Z67+AA67+AB67)/AF59,"")) ->  | CH67: 12 | CI67: 63 | CJ67: H | CK67: 健康與體育
AO68: =IF(W68="新","*",IF(W68="舊",(Z68+AA68+AB68)/AF59,"")) ->  | CH68: 8 | CI68: 42 | CJ68: I | CK68: 綜合活動
C69: 匯出: | D69: ※ 匯出各學習領域課程計畫-作法 | CJ69: R | CK69: 科技
C70: (操作方法8)13 | D70: 步驟9:將所有資料轉成資料庫格式
C71: (操作方法9)14 | D71: 步驟10(舊課程):依表單說明選取你想輸出之 領域課程
D72: 步驟11_A(新課程__校訂):依表單說明選取你想輸出之 領域課程
D73: 步驟11_B(新課程__部定):依表單說明選取你想輸出之 領域課程 | AO73: =IF(W73="新","*",IF(W73="舊",(Z73+AA73+AB73)/AF67,"")) ->  | AP73: =IF(AND(W73="新",Z73=6,AA73=1,AB73=0),"Y",IF(OR($AO$13>$AQ$9,$AO$13<$AQ$8),"錯誤","Y")) -> 錯誤 | AR73: =IF(W73="新","*",IF(W73="舊",(AC73)/AF67,"")) ->  | AS73: =IF(AND(W73="新",AC73=4),"Y",IF(OR($AR$13>$AT$9,$AR$13<$AT$8),"錯誤","Y")) -> 錯誤 | AT73: =IF(W73="新","*",IF(W73="舊",(AD73)/AF67,"")) ->  | AU73: =IF(AND(W73="新",AD73=6),"Y",IF(OR($AT$13>$AV$9,$AT$13<$AV$8),"錯誤","Y")) -> 錯誤 | AZ73: =IF(W73="新","*",IF(AE73="舊",(AG73)/AF67,"")) ->  | BA73: =IF(AND(W73="新",AG73=3),"Y",IF(OR($AZ$13>$AT$9,$AZ$13<$AT$8),"錯誤","Y")) -> 錯誤 | BB73: =IF(W73="新","*",IF(W73="舊",(AH73)/AF67,"")) ->  | BC73: =IF(AND(W73="新",AH73=0),"Y",IF(OR(BB73>$AT$9,BB73<$AT$8),"錯誤","Y")) -> 錯誤
AO74: =IF(W74="新","*",IF(W74="舊",(Z74+AA74+AB74)/AF67,"")) ->  | AP74: =IF(AND(W74="新",Z74=6,AA74=1,AB74=0),"Y",IF(OR($AO$14>$AQ$9,$AO$13<$AQ$8),"錯誤","Y")) -> 錯誤 | AR74: =IF(W74="新","*",IF(W74="舊",(AC74)/AF67,"")) ->  | AS74: =IF(AND(W74="新",AC74=4),"Y",IF(OR($AR$14>$AT$9,$AR$14<$AT$8),"錯誤","Y")) -> 錯誤 | AT74: =IF(W74="新","*",IF(W74="舊",(AD74)/AF67,"")) ->  | AU74: =IF(AND(W74="新",AD74=6),"Y",IF(OR($AT$14>$AV$9,$AT$14<$AV$8),"錯誤","Y")) -> 錯誤 | AZ74: =IF(W74="新","*",IF(AE74="舊",(AG74)/AF67,"")) ->  | BA74: =IF(AND(W74="新",AG74=3),"Y",IF(OR($AZ$14>$AT$9,$AZ$14<$AT$8),"錯誤","Y")) -> 錯誤 | BB74: =IF(W74="新","*",IF(W74="舊",(AH74)/AF67,"")) ->  | BC74: =IF(AND(W74="新",AH74=0),"Y",IF(OR(BB74>$AT$9,BB74<$AT$8),"錯誤","Y")) -> 錯誤
AO75: =IF(W75="新","*",IF(W75="舊",(Z75+AA75+AB75)/AF68,"")) ->  | AP75: =IF(AND(W75="新",Z75=5,AA75=1,AB75=1),"Y",IF(OR($AO$15>$AQ$9,$AO$13<$AQ$8),"錯誤","Y")) -> Y | AR75: =IF(W75="新","*",IF(W75="舊",(AC75)/AF68,"")) ->  | AS75: =IF(AND(W75="新",AC75=4),"Y",IF(OR($AR$15>$AT$9,$AR$15<$AT$8),"錯誤","Y")) -> Y | AT75: =IF(W75="新","*",IF(W75="舊",(AD75)/AF68,"")) ->  | AU75: =IF(AND(W75="新",(AD75+AE75+AF75)=9),"Y",IF(OR($AT$15>$AT$9,$AT$15<$AT$8),"錯誤","Y")) -> Y | AV75: =IF(W73="新","*",IF(W73="舊",(AE75)/AF68,"")) ->  | AW75: =IF(AND(W75="新",(AE75)=3),"Y",IF(OR($AT$15>$AT$9,$AT$15<$AT$8),"錯誤","Y")) -> Y | AX75: =IF(W73="新","*",IF(W73="舊",(AF75)/AF68,"")) ->  | AY75: =IF(AND(W75="新",(AF75)=3),"Y",IF(OR($AT$15>$AT$9,$AT$15<$AT$8),"錯誤","Y")) -> Y | AZ75: =IF(W75="新","*",IF(AE75="舊",(AG75)/AF68,"")) ->  | BA75: =IF(AND(W75="新",AG75=3),"Y",IF(OR($AZ$15>$AT$9,$AZ$15<$AT$8),"錯誤","Y")) -> Y | BB75: =IF(W75="新","*",IF(W75="舊",(AH75)/AF68,"")) ->  | BC75: =IF(AND(W75="新",AH75=2),"Y",IF(OR(BB75>$AT$9,BB75<$AT$8),"錯誤","Y")) -> 錯誤
AO76: =IF(W76="新","*",IF(W76="舊",(Z76+AA76+AB76)/AF68,"")) ->  | AP76: =IF(AND(W76="新",Z76=5,AA76=1,AB76=1),"Y",IF(OR($AO$16>$AQ$9,$AO$13<$AQ$8),"錯誤","Y")) -> Y | AR76: =IF(W76="新","*",IF(W76="舊",(AC76)/AF68,"")) ->  | AS76: =IF(AND(W76="新",AC76=4),"Y",IF(OR($AR$16>$AT$9,$AR$16<$AT$8),"錯誤","Y")) -> Y | AT76: =IF(W76="新","*",IF(W76="舊",(AD76)/AF68,"")) ->  | AU76: =IF(AND(W76="新",(AD76+AE76+AF76)=9),"Y",IF(OR($AT$16>$AT$9,$AT$16<$AT$8),"錯誤","Y")) -> Y | AV76: =IF(W74="新","*",IF(W74="舊",(AE76)/AF68,"")) ->  | AW76: =IF(AND(W76="新",(AE76)=3),"Y",IF(OR($AT$16>$AT$9,$AT$16<$AT$8),"錯誤","Y")) -> Y | AX76: =IF(W74="新","*",IF(W74="舊",(AF76)/AF68,"")) ->  | AY76: =IF(AND(W76="新",(AF76)=3),"Y",IF(OR($AT$16>$AT$9,$AT$16<$AT$8),"錯誤","Y")) -> Y | AZ76: =IF(W76="新","*",IF(AE76="舊",(AG76)/AF68,"")) ->  | BA76: =IF(AND(W76="新",AG76=3),"Y",IF(OR($AZ$16>$AT$9,$AZ$16<$AT$8),"錯誤","Y")) -> Y | BB76: =IF(W76="新","*",IF(W76="舊",(AH76)/AF68,"")) ->  | BC76: =IF(AND(W76="新",AH76=2),"Y",IF(OR(BB76>$AT$9,BB76<$AT$8),"錯誤","Y")) -> 錯誤
AO77: =IF(W77="新","*",IF(W77="舊",(Z77+AA77+AB77)/AF69,"")) ->  | AP77: =IF(AND(W77="新",Z77=5,AA77=1,AB77=2),"Y",IF(OR($AO$17>$AQ$9,$AO$13<$AQ$8),"錯誤","Y")) -> Y | AR77: =IF(W77="新","*",IF(W77="舊",(AC77)/AF69,"")) ->  | AS77: =IF(AND(W77="新",AC77=4),"Y",IF(OR($AR$17>$AT$9,$AR$17<$AT$8),"錯誤","Y")) -> Y | AT77: =IF(W77="新","*",IF(W77="舊",(AD77)/AF69,"")) ->  | AU77: =IF(AND(W77="新",(AD77+AE77+AF77)=9),"Y",IF(OR($AT$17>$AT$17,$AT$16<$AT$8),"錯誤","Y")) -> Y | AV77: =IF(W75="新","*",IF(W75="舊",(AE77)/AF69,"")) ->  | AW77: =IF(AND(W77="新",(AE77)=3),"Y",IF(OR($AT$17>$AT$9,$AT$17<$AT$8),"錯誤","Y")) -> Y | AX77: =IF(W75="新","*",IF(W75="舊",(AF77)/AF69,"")) ->  | AY77: =IF(AND(W77="新",(AF77)=3),"Y",IF(OR($AT$17>$AT$9,$AT$17<$AT$8),"錯誤","Y")) -> Y | AZ77: =IF(W77="新","*",IF(AE77="舊",(AG77)/AF69,"")) ->  | BA77: =IF(AND(W77="新",AG77=3),"Y",IF(OR($AZ$17>$AT$9,$AZ$17<$AT$8),"錯誤","Y")) -> Y | BB77: =IF(W77="新","*",IF(W77="舊",(AH77)/AF69,"")) ->  | BC77: =IF(AND(W77="新",AH77=2),"Y",IF(OR(BB77>$AT$9,BB77<$AT$8),"錯誤","Y")) -> 錯誤
AO78: =IF(W78="新","*",IF(W78="舊",(Z78+AA78+AB78)/AF69,"")) ->  | AP78: =IF(AND(W78="新",Z78=5,AA78=1,AB78=2),"Y",IF(OR($AO$18>$AQ$9,$AO$13<$AQ$8),"錯誤","Y")) -> Y | AR78: =IF(W78="新","*",IF(W78="舊",(AC78)/AF69,"")) ->  | AS78: =IF(AND(W78="新",AC78=4),"Y",IF(OR($AR$18>$AT$9,$AR$18<$AT$8),"錯誤","Y")) -> Y | AT78: =IF(W78="新","*",IF(W78="舊",(AD78)/AF69,"")) ->  | AU78: =IF(AND(W78="新",(AD78+AE78+AF78)=9),"Y",IF(OR($AT$18>$AT$9,$AT$18<$AT$8),"錯誤","Y")) -> Y | AV78: =IF(W76="新","*",IF(W76="舊",(AE78)/AF69,"")) ->  | AW78: =IF(AND(W78="新",(AE78)=3),"Y",IF(OR($AT$15>$AT$9,$AT$15<$AT$8),"錯誤","Y")) -> Y | AX78: =IF(W76="新","*",IF(W76="舊",(AF78)/AF69,"")) ->  | AY78: =IF(AND(W78="新",(AF78)=3),"Y",IF(OR($AT$18>$AT$9,$AT$18<$AT$8),"錯誤","Y")) -> Y | AZ78: =IF(W78="新","*",IF(AE78="舊",(AG78)/AF69,"")) ->  | BA78: =IF(AND(W78="新",AG78=3),"Y",IF(OR($AZ$18>$AT$9,$AZ$18<$AT$8),"錯誤","Y")) -> Y | BB78: =IF(W78="新","*",IF(W78="舊",(AH78)/AF69,"")) ->  | BC78: =IF(AND(W78="新",AH78=2),"Y",IF(OR(BB78>$AT$9,BB78<$AT$8),"錯誤","Y")) -> 錯誤
C80: 學校自評方法:2種情況
B81: 情況1: | C81: 一、 | D81: 如果上下學期各週沒有彈性節數或學習領域節數新增或減少:
C82: (步驟8_1)1 | D82: 點選<檢核自評表>工作表上之__按<檢核自評8_1..>執行紐即可__出現"讚"__表示正確完成
B83: 情況2: | C83: 二、 | D83: 如果上下學期各週有彈性節數或學習領域節數新增或減少:直接在該週更改節數即可,完成後:
C84: (步驟8_1)1 | D84: 按(步驟8_1)__
C85: 2 | D85: 如<各項目>有減少或增加節數,請在(一定要) AD欄(儲存格有顏色)說明原因
C86: (步驟8_2)3 | D86: 再按(步驟8_2)__出現"讚"__表示正確完成
C89: Q1:如各週彈性節數數有增減如何處理?
D90: A1: 直接在上下學期該週新增或刪除(項目和節數)即可。(在甚麼地方如何論述原因:執行學校自評後,會告訴你在 AD欄有顏色儲存格說明原因)
B93: Q2:有<受保護的檢視>出現如何解除?(2010特有功能)
D101: A2:檔案/選項/信任中心/信任中心設定/信任位置/新增位置/瀏覽(選取到軟體存放資料夾)/確定/確定
A129: 1
A130: 2
A131: 3
A132: 4
A133: 5
A134: 6
A135: 7
A228: 不可刪除
A229: AA | B229: AA
A230: AB | B230: AB
A231: AC | B231: AC
A232: AD | B232: AD
A233: AE | B233: AE
A234: AF | B234: AF
A235: AG | B235: AG
A236: AH | B236: AH
A237: AI | B237: AI
A238: AJ | B238: AJ
A239: AK | B239: AK
A240: AL | B240: AL
A241: AM | B241: AM
A242: AN | B242: AN
A243: AO | B243: AO
A244: AP | B244: AP
A245: AQ | B245: AQ
A246: AR | B246: AR
A247: AS | B247: AS
A248: AT | B248: AT
A249: AU | B249: AU
A250: AV | B250: AV
A251: AW | B251: AW
A252: AX | B252: AX
A253: AY | B253: AY
A254: AZ | B254: AZ
A255: BA | B255: BA
A256: BB | B256: BB
A257: BC | B257: BC
A258: BD | B258: BD
A259: BE | B259: BE
A260: BF | B260: BF
A261: BG | B261: BG
A262: BH | B262: BH
A263: BI | B263: BI
A264: BJ | B264: BJ
A265: BK | B265: BK
A266: BL | B266: BL
A267: BM | B267: BM
A268: BN | B268: BN
A269: BO | B269: BO
A270: BP | B270: BP
A271: BQ | B271: BQ
A272: BR | B272: BR
A273: BS | B273: BS
A274: BT | B274: BT
A275: BU | B275: BU
A276: BV | B276: BV
A277: BW | B277: BW
A278: BX | B278: BX
A279: BY | B279: BY
A280: BZ | B280: BZ
A281: CA | B281: CA
A282: CB | B282: CB
A283: CC | B283: CC
A284: CD | B284: CD
A285: CE | B285: CE
A286: CF | B286: CF
A287: CG | B287: CG
A288: CH | B288: CH
A289: CI | B289: CI
A290: CJ | B290: CJ
A291: CK | B291: CK
A292: CL | B292: CL
A293: CM | B293: CM
A294: CN | B294: CN
A295: CO | B295: CO
A296: CP | B296: CP
A297: CQ | B297: CQ
A298: CR | B298: CR
A299: CS | B299: CS
A300: CT | B300: CT
A301: CU | B301: CU
A302: CV | B302: CV
A303: CW | B303: CW
A304: CX | B304: CX
A305: CY | B305: CY
A306: CZ | B306: CZ
A307: DA | B307: DA
A308: DB | B308: DB
A309: DC | B309: DC
A310: DD | B310: DD
A311: DE | B311: DE
A312: DF | B312: DF
A313: DG | B313: DG
A314: DH | B314: DH
A315: DI | B315: DI
A316: DJ | B316: DJ
A317: DK | B317: DK
A318: DL | B318: DL
A319: DM | B319: DM
A320: DN | B320: DN
A321: DO | B321: DO
A322: DP | B322: DP
A323: DQ | B323: DQ
A324: DR | B324: DR
A325: DS | B325: DS
A326: DT | B326: DT
A327: DU | B327: DU
A328: DV | B328: DV
A329: DW | B329: DW
A330: DX | B330: DX
A331: DY | B331: DY
... 58 more rows

Sheet 學校行事和國定假日
AA1: 上學期放假天數: | AB1: 下學期放假天數: | AD1: O
Z2: 1 | AB2: 2
A3: 領域&彈性課程開課名稱 | D3: 教育局規定全市活動週次和國定假日 | Z3: 2 | BA3: 週次
A4: 代號(內定) | B4: 開課輸入限制儲存格位置(名稱可更改): | D4: (依各校需求可在綠色框內輸入全校性或各年級各項活動) | E4: 備註:說明 | H4: 課程計畫(上學期)備註專用說明: | Z4: 3 | AB4: 1
A5: A | B5: 國語文 | C5: =IF(B5="","",A5&B5) -> A國語文 | D5: 109年8月31日(一)開學日正式上課 | H5: 一、本(上)學期上課總日數:100天。 | V5: 19 | Z5: 4
A6: B | B6: 本土語言 | C6: =IF(B6="","",A6&B6) -> B本土語言 | D6: 109年9月26日(六)調整中秋節放假補上課1天 | H6: 二、109年10月1日(四)中秋節、109年10月10日(六)國慶日於10月9日(五)調整放假、110年1月1日(五)元旦，共放假3天。 | V6: 19 | Z6: 5 | AA6: 1
A7: C | B7: 英語 | C7: C英語 | D7: 109年10月1日(四)中秋節放假1天 | V7: 19 | Z7: 6 | AA7: 1
A8: D | B8: 數學 | C8: D數學 | D8: 109年10月2日(五)調整中秋節放假1天 | V8: 19 | Z8: 7 | AB8: 1
A9: E | B9: 社會 | C9: E社會 | D9: 109年10月9日(五)調整國慶日放假1天 | V9: 19 | Z9: 8 | AB9: 1
A10: F | B10: 藝術與人文 | C10: F藝術與人文 | D10: 109年10月10日(六)國慶日 | Z10: 9
A11: G | B11: 自然與科技 | C11: G自然與科技 | D11: 110年1月1日(五)元旦放假1天 | Z11: 10
A12: H | B12: 健康與體育 | C12: H健康與體育 | D12: 110年1月20日(三)課程結束 | Z12: 11
A13: I | B13: 綜合活動 | C13: I綜合活動 | D13: 110年2月17日(三)開學日正式上課 | Z13: 12
A14: R | B14: 科技 | C14: R科技 | D14: 110年2月28日(日)和平紀念日 | Z14: 13
A15: S | B15: 全校_活動 | C15: S全校_活動 | D15: 110年3月1日(一)調整和平紀念日放假一天 | Z15: 14
A16: J | B16: 校本課程d | D16: 110年4月2日(五)調整兒童節 放假1天 | Z16: 15
A17: K | B17: 學習扶助(國語) | D17: 110年4月4日(日)兒童節、清明節 | Z17: 16
A18: L | B18: 學習扶助(數學) | D18: 110年4月5日(一)調整清明節放假一天 | Z18: 17
A19: M | B19: 資訊教育 | D19: 110年6月14日(一) 端午節放假一天 | H19: 課程計畫(下學期)備註專用說明: | Z19: 18 | AA19: 1 | AB19: 1
A20: N | D20: 110年6月30日(三)課程結束 | H20: 一、本(下)學期上課總日數:92天。 | V20: 19 | Z20: 19
H21: 二、110年2月28日(日)和平紀念日於3月1日(一)調整放假、110年4月4日(日)兒童節暨清明節於4月2日(五)兒童節調整放假、110年4月5日(一)清明節調整放假、 | V21: 38 | Z21: 20 | AB21: 2
C22: =A22&B22 ->  | D22: A校慶運動會12/05(六) | E22: ※(利用週六.日舉辦_ 活動名稱最前面一定要加上"A"英文代號) | H22: 110年6月14日(一)端午節，共放假4天。 | V22: 19 | Z22: 21 | AA22: 2
B23: =COUNTA(B16:B21) -> 4 | D23: B校慶運動會補假12/07(一) | E23: ※(週一補假_名稱最前面一定要加上"B"英文代號) | H23: 教育部調整110年2月18日（星期四）為開學日正式上課，原110年2月17日課務調整至2月20日（星期六）實施。 | V23: 19 | Z23: 22
B24: 依低中高彈性節數3/4/6內定 | D24: 期中評量(11/2~6) | V24: 19
B25: 1/2年級使用J/K/L (B16~B18儲存格) | D25: 期末評量(1/14~19)
B26: 3/4年級使用J/K/L/M(B16~B19儲存格) | D26: 畢業班評量(5月24~28日)
B27: 5/6年級使用J~O(B16~B21儲存格) | D27: 畢業典禮(6月7日)
B28: 例外:舊課綱5/6年級使用J~N | D28: 109年8月31日新生始業活動 | F28: ※ | G28: ※ | H28: 學習領域/彈性領域在上下學期標示說明(重要觀念): | N28: ※※
D29: 109年8月23日(日)「祖父母節」 | H29: 一般項目 | I29: AC:家政教育 | K29: 正常項目
D30: 109年12月25日(五)聖誕節活動 | H30: 19重大議題(前有數字代號 | I30: 11.【法治教育】 | K30: 前有數字代號
D31: 期中評量(4/19~23) | H31: 局定教育項目 | I31: AS:游泳教學P | K31: AS項目代號<游泳教學>,後面的P是代表彈性節數
D32: 期末評量(6/24~29) | H32: 校訂彈性課程(領域) | I32: SB:T閱讀理解 | J32: ÜÜÜÜ | K32: SB項目代號<閱讀理解>/跨領域(T語文代號)
D33: 110年3月26日(五)兒童節慶祝活動 | K33: (英文代號_領域參考)
B34: 課程類別 | D34: 110年5月7日(五)自治市長選舉 | K34: 代號類別固定 | L34: 代號領域
A35: a | B35: a(主題/專題/議題探究) | D35: 110年4月30日(五)慶祝母親節活動 | K35: T | L35: =IF(B5="","",B5) -> 國語文
A36: b | B36: b(社團活動與技藝類) | D36: 110年5月21日(五)歡送畢業生園遊會 | K36: V | L36: =IF(B6="","",B6) -> 本土語言
A37: c | B37: c(特殊需求領域) | D37: 110年6月3日(四)畢業典禮預演 | K37: X | L37: 英語
A38: d | B38: d(其他類) | D38: 110年6月7日(一)畢業典禮 | K38: Z | L38: 數學
D39: (第14週)五年級基本學力檢測 | K39: AB | L39: 社會
D40: 游泳教學(4/6~4/30) | K40: AD | L40: 藝術與人文
B41: Leader或主任設定 | D41: 友善校園週 | K41: AF | L41: 自然與科技
B42: 本校1~6年級彈性課程開課名稱 | D42: 防災教育(109年9月21日) | K42: AH | L42: 健康與體育
B43: (名稱中間不可有特殊字元如 / , - , * , % , ~ , ! , @ , # , ( ) , [ ] ,….) | D43: 防災教育(下學期第3週) | K43: AJ | L43: 綜合活動
B44: 校本課程d | D44: 家庭教育109年12月16日 | K44: 代號校訂領域依學校自訂不同
B45: 資訊教育 | D45: 家庭教育110年5月5日 | K45: F | L45: =IF(B16="","",B16) -> 校本課程d
B46: 彈性英語 | K46: H | L46: 學習扶助(國語)
B47: 學習扶助(國語) | K47: J | L47: 學習扶助(數學)
K48: L | L48: 資訊教育
B49: 學習扶助(數學) | K49: N
K50: P
B71: 評量方式(可自行橙色空白儲存格)
B72: 1.筆試
B73: 2.口試
B74: 3.表演
B75: 4.實作
B76: 5.作業
B77: 6.報告
B78: 7.資料搜集整理
B79: 8.鑑賞
B80: 9.實踐
B81: 10.晤談
B82: 11.學生自評
B83: 12.同儕互評
B84: 13.研究
B85: 14.設計製作
B86: 15.問卷調查
B87: 16.學習札記
B88: 17.團隊研究報告 | E88: 20
E89: 46
B98: 上
B99: 下
B100: 一年級
B101: 二年級
B102: 三年級
B103: 四年級
B104: 五年級
B105: 六年級
B107: 跨領域項目
B108: 英文一定保留/名稱可自行更新
B109: A國語文
B110: B本土語文
B111: C英語文
B112: A國語文
B113: B本土語文
B114: C英語文
B115: D數學
B116: E社會
B117: F藝術
B118: G自然科學
B119: H健康與體育
B120: I綜合活動
B121: R科技
B122: L
A123: J校本課程d | B123: J其他d
A124: K學習扶助(國語) | B124: K
A125: L學習扶助(數學) | B125: L
A126: M資訊教育 | B126: M
A127: N
D130: 2.口試
D131: 3.表演
D132: 4.實作
D133: 5.作業
D134: 6.報告
D135: 7.資料搜集整理
D136: 8.鑑賞
D137: 9.實踐
D138: 10.晤談
D139: 11.學生自評
D140: 12.同儕互評
D141: 13.研究
D142: 14.設計製作
D143: 15.問卷調查
D144: 16.學習札記
B200: 1.【性別平等教育】
B201: 2.【人權教育】
B202: 3.【環境教育】
B203: 4.【海洋教育】
B204: 5.【科技教育】
B205: 6.【能源教育】
B206: 7.【家庭教育】
B207: 8.【原住民族教育】
B208: 9.【品德教育】
B209: 10.【生命教育】
B210: 11.【法治教育】
B211: 12.【資訊教育】
B212: 13.【安全教育】
B213: 14.【防災教育】
B214: 15.【生涯規劃教育】
B215: 16.【多元文化教育 】
B216: 17.【 閱讀素養教育】
B217: 18.【戶外教育】
B218: 19.【國際教育】

Sheet 行事曆格式 (hidden)
BM1: =IF(BI1="","",IF((BJ1+BK1+BL1)<BT1,"錯,最低節數:"&BT1,BJ1+BK1+BL1)) ->  | BQ1: =IF(BI1="","",IF((BN1+BO1+BP1)<BU1,"錯,最低節數:"&BU1,BN1+BO1+BP1)) ->  | BR1: =IF(BI1="","",IF(ISERROR(BM1+BQ1),"錯誤",IF((BM1+BQ1)<BV1,"錯誤,最低節數:"&BV1,BM1+BQ1))) ->  | BS1: =IF(BH1="","",IF(AND(BH1="A",OR(BK1>0,BL1>0,BO1>0,BP1>0)),"錯誤",IF(AND(BH1="B",OR(BJ1>0,BL1>0,BN1>0,BP1>0)),"錯誤",IF(AND(BH1="C",OR(BL1>0,BP1>0)),"錯誤",IF(AND(BH1="D",OR(BJ1>0,BK1>0,BN1>0,BO1>0)),"錯誤",""))))) ->  | BT1: 公式儲存 | BU1: 公式恢復 | BW1: =IF(OR(RIGHT(BX1,1)=",",RIGHT(BY1,1)=",",RIGHT(BZ1,1)=",",RIGHT(CA1,1)=",",RIGHT(CB1,1)=",",RIGHT(CC1,1)=",",RIGHT(CD1,1)=",",RIGHT(CE1,1)=",",RIGHT(CF1,1)=","),"錯多，",IF(OR(LEFT(BX1,1)=",",LEFT(BY1,1)=",",LEFT(BZ1,1)=",",LEFT(CA1,1)=",",LEFT(CB1,1)=",",LEFT(CC1,1)=",",LEFT(CD1,1)=",",LEFT(CE1,1)=",",LEFT(CF1,1)=","),"錯多，","")) ->  | CG1: =IF(BX1="",0,LEN(BX1)-LEN(SUBSTITUTE(BX1,",",""))+1)+IF(BY1="",0,LEN(BY1)-LEN(SUBSTITUTE(BY1,",",""))+1)+IF(BZ1="",0,LEN(BZ1)-LEN(SUBSTITUTE(BZ1,",",""))+1)+IF(CA1="",0,LEN(CA1)-LEN(SUBSTITUTE(CA1,",",""))+1)+IF(CB1="",0,LEN(CB1)-LEN(SUBSTITUTE(CB1,",",""))+1)+IF(CC1="",0,LEN(CC1)-LEN(SUBSTITUTE(CC1,",",""))+1)+IF(CD1="",0,LEN(CD1)-LEN(SUBSTITUTE(CD1,",",""))+1) -> 0 | CH1: =IF(CE1="",0,LEN(CE1)-LEN(SUBSTITUTE(CE1,",",""))+1) -> 0 | CI1: =IF(CF1="",0,LEN(CF1)-LEN(SUBSTITUTE(CF1,",",""))+1) -> 0 | CJ1: =IF(AND(BM1=0,(CG1+CH1+CI1)>0),"錯誤輸入",IF(AND(BJ1="",BK1="",BL1=""),"",IF(AND(CG1=BJ1,CH1=BK1,CI1=BL1),"正確","No"))) ->  | CM1: =COUNTIF(CM6:CM120,">3") -> 0 | CQ1: =IF(OR(RIGHT(CR1,1)=",",RIGHT(CS1,1)=",",RIGHT(CT1,1)=",",RIGHT(CU1,1)=",",RIGHT(CV1,1)=",",RIGHT(CW1,1)=",",RIGHT(CX1,1)=",",RIGHT(CY1,1)=",",RIGHT(CZ1,1)=","),"錯多，",IF(OR(LEFT(CR1,1)=",",LEFT(CS1,1)=",",LEFT(CT1,1)=",",LEFT(CU1,1)=",",LEFT(CV1,1)=",",LEFT(CW1,1)=",",LEFT(CX1,1)=",",LEFT(CY1,1)=",",LEFT(CZ1,1)=","),"錯多，","")) ->  | CZ1: =IF(AND(CR3="",CU3="",CV3="",CY3="",CZ3=""),"",IF(AND(BQ3=DD3,DD3=DH3),"你很棒,輸入全部正確!可以按步驟4"," 尚未完成,加油!")) ->  | DA1: =IF(CR1="",0,LEN(CR1)-LEN(SUBSTITUTE(CR1,",",""))+1)+IF(CS1="",0,LEN(CS1)-LEN(SUBSTITUTE(CS1,",",""))+1)+IF(CT1="",0,LEN(CT1)-LEN(SUBSTITUTE(CT1,",",""))+1)+IF(CU1="",0,LEN(CU1)-LEN(SUBSTITUTE(CU1,",",""))+1)+IF(CV1="",0,LEN(CV1)-LEN(SUBSTITUTE(CV1,",",""))+1)+IF(CW1="",0,LEN(CW1)-LEN(SUBSTITUTE(CW1,",",""))+1)+IF(CX1="",0,LEN(CX1)-LEN(SUBSTITUTE(CX1,",",""))+1) -> 0 | DB1: =IF(CY1="",0,LEN(CY1)-LEN(SUBSTITUTE(CY1,",",""))+1) -> 0 | DC1: =IF(CZ1="",0,LEN(CZ1)-LEN(SUBSTITUTE(CZ1,",",""))+1) -> 0 | DD1: =IF(AND(BQ1=0,(DA1+DB1+DC1)>0),"錯誤輸入",IF(AND(BN1="",BO1="",BP1=""),"",IF(AND(DA1=BN1,DB1=BO1,DC1=BP1),"正確","No"))) ->  | DG1: =COUNTIF(DG6:DG120,">3") -> 0
BM2: =IF(AND(BL4="",BM4="",BN4="",BO4="",BP4="",BQ4="",BR4=""),"",IF(BU4=0,"",IF(BX1>0,"尚未完成或輸入錯誤請修正!",IF(AND(BA4=BX4,BX4=CB4,#REF!>0),"你很棒,輸入全部正確，但是有週次彈性節數太多須修正(補課例外)!","你很棒,輸入全部正確!!可以按步驟4")))) -> 
BM3: =COUNTIF(BM7:BM117,"No")+COUNTIF(BM7:BM117,"錯誤輸入") -> 0
C4: 部領域校彈性課程/節數 | D4: 全校_活動 | F4: 校本課程d | H4: 學習扶助(國語) | J4: 學習扶助(數學) | L4: 資訊教育 | N4: 彈性英語 | R4: 非課程領域 | T4: 國語文 | V4: 本土語言 | X4: 英語 | Z4: 數學 | AB4: 社會 | AD4: 藝術與人文 | AF4: 自然與科技 | AH4: 健康與體育 | AJ4: 綜合活動 | AM4: (每週節數設定參考用) | AR4: 減少總節數: | BM4: =IF(AND(BL6="",BM6="",BN6="",BO6="",BP6="",BQ6="",BR6=""),"",IF(BU6=0,"",IF(BX3>0,"尚未完成或輸入錯誤請修正!",IF(AND(AK6=BX6,BX6=CB6,CA2>0),"你很棒,輸入全部正確，但是有週次彈性節數太多須修正(補課例外)","你很棒,輸入全部正確!!可以按步驟4")))) -> 
B5: 週別 | C5: 週別日期 | D5: 自編1 | E5: 節數 | F5: 自編A | G5: 節數 | H5: 自編B | I5: 節數 | J5: 自編C | K5: 節數 | L5: 自編D | M5: 節數 | N5: 自編E | O5: 節數 | Q5: 節數 | R5: =作業平台__教育部局年度規定節數!AF4 -> D:非領域 | S5: 節數 | U5: 節數R | W5: 節數 | Y5: 節數 | AA5: 節數 | AC5: 節數 | AE5: 節數 | AG5: 節數 | AI5: 節數 | AK5: 節數 | AL5: 備 註 | AM5: 每週彈性節數 | AN5: 每週融入領域節數 | AO5: 每週領域節數 | AP5: 每週非課程節數 | AQ5: 每週法定節數小計 | AR5: 跨領域總節數 | AS5: 放假內定減節數 | AT5: 自己完成減節數 | AU5: 節數增減檢核 | AV5: 參考備用 | BM5: =COUNTIF(BM9:BM123,"No")+COUNTIF(BM9:BM123,"錯誤輸入") -> 0
BM6: =IF(AND(BL8="",BM8="",BN8="",BO8="",BP8="",BQ8="",BR8=""),"",IF(BU8=0,"",IF(BX5>0,"尚未完成或輸入錯誤請修正!",IF(AND(BA8=BX8,BX8=CB8,CA4>0),"你很棒,輸入全部正確，但是有週次彈性節數太多須修正(補課例外)!","你很棒,輸入全部正確!!可以按步驟4")))) -> 
C78: 上學期節數合計
C79: 跨領域
C80: 融入節數:
C81: 總節數:
A100: 1
A101: 2
A102: 3
A103: 4
A104: 5
A105: 6
A106: 1~2
A107: 1~3
A108: 1~4
A109: 1~5
A110: 1~6
A111: 2~3
A112: 2~4
A113: 2~5
A114: 2~6
A115: 3~4
A116: 3~5
A117: 3~6
A118: 4~5
A119: 4~6
A120: 5~6
A200: 第1週
A201: 第2週
A202: 第3週
A203: 第4週
A204: 第5週
A205: 第6週
A206: 第7週
A207: 第8週
A208: 第9週
A209: 第10週
A210: 第11週
A211: 第12週
A212: 第13週
A213: 第14週
A214: 第15週
A215: 第16週
A216: 第17週
A217: 第18週
A218: 第19週
A219: 第20週
A220: 第21週
A221: 第22週
A222: 第23週
A223: 第24週
A250: SA
A251: SB
A252: SC
A253: SD
A254: SE
A255: SF
A256: SG
A257: SH
A258: SI
A259: SJ
A260: SK
A261: SL
A262: SM
A263: SN
A264: SO
A265: SP
A266: SQ
A267: SR
A268: SS
A269: ST
A270: SU
A271: SV
A272: SW
A273: SX
A274: SY
A275: SZ
A276: AA
A277: AB
A278: AC
A279: AD
A280: AE
A281: AF
A282: AG
A283: AH
A284: AI
A285: AJ
A286: AK
A287: AL
A288: AM
A289: AN
A290: AO
A291: AP
A292: AQ
A293: AR
A294: AS
A295: AT
A296: AU
A297: AV
A298: AW
A299: AX
A300: AY
A301: AZ
A302: BA
A303: BB
A304: BC
A305: BD
A306: BE
A307: BF
A308: BG
A309: BH
A310: BI
A311: BJ
A312: BK
A313: BL
A314: BM
A315: BN
A316: BO
A317: BP
A318: BQ
A319: BR
A320: BS
A321: BT
A322: BU
A323: BV
A324: BW
A325: BX
A326: BY
A327: BZ
A328: CA
A329: CB
A330: CC
A331: CD
A332: CE
A333: CF
A334: CG
A335: CH
A336: CI
A337: CJ
A338: CK
A339: CL
A340: CM
A341: CN
A342: CO
A343: CP
A344: CQ
A345: CR
A346: CS
A347: CT
A348: CU
A349: CV
A350: CW
A351: CX
A352: CY
A353: CZ
A354: DA
A355: DB
A356: DC
A357: DD
A358: DE
A359: DF
A360: DG
A361: DH
A362: DI
A363: DJ
A364: DK
A365: DL
A366: DM
A367: DN
A368: DO
A369: DP
A370: DQ
A371: DR
A372: DS
A373: DT
A374: DU
A375: DV
A376: DW
A377: DX
A378: DY
A379: DZ
A380: EA
A381: EB
A382: EC
A383: ED
A384: EE
A385: EF
A386: EG
A387: EH
A388: EI
A389: EJ
A390: EK
A391: EL
A392: EM
A393: EN
A394: EO
... 11 more rows

Sheet 上學期
B1: 上學期總週數: | C1: 21 | D1: 請輸入搜尋代號或字串: | F1: 共:0節 | G1: =UPPER(E1) ->  | P1: * | AZ1: 高雄市左營區屏山國小109年度第一學期__
A2: 5 | B2: 年級: | C2: 五 | F2: =AZ1 & C2 & "年級各領域教學進度總表" -> 高雄市左營區屏山國小109年度第一學期__五年級各領域教學進度總表 | AM2: 正確
B3: 上課總天數:100天
C4: 部領域校彈性課程/節數 | D4: 全校_活動 | F4: 校本課程d | H4: 學習扶助(國語) | J4: 學習扶助(數學) | L4: 資訊教育 | R4: 非課程領域 | T4: 國語文 | V4: 本土語言 | X4: 英語 | Z4: 數學 | AB4: 社會 | AD4: 藝術與人文 | AF4: 自然與科技 | AH4: 健康與體育 | AJ4: 綜合活動 | AM4: (每週節數設定參考用) | AR4: 減少總節數: | AS4: =SUM(AS6:AS68) -> 0 | EC4: 部領域校彈性課程/節數 | ED4: 全校_活動 | EF4: 校本課程d | EH4: 學習扶助(國語) | EJ4: 學習扶助(數學) | EL4: 資訊教育 | EN4: 彈性英語 | ER4: 非課程領域 | ET4: 國語文 | EV4: 本土語言 | EX4: 英語 | EZ4: 數學 | FB4: 社會 | FD4: 藝術與人文 | FF4: 自然與科技 | FH4: 健康與體育 | FJ4: 綜合活動
B5: 週別 | C5: 週別日期 | D5: 自編1 | E5: 節數 | F5: 自編A | G5: 節數 | H5: 自編B | I5: 節數 | J5: 自編C | K5: 節數 | L5: 自編D | M5: 節數 | N5: 自編E | O5: 節數 | Q5: 節數 | R5: =作業平台__教育部局年度規定節數!AF4 -> D:非領域 | S5: 節數 | T5: 國語 ( 康軒版) 5上 | U5: 節數R | V5: 本土語言 ( 真平版)5上 | W5: 節數 | X5: 英語 ( 何嘉仁story.com.)第5冊 | Y5: 節數 | Z5: 數學 ( 康軒版)5上 | AA5: 節數 | AB5: 社會 (康軒版)5上 | AC5: 節數 | AD5: 藝術與人文 (翰林版)5上 | AE5: 節數 | AF5: 自然與科技 (康軒版)5上 | AG5: 節數 | AH5: 健康與體育 (南一版)5上 | AI5: 節數 | AJ5: 綜合活動 (康軒版)5上 | AK5: 節數 | AL5: 備 註 | AM5: 每週彈性節數 | AN5: 每週融入領域節數 | AO5: 每週領域節數 | AP5: 每週非課程節數 | AQ5: 每週法定節數小計 | AR5: 跨領域總節數 | AS5: 放假內定減節數 | AT5: 自己完成減節數 | AU5: 節數增減檢核 | AV5: 參考備用 | EB5: 週別 | EC5: 週別日期 | ED5: 自編1 | EE5: 節數 | EF5: 自編A | EG5: 節數 | EH5: 自編B | EI5: 節數 | EJ5: 自編C | EK5: 節數 | EL5: 自編D | EM5: 節數 | EN5: 自編E | EO5: 節數 | EQ5: 節數 | ER5: D:非領域 | ES5: 節數 | ET5: 國語 ( 康軒版) 5上 | EU5: 節數R | EV5: 本土語言 ( 真平版)5上 | EW5: 節數 | EX5: 英語 ( 何嘉仁story.com.)第5冊 | EY5: 節數 | EZ5: 數學 ( 康軒版)5上 | FA5: 節數 | FB5: 社會 (康軒版)5上 | FC5: 節數 | FD5: 藝術與人文 (翰林版)5上 | FE5: 節數 | FF5: 自然與科技 (康軒版)5上 | FG5: 節數 | FH5: 健康與體育 (南一版)5上 | FI5: 節數 | FJ5: 綜合活動 (康軒版)5上 | FK5: 節數
B6: 1 | C6: 第一週 2020/8/30~2020/9/5 | F6: SA:預防注射(流感)P(1_1) 一、大家來找碴 | G6: 1 | H6: SB:擁夢飛翔 一、拔一條河 | I6: 1 | L6: SD:*SD:一、電腦的元件介紹 | M6: 1 | N6: SE:英語入學輔導週 圖示介紹、角色介紹 | O6: 1 | T6: 擁夢飛翔 一、拔一條河 | U6: 5 | V6: 一、行行出狀元1.阿和人人褒 | W6: 1 | X6: 英語入學輔導週 圖示介紹、角色介紹 | Y6: 1 | Z6: 數與量 一、小數的加減 | AA6: 4 | AB6: 一、臺灣在哪裡 1.臺灣我的家 | AC6: 3 | AD6: 【視覺】壹、動手玩創意一‧天生好手 【表演】貳.、表演任我行一‧化身劇作家 【音樂】參、音樂人生一‧咚得隆咚將鏘 | AE6: 3 | AF6: 一、觀測太陽 活動一 會發光發熱的星球 | AG6: 4 | AH6: 壹、生活智慧王一.聰明消費樂無窮 | AI6: 3 | AJ6: 一、新生活進行式 1.新想法 新嘗試 | AK6: 3 | AL6: 109年8月23日(日)「祖父母節」 109年8月31日(一)開學日正式上課 友善校園週 | AM6: =SUM(E6:E8)+SUM(G6:Q6)+SUMIF(F6:F8,"*P",G6:G8)+SUMIF(H6:H8,"*P",I6:I8)+SUMIF(J6:J8,"*P",K6:K8)+SUMIF(L6:L8,"*P",M6:M8)+SUMIF(N6:N8,"*P",O6:O8)+SUMIF(P6:P8,"*P",Q6:Q8) -> 5 | AN6: =SUM(F7:Q8)+SUM(T7:AK8)-SUMIF(F7:F8,"*P",G7:G8)-SUMIF(H7:H8,"*P",I7:I8)-SUMIF(J7:J8,"*P",K7:K8)-SUMIF(L7:L8,"*P",M7:M8)-SUMIF(N7:N8,"*P",O7:O8)-SUMIF(P7:P8,"*P",Q7:Q8)-SUMIF(R7:R8,"*P",S7:S8)-SUMIF(T7:T8,"*P",U7:U8)-SUMIF(V7:V8,"*P",W7:W8)-SUMIF(X7:X8,"*P",Y7:Y8)-SUMIF(Z7:Z8,"*P",AA7:AA8)-SUMIF(AB7:AB8,"*P",AC7:AC8)-SUMIF(AD7:AD8,"*P",AE7:AE8)-SUMIF(AF7:AF8,"*P",AG7:AG8)-SUMIF(AH7:AH8,"*P",AI7:AI8)-SUMIF(AJ7:AJ8,"*P",AK7:AK8)-AR6 -> 0 | AO6: =SUM(U6:AK6) -> 27 | AP6: =SUM(S6:S8) -> 0 | AQ6: =AM6+AO6-AS6 -> 32 | AR6: 0 | AS6: 0 | AT6: =32-AQ6-AS6 -> 0 | AU6: =IF(OR(AT6=0,AS6=0),"OK",IF(AS6<>AT6,"尚未完成減節數",IF(AS6=AT6,"修正正確/請刪除內定減的節數","OK"))) -> OK | AV6: 0 | DA6: 109年8月23日(日)「祖父母節」 109年8月31日(一)開學日正式上課 | DB6: 疾病防治週 | DC6: 109年9月16日(三)班親會 | DD6: 109年9月26日(六)調整中秋節放假補上課1天 | DE6: 109年10月1日(四)中秋節放假1天 109年10月2日(五)調整中秋節放假1天 | DF6: 109年10月9日(五)調整國慶日放假1天 109年10月10日(六)國慶日 | DK6: 期中評量 | DM6: A校慶運動會11/28(六) | DN6: B校慶運動會補假11/30(一) | DR6: 110年1月1日(五)元旦放假1天 | DU6: 期末評量 110年1月20日(三)課程結束 | EB6: 1 | EC6: 第一週 2020/8/30~2020/9/5 | EF6: SA:校本課程d | EG6: 1 | EH6: SB:學習扶助(國語) | EI6: 1 | EL6: SD:資訊教育 | EM6: 1 | EN6: SE:彈性英語 | EO6: 1 | ET6: 擁夢飛翔 一、拔一條河 | EU6: 5 | EV6: 一、行行出狀元1.阿和人人褒 | EW6: 1 | EX6: 英語入學輔導週 圖示介紹、角色介紹 | EY6: 1 | EZ6: 數與量 一、小數的加減 | FA6: 4 | FB6: 一、臺灣在哪裡 1.臺灣我的家 | FC6: 3 | FD6: 【視覺】壹、動手玩創意一‧天生好手 【表演】貳.、表演任我行一‧化身劇作家 【音樂】參、音樂人生一‧咚得隆咚將鏘 | FE6: 3 | FF6: 一、觀測太陽 活動一 會發光發熱的星球 | FG6: 4 | FH6: 壹、生活智慧王一.聰明消費樂無窮 | FI6: 3 | FJ6: 一、新生活進行式 1.新想法 新嘗試 | FK6: 3
B7: 1 | D7: CJ: 預防注射(流感)P | E7: 1 | EB7: 1 | ED7: CJ: 預防注射(流感)P | EE7: 1
B8: 1 | EB8: 1
B9: 2 | C9: 第二週 2020/9/6~2020/9/12 | F9: SA:一、大家來找碴 | G9: 1 | H9: SB:擁夢飛翔 二、從空中看臺灣 | I9: 1 | J9: SC:數與量 一、小數的加減 | K9: 1 | L9: SD:*SD:二、電腦的輸入、輸出裝置 | M9: 1 | N9: SE:Unit 1 What Are You Doing? | O9: 1 | T9: 擁夢飛翔 二、從空中看臺灣 | U9: 5 | V9: 一、行行出狀元1.阿和人人褒 | W9: 1 | X9: Unit 1 What Are You Doing? | Y9: 1 | Z9: 數與量 一、小數的加減 | AA9: 4 | AB9: 一、臺灣在哪裡 1.臺灣我的家 | AC9: 3 | AD9: 【視覺】壹、動手玩創意一‧天生好手 【表演】貳.、表演任我行一‧化身劇作家 【音樂】參、音樂人生一‧咚得隆咚將鏘 | AE9: 3 | AF9: 一、觀測太陽 活動二 太陽位置的變化 | AG9: 4 | AH9: 壹、生活智慧王一.聰明消費樂無窮 | AI9: 3 | AJ9: 一、新生活進行式 2.新想法 新嘗試 | AK9: 3 | AM9: =SUM(E9:E11)+SUM(G9:Q9)+SUMIF(F9:F11,"*P",G9:G11)+SUMIF(H9:H11,"*P",I9:I11)+SUMIF(J9:J11,"*P",K9:K11)+SUMIF(L9:L11,"*P",M9:M11)+SUMIF(N9:N11,"*P",O9:O11)+SUMIF(P9:P11,"*P",Q9:Q11) -> 5 | AN9: =SUM(F10:Q11)+SUM(T10:AK11)-SUMIF(F10:F11,"*P",G10:G11)-SUMIF(H10:H11,"*P",I10:I11)-SUMIF(J10:J11,"*P",K10:K11)-SUMIF(L10:L11,"*P",M10:M11)-SUMIF(N10:N11,"*P",O10:O11)-SUMIF(P10:P11,"*P",Q10:Q11)-SUMIF(R10:R11,"*P",S10:S11)-SUMIF(T10:T11,"*P",U10:U11)-SUMIF(V10:V11,"*P",W10:W11)-SUMIF(X10:X11,"*P",Y10:Y11)-SUMIF(Z10:Z11,"*P",AA10:AA11)-SUMIF(AB10:AB11,"*P",AC10:AC11)-SUMIF(AD10:AD11,"*P",AE10:AE11)-SUMIF(AF10:AF11,"*P",AG10:AG11)-SUMIF(AH10:AH11,"*P",AI10:AI11)-SUMIF(AJ10:AJ11,"*P",AK10:AK11)-AR9 -> 2 | AO9: =SUM(U9:AK9) -> 27 | AP9: =SUM(S9:S11) -> 1 | AQ9: =AM9+AO9-AS9 -> 32 | AR9: 0 | AS9: 0 | AT9: =32-AQ9-AS9 -> 0 | AU9: =IF(OR(AT9=0,AS9=0),"OK",IF(AS9<>AT9,"尚未完成減節數",IF(AS9=AT9,"修正正確/請刪除內定減的節數","OK"))) -> OK | AV9: 0 | EB9: 2 | EC9: 第二週 2020/9/6~2020/9/12 | EF9: SA:校本課程d | EG9: 1 | EH9: SB:學習扶助(國語) | EI9: 1 | EJ9: SC:學習扶助(數學) | EK9: 1 | EL9: SD:資訊教育 | EM9: 1 | EN9: SE:彈性英語 | EO9: 1 | ET9: 擁夢飛翔 二、從空中看臺灣 | EU9: 5 | EV9: 一、行行出狀元1.阿和人人褒 | EW9: 1 | EX9: Unit 1 What Are You Doing? | EY9: 1 | EZ9: 數與量 一、小數的加減 | FA9: 4 | FB9: 一、臺灣在哪裡 1.臺灣我的家 | FC9: 3 | FD9: 【視覺】壹、動手玩創意一‧天生好手 【表演】貳.、表演任我行一‧化身劇作家 【音樂】參、音樂人生一‧咚得隆咚將鏘 | FE9: 3 | FF9: 一、觀測太陽 活動二 太陽位置的變化 | FG9: 4 | FH9: 壹、生活智慧王一.聰明消費樂無窮 | FI9: 3 | FJ9: 一、新生活進行式 2.新想法 新嘗試 | FK9: 3
B10: 2 | R10: AD:7.【家庭教育】 | S10: 1 | AJ10: AC:家政教育 | AK10: 2 | EB10: 2 | ER10: AD:7.【家庭教育】 | ES10: 1 | FJ10: AC:家政教育 | FK10: 2
B11: 2 | EB11: 2
B12: 3 | C12: 第三週 2020/9/13~2020/9/19 | F12: 口腔檢查P(3_1) 身高體重視力檢查P(3_1) | H12: SB:擁夢飛翔 三、蚊帳大使 | I12: 1 | L12: SD:*SD:三、影音繽紛樂 | M12: 1 | N12: SE:Unit 1 What Are You Doing? | O12: 1 | T12: 擁夢飛翔 三、蚊帳大使 | U12: 5 | V12: 一、行行出狀元1.阿和人人褒 | W12: 1 | X12: Unit 1 What Are You Doing? | Y12: 1 | Z12: 數與量 二、因數與倍數 | AA12: 4 | AB12: 一、臺灣在哪裡 2.臺灣的經度與緯度 | AC12: 3 | AD12: 【視覺】壹、動手玩創意一‧天生好手 【表演】貳.、表演任我行一‧化身劇作家 【音樂】參、音樂人生一‧咚得隆咚將鏘 | AE12: 3 | AF12: 一、觀測太陽 活動二 太陽位置的變化 | AG12: 4 | AH12: 壹、生活智慧王二.飲食放大鏡 | AI12: 3 | AJ12: 一、新生活進行式 2.走出自己的路 | AK12: 3 | AM12: =SUM(E12:E14)+SUM(G12:Q12)+SUMIF(F12:F14,"*P",G12:G14)+SUMIF(H12:H14,"*P",I12:I14)+SUMIF(J12:J14,"*P",K12:K14)+SUMIF(L12:L14,"*P",M12:M14)+SUMIF(N12:N14,"*P",O12:O14)+SUMIF(P12:P14,"*P",Q12:Q14) -> 5 | AN12: =SUM(F13:Q14)+SUM(T13:AK14)-SUMIF(F13:F14,"*P",G13:G14)-SUMIF(H13:H14,"*P",I13:I14)-SUMIF(J13:J14,"*P",K13:K14)-SUMIF(L13:L14,"*P",M13:M14)-SUMIF(N13:N14,"*P",O13:O14)-SUMIF(P13:P14,"*P",Q13:Q14)-SUMIF(R13:R14,"*P",S13:S14)-SUMIF(T13:T14,"*P",U13:U14)-SUMIF(V13:V14,"*P",W13:W14)-SUMIF(X13:X14,"*P",Y13:Y14)-SUMIF(Z13:Z14,"*P",AA13:AA14)-SUMIF(AB13:AB14,"*P",AC13:AC14)-SUMIF(AD13:AD14,"*P",AE13:AE14)-SUMIF(AF13:AF14,"*P",AG13:AG14)-SUMIF(AH13:AH14,"*P",AI13:AI14)-SUMIF(AJ13:AJ14,"*P",AK13:AK14)-AR12 -> 4 | AO12: =SUM(U12:AK12) -> 27 | AP12: =SUM(S12:S14) -> 1 | AQ12: =AM12+AO12-AS12 -> 32 | AR12: 0 | AS12: 0 | AT12: =32-AQ12-AS12 -> 0 | AU12: =IF(OR(AT12=0,AS12=0),"OK",IF(AS12<>AT12,"尚未完成減節數",IF(AS12=AT12,"修正正確/請刪除內定減的節數","OK"))) -> OK | AV12: 0 | EB12: 3 | EC12: 第三週 2020/9/13~2020/9/19 | EH12: SB:學習扶助(國語) | EI12: 1 | EL12: SD:資訊教育 | EM12: 1 | EN12: SE:彈性英語 | EO12: 1 | ET12: 擁夢飛翔 三、蚊帳大使 | EU12: 5 | EV12: 一、行行出狀元1.阿和人人褒 | EW12: 1 | EX12: Unit 1 What Are You Doing? | EY12: 1 | EZ12: 數與量 二、因數與倍數 | FA12: 4 | FB12: 一、臺灣在哪裡 2.臺灣的經度與緯度 | FC12: 3 | FD12: 【視覺】壹、動手玩創意一‧天生好手 【表演】貳.、表演任我行一‧化身劇作家 【音樂】參、音樂人生一‧咚得隆咚將鏘 | FE12: 3 | FF12: 一、觀測太陽 活動二 太陽位置的變化 | FG12: 4 | FH12: 壹、生活智慧王二.飲食放大鏡 | FI12: 3 | FJ12: 一、新生活進行式 2.走出自己的路 | FK12: 3
B13: 3 | D13: CG:口腔檢查P | E13: 1 | R13: AD:7.【家庭教育】 | S13: 1 | T13: AG:性侵害防治教育 | U13: 1 | AH13: AL:登革熱防治 | AI13: 1 | AJ13: AC:家政教育 | AK13: 2 | EB13: 3 | ED13: CG:口腔檢查P | EE13: 1 | ER13: AD:7.【家庭教育】 | ES13: 1 | ET13: AG:性侵害防治教育 | EU13: 1 | FH13: AL:登革熱防治 | FI13: 1 | FJ13: AC:家政教育 | FK13: 2
B14: 3 | D14: CH:身高體重視力檢查P | E14: 1 | EB14: 3 | ED14: CH:身高體重視力檢查P | EE14: 1
B15: 4 | C15: 第四週 2020/9/20~2020/9/26 | F15: 作文教學P(4_1) | H15: SB: 統整活動一 | I15: 1 | J15: SC:數與量 二、因數與倍數 | K15: 1 | L15: SD:*SD:四、「攝」彩繽紛 | M15: 1 | N15: SE:Unit 1 What Are You Doing? | O15: 1 | T15: 統整活動一 | U15: 6 | V15: 一、行行出狀元2.阿伯欲賣餅 | W15: 1 | X15: Unit 1 What Are You Doing? | Y15: 1 | Z15: 數與量 二、因數與倍數 | AA15: 5 | AB15: 一、臺灣在哪裡 2.臺灣的經度與緯度 | AC15: 4 | AD15: 【視覺】壹、動手玩創意一‧天生好手 【表演】貳.、表演任我行一‧化身劇作家 【音樂】參、音樂人生一‧咚得隆咚將鏘 | AE15: 4 | AF15: 一、觀測太陽 活動二 太陽位置的變化 活動三 太陽與生活 | AG15: 5 | AH15: 壹、生活智慧王二.飲食放大鏡 | AI15: 4 | AJ15: 一、新生活進行式 2.走出自己的路 | AK15: 4 | AL15: 109年9月26日(六)調整中秋節放假補上課1天 防災教育(109年9月21日) | AM15: =SUM(E15:E17)+SUM(G15:Q15)+SUMIF(F15:F17,"*P",G15:G17)+SUMIF(H15:H17,"*P",I15:I17)+SUMIF(J15:J17,"*P",K15:K17)+SUMIF(L15:L17,"*P",M15:M17)+SUMIF(N15:N17,"*P",O15:O17)+SUMIF(P15:P17,"*P",Q15:Q17) -> 5 | AN15: =SUM(F16:Q17)+SUM(T16:AK17)-SUMIF(F16:F17,"*P",G16:G17)-SUMIF(H16:H17,"*P",I16:I17)-SUMIF(J16:J17,"*P",K16:K17)-SUMIF(L16:L17,"*P",M16:M17)-SUMIF(N16:N17,"*P",O16:O17)-SUMIF(P16:P17,"*P",Q16:Q17)-SUMIF(R16:R17,"*P",S16:S17)-SUMIF(T16:T17,"*P",U16:U17)-SUMIF(V16:V17,"*P",W16:W17)-SUMIF(X16:X17,"*P",Y16:Y17)-SUMIF(Z16:Z17,"*P",AA16:AA17)-SUMIF(AB16:AB17,"*P",AC16:AC17)-SUMIF(AD16:AD17,"*P",AE16:AE17)-SUMIF(AF16:AF17,"*P",AG16:AG17)-SUMIF(AH16:AH17,"*P",AI16:AI17)-SUMIF(AJ16:AJ17,"*P",AK16:AK17)-AR15 -> 4 | AO15: =SUM(U15:AK15) -> 34 | AP15: =SUM(S15:S17) -> 1 | AQ15: =AM15+AO15-AS15 -> 39 | AR15: 0 | AS15: 0 | AT15: =32-AQ15-AS15 -> -7 | AU15: =IF(OR(AT15=0,AS15=0),"OK",IF(AS15<>AT15,"尚未完成減節數",IF(AS15=AT15,"修正正確/請刪除內定減的節數","OK"))) -> OK | AV15: 0 | EB15: 4 | EC15: 第四週 2020/9/20~2020/9/26 | EH15: SB:學習扶助(國語) | EI15: 1 | EJ15: SC:學習扶助(數學) | EK15: 1 | EL15: SD:資訊教育 | EM15: 1 | EN15: SE:彈性英語 | EO15: 1 | ET15: 統整活動一 | EU15: 6 | EV15: 一、行行出狀元2.阿伯欲賣餅 | EW15: 1 | EX15: Unit 1 What Are You Doing? | EY15: 1 | EZ15: 數與量 二、因數與倍數 | FA15: 5 | FB15: 一、臺灣在哪裡 2.臺灣的經度與緯度 | FC15: 4 | FD15: 【視覺】壹、動手玩創意一‧天生好手 【表演】貳.、表演任我行一‧化身劇作家 【音樂】參、音樂人生一‧咚得隆咚將鏘 | FE15: 4 | FF15: 一、觀測太陽 活動二 太陽位置的變化 活動三 太陽與生活 | FG15: 5 | FH15: 壹、生活智慧王二.飲食放大鏡 | FI15: 4 | FJ15: 一、新生活進行式 2.走出自己的路 | FK15: 4
B16: 4 | D16: AN:作文教學P | E16: 1 | R16: AD:7.【家庭教育】 | S16: 1 | T16: AG:性侵害防治教育 | U16: 1 | AJ16: AC:家政教育 | AK16: 2 | EB16: 4 | ED16: AN:作文教學P | EE16: 1 | ER16: AD:7.【家庭教育】 | ES16: 1 | ET16: AG:性侵害防治教育 | EU16: 1 | FJ16: AC:家政教育 | FK16: 2
B17: 4 | T17: AN:作文教學 | U17: 1 | EB17: 4 | ET17: AN:作文教學 | EU17: 1
B18: 5 | C18: 第五週 2020/9/27~2020/10/3 | F18: SA:二、高鐵知識大進擊 | G18: 1 | H18: SB:生命啟示錄 四、不一樣的醫生 | I18: 1 | J18: SC:數與量 三、擴分、約分和通分 | K18: 1 | L18: SD:*SD:運算思維－達克武館 | M18: 1 | N18: SE:Unit 2 Are You Riding a Bike? | O18: 1 | T18: 生命啟示錄 四、不一樣的醫生 | U18: 2 | V18: 一、行行出狀元2.阿伯欲賣餅 | W18: 1 | X18: Unit 2 Are You Riding a Bike? | Y18: 1 | Z18: 數與量 三、擴分、約分和通分 | AA18: 2 | AB18: 二、自然環境 1.臺灣的地形 | AC18: 1 | AD18: 【視覺】壹、動手玩創意一‧天生好手 【表演】貳.、表演任我行一‧化身劇作家 【音樂】參、音樂人生一‧咚得隆咚將鏘 | AE18: 1 | AF18: 一、觀測太陽 活動三 太陽與生活 二、植物世界面面觀 活動一 植物根、莖、葉的功能 | AG18: 2 | AH18: 貳、青春無限三.青春紀事簿 | AI18: 1 | AJ18: 二、人際跑跳碰 1.人格特質大不同 | AK18: 2 | AL18: 109年10月1日(四)中秋節放假1天 109年10月2日(五)調整中秋節放假1天 | AM18: =SUM(E18:E20)+SUM(G18:Q18)+SUMIF(F18:F20,"*P",G18:G20)+SUMIF(H18:H20,"*P",I18:I20)+SUMIF(J18:J20,"*P",K18:K20)+SUMIF(L18:L20,"*P",M18:M20)+SUMIF(N18:N20,"*P",O18:O20)+SUMIF(P18:P20,"*P",Q18:Q20) -> 5 | AN18: =SUM(F19:Q20)+SUM(T19:AK20)-SUMIF(F19:F20,"*P",G19:G20)-SUMIF(H19:H20,"*P",I19:I20)-SUMIF(J19:J20,"*P",K19:K20)-SUMIF(L19:L20,"*P",M19:M20)-SUMIF(N19:N20,"*P",O19:O20)-SUMIF(P19:P20,"*P",Q19:Q20)-SUMIF(R19:R20,"*P",S19:S20)-SUMIF(T19:T20,"*P",U19:U20)-SUMIF(V19:V20,"*P",W19:W20)-SUMIF(X19:X20,"*P",Y19:Y20)-SUMIF(Z19:Z20,"*P",AA19:AA20)-SUMIF(AB19:AB20,"*P",AC19:AC20)-SUMIF(AD19:AD20,"*P",AE19:AE20)-SUMIF(AF19:AF20,"*P",AG19:AG20)-SUMIF(AH19:AH20,"*P",AI19:AI20)-SUMIF(AJ19:AJ20,"*P",AK19:AK20)-AR18 -> 3 | AO18: =SUM(U18:AK18) -> 13 | AP18: =SUM(S18:S20) -> 0 | AQ18: =AM18+AO18-AS18 -> 18 | AR18: 0 | AT18: =32-AQ18-AS18 -> 14 | AU18: =IF(OR(AT18=0,AS18=0),"OK",IF(AS18<>AT18,"尚未完成減節數",IF(AS18=AT18,"修正正確/請刪除內定減的節數","OK"))) -> OK | AV18: 7 | EB18: 5 | EC18: 第五週 2020/9/27~2020/10/3 | EF18: SA:校本課程d | EG18: 1 | EH18: SB:學習扶助(國語) | EI18: 1 | EJ18: SC:學習扶助(數學) | EK18: 1 | EL18: SD:資訊教育 | EM18: 1 | EN18: SE:彈性英語 | EO18: 1 | ET18: 生命啟示錄 四、不一樣的醫生 | EU18: 2 | EV18: 一、行行出狀元2.阿伯欲賣餅 | EW18: 1 | EX18: Unit 2 Are You Riding a Bike? | EY18: 1 | EZ18: 數與量 三、擴分、約分和通分 | FA18: 2 | FB18: 二、自然環境 1.臺灣的地形 | FC18: 1 | FD18: 【視覺】壹、動手玩創意一‧天生好手 【表演】貳.、表演任我行一‧化身劇作家 【音樂】參、音樂人生一‧咚得隆咚將鏘 | FE18: 1 | FF18: 一、觀測太陽 活動三 太陽與生活 二、植物世界面面觀 活動一 植物根、莖、葉的功能 | FG18: 2 | FH18: 貳、青春無限三.青春紀事簿 | FI18: 1 | FJ18: 二、人際跑跳碰 1.人格特質大不同 | FK18: 2
B19: 5 | AH19: BG:4.【海洋教育】 | AI19: 1 | AJ19: AE:家暴_家庭暴力防治教育 | AK19: 1 | EB19: 5 | FH19: BG:4.【海洋教育】 | FI19: 1 | FJ19: AE:家暴_家庭暴力防治教育 | FK19: 1
B20: 5 | AJ20: BI:交通安全教育 | AK20: 1 | EB20: 5 | FJ20: BI:交通安全教育 | FK20: 1
B21: 6 | C21: 第六週 2020/10/4~2020/10/10 | F21: SA:三、超級比一比 | G21: 1 | H21: SB:生命啟示錄 五、分享的力量 | I21: 1 | J21: SC:數與量 三、擴分、約分和通分 | K21: 1 | L21: SD:*SD:運算思維－達克武館 | M21: 1 | N21: SE:Unit 2 Are You Riding a Bike? | O21: 1 | T21: 生命啟示錄 五、分享的力量 | U21: 4 | V21: 一、行行出狀元2.阿伯欲賣餅 | W21: 1 | X21: Unit 2 Are You Riding a Bike? | Y21: 1 | Z21: 數與量 三、擴分、約分和通分 | AA21: 3 | AB21: 二、自然環境 2. 臺灣的氣候 | AC21: 2 | AD21: 【視覺】壹、動手玩創意一‧天生好手 【表演】貳.、表演任我行一‧化身劇作家 【音樂】參、音樂人生一‧咚得隆咚將鏘 | AE21: 2 | AF21: 二、植物世界面面觀 活動一 植物根、莖、葉的功能 | AG21: 3 | AH21: 貳、青春無限四.青春你我他 | AI21: 2 | AJ21: 二、人際跑跳碰 1.人格特質大不同 | AK21: 2 | AL21: 109年10月9日(五)調整國慶日放假1天 109年10月10日(六)國慶日 | AM21: =SUM(E21:E23)+SUM(G21:Q21)+SUMIF(F21:F23,"*P",G21:G23)+SUMIF(H21:H23,"*P",I21:I23)+SUMIF(J21:J23,"*P",K21:K23)+SUMIF(L21:L23,"*P",M21:M23)+SUMIF(N21:N23,"*P",O21:O23)+SUMIF(P21:P23,"*P",Q21:Q23) -> 5 | AN21: =SUM(F22:Q23)+SUM(T22:AK23)-SUMIF(F22:F23,"*P",G22:G23)-SUMIF(H22:H23,"*P",I22:I23)-SUMIF(J22:J23,"*P",K22:K23)-SUMIF(L22:L23,"*P",M22:M23)-SUMIF(N22:N23,"*P",O22:O23)-SUMIF(P22:P23,"*P",Q22:Q23)-SUMIF(R22:R23,"*P",S22:S23)-SUMIF(T22:T23,"*P",U22:U23)-SUMIF(V22:V23,"*P",W22:W23)-SUMIF(X22:X23,"*P",Y22:Y23)-SUMIF(Z22:Z23,"*P",AA22:AA23)-SUMIF(AB22:AB23,"*P",AC22:AC23)-SUMIF(AD22:AD23,"*P",AE22:AE23)-SUMIF(AF22:AF23,"*P",AG22:AG23)-SUMIF(AH22:AH23,"*P",AI22:AI23)-SUMIF(AJ22:AJ23,"*P",AK22:AK23)-AR21 -> 3 | AO21: =SUM(U21:AK21) -> 20 | AP21: =SUM(S21:S23) -> 0 | AQ21: =AM21+AO21-AS21 -> 25 | AR21: 0 | AT21: =32-AQ21-AS21 -> 7 | AU21: =IF(OR(AT21=0,AS21=0),"OK",IF(AS21<>AT21,"尚未完成減節數",IF(AS21=AT21,"修正正確/請刪除內定減的節數","OK"))) -> OK | AV21: 7 | EB21: 6 | EC21: 第六週 2020/10/4~2020/10/10 | EF21: SA:校本課程d | EG21: 1 | EH21: SB:學習扶助(國語) | EI21: 1 | EJ21: SC:學習扶助(數學) | EK21: 1 | EL21: SD:資訊教育 | EM21: 1 | EN21: SE:彈性英語 | EO21: 1 | ET21: 生命啟示錄 五、分享的力量 | EU21: 4 | EV21: 一、行行出狀元2.阿伯欲賣餅 | EW21: 1 | EX21: Unit 2 Are You Riding a Bike? | EY21: 1 | EZ21: 數與量 三、擴分、約分和通分 | FA21: 3 | FB21: 二、自然環境 2. 臺灣的氣候 | FC21: 2 | FD21: 【視覺】壹、動手玩創意一‧天生好手 【表演】貳.、表演任我行一‧化身劇作家 【音樂】參、音樂人生一‧咚得隆咚將鏘 | FE21: 2 | FF21: 二、植物世界面面觀 活動一 植物根、莖、葉的功能 | FG21: 3 | FH21: 貳、青春無限四.青春你我他 | FI21: 2 | FJ21: 二、人際跑跳碰 1.人格特質大不同 | FK21: 2
B22: 6 | T22: AG:性侵害防治教育 | U22: 1 | AJ22: AE:家暴_家庭暴力防治教育 | AK22: 1 | EB22: 6 | ET22: AG:性侵害防治教育 | EU22: 1 | FJ22: AE:家暴_家庭暴力防治教育 | FK22: 1
B23: 6 | AJ23: BI:交通安全教育 | AK23: 1 | EB23: 6 | FJ23: BI:交通安全教育 | FK23: 1
B24: 7 | C24: 第七週 2020/10/11~2020/10/17 | F24: SA:四、半屏湖溼地公園想像畫 | G24: 1 | H24: SB:生命啟示錄 六、田裡的魔法師 | I24: 1 | J24: SC:幾何 四、多邊形與扇形 | K24: 1 | L24: SD:*SD:運算思維－達克武館 | M24: 1 | N24: SE:Unit 2 Are You Riding a Bike? | O24: 1 | T24: 生命啟示錄 六、田裡的魔法師 | U24: 5 | V24: 一、行行出狀元2.阿伯欲賣餅 | W24: 1 | X24: Unit 2 Are You Riding a Bike? | Y24: 1 | Z24: 幾何 四、多邊形與扇形 | AA24: 4 | AB24: 二、自然環境 3.臺灣的河川與海岸 | AC24: 3 | AD24: 【視覺】壹、動手玩創意二‧我生長的地方 【表演】貳.、表演任我行二‧創意偶戲 【音樂】參、音樂人生二‧咱的家鄉咱的歌 | AE24: 3 | AF24: 二、植物世界面面觀 活動一 植物根、莖、葉的功能 活動二 植物的繁殖 | AG24: 4 | AH24: 貳、青春無限五.小心危險在身邊 | AI24: 3 | AJ24: 二、人際跑跳碰 2.相處有策略 | AK24: 3 | AM24: =SUM(E24:E26)+SUM(G24:Q24)+SUMIF(F24:F26,"*P",G24:G26)+SUMIF(H24:H26,"*P",I24:I26)+SUMIF(J24:J26,"*P",K24:K26)+SUMIF(L24:L26,"*P",M24:M26)+SUMIF(N24:N26,"*P",O24:O26)+SUMIF(P24:P26,"*P",Q24:Q26) -> 5 | AN24: =SUM(F25:Q26)+SUM(T25:AK26)-SUMIF(F25:F26,"*P",G25:G26)-SUMIF(H25:H26,"*P",I25:I26)-SUMIF(J25:J26,"*P",K25:K26)-SUMIF(L25:L26,"*P",M25:M26)-SUMIF(N25:N26,"*P",O25:O26)-SUMIF(P25:P26,"*P",Q25:Q26)-SUMIF(R25:R26,"*P",S25:S26)-SUMIF(T25:T26,"*P",U25:U26)-SUMIF(V25:V26,"*P",W25:W26)-SUMIF(X25:X26,"*P",Y25:Y26)-SUMIF(Z25:Z26,"*P",AA25:AA26)-SUMIF(AB25:AB26,"*P",AC25:AC26)-SUMIF(AD25:AD26,"*P",AE25:AE26)-SUMIF(AF25:AF26,"*P",AG25:AG26)-SUMIF(AH25:AH26,"*P",AI25:AI26)-SUMIF(AJ25:AJ26,"*P",AK25:AK26)-AR24 -> 2 | AO24: =SUM(U24:AK24) -> 27 | AP24: =SUM(S24:S26) -> 0 | AQ24: =AM24+AO24-AS24 -> 32 | AR24: 0 | AS24: 0 | AT24: =32-AQ24-AS24 -> 0 | AU24: =IF(OR(AT24=0,AS24=0),"OK",IF(AS24<>AT24,"尚未完成減節數",IF(AS24=AT24,"修正正確/請刪除內定減的節數","OK"))) -> OK | AV24: 0 | EB24: 7 | EC24: 第七週 2020/10/11~2020/10/17 | EF24: SA:校本課程d | EG24: 1 | EH24: SB:學習扶助(國語) | EI24: 1 | EJ24: SC:學習扶助(數學) | EK24: 1 | EL24: SD:資訊教育 | EM24: 1 | EN24: SE:彈性英語 | EO24: 1 | ET24: 生命啟示錄 六、田裡的魔法師 | EU24: 5 | EV24: 一、行行出狀元2.阿伯欲賣餅 | EW24: 1 | EX24: Unit 2 Are You Riding a Bike? | EY24: 1 | EZ24: 幾何 四、多邊形與扇形 | FA24: 4 | FB24: 二、自然環境 3.臺灣的河川與海岸 | FC24: 3 | FD24: 【視覺】壹、動手玩創意二‧我生長的地方 【表演】貳.、表演任我行二‧創意偶戲 【音樂】參、音樂人生二‧咱的家鄉咱的歌 | FE24: 3 | FF24: 二、植物世界面面觀 活動一 植物根、莖、葉的功能 活動二 植物的繁殖 | FG24: 4 | FH24: 貳、青春無限五.小心危險在身邊 | FI24: 3 | FJ24: 二、人際跑跳碰 2.相處有策略 | FK24: 3
B25: 7 | AJ25: AE:家暴_家庭暴力防治教育 | AK25: 1 | EB25: 7 | FJ25: AE:家暴_家庭暴力防治教育 | FK25: 1
B26: 7 | AJ26: BI:交通安全教育 | AK26: 1 | EB26: 7 | FJ26: BI:交通安全教育 | FK26: 1
B27: 8 | C27: 第八週 2020/10/18~2020/10/24 | F27: 作文教學P(8_1) | H27: SB:生命啟示錄 七、從失敗中覺醒 | I27: 1 | J27: SC:幾何 四、多邊形與扇形 | K27: 1 | L27: SD:*SD:運算思維－達克武館 | M27: 1 | N27: SE:*Review 1& 期中成績考查 | O27: 1 | T27: 生命啟示錄 七、從失敗中覺醒 | U27: 5 | V27: 二、臺灣真正好3.公園 | W27: 1 | X27: *Review 1& 期中成績考查 | Y27: 1 | Z27: 幾何 四、多邊形與扇形 | AA27: 4 | AB27: 二、自然環境 3.臺灣的河川與海岸 | AC27: 3 | AD27: 【視覺】壹、動手玩創意二‧我生長的地方 【表演】貳.、表演任我行二‧創意偶戲 【音樂】參、音樂人生二‧咱的家鄉咱的歌 | AE27: 3 | AF27: 二、植物世界面面觀 活動二 植物的繁殖 | AG27: 4 | AH27: 參、活力滿分六.來玩飛盤 | AI27: 3 | AJ27: 二、人際跑跳碰 3.互動有妙招 | AK27: 3 | AM27: =SUM(E27:E29)+SUM(G27:Q27)+SUMIF(F27:F29,"*P",G27:G29)+SUMIF(H27:H29,"*P",I27:I29)+SUMIF(J27:J29,"*P",K27:K29)+SUMIF(L27:L29,"*P",M27:M29)+SUMIF(N27:N29,"*P",O27:O29)+SUMIF(P27:P29,"*P",Q27:Q29) -> 5 | AN27: =SUM(F28:Q29)+SUM(T28:AK29)-SUMIF(F28:F29,"*P",G28:G29)-SUMIF(H28:H29,"*P",I28:I29)-SUMIF(J28:J29,"*P",K28:K29)-SUMIF(L28:L29,"*P",M28:M29)-SUMIF(N28:N29,"*P",O28:O29)-SUMIF(P28:P29,"*P",Q28:Q29)-SUMIF(R28:R29,"*P",S28:S29)-SUMIF(T28:T29,"*P",U28:U29)-SUMIF(V28:V29,"*P",W28:W29)-SUMIF(X28:X29,"*P",Y28:Y29)-SUMIF(Z28:Z29,"*P",AA28:AA29)-SUMIF(AB28:AB29,"*P",AC28:AC29)-SUMIF(AD28:AD29,"*P",AE28:AE29)-SUMIF(AF28:AF29,"*P",AG28:AG29)-SUMIF(AH28:AH29,"*P",AI28:AI29)-SUMIF(AJ28:AJ29,"*P",AK28:AK29)-AR27 -> 2 | AO27: =SUM(U27:AK27) -> 27 | AP27: =SUM(S27:S29) -> 0 | AQ27: =AM27+AO27-AS27 -> 32 | AR27: 0 | AS27: 0 | AT27: =32-AQ27-AS27 -> 0 | AU27: =IF(OR(AT27=0,AS27=0),"OK",IF(AS27<>AT27,"尚未完成減節數",IF(AS27=AT27,"修正正確/請刪除內定減的節數","OK"))) -> OK | AV27: 0 | EB27: 8 | EC27: 第八週 2020/10/18~2020/10/24 | EH27: SB:學習扶助(國語) | EI27: 1 | EJ27: SC:學習扶助(數學) | EK27: 1 | EL27: SD:資訊教育 | EM27: 1 | EN27: SE:彈性英語 | EO27: 1 | ET27: 生命啟示錄 七、從失敗中覺醒 | EU27: 5 | EV27: 二、臺灣真正好3.公園 | EW27: 1 | EX27: *Review 1& 期中成績考查 | EY27: 1 | EZ27: 幾何 四、多邊形與扇形 | FA27: 4 | FB27: 二、自然環境 3.臺灣的河川與海岸 | FC27: 3 | FD27: 【視覺】壹、動手玩創意二‧我生長的地方 【表演】貳.、表演任我行二‧創意偶戲 【音樂】參、音樂人生二‧咱的家鄉咱的歌 | FE27: 3 | FF27: 二、植物世界面面觀 活動二 植物的繁殖 | FG27: 4 | FH27: 參、活力滿分六.來玩飛盤 | FI27: 3 | FJ27: 二、人際跑跳碰 3.互動有妙招 | FK27: 3
B28: 8 | D28: AN:作文教學P | E28: 1 | T28: AN:作文教學 | U28: 1 | AJ28: AH:1.【性別平等教育】 | AK28: 1 | EB28: 8 | ED28: AN:作文教學P | EE28: 1 | ET28: AN:作文教學 | EU28: 1 | FJ28: AH:1.【性別平等教育】 | FK28: 1
B29: 8 | EB29: 8
B30: 9 | C30: 第九週 2020/10/25~2020/10/31 | F30: SA:四、半屏湖溼地公園想像畫 | G30: 1 | H30: SB:生命啟示錄 統整活動二 | I30: 1 | J30: SC:數與量 五、異分母分數的加減 | K30: 1 | L30: SD:*SD:五、photoCap初體驗 | M30: 1 | N30: SE:*Culture&FestivalsMoonFestival | O30: 1 | T30: 生命啟示錄 統整活動二 | U30: 5 | V30: 二、臺灣真正好3.公園 | W30: 1 | X30: *Culture & Festivals Moon Festival | Y30: 1 | Z30: 數與量 五、異分母分數的加減 | AA30: 4 | AB30: 三、生活中的規範 1.社會規範面面觀 | AC30: 3 | AD30: 【視覺】壹、動手玩創意二‧我生長的地方 【表演】貳.、表演任我行二‧創意偶戲 【音樂】參、音樂人生二‧咱的家鄉咱的歌 | AE30: 3 | AF30: 二、植物世界面面觀 活動二 植物的繁殖 活動三 植物的分類 | AG30: 4 | AH30: 參、活力滿分七.我是飛毛腿 | AI30: 3 | AJ30: 三、尊重心關懷情 1.美食無國界 | AK30: 3 | AM30: =SUM(E30:E32)+SUM(G30:Q30)+SUMIF(F30:F32,"*P",G30:G32)+SUMIF(H30:H32,"*P",I30:I32)+SUMIF(J30:J32,"*P",K30:K32)+SUMIF(L30:L32,"*P",M30:M32)+SUMIF(N30:N32,"*P",O30:O32)+SUMIF(P30:P32,"*P",Q30:Q32) -> 5 | AN30: =SUM(F31:Q32)+SUM(T31:AK32)-SUMIF(F31:F32,"*P",G31:G32)-SUMIF(H31:H32,"*P",I31:I32)-SUMIF(J31:J32,"*P",K31:K32)-SUMIF(L31:L32,"*P",M31:M32)-SUMIF(N31:N32,"*P",O31:O32)-SUMIF(P31:P32,"*P",Q31:Q32)-SUMIF(R31:R32,"*P",S31:S32)-SUMIF(T31:T32,"*P",U31:U32)-SUMIF(V31:V32,"*P",W31:W32)-SUMIF(X31:X32,"*P",Y31:Y32)-SUMIF(Z31:Z32,"*P",AA31:AA32)-SUMIF(AB31:AB32,"*P",AC31:AC32)-SUMIF(AD31:AD32,"*P",AE31:AE32)-SUMIF(AF31:AF32,"*P",AG31:AG32)-SUMIF(AH31:AH32,"*P",AI31:AI32)-SUMIF(AJ31:AJ32,"*P",AK31:AK32)-AR30 -> 1 | AO30: =SUM(U30:AK30) -> 27 | AP30: =SUM(S30:S32) -> 0 | AQ30: =AM30+AO30-AS30 -> 32 | AR30: 0 | AS30: 0 | AT30: =32-AQ30-AS30 -> 0 | AU30: =IF(OR(AT30=0,AS30=0),"OK",IF(AS30<>AT30,"尚未完成減節數",IF(AS30=AT30,"修正正確/請刪除內定減的節數","OK"))) -> OK | AV30: 0 | EB30: 9 | EC30: 第九週 2020/10/25~2020/10/31 | EF30: SA:校本課程d | EG30: 1 | EH30: SB:學習扶助(國語) | EI30: 1 | EJ30: SC:學習扶助(數學) | EK30: 1 | EL30: SD:資訊教育 | EM30: 1 | EN30: SE:彈性英語 | EO30: 1 | ET30: 生命啟示錄 統整活動二 | EU30: 5 | EV30: 二、臺灣真正好3.公園 | EW30: 1 | EX30: *Culture & Festivals Moon Festival | EY30: 1 | EZ30: 數與量 五、異分母分數的加減 | FA30: 4 | FB30: 三、生活中的規範 1.社會規範面面觀 | FC30: 3 | FD30: 【視覺】壹、動手玩創意二‧我生長的地方 【表演】貳.、表演任我行二‧創意偶戲 【音樂】參、音樂人生二‧咱的家鄉咱的歌 | FE30: 3 | FF30: 二、植物世界面面觀 活動二 植物的繁殖 活動三 植物的分類 | FG30: 4 | FH30: 參、活力滿分七.我是飛毛腿 | FI30: 3 | FJ30: 三、尊重心關懷情 1.美食無國界 | FK30: 3
B31: 9 | AJ31: AH:1.【性別平等教育】 | AK31: 1 | EB31: 9 | FJ31: AH:1.【性別平等教育】 | FK31: 1
B32: 9 | EB32: 9
B33: 10 | C33: 第十週 2020/11/1~2020/11/7 | F33: SA:三、超級比一比 | G33: 1 | H33: SB:閱讀階梯一 永不掉落的葉子 | I33: 1 | J33: SC:數與量 五、異分母分數的加減 | K33: 1 | L33: SD:*SD:六、相片大變身: 合成 | M33: 1 | N33: SE:Unit 3 How’s the Weather? | O33: 1 | T33: 閱讀階梯一 永不掉落的葉子 | U33: 5 | V33: 二、臺灣真正好3.公園 | W33: 1 | X33: Unit 3 How’s the Weather? | Y33: 1 | Z33: 數與量 五、異分母分數的加減 | AA33: 4 | AB33: 三、生活中的規範 1.社會規範面面觀 | AC33: 3 | AD33: 【視覺】壹、動手玩創意二‧我生長的地方 【表演】貳.、表演任我行二‧創意偶戲 【音樂】參、音樂人生二‧咱的家鄉咱的歌 | AE33: 3 | AF33: 二、植物世界面面觀 活動三 植物的分類 | AG33: 4 | AH33: 參、活力滿分七.我是飛毛腿 | AI33: 3 | AJ33: 三、尊重心關懷情 2.文化你我他 | AK33: 3 | AL33: 期中評量(11/2~6) | AM33: =SUM(E33:E35)+SUM(G33:Q33)+SUMIF(F33:F35,"*P",G33:G35)+SUMIF(H33:H35,"*P",I33:I35)+SUMIF(J33:J35,"*P",K33:K35)+SUMIF(L33:L35,"*P",M33:M35)+SUMIF(N33:N35,"*P",O33:O35)+SUMIF(P33:P35,"*P",Q33:Q35) -> 5 | AN33: =SUM(F34:Q35)+SUM(T34:AK35)-SUMIF(F34:F35,"*P",G34:G35)-SUMIF(H34:H35,"*P",I34:I35)-SUMIF(J34:J35,"*P",K34:K35)-SUMIF(L34:L35,"*P",M34:M35)-SUMIF(N34:N35,"*P",O34:O35)-SUMIF(P34:P35,"*P",Q34:Q35)-SUMIF(R34:R35,"*P",S34:S35)-SUMIF(T34:T35,"*P",U34:U35)-SUMIF(V34:V35,"*P",W34:W35)-SUMIF(X34:X35,"*P",Y34:Y35)-SUMIF(Z34:Z35,"*P",AA34:AA35)-SUMIF(AB34:AB35,"*P",AC34:AC35)-SUMIF(AD34:AD35,"*P",AE34:AE35)-SUMIF(AF34:AF35,"*P",AG34:AG35)-SUMIF(AH34:AH35,"*P",AI34:AI35)-SUMIF(AJ34:AJ35,"*P",AK34:AK35)-AR33 -> 1 | AO33: =SUM(U33:AK33) -> 27 | AP33: =SUM(S33:S35) -> 0 | AQ33: =AM33+AO33-AS33 -> 32 | AR33: 0 | AS33: 0 | AT33: =32-AQ33-AS33 -> 0 | AU33: =IF(OR(AT33=0,AS33=0),"OK",IF(AS33<>AT33,"尚未完成減節數",IF(AS33=AT33,"修正正確/請刪除內定減的節數","OK"))) -> OK | AV33: 0 | EB33: 10 | EC33: 第十週 2020/11/1~2020/11/7 | EF33: SA:校本課程d | EG33: 1 | EH33: SB:學習扶助(國語) | EI33: 1 | EJ33: SC:學習扶助(數學) | EK33: 1 | EL33: SD:資訊教育 | EM33: 1 | EN33: SE:彈性英語 | EO33: 1 | ET33: 閱讀階梯一 永不掉落的葉子 | EU33: 5 | EV33: 二、臺灣真正好3.公園 | EW33: 1 | EX33: Unit 3 How’s the Weather? | EY33: 1 | EZ33: 數與量 五、異分母分數的加減 | FA33: 4 | FB33: 三、生活中的規範 1.社會規範面面觀 | FC33: 3 | FD33: 【視覺】壹、動手玩創意二‧我生長的地方 【表演】貳.、表演任我行二‧創意偶戲 【音樂】參、音樂人生二‧咱的家鄉咱的歌 | FE33: 3 | FF33: 二、植物世界面面觀 活動三 植物的分類 | FG33: 4 | FH33: 參、活力滿分七.我是飛毛腿 | FI33: 3 | FJ33: 三、尊重心關懷情 2.文化你我他 | FK33: 3
B34: 10 | AJ34: AH:1.【性別平等教育】 | AK34: 1 | EB34: 10 | FJ34: AH:1.【性別平等教育】 | FK34: 1
B35: 10 | EB35: 10
B36: 11 | C36: 第十一週 2020/11/8~2020/11/14 | F36: SA:五、半屏湖溼地大調查 | G36: 1 | H36: SB:觀察與探索 八、火星人，你好嗎？ | I36: 1 | J36: SC:數與量 六、乘法和除法 | K36: 1 | L36: SD:*SD:七、相片說故事: 文字的應用 | M36: 1 | N36: SE:Unit 3 How’s the Weather? | O36: 1 | T36: 觀察與探索 八、火星人，你好嗎？ | U36: 5 | V36: 二、臺灣真正好4.臺灣風景上蓋讚 | W36: 1 | X36: Unit 3 How’s the Weather? | Y36: 1 | Z36: 數與量 六、乘法和除法 | AA36: 4 | AB36: 三、生活中的規範 2.法律你我他 | AC36: 3 | AD36: 【視覺】壹、動手玩創意二‧我生長的地方 【表演】貳.、表演任我行二‧創意偶戲 【音樂】參、音樂人生二‧咱的家鄉咱的歌 | AE36: 3 | AF36: 三、水溶液 活動一 溶解現象 | AG36: 4 | AH36: 參、活力滿分八.旋轉之王 | AI36: 3 | AJ36: 三、尊重心關懷情 2.文化你我他 | AK36: 3 | AM36: =SUM(E36:E38)+SUM(G36:Q36)+SUMIF(F36:F38,"*P",G36:G38)+SUMIF(H36:H38,"*P",I36:I38)+SUMIF(J36:J38,"*P",K36:K38)+SUMIF(L36:L38,"*P",M36:M38)+SUMIF(N36:N38,"*P",O36:O38)+SUMIF(P36:P38,"*P",Q36:Q38) -> 5 | AN36: =SUM(F37:Q38)+SUM(T37:AK38)-SUMIF(F37:F38,"*P",G37:G38)-SUMIF(H37:H38,"*P",I37:I38)-SUMIF(J37:J38,"*P",K37:K38)-SUMIF(L37:L38,"*P",M37:M38)-SUMIF(N37:N38,"*P",O37:O38)-SUMIF(P37:P38,"*P",Q37:Q38)-SUMIF(R37:R38,"*P",S37:S38)-SUMIF(T37:T38,"*P",U37:U38)-SUMIF(V37:V38,"*P",W37:W38)-SUMIF(X37:X38,"*P",Y37:Y38)-SUMIF(Z37:Z38,"*P",AA37:AA38)-SUMIF(AB37:AB38,"*P",AC37:AC38)-SUMIF(AD37:AD38,"*P",AE37:AE38)-SUMIF(AF37:AF38,"*P",AG37:AG38)-SUMIF(AH37:AH38,"*P",AI37:AI38)-SUMIF(AJ37:AJ38,"*P",AK37:AK38)-AR36 -> 7 | AO36: =SUM(U36:AK36) -> 27 | AP36: =SUM(S36:S38) -> 0 | AQ36: =AM36+AO36-AS36 -> 32 | AR36: 0 | AS36: 0 | AT36: =32-AQ36-AS36 -> 0 | AU36: =IF(OR(AT36=0,AS36=0),"OK",IF(AS36<>AT36,"尚未完成減節數",IF(AS36=AT36,"修正正確/請刪除內定減的節數","OK"))) -> OK | AV36: 0 | EB36: 11 | EC36: 第十一週 2020/11/8~2020/11/14 | EF36: SA:校本課程d | EG36: 1 | EH36: SB:學習扶助(國語) | EI36: 1 | EJ36: SC:學習扶助(數學) | EK36: 1 | EL36: SD:資訊教育 | EM36: 1 | EN36: SE:彈性英語 | EO36: 1 | ET36: 觀察與探索 八、火星人，你好嗎？ | EU36: 5 | EV36: 二、臺灣真正好4.臺灣風景上蓋讚 | EW36: 1 | EX36: Unit 3 How’s the Weather? | EY36: 1 | EZ36: 數與量 六、乘法和除法 | FA36: 4 | FB36: 三、生活中的規範 2.法律你我他 | FC36: 3 | FD36: 【視覺】壹、動手玩創意二‧我生長的地方 【表演】貳.、表演任我行二‧創意偶戲 【音樂】參、音樂人生二‧咱的家鄉咱的歌 | FE36: 3 | FF36: 三、水溶液 活動一 溶解現象 | FG36: 4 | FH36: 參、活力滿分八.旋轉之王 | FI36: 3 | FJ36: 三、尊重心關懷情 2.文化你我他 | FK36: 3
B37: 11 | T37: CD:18.【戶外教育】 | U37: 1 | Z37: CD:18.【戶外教育】 | AA37: 1 | AB37: CD:18.【戶外教育】 | AC37: 1 | AD37: CD:18.【戶外教育】 | AE37: 1 | AF37: CD:18.【戶外教育】 | AG37: 1 | AH37: CD:18.【戶外教育】 | AI37: 1 | AJ37: CD:18.【戶外教育】 | AK37: 1 | EB37: 11 | ET37: CD:18.【戶外教育】 | EU37: 1 | EZ37: CD:18.【戶外教育】 | FA37: 1 | FB37: CD:18.【戶外教育】 | FC37: 1 | FD37: CD:18.【戶外教育】 | FE37: 1 | FF37: CD:18.【戶外教育】 | FG37: 1 | FH37: CD:18.【戶外教育】 | FI37: 1 | FJ37: CD:18.【戶外教育】 | FK37: 1
B38: 11 | EB38: 11
B39: 12 | C39: 第十二週 2020/11/15~2020/11/21 | F39: 校慶活動(含預演)P(12_3) | L39: SD:*SD:七、相片說故事: 相片併貼 | M39: 1 | N39: SE:Unit 3 How’s the Weather? | O39: 1 | T39: 觀察與探索 九、溪谷間的野鳥 | U39: 5 | V39: 二、臺灣真正好4.臺灣風景上蓋讚 | W39: 1 | X39: Unit 3 How’s the Weather? | Y39: 1 | Z39: 數與量 六、乘法和除法 | AA39: 4 | AB39: 四、人民的權利與義務 1.權利人人享 | AC39: 3 | AD39: 【視覺】壹、動手玩創意二‧我生長的地方 【表演】貳.、表演任我行二‧創意偶戲 【音樂】參、音樂人生二‧咱的家鄉咱的歌 | AE39: 3 | AF39: 三、水溶液 活動一 溶解現象 活動二 水溶液的酸鹼性 | AG39: 4 | AH39: 參、活力滿分八.旋轉之王 | AI39: 3 | AJ39: 三、尊重心關懷情 3、讓愛傳出去 | AK39: 3 | AM39: =SUM(E39:E41)+SUM(G39:Q39)+SUMIF(F39:F41,"*P",G39:G41)+SUMIF(H39:H41,"*P",I39:I41)+SUMIF(J39:J41,"*P",K39:K41)+SUMIF(L39:L41,"*P",M39:M41)+SUMIF(N39:N41,"*P",O39:O41)+SUMIF(P39:P41,"*P",Q39:Q41) -> 5 | AN39: =SUM(F40:Q41)+SUM(T40:AK41)-SUMIF(F40:F41,"*P",G40:G41)-SUMIF(H40:H41,"*P",I40:I41)-SUMIF(J40:J41,"*P",K40:K41)-SUMIF(L40:L41,"*P",M40:M41)-SUMIF(N40:N41,"*P",O40:O41)-SUMIF(P40:P41,"*P",Q40:Q41)-SUMIF(R40:R41,"*P",S40:S41)-SUMIF(T40:T41,"*P",U40:U41)-SUMIF(V40:V41,"*P",W40:W41)-SUMIF(X40:X41,"*P",Y40:Y41)-SUMIF(Z40:Z41,"*P",AA40:AA41)-SUMIF(AB40:AB41,"*P",AC40:AC41)-SUMIF(AD40:AD41,"*P",AE40:AE41)-SUMIF(AF40:AF41,"*P",AG40:AG41)-SUMIF(AH40:AH41,"*P",AI40:AI41)-SUMIF(AJ40:AJ41,"*P",AK40:AK41)-AR39 -> 1 | AO39: =SUM(U39:AK39) -> 27 | AP39: =SUM(S39:S41) -> 0 | AQ39: =AM39+AO39-AS39 -> 32 | AR39: 0 | AS39: 0 | AT39: =32-AQ39-AS39 -> 0 | AU39: =IF(OR(AT39=0,AS39=0),"OK",IF(AS39<>AT39,"尚未完成減節數",IF(AS39=AT39,"修正正確/請刪除內定減的節數","OK"))) -> OK | AV39: 0 | EB39: 12 | EC39: 第十二週 2020/11/15~2020/11/21 | EL39: SD:資訊教育 | EM39: 1 | EN39: SE:彈性英語 | EO39: 1 | ET39: 觀察與探索 九、溪谷間的野鳥 | EU39: 5 | EV39: 二、臺灣真正好4.臺灣風景上蓋讚 | EW39: 1 | EX39: Unit 3 How’s the Weather? | EY39: 1 | EZ39: 數與量 六、乘法和除法 | FA39: 4 | FB39: 四、人民的權利與義務 1.權利人人享 | FC39: 3 | FD39: 【視覺】壹、動手玩創意二‧我生長的地方 【表演】貳.、表演任我行二‧創意偶戲 【音樂】參、音樂人生二‧咱的家鄉咱的歌 | FE39: 3 | FF39: 三、水溶液 活動一 溶解現象 活動二 水溶液的酸鹼性 | FG39: 4 | FH39: 參、活力滿分八.旋轉之王 | FI39: 3 | FJ39: 三、尊重心關懷情 3、讓愛傳出去 | FK39: 3
B40: 12 | D40: CC:校慶活動(含預演)P | E40: 3 | AJ40: AH:1.【性別平等教育】 | AK40: 1 | EB40: 12 | ED40: CC:校慶活動(含預演)P | EE40: 3 | FJ40: AH:1.【性別平等教育】 | FK40: 1
B41: 12 | EB41: 12
B42: 13 | C42: 第十三週 2020/11/22~2020/11/28 | F42: 作文教學P(13_1) 校慶活動(含預演)P(13_2) | L42: SD:*SD:八、不同的回憶: 布景主題 | M42: 1 | N42: SE:Unit 4 Do You Like Apples? | O42: 1 | T42: 觀察與探索 十、海豚 | U42: 5 | V42: 二、臺灣真正好4.臺灣風景上蓋讚 | W42: 1 | X42: Unit 4 Do You Like Apples? | Y42: 1 | Z42: 數與量 六、乘法和除法 | AA42: 4 | AB42: 四、人民的權利與義務 2.義務人人有 | AC42: 3 | AD42: 【視覺】壹、動手玩創意二‧我生長的地方 【表演】貳.、表演任我行二‧創意偶戲 【音樂】參、音樂人生三‧樂思泉湧 | AE42: 3 | AF42: 三、水溶液 活動二 水溶液的酸鹼性 | AG42: 4 | AH42: 參、活力滿分九.活力有氧 | AI42: 3 | AJ42: 三、尊重心關懷情 3.讓愛傳出去 | AK42: 3 | AM42: =SUM(E42:E44)+SUM(G42:Q42)+SUMIF(F42:F44,"*P",G42:G44)+SUMIF(H42:H44,"*P",I42:I44)+SUMIF(J42:J44,"*P",K42:K44)+SUMIF(L42:L44,"*P",M42:M44)+SUMIF(N42:N44,"*P",O42:O44)+SUMIF(P42:P44,"*P",Q42:Q44) -> 5 | AN42: =SUM(F43:Q44)+SUM(T43:AK44)-SUMIF(F43:F44,"*P",G43:G44)-SUMIF(H43:H44,"*P",I43:I44)-SUMIF(J43:J44,"*P",K43:K44)-SUMIF(L43:L44,"*P",M43:M44)-SUMIF(N43:N44,"*P",O43:O44)-SUMIF(P43:P44,"*P",Q43:Q44)-SUMIF(R43:R44,"*P",S43:S44)-SUMIF(T43:T44,"*P",U43:U44)-SUMIF(V43:V44,"*P",W43:W44)-SUMIF(X43:X44,"*P",Y43:Y44)-SUMIF(Z43:Z44,"*P",AA43:AA44)-SUMIF(AB43:AB44,"*P",AC43:AC44)-SUMIF(AD43:AD44,"*P",AE43:AE44)-SUMIF(AF43:AF44,"*P",AG43:AG44)-SUMIF(AH43:AH44,"*P",AI43:AI44)-SUMIF(AJ43:AJ44,"*P",AK43:AK44)-AR42 -> 3 | AO42: =SUM(U42:AK42) -> 27 | AP42: =SUM(S42:S44) -> 0 | AQ42: =AM42+AO42-AS42 -> 32 | AR42: 0 | AS42: 0 | AT42: =32-AQ42-AS42 -> 0 | AU42: =IF(OR(AT42=0,AS42=0),"OK",IF(AS42<>AT42,"尚未完成減節數",IF(AS42=AT42,"修正正確/請刪除內定減的節數","OK"))) -> OK | AV42: 0 | EB42: 13 | EC42: 第十三週 2020/11/22~2020/11/28 | EL42: SD:資訊教育 | EM42: 1 | EN42: SE:彈性英語 | EO42: 1 | ET42: 觀察與探索 十、海豚 | EU42: 5 | EV42: 二、臺灣真正好4.臺灣風景上蓋讚 | EW42: 1 | EX42: Unit 4 Do You Like Apples? | EY42: 1 | EZ42: 數與量 六、乘法和除法 | FA42: 4 | FB42: 四、人民的權利與義務 2.義務人人有 | FC42: 3 | FD42: 【視覺】壹、動手玩創意二‧我生長的地方 【表演】貳.、表演任我行二‧創意偶戲 【音樂】參、音樂人生三‧樂思泉湧 | FE42: 3 | FF42: 三、水溶液 活動二 水溶液的酸鹼性 | FG42: 4 | FH42: 參、活力滿分九.活力有氧 | FI42: 3 | FJ42: 三、尊重心關懷情 3.讓愛傳出去 | FK42: 3
B43: 13 | D43: AN:作文教學P | E43: 1 | T43: AN:作文教學 | U43: 1 | AH43: BA:飲食教育 | AI43: 1 | AJ43: AH:1.【性別平等教育】 | AK43: 1 | EB43: 13 | ED43: AN:作文教學P | EE43: 1 | ET43: AN:作文教學 | EU43: 1 | FH43: BA:飲食教育 | FI43: 1 | FJ43: AH:1.【性別平等教育】 | FK43: 1
B44: 13 | D44: CC:校慶活動(含預演)P | E44: 2 | EB44: 13 | ED44: CC:校慶活動(含預演)P | EE44: 2
B45: 14 | C45: 第十四週 2020/11/29~2020/12/5 | F45: 校慶活動(含預演)P(14_3) | L45: SD:*SD:八、不同的回憶: 相片桌曆 | M45: 1 | N45: SE:Unit 4 Do You Like Apples? | O45: 1 | T45: 觀察與探索 統整活動三 | U45: 5 | V45: 二、臺灣真正好4.臺灣風景上蓋讚 | W45: 1 | X45: Unit 4 Do You Like Apples? | Y45: 1 | Z45: 數與量、代數 七、整數四則運算 | AA45: 4 | AB45: 四、人民的權利與義務 2.義務人人有 | AC45: 3 | AD45: 【視覺】壹、動手玩創意三‧環保你我他 【表演】貳.、表演任我行三‧偶戲賞析大解密 【音樂】參、音樂人生三‧樂思泉湧 | AE45: 3 | AF45: 三、水溶液 活動二 水溶液的酸鹼性 | AG45: 4 | AH45: 參、活力滿分十.投籃高手 | AI45: 3 | AJ45: 四、環境守護者 1.大自然受傷了 | AK45: 3 | AL45: A校慶運動會12/05(六) | AM45: =SUM(E45:E47)+SUM(G45:Q45)+SUMIF(F45:F47,"*P",G45:G47)+SUMIF(H45:H47,"*P",I45:I47)+SUMIF(J45:J47,"*P",K45:K47)+SUMIF(L45:L47,"*P",M45:M47)+SUMIF(N45:N47,"*P",O45:O47)+SUMIF(P45:P47,"*P",Q45:Q47) -> 5 | AN45: =SUM(F46:Q47)+SUM(T46:AK47)-SUMIF(F46:F47,"*P",G46:G47)-SUMIF(H46:H47,"*P",I46:I47)-SUMIF(J46:J47,"*P",K46:K47)-SUMIF(L46:L47,"*P",M46:M47)-SUMIF(N46:N47,"*P",O46:O47)-SUMIF(P46:P47,"*P",Q46:Q47)-SUMIF(R46:R47,"*P",S46:S47)-SUMIF(T46:T47,"*P",U46:U47)-SUMIF(V46:V47,"*P",W46:W47)-SUMIF(X46:X47,"*P",Y46:Y47)-SUMIF(Z46:Z47,"*P",AA46:AA47)-SUMIF(AB46:AB47,"*P",AC46:AC47)-SUMIF(AD46:AD47,"*P",AE46:AE47)-SUMIF(AF46:AF47,"*P",AG46:AG47)-SUMIF(AH46:AH47,"*P",AI46:AI47)-SUMIF(AJ46:AJ47,"*P",AK46:AK47)-AR45 -> 4 | AO45: =SUM(U45:AK45) -> 27 | AP45: =SUM(S45:S47) -> 0 | AQ45: =AM45+AO45-AS45 -> 32 | AR45: 0 | AS45: 0 | AT45: =32-AQ45-AS45 -> 0 | AU45: =IF(OR(AT45=0,AS45=0),"OK",IF(AS45<>AT45,"尚未完成減節數",IF(AS45=AT45,"修正正確/請刪除內定減的節數","OK"))) -> OK | AV45: 0 | EB45: 14 | EC45: 第十四週 2020/11/29~2020/12/5 | EL45: SD:資訊教育 | EM45: 1 | EN45: SE:彈性英語 | EO45: 1 | ET45: 觀察與探索 統整活動三 | EU45: 5 | EV45: 二、臺灣真正好4.臺灣風景上蓋讚 | EW45: 1 | EX45: Unit 4 Do You Like Apples? | EY45: 1 | EZ45: 數與量、代數 七、整數四則運算 | FA45: 4 | FB45: 四、人民的權利與義務 2.義務人人有 | FC45: 3 | FD45: 【視覺】壹、動手玩創意三‧環保你我他 【表演】貳.、表演任我行三‧偶戲賞析大解密 【音樂】參、音樂人生三‧樂思泉湧 | FE45: 3 | FF45: 三、水溶液 活動二 水溶液的酸鹼性 | FG45: 4 | FH45: 參、活力滿分十.投籃高手 | FI45: 3 | FJ45: 四、環境守護者 1.大自然受傷了 | FK45: 3
B46: 14 | D46: CC:校慶活動(含預演)P | E46: 3 | AH46: BA:飲食教育 | AI46: 1 | AJ46: AC:家政教育 | AK46: 2 | EB46: 14 | ED46: CC:校慶活動(含預演)P | EE46: 3 | FH46: BA:飲食教育 | FI46: 1 | FJ46: AC:家政教育 | FK46: 2
B47: 14 | AJ47: AH:1.【性別平等教育】 | AK47: 1 | EB47: 14 | FJ47: AH:1.【性別平等教育】 | FK47: 1
B48: 15 | C48: 第十五週 2020/12/6~2020/12/12 | F48: SA:六、小小半屏湖溼地公園解說員 | G48: 1 | H48: SB:文學步道—人與環境 十一、你想做人魚嗎？ | I48: 1 | J48: SC:數與量、代數 七、整數四則運算 | K48: 1 | L48: SD:*SD:八、不同的回憶: 相簿製作 | M48: 1 | N48: SE:Unit 4 Do You Like Apples? | O48: 1 | T48: 文學步道—人與環境 十一、你想做人魚嗎？ | U48: 5 | V48: 三、歡喜過年5.正月調 | W48: 1 | X48: Unit 4 Do You Like Apples? | Y48: 1 | Z48: 數與量、代數 七、整數四則運算 | AA48: 4 | AB48: 五、臺灣的先民 1.史前文化 | AC48: 3 | AD48: 【視覺】壹、動手玩創意三‧環保你我他 【表演】貳.、表演任我行三‧偶戲賞析大解密 【音樂】參、音樂人生三‧樂思泉湧 | AE48: 3 | AF48: 三、水溶液 活動二 水溶液的酸鹼性 活動三 水溶液的導電性 | AG48: 4 | AH48: 參、活力滿分十.投籃高手 | AI48: 3 | AJ48: 四、環境守護者 1.大自然受傷了 | AK48: 3 | AL48: B校慶運動會補假12/07(一) | AM48: =SUM(E48:E50)+SUM(G48:Q48)+SUMIF(F48:F50,"*P",G48:G50)+SUMIF(H48:H50,"*P",I48:I50)+SUMIF(J48:J50,"*P",K48:K50)+SUMIF(L48:L50,"*P",M48:M50)+SUMIF(N48:N50,"*P",O48:O50)+SUMIF(P48:P50,"*P",Q48:Q50) -> 5 | AN48: =SUM(F49:Q50)+SUM(T49:AK50)-SUMIF(F49:F50,"*P",G49:G50)-SUMIF(H49:H50,"*P",I49:I50)-SUMIF(J49:J50,"*P",K49:K50)-SUMIF(L49:L50,"*P",M49:M50)-SUMIF(N49:N50,"*P",O49:O50)-SUMIF(P49:P50,"*P",Q49:Q50)-SUMIF(R49:R50,"*P",S49:S50)-SUMIF(T49:T50,"*P",U49:U50)-SUMIF(V49:V50,"*P",W49:W50)-SUMIF(X49:X50,"*P",Y49:Y50)-SUMIF(Z49:Z50,"*P",AA49:AA50)-SUMIF(AB49:AB50,"*P",AC49:AC50)-SUMIF(AD49:AD50,"*P",AE49:AE50)-SUMIF(AF49:AF50,"*P",AG49:AG50)-SUMIF(AH49:AH50,"*P",AI49:AI50)-SUMIF(AJ49:AJ50,"*P",AK49:AK50)-AR48 -> 4 | AO48: =SUM(U48:AK48) -> 27 | AP48: =SUM(S48:S50) -> 0 | AQ48: =AM48+AO48-AS48 -> 32 | AR48: 0 | AS48: 0 | AT48: =32-AQ48-AS48 -> 0 | AU48: =IF(OR(AT48=0,AS48=0),"OK",IF(AS48<>AT48,"尚未完成減節數",IF(AS48=AT48,"修正正確/請刪除內定減的節數","OK"))) -> OK | AV48: 0 | EB48: 15 | EC48: 第十五週 2020/12/6~2020/12/12 | EF48: SA:校本課程d | EG48: 1 | EH48: SB:學習扶助(國語) | EI48: 1 | EJ48: SC:學習扶助(數學) | EK48: 1 | EL48: SD:資訊教育 | EM48: 1 | EN48: SE:彈性英語 | EO48: 1 | ET48: 文學步道—人與環境 十一、你想做人魚嗎？ | EU48: 5 | EV48: 三、歡喜過年5.正月調 | EW48: 1 | EX48: Unit 4 Do You Like Apples? | EY48: 1 | EZ48: 數與量、代數 七、整數四則運算 | FA48: 4 | FB48: 五、臺灣的先民 1.史前文化 | FC48: 3 | FD48: 【視覺】壹、動手玩創意三‧環保你我他 【表演】貳.、表演任我行三‧偶戲賞析大解密 【音樂】參、音樂人生三‧樂思泉湧 | FE48: 3 | FF48: 三、水溶液 活動二 水溶液的酸鹼性 活動三 水溶液的導電性 | FG48: 4 | FH48: 參、活力滿分十.投籃高手 | FI48: 3 | FJ48: 四、環境守護者 1.大自然受傷了 | FK48: 3
B49: 15 | AF49: BH:低碳教育 | AG49: 1 | AH49: BA:飲食教育 | AI49: 1 | AJ49: AC:家政教育 | AK49: 2 | EB49: 15 | FF49: BH:低碳教育 | FG49: 1 | FH49: BA:飲食教育 | FI49: 1 | FJ49: AC:家政教育 | FK49: 2
B50: 15 | EB50: 15
B51: 16 | C51: 第十六週 2020/12/13~2020/12/19 | F51: SA:六、小小半屏湖溼地公園解說員 | G51: 1 | H51: SB:文學步道—人與環境 十二、衝破逆境 | I51: 1 | J51: SC:數與量、幾何 八、面積 | K51: 1 | L51: SD:*SD:九、相片管理: 批次檔案 | M51: 1 | N51: SE:Unit5WhatDoYouWanttoDrink? | O51: 1 | T51: 文學步道—人與環境 十二、衝破逆境 | U51: 5 | V51: 三、歡喜過年5.正月調 | W51: 1 | X51: Unit 5 What Do You Want to Drink? | Y51: 1 | Z51: 數與量、幾何 八、面積 | AA51: 4 | AB51: 五、臺灣的先民 2.原住民族文化 | AC51: 3 | AD51: 【視覺】壹、動手玩創意三‧環保你我他 【表演】貳.、表演任我行三‧偶戲賞析大解密 【音樂】參、音樂人生三‧樂思泉湧 | AE51: 3 | AF51: 四、力與運動 活動一 力的作用 | AG51: 4 | AH51: 肆、矯健身手十一.大顯身手 | AI51: 3 | AJ51: 四、環境守護者 2.綠色生活達人 | AK51: 3 | AL51: 家庭教育109年12月16日 | AM51: =SUM(E51:E53)+SUM(G51:Q51)+SUMIF(F51:F53,"*P",G51:G53)+SUMIF(H51:H53,"*P",I51:I53)+SUMIF(J51:J53,"*P",K51:K53)+SUMIF(L51:L53,"*P",M51:M53)+SUMIF(N51:N53,"*P",O51:O53)+SUMIF(P51:P53,"*P",Q51:Q53) -> 5 | AN51: =SUM(F52:Q53)+SUM(T52:AK53)-SUMIF(F52:F53,"*P",G52:G53)-SUMIF(H52:H53,"*P",I52:I53)-SUMIF(J52:J53,"*P",K52:K53)-SUMIF(L52:L53,"*P",M52:M53)-SUMIF(N52:N53,"*P",O52:O53)-SUMIF(P52:P53,"*P",Q52:Q53)-SUMIF(R52:R53,"*P",S52:S53)-SUMIF(T52:T53,"*P",U52:U53)-SUMIF(V52:V53,"*P",W52:W53)-SUMIF(X52:X53,"*P",Y52:Y53)-SUMIF(Z52:Z53,"*P",AA52:AA53)-SUMIF(AB52:AB53,"*P",AC52:AC53)-SUMIF(AD52:AD53,"*P",AE52:AE53)-SUMIF(AF52:AF53,"*P",AG52:AG53)-SUMIF(AH52:AH53,"*P",AI52:AI53)-SUMIF(AJ52:AJ53,"*P",AK52:AK53)-AR51 -> 4 | AO51: =SUM(U51:AK51) -> 27 | AP51: =SUM(S51:S53) -> 0 | AQ51: =AM51+AO51-AS51 -> 32 | AR51: 0 | AS51: 0 | AT51: =32-AQ51-AS51 -> 0 | AU51: =IF(OR(AT51=0,AS51=0),"OK",IF(AS51<>AT51,"尚未完成減節數",IF(AS51=AT51,"修正正確/請刪除內定減的節數","OK"))) -> OK | AV51: 0 | EB51: 16 | EC51: 第十六週 2020/12/13~2020/12/19 | EF51: SA:校本課程d | EG51: 1 | EH51: SB:學習扶助(國語) | EI51: 1 | EJ51: SC:學習扶助(數學) | EK51: 1 | EL51: SD:資訊教育 | EM51: 1 | EN51: SE:彈性英語 | EO51: 1 | ET51: 文學步道—人與環境 十二、衝破逆境 | EU51: 5 | EV51: 三、歡喜過年5.正月調 | EW51: 1 | EX51: Unit 5 What Do You Want to Drink? | EY51: 1 | EZ51: 數與量、幾何 八、面積 | FA51: 4 | FB51: 五、臺灣的先民 2.原住民族文化 | FC51: 3 | FD51: 【視覺】壹、動手玩創意三‧環保你我他 【表演】貳.、表演任我行三‧偶戲賞析大解密 【音樂】參、音樂人生三‧樂思泉湧 | FE51: 3 | FF51: 四、力與運動 活動一 力的作用 | FG51: 4 | FH51: 肆、矯健身手十一.大顯身手 | FI51: 3 | FJ51: 四、環境守護者 2.綠色生活達人 | FK51: 3
B52: 16 | AH52: AI:3.【環境教育】 | AI52: 1 | AJ52: AC:家政教育 | AK52: 2 | EB52: 16 | FH52: AI:3.【環境教育】 | FI52: 1 | FJ52: AC:家政教育 | FK52: 2
B53: 16 | AH53: BA:飲食教育 | AI53: 1 | EB53: 16 | FH53: BA:飲食教育 | FI53: 1
B54: 17 | C54: 第十七週 2020/12/20~2020/12/26 | F54: 聖誕節活動P(17_2) | H54: SB:文學步道—人與環境 十三、想念的季節 | I54: 1 | L54: SD:*SD:九、相片管理: 儲存與備份 | M54: 1 | N54: SE:Unit5WhatDoYouWanttoDrink? | O54: 1 | T54: 文學步道—人與環境 十三、想念的季節 | U54: 5 | V54: 三、歡喜過年5.正月調 | W54: 1 | X54: Unit 5 What Do You Want to Drink? | Y54: 1 | Z54: 數與量、幾何 八、面積 | AA54: 4 | AB54: 五、臺灣的先民 2.原住民族文化 | AC54: 3 | AD54: 【視覺】壹、動手玩創意三‧環保你我他 【表演】貳.、表演任我行三‧偶戲賞析大解密 【音樂】參、音樂人生三‧樂思泉湧 | AE54: 3 | AF54: 四、力與運動 活動一 力的作用 | AG54: 4 | AH54: 肆、矯健身手十二.與繩共舞 | AI54: 3 | AJ54: 四、環境守護者 2.綠色生活達人 | AK54: 3 | AL54: 109年12月25日(五)聖誕節活動 | AM54: =SUM(E54:E56)+SUM(G54:Q54)+SUMIF(F54:F56,"*P",G54:G56)+SUMIF(H54:H56,"*P",I54:I56)+SUMIF(J54:J56,"*P",K54:K56)+SUMIF(L54:L56,"*P",M54:M56)+SUMIF(N54:N56,"*P",O54:O56)+SUMIF(P54:P56,"*P",Q54:Q56) -> 5 | AN54: =SUM(F55:Q56)+SUM(T55:AK56)-SUMIF(F55:F56,"*P",G55:G56)-SUMIF(H55:H56,"*P",I55:I56)-SUMIF(J55:J56,"*P",K55:K56)-SUMIF(L55:L56,"*P",M55:M56)-SUMIF(N55:N56,"*P",O55:O56)-SUMIF(P55:P56,"*P",Q55:Q56)-SUMIF(R55:R56,"*P",S55:S56)-SUMIF(T55:T56,"*P",U55:U56)-SUMIF(V55:V56,"*P",W55:W56)-SUMIF(X55:X56,"*P",Y55:Y56)-SUMIF(Z55:Z56,"*P",AA55:AA56)-SUMIF(AB55:AB56,"*P",AC55:AC56)-SUMIF(AD55:AD56,"*P",AE55:AE56)-SUMIF(AF55:AF56,"*P",AG55:AG56)-SUMIF(AH55:AH56,"*P",AI55:AI56)-SUMIF(AJ55:AJ56,"*P",AK55:AK56)-AR54 -> 3 | AO54: =SUM(U54:AK54) -> 27 | AP54: =SUM(S54:S56) -> 0 | AQ54: =AM54+AO54-AS54 -> 32 | AR54: 0 | AS54: 0 | AT54: =32-AQ54-AS54 -> 0 | AU54: =IF(OR(AT54=0,AS54=0),"OK",IF(AS54<>AT54,"尚未完成減節數",IF(AS54=AT54,"修正正確/請刪除內定減的節數","OK"))) -> OK | AV54: 0 | EB54: 17 | EC54: 第十七週 2020/12/20~2020/12/26 | EH54: SB:學習扶助(國語) | EI54: 1 | EL54: SD:資訊教育 | EM54: 1 | EN54: SE:彈性英語 | EO54: 1 | ET54: 文學步道—人與環境 十三、想念的季節 | EU54: 5 | EV54: 三、歡喜過年5.正月調 | EW54: 1 | EX54: Unit 5 What Do You Want to Drink? | EY54: 1 | EZ54: 數與量、幾何 八、面積 | FA54: 4 | FB54: 五、臺灣的先民 2.原住民族文化 | FC54: 3 | FD54: 【視覺】壹、動手玩創意三‧環保你我他 【表演】貳.、表演任我行三‧偶戲賞析大解密 【音樂】參、音樂人生三‧樂思泉湧 | FE54: 3 | FF54: 四、力與運動 活動一 力的作用 | FG54: 4 | FH54: 肆、矯健身手十二.與繩共舞 | FI54: 3 | FJ54: 四、環境守護者 2.綠色生活達人 | FK54: 3
B55: 17 | D55: CK:聖誕節活動P | E55: 2 | AH55: AI:3.【環境教育】 | AI55: 1 | AJ55: BF:職業試探 | AK55: 1 | EB55: 17 | ED55: CK:聖誕節活動P | EE55: 2 | FH55: AI:3.【環境教育】 | FI55: 1 | FJ55: BF:職業試探 | FK55: 1
B56: 17 | AH56: BA:飲食教育 | AI56: 1 | EB56: 17 | FH56: BA:飲食教育 | FI56: 1
B57: 18 | C57: 第十八週 2020/12/27~2021/1/2 | F57: 作文教學P(18_1) | H57: SB:文學步道—人與環境 十四、小樹 | I57: 1 | J57: SC:數與量 九、時間的乘除 | K57: 1 | L57: SD:*SD:十、網路生活誌: 圖文分享 【資訊倫理教育】 | M57: 1 | N57: SE:Unit5WhatDoYouWanttoDrink? | O57: 1 | T57: 文學步道—人與環境 十四、小樹 | U57: 4 | V57: 三、歡喜過年5.正月調 | W57: 1 | X57: Unit 5 What Do You Want to Drink? | Y57: 1 | Z57: 數與量 九、時間的乘除 | AA57: 3 | AB57: 六、世界發現臺灣 1.海上來的紅毛人 | AC57: 2 | AD57: 【視覺】壹、動手玩創意三‧環保你我他 【表演】貳.、表演任我行三‧偶戲賞析大解密 【音樂】參、音樂人生三‧樂思泉湧 | AE57: 2 | AF57: 四、力與運動 活動一 力的作用 活動二 物體運動的快慢 | AG57: 3 | AH57: 肆、矯健身手十二.與繩共舞 | AI57: 2 | AJ57: 五、化解環境危機 1.颱風地震應變通 | AK57: 2 | AL57: 110年1月1日(五)元旦放假1天 | AM57: =SUM(E57:E59)+SUM(G57:Q57)+SUMIF(F57:F59,"*P",G57:G59)+SUMIF(H57:H59,"*P",I57:I59)+SUMIF(J57:J59,"*P",K57:K59)+SUMIF(L57:L59,"*P",M57:M59)+SUMIF(N57:N59,"*P",O57:O59)+SUMIF(P57:P59,"*P",Q57:Q59) -> 5 | AN57: =SUM(F58:Q59)+SUM(T58:AK59)-SUMIF(F58:F59,"*P",G58:G59)-SUMIF(H58:H59,"*P",I58:I59)-SUMIF(J58:J59,"*P",K58:K59)-SUMIF(L58:L59,"*P",M58:M59)-SUMIF(N58:N59,"*P",O58:O59)-SUMIF(P58:P59,"*P",Q58:Q59)-SUMIF(R58:R59,"*P",S58:S59)-SUMIF(T58:T59,"*P",U58:U59)-SUMIF(V58:V59,"*P",W58:W59)-SUMIF(X58:X59,"*P",Y58:Y59)-SUMIF(Z58:Z59,"*P",AA58:AA59)-SUMIF(AB58:AB59,"*P",AC58:AC59)-SUMIF(AD58:AD59,"*P",AE58:AE59)-SUMIF(AF58:AF59,"*P",AG58:AG59)-SUMIF(AH58:AH59,"*P",AI58:AI59)-SUMIF(AJ58:AJ59,"*P",AK58:AK59)-AR57 -> 1 | AO57: =SUM(U57:AK57) -> 20 | AP57: =SUM(S57:S59) -> 0 | AQ57: =AM57+AO57-AS57 -> 25 | AR57: 0 | AT57: =32-AQ57-AS57 -> 7 | AU57: =IF(OR(AT57=0,AS57=0),"OK",IF(AS57<>AT57,"尚未完成減節數",IF(AS57=AT57,"修正正確/請刪除內定減的節數","OK"))) -> OK | AV57: 7 | EB57: 18 | EC57: 第十八週 2020/12/27~2021/1/2 | EH57: SB:學習扶助(國語) | EI57: 1 | EJ57: SC:學習扶助(數學) | EK57: 1 | EL57: SD:資訊教育 | EM57: 1 | EN57: SE:彈性英語 | EO57: 1 | ET57: 文學步道—人與環境 十四、小樹 | EU57: 4 | EV57: 三、歡喜過年5.正月調 | EW57: 1 | EX57: Unit 5 What Do You Want to Drink? | EY57: 1 | EZ57: 數與量 九、時間的乘除 | FA57: 3 | FB57: 六、世界發現臺灣 1.海上來的紅毛人 | FC57: 2 | FD57: 【視覺】壹、動手玩創意三‧環保你我他 【表演】貳.、表演任我行三‧偶戲賞析大解密 【音樂】參、音樂人生三‧樂思泉湧 | FE57: 2 | FF57: 四、力與運動 活動一 力的作用 活動二 物體運動的快慢 | FG57: 3 | FH57: 肆、矯健身手十二.與繩共舞 | FI57: 2 | FJ57: 五、化解環境危機 1.颱風地震應變通 | FK57: 2
B58: 18 | D58: AN:作文教學P | E58: 1 | T58: AN:作文教學 | U58: 1 | EB58: 18 | ED58: AN:作文教學P | EE58: 1 | ET58: AN:作文教學 | EU58: 1
B59: 18 | EB59: 18
B60: 19 | C60: 第十九週 2021/1/3~2021/1/9 | F60: SA:五、半屏湖溼地大調查 | G60: 1 | H60: SB:文學步道—人與環境 十四、小樹 | I60: 1 | J60: SC:數與量 九、時間的乘除 | K60: 1 | L60: SD:*SD:十、網路生活誌: 智慧財產 【資訊倫理教育】 | M60: 1 | N60: SE:*Review 2 | O60: 1 | T60: 文學步道—人與環境 十四、小樹 | U60: 5 | V60: 俗語、歡喜來過年 ～二九暝 | W60: 1 | X60: *Review 2 | Y60: 1 | Z60: 數與量 九、時間的乘除 | AA60: 4 | AB60: 六、世界發現臺灣 1.海上來的紅毛人 | AC60: 3 | AD60: 【視覺】壹、動手玩創意三‧環保你我他 【表演】貳.、表演任我行三‧偶戲賞析大解密 【音樂】參、音樂人生四‧音樂百寶箱 | AE60: 3 | AF60: 四、力與運動 活動二 物體運動的快慢 活動三 摩擦力 | AG60: 4 | AH60: 肆、矯健身手十三.羽球高手 | AI60: 3 | AJ60: 五、化解環境危機 1.颱風地震應變通 | AK60: 3 | AM60: =SUM(E60:E62)+SUM(G60:Q60)+SUMIF(F60:F62,"*P",G60:G62)+SUMIF(H60:H62,"*P",I60:I62)+SUMIF(J60:J62,"*P",K60:K62)+SUMIF(L60:L62,"*P",M60:M62)+SUMIF(N60:N62,"*P",O60:O62)+SUMIF(P60:P62,"*P",Q60:Q62) -> 5 | AN60: =SUM(F61:Q62)+SUM(T61:AK62)-SUMIF(F61:F62,"*P",G61:G62)-SUMIF(H61:H62,"*P",I61:I62)-SUMIF(J61:J62,"*P",K61:K62)-SUMIF(L61:L62,"*P",M61:M62)-SUMIF(N61:N62,"*P",O61:O62)-SUMIF(P61:P62,"*P",Q61:Q62)-SUMIF(R61:R62,"*P",S61:S62)-SUMIF(T61:T62,"*P",U61:U62)-SUMIF(V61:V62,"*P",W61:W62)-SUMIF(X61:X62,"*P",Y61:Y62)-SUMIF(Z61:Z62,"*P",AA61:AA62)-SUMIF(AB61:AB62,"*P",AC61:AC62)-SUMIF(AD61:AD62,"*P",AE61:AE62)-SUMIF(AF61:AF62,"*P",AG61:AG62)-SUMIF(AH61:AH62,"*P",AI61:AI62)-SUMIF(AJ61:AJ62,"*P",AK61:AK62)-AR60 -> 0 | AO60: =SUM(U60:AK60) -> 27 | AP60: =SUM(S60:S62) -> 0 | AQ60: =AM60+AO60-AS60 -> 32 | AR60: 0 | AS60: 0 | AT60: =32-AQ60-AS60 -> 0 | AU60: =IF(OR(AT60=0,AS60=0),"OK",IF(AS60<>AT60,"尚未完成減節數",IF(AS60=AT60,"修正正確/請刪除內定減的節數","OK"))) -> OK | AV60: 0 | EB60: 19 | EC60: 第十九週 2021/1/3~2021/1/9 | EF60: SA:校本課程d | EG60: 1 | EH60: SB:學習扶助(國語) | EI60: 1 | EJ60: SC:學習扶助(數學) | EK60: 1 | EL60: SD:資訊教育 | EM60: 1 | EN60: SE:彈性英語 | EO60: 1 | ET60: 文學步道—人與環境 十四、小樹 | EU60: 5 | EV60: 俗語、歡喜來過年 ～二九暝 | EW60: 1 | EX60: *Review 2 | EY60: 1 | EZ60: 數與量 九、時間的乘除 | FA60: 4 | FB60: 六、世界發現臺灣 1.海上來的紅毛人 | FC60: 3 | FD60: 【視覺】壹、動手玩創意三‧環保你我他 【表演】貳.、表演任我行三‧偶戲賞析大解密 【音樂】參、音樂人生四‧音樂百寶箱 | FE60: 3 | FF60: 四、力與運動 活動二 物體運動的快慢 活動三 摩擦力 | FG60: 4 | FH60: 肆、矯健身手十三.羽球高手 | FI60: 3 | FJ60: 五、化解環境危機 1.颱風地震應變通 | FK60: 3
B61: 19 | EB61: 19
B62: 19 | EB62: 19
B63: 20 | C63: 第二十週 2021/1/10~2021/1/16 | F63: SA:六、植物分類!你做到了嗎? | G63: 1 | H63: SB:文學步道—人與環境 統整活動四 | I63: 1 | J63: SC:幾何 十、柱體、錐體和球 | K63: 1 | L63: SD:*SD:十、網路生活誌: 網路禮儀 【資訊倫理教育】 | M63: 1 | N63: SE:*Final Review | O63: 1 | T63: 文學步道—人與環境 統整活動四 | U63: 5 | V63: 古詩吟唱～金縷衣、閩南語歌欣賞～天燈 | W63: 1 | X63: *Final Review 、期末考 | Y63: 1 | Z63: 幾何 十、柱體、錐體和球 | AA63: 4 | AB63: 六、世界發現臺灣 2.鄭氏時代的經營 | AC63: 3 | AD63: 【視覺】壹、動手玩創意三‧環保你我他 【表演】貳.、表演任我行三‧偶戲賞析大解密 【音樂】參、音樂人生四‧音樂百寶箱 | AE63: 3 | AF63: 四、力與運動 活動三 摩擦力 | AG63: 4 | AH63: 肆、矯健身手十三.羽球高手 | AI63: 3 | AJ63: 五、化解環境危機 2.火災意外慎因應 | AK63: 3 | AM63: =SUM(E63:E65)+SUM(G63:Q63)+SUMIF(F63:F65,"*P",G63:G65)+SUMIF(H63:H65,"*P",I63:I65)+SUMIF(J63:J65,"*P",K63:K65)+SUMIF(L63:L65,"*P",M63:M65)+SUMIF(N63:N65,"*P",O63:O65)+SUMIF(P63:P65,"*P",Q63:Q65) -> 5 | AN63: =SUM(F64:Q65)+SUM(T64:AK65)-SUMIF(F64:F65,"*P",G64:G65)-SUMIF(H64:H65,"*P",I64:I65)-SUMIF(J64:J65,"*P",K64:K65)-SUMIF(L64:L65,"*P",M64:M65)-SUMIF(N64:N65,"*P",O64:O65)-SUMIF(P64:P65,"*P",Q64:Q65)-SUMIF(R64:R65,"*P",S64:S65)-SUMIF(T64:T65,"*P",U64:U65)-SUMIF(V64:V65,"*P",W64:W65)-SUMIF(X64:X65,"*P",Y64:Y65)-SUMIF(Z64:Z65,"*P",AA64:AA65)-SUMIF(AB64:AB65,"*P",AC64:AC65)-SUMIF(AD64:AD65,"*P",AE64:AE65)-SUMIF(AF64:AF65,"*P",AG64:AG65)-SUMIF(AH64:AH65,"*P",AI64:AI65)-SUMIF(AJ64:AJ65,"*P",AK64:AK65)-AR63 -> 0 | AO63: =SUM(U63:AK63) -> 27 | AP63: =SUM(S63:S65) -> 0 | AQ63: =AM63+AO63-AS63 -> 32 | AR63: 0 | AS63: 0 | AT63: =32-AQ63-AS63 -> 0 | AU63: =IF(OR(AT63=0,AS63=0),"OK",IF(AS63<>AT63,"尚未完成減節數",IF(AS63=AT63,"修正正確/請刪除內定減的節數","OK"))) -> OK | AV63: 0 | EB63: 20 | EC63: 第二十週 2021/1/10~2021/1/16 | EF63: SA:校本課程d | EG63: 1 | EH63: SB:學習扶助(國語) | EI63: 1 | EJ63: SC:學習扶助(數學) | EK63: 1 | EL63: SD:資訊教育 | EM63: 1 | EN63: SE:彈性英語 | EO63: 1 | ET63: 文學步道—人與環境 統整活動四 | EU63: 5 | EV63: 古詩吟唱～金縷衣、閩南語歌欣賞～天燈 | EW63: 1 | EX63: *Final Review 、期末考 | EY63: 1 | EZ63: 幾何 十、柱體、錐體和球 | FA63: 4 | FB63: 六、世界發現臺灣 2.鄭氏時代的經營 | FC63: 3 | FD63: 【視覺】壹、動手玩創意三‧環保你我他 【表演】貳.、表演任我行三‧偶戲賞析大解密 【音樂】參、音樂人生四‧音樂百寶箱 | FE63: 3 | FF63: 四、力與運動 活動三 摩擦力 | FG63: 4 | FH63: 肆、矯健身手十三.羽球高手 | FI63: 3 | FJ63: 五、化解環境危機 2.火災意外慎因應 | FK63: 3
B64: 20 | EB64: 20
B65: 20 | EB65: 20
B66: 21 | C66: 第二十一週 2021/1/17~2021/1/23 | F66: SA:六、植物分類!你做到了嗎? | G66: 1 | H66: SB:閱讀階梯二 珍惜水資源 | I66: 1 | J66: SC:幾何 十、柱體、錐體和球 | K66: 1 | L66: SD:*SD:課程回饋與檢討 | M66: 1 | N66: SE:*Final Review 、期末考 | O66: 1 | T66: 閱讀階梯二 珍惜水資源 | U66: 3 | V66: 咱來熟似語詞佮句型 | W66: 1 | X66: 成果發表會、休業式 | Y66: 1 | Z66: 幾何 十、柱體、錐體和球 | AA66: 2 | AB66: 六、世界發現臺灣 2.鄭氏時代的經營 | AC66: 1 | AD66: 【視覺】壹、動手玩創意三‧環保你我他 【表演】貳.、表演任我行三‧偶戲賞析大解密 【音樂】參、音樂人生四‧音樂百寶箱 | AE66: 1 | AF66: 科學閱讀 | AG66: 2 | AH66: 總複習 | AI66: 1 | AJ66: 五、化解環境危機 2.火災意外慎因應 | AK66: 1 | AL66: 期末評量 110年1月20日(三)課程結束 | AM66: =SUM(E66:E68)+SUM(G66:Q66)+SUMIF(F66:F68,"*P",G66:G68)+SUMIF(H66:H68,"*P",I66:I68)+SUMIF(J66:J68,"*P",K66:K68)+SUMIF(L66:L68,"*P",M66:M68)+SUMIF(N66:N68,"*P",O66:O68)+SUMIF(P66:P68,"*P",Q66:Q68) -> 5 | AN66: =SUM(F67:Q68)+SUM(T67:AK68)-SUMIF(F67:F68,"*P",G67:G68)-SUMIF(H67:H68,"*P",I67:I68)-SUMIF(J67:J68,"*P",K67:K68)-SUMIF(L67:L68,"*P",M67:M68)-SUMIF(N67:N68,"*P",O67:O68)-SUMIF(P67:P68,"*P",Q67:Q68)-SUMIF(R67:R68,"*P",S67:S68)-SUMIF(T67:T68,"*P",U67:U68)-SUMIF(V67:V68,"*P",W67:W68)-SUMIF(X67:X68,"*P",Y67:Y68)-SUMIF(Z67:Z68,"*P",AA67:AA68)-SUMIF(AB67:AB68,"*P",AC67:AC68)-SUMIF(AD67:AD68,"*P",AE67:AE68)-SUMIF(AF67:AF68,"*P",AG67:AG68)-SUMIF(AH67:AH68,"*P",AI67:AI68)-SUMIF(AJ67:AJ68,"*P",AK67:AK68)-AR66 -> 0 | AO66: =SUM(U66:AK66) -> 13 | AP66: =SUM(S66:S68) -> 0 | AQ66: =AM66+AO66-AS66 -> 18 | AR66: 0 | AT66: =32-AQ66-AS66 -> 14 | AU66: =IF(OR(AT66=0,AS66=0),"OK",IF(AS66<>AT66,"尚未完成減節數",IF(AS66=AT66,"修正正確/請刪除內定減的節數","OK"))) -> OK | AV66: 14 | EB66: 21 | EC66: 第二十一週 2021/1/17~2021/1/23 | EF66: SA:校本課程d | EG66: 1 | EH66: SB:學習扶助(國語) | EI66: 1 | EJ66: SC:學習扶助(數學) | EK66: 1 | EL66: SD:資訊教育 | EM66: 1 | EN66: SE:彈性英語 | EO66: 1 | ET66: 閱讀階梯二 珍惜水資源 | EU66: 3 | EV66: 咱來熟似語詞佮句型 | EW66: 1 | EX66: 成果發表會、休業式 | EY66: 1 | EZ66: 幾何 十、柱體、錐體和球 | FA66: 2 | FB66: 六、世界發現臺灣 2.鄭氏時代的經營 | FC66: 1 | FD66: 【視覺】壹、動手玩創意三‧環保你我他 【表演】貳.、表演任我行三‧偶戲賞析大解密 【音樂】參、音樂人生四‧音樂百寶箱 | FE66: 1 | FF66: 科學閱讀 | FG66: 2 | FH66: 總複習 | FI66: 1 | FJ66: 五、化解環境危機 2.火災意外慎因應 | FK66: 1
B67: 21 | EB67: 21
B68: 21 | EB68: 21
C69: 上學期節數合計 | E69: =SUM(E6:E68) -> 17 | G69: =G6+G9+G12+G15+G18+G21+G24+G27+G30+G33+G36+G39+G42+G45+G48+G51+G54+G57+G60+G63+G66+SUMIF(F6:F68,"*P",G6:G68) -> 13 | I69: =I6+I9+I12+I15+I18+I21+I24+I27+I30+I33+I36+I39+I42+I45+I48+I51+I54+I57+I60+I63+I66+SUMIF(H6:H68,"*P",I6:I68) -> 18 | K69: =K6+K9+K12+K15+K18+K21+K24+K27+K30+K33+K36+K39+K42+K45+K48+K51+K54+K57+K60+K63+K66+SUMIF(J6:J68,"*P",K6:K68) -> 15 | M69: =M6+M9+M12+M15+M18+M21+M24+M27+M30+M33+M36+M39+M42+M45+M48+M51+M54+M57+M60+M63+M66+SUMIF(L6:L68,"*P",M6:M68) -> 21 | O69: =O6+O9+O12+O15+O18+O21+O24+O27+O30+O33+O36+O39+O42+O45+O48+O51+O54+O57+O60+O63+O66+SUMIF(N6:N68,"*P",O6:O68) -> 21 | Q69: =Q6+Q9+Q12+Q15+Q18+Q21+Q24+Q27+Q30+Q33+Q36+Q39+Q42+Q45+Q48+Q51+Q54+Q57+Q60+Q63+Q66+SUMIF(P6:P68,"*P",Q6:Q68) -> 0 | S69: =SUM(S6:S68) -> 3 | U69: =U6+U9+U12+U15+U18+U21+U24+U27+U30+U33+U36+U39+U42+U45+U48+U51+U54+U57+U60+U63+U66+SUMIF(T6:T68,"*P",U6:U68) -> 99 | W69: =W6+W9+W12+W15+W18+W21+W24+W27+W30+W33+W36+W39+W42+W45+W48+W51+W54+W57+W60+W63+W66+SUMIF(V6:V68,"*P",W6:W68) -> 21 | Y69: =Y6+Y9+Y12+Y15+Y18+Y21+Y24+Y27+Y30+Y33+Y36+Y39+Y42+Y45+Y48+Y51+Y54+Y57+Y60+Y63+Y66+SUMIF(X6:X68,"*P",Y6:Y68) -> 21 | AA69: =AA6+AA9+AA12+AA15+AA18+AA21+AA24+AA27+AA30+AA33+AA36+AA39+AA42+AA45+AA48+AA51+AA54+AA57+AA60+AA63+AA66+SUMIF(Z6:Z68,"*P",AA6:AA68) -> 79 | AC69: =AC6+AC9+AC12+AC15+AC18+AC21+AC24+AC27+AC30+AC33+AC36+AC39+AC42+AC45+AC48+AC51+AC54+AC57+AC60+AC63+AC66+SUMIF(AB6:AB68,"*P",AC6:AC68) -> 58 | AE69: =AE6+AE9+AE12+AE15+AE18+AE21+AE24+AE27+AE30+AE33+AE36+AE39+AE42+AE45+AE48+AE51+AE54+AE57+AE60+AE63+AE66+SUMIF(AD6:AD68,"*P",AE6:AE68) -> 58 | AG69: =AG6+AG9+AG12+AG15+AG18+AG21+AG24+AG27+AG30+AG33+AG36+AG39+AG42+AG45+AG48+AG51+AG54+AG57+AG60+AG63+AG66+SUMIF(AF6:AF68,"*P",AG6:AG68) -> 79 | AI69: =AI6+AI9+AI12+AI15+AI18+AI21+AI24+AI27+AI30+AI33+AI36+AI39+AI42+AI45+AI48+AI51+AI54+AI57+AI60+AI63+AI66+SUMIF(AH6:AH68,"*P",AI6:AI68) -> 58 | AK69: =AK6+AK9+AK12+AK15+AK18+AK21+AK24+AK27+AK30+AK33+AK36+AK39+AK42+AK45+AK48+AK51+AK54+AK57+AK60+AK63+AK66+SUMIF(AJ6:AJ68,"*P",AK6:AK68) -> 59 | AL69: 跨領域總節數 | AM69: =SUM(AM6:AM68) -> 105 | AN69: =SUM(AN6:AN68) -> 49 | AO69: =SUM(AO6:AO68) -> 532 | AP69: =SUM(AP6:AP68) -> 3 | AQ69: =SUM(AQ6:AQ68) -> 637 | AR69: 0 | AS69: 637 | AT69: =IF(AQ69="","",IF(AQ69=AS69,"正確",IF(AQ69>AS69,"節數多:"&AQ69-AS69&"節",IF(AQ69<AS69,"節數少:"&AS69-AQ69&"節")))) -> 正確
C70: 跨領域 | G70: =SUMIF(F6:F68,"*:F*",G6:G68)+SUMIF(F6:F68,"*:H*",G6:G68)+SUMIF(F6:F68,"*:J*",G6:G68)+SUMIF(F6:F68,"*:L*",G6:G68)+SUMIF(F6:F68,"*:N*",G6:G68)+SUMIF(F6:F68,"*:P*",G6:G68)+SUMIF(F6:F68,"*:R*",G6:G68)+SUMIF(F6:F68,"*:T*",G6:G68)+SUMIF(F6:F68,"*:V*",G6:G68)+SUMIF(F6:F68,"*:X*",G6:G68)+SUMIF(F6:F68,"*:Z*",G6:G68)+SUMIF(F6:F68,"*:AB*",G6:G68)+SUMIF(F6:F68,"*:AD*",G6:G68)+SUMIF(F6:F68,"*:AF*",G6:G68)+SUMIF(F6:F68,"*:AH*",G6:G68)+SUMIF(F6:F68,"*:AJ*",G6:G68) -> 0 | I70: =SUMIF(H6:H68,"*:F*",I6:I68)+SUMIF(H6:H68,"*:H*",I6:I68)+SUMIF(H6:H68,"*:J*",I6:I68)+SUMIF(H6:H68,"*:L*",I6:I68)+SUMIF(H6:H68,"*:N*",I6:I68)+SUMIF(H6:H68,"*:P*",I6:I68)+SUMIF(H6:H68,"*:R*",I6:I68)+SUMIF(H6:H68,"*:T*",I6:I68)+SUMIF(H6:H68,"*:V*",I6:I68)+SUMIF(H6:H68,"*:X*",I6:I68)+SUMIF(H6:H68,"*:Z*",I6:I68)+SUMIF(H6:H68,"*:AB*",I6:I68)+SUMIF(H6:H68,"*:AD*",I6:I68)+SUMIF(H6:H68,"*:AF*",I6:I68)+SUMIF(H6:H68,"*:AH*",I6:I68)+SUMIF(H6:H68,"*:AJ*",I6:I68) -> 0 | K70: =SUMIF(J6:J68,"*:F*",K6:K68)+SUMIF(J6:J68,"*:H*",K6:K68)+SUMIF(J6:J68,"*:J*",K6:K68)+SUMIF(J6:J68,"*:L*",K6:K68)+SUMIF(J6:J68,"*:N*",K6:K68)+SUMIF(J6:J68,"*:P*",K6:K68)+SUMIF(J6:J68,"*:R*",K6:K68)+SUMIF(J6:J68,"*:T*",K6:K68)+SUMIF(J6:J68,"*:V*",K6:K68)+SUMIF(J6:J68,"*:X*",K6:K68)+SUMIF(J6:J68,"*:Z*",K6:K68)+SUMIF(J6:J68,"*:AB*",K6:K68)+SUMIF(J6:J68,"*:AD*",K6:K68)+SUMIF(J6:J68,"*:AF*",K6:K68)+SUMIF(J6:J68,"*:AH*",K6:K68)+SUMIF(J6:J68,"*:AJ*",K6:K68) -> 0 | M70: =SUMIF(L6:L68,"*:F*",M6:M68)+SUMIF(L6:L68,"*:H*",M6:M68)+SUMIF(L6:L68,"*:J*",M6:M68)+SUMIF(L6:L68,"*:L*",M6:M68)+SUMIF(L6:L68,"*:N*",M6:M68)+SUMIF(L6:L68,"*:P*",M6:M68)+SUMIF(L6:L68,"*:R*",M6:M68)+SUMIF(L6:L68,"*:T*",M6:M68)+SUMIF(L6:L68,"*:V*",M6:M68)+SUMIF(L6:L68,"*:X*",M6:M68)+SUMIF(L6:L68,"*:Z*",M6:M68)+SUMIF(L6:L68,"*:AB*",M6:M68)+SUMIF(L6:L68,"*:AD*",M6:M68)+SUMIF(L6:L68,"*:AF*",M6:M68)+SUMIF(L6:L68,"*:AH*",M6:M68)+SUMIF(L6:L68,"*:AJ*",M6:M68) -> 0 | O70: =SUMIF(N6:N68,"*:F*",O6:O68)+SUMIF(N6:N68,"*:H*",O6:O68)+SUMIF(N6:N68,"*:J*",O6:O68)+SUMIF(N6:N68,"*:L*",O6:O68)+SUMIF(N6:N68,"*:N*",O6:O68)+SUMIF(N6:N68,"*:P*",O6:O68)+SUMIF(N6:N68,"*:R*",O6:O68)+SUMIF(N6:N68,"*:T*",O6:O68)+SUMIF(N6:N68,"*:V*",O6:O68)+SUMIF(N6:N68,"*:X*",O6:O68)+SUMIF(N6:N68,"*:Z*",O6:O68)+SUMIF(N6:N68,"*:AB*",O6:O68)+SUMIF(N6:N68,"*:AD*",O6:O68)+SUMIF(N6:N68,"*:AF*",O6:O68)+SUMIF(N6:N68,"*:AH*",O6:O68)+SUMIF(N6:N68,"*:AJ*",O6:O68) -> 0 | Q70: =SUMIF(P6:P68,"*:F*",Q6:Q68)+SUMIF(P6:P68,"*:H*",Q6:Q68)+SUMIF(P6:P68,"*:J*",Q6:Q68)+SUMIF(P6:P68,"*:L*",Q6:Q68)+SUMIF(P6:P68,"*:N*",Q6:Q68)+SUMIF(P6:P68,"*:P*",Q6:Q68)+SUMIF(P6:P68,"*:R*",Q6:Q68)+SUMIF(P6:P68,"*:T*",Q6:Q68)+SUMIF(P6:P68,"*:V*",Q6:Q68)+SUMIF(P6:P68,"*:X*",Q6:Q68)+SUMIF(P6:P68,"*:Z*",Q6:Q68)+SUMIF(P6:P68,"*:AB*",Q6:Q68)+SUMIF(P6:P68,"*:AD*",Q6:Q68)+SUMIF(P6:P68,"*:AF*",Q6:Q68)+SUMIF(P6:P68,"*:AH*",Q6:Q68)+SUMIF(P6:P68,"*:AJ*",Q6:Q68) -> 0 | S70: =SUMIF(R6:R68,"*:F*",S6:S68)+SUMIF(R6:R68,"*:H*",S6:S68)+SUMIF(R6:R68,"*:J*",S6:S68)+SUMIF(R6:R68,"*:L*",S6:S68)+SUMIF(R6:R68,"*:N*",S6:S68)+SUMIF(R6:R68,"*:P*",S6:S68)+SUMIF(R6:R68,"*:R*",S6:S68)+SUMIF(R6:R68,"*:T*",S6:S68)+SUMIF(R6:R68,"*:V*",S6:S68)+SUMIF(R6:R68,"*:X*",S6:S68)+SUMIF(R6:R68,"*:Z*",S6:S68)+SUMIF(R6:R68,"*:AB*",S6:S68)+SUMIF(R6:R68,"*:AD*",S6:S68)+SUMIF(R6:R68,"*:AF*",S6:S68)+SUMIF(R6:R68,"*:AH*",S6:S68)+SUMIF(R6:R68,"*:AJ*",S6:S68) -> 0 | U70: =SUMIF(T6:T68,"*:F*",U6:U68)+SUMIF(T6:T68,"*:H*",U6:U68)+SUMIF(T6:T68,"*:J*",U6:U68)+SUMIF(T6:T68,"*:L*",U6:U68)+SUMIF(T6:T68,"*:N*",U6:U68)+SUMIF(T6:T68,"*:P*",U6:U68)+SUMIF(T6:T68,"*:R*",U6:U68)+SUMIF(T6:T68,"*:T*",U6:U68)+SUMIF(T6:T68,"*:V*",U6:U68)+SUMIF(T6:T68,"*:X*",U6:U68)+SUMIF(T6:T68,"*:Z*",U6:U68)+SUMIF(T6:T68,"*:AB*",U6:U68)+SUMIF(T6:T68,"*:AD*",U6:U68)+SUMIF(T6:T68,"*:AF*",U6:U68)+SUMIF(T6:T68,"*:AH*",U6:U68)+SUMIF(T6:T68,"*:AJ*",U6:U68) -> 0 | W70: =SUMIF(V6:V68,"*:F*",W6:W68)+SUMIF(V6:V68,"*:H*",W6:W68)+SUMIF(V6:V68,"*:J*",W6:W68)+SUMIF(V6:V68,"*:L*",W6:W68)+SUMIF(V6:V68,"*:N*",W6:W68)+SUMIF(V6:V68,"*:P*",W6:W68)+SUMIF(V6:V68,"*:R*",W6:W68)+SUMIF(V6:V68,"*:T*",W6:W68)+SUMIF(V6:V68,"*:V*",W6:W68)+SUMIF(V6:V68,"*:X*",W6:W68)+SUMIF(V6:V68,"*:Z*",W6:W68)+SUMIF(V6:V68,"*:AB*",W6:W68)+SUMIF(V6:V68,"*:AD*",W6:W68)+SUMIF(V6:V68,"*:AF*",W6:W68)+SUMIF(V6:V68,"*:AH*",W6:W68)+SUMIF(V6:V68,"*:AJ*",W6:W68) -> 0 | Y70: =SUMIF(X6:X68,"*:F*",Y6:Y68)+SUMIF(X6:X68,"*:H*",Y6:Y68)+SUMIF(X6:X68,"*:J*",Y6:Y68)+SUMIF(X6:X68,"*:L*",Y6:Y68)+SUMIF(X6:X68,"*:N*",Y6:Y68)+SUMIF(X6:X68,"*:P*",Y6:Y68)+SUMIF(X6:X68,"*:R*",Y6:Y68)+SUMIF(X6:X68,"*:T*",Y6:Y68)+SUMIF(X6:X68,"*:V*",Y6:Y68)+SUMIF(X6:X68,"*:X*",Y6:Y68)+SUMIF(X6:X68,"*:Z*",Y6:Y68)+SUMIF(X6:X68,"*:AB*",Y6:Y68)+SUMIF(X6:X68,"*:AD*",Y6:Y68)+SUMIF(X6:X68,"*:AF*",Y6:Y68)+SUMIF(X6:X68,"*:AH*",Y6:Y68)+SUMIF(X6:X68,"*:AJ*",Y6:Y68) -> 0 | AA70: =SUMIF(Z6:Z68,"*:F*",AA6:AA68)+SUMIF(Z6:Z68,"*:H*",AA6:AA68)+SUMIF(Z6:Z68,"*:J*",AA6:AA68)+SUMIF(Z6:Z68,"*:L*",AA6:AA68)+SUMIF(Z6:Z68,"*:N*",AA6:AA68)+SUMIF(Z6:Z68,"*:P*",AA6:AA68)+SUMIF(Z6:Z68,"*:R*",AA6:AA68)+SUMIF(Z6:Z68,"*:T*",AA6:AA68)+SUMIF(Z6:Z68,"*:V*",AA6:AA68)+SUMIF(Z6:Z68,"*:X*",AA6:AA68)+SUMIF(Z6:Z68,"*:Z*",AA6:AA68)+SUMIF(Z6:Z68,"*:AB*",AA6:AA68)+SUMIF(Z6:Z68,"*:AD*",AA6:AA68)+SUMIF(Z6:Z68,"*:AF*",AA6:AA68)+SUMIF(Z6:Z68,"*:AH*",AA6:AA68)+SUMIF(Z6:Z68,"*:AJ*",AA6:AA68) -> 0 | AC70: =SUMIF(AB6:AB68,"*:F*",AC6:AC68)+SUMIF(AB6:AB68,"*:H*",AC6:AC68)+SUMIF(AB6:AB68,"*:J*",AC6:AC68)+SUMIF(AB6:AB68,"*:L*",AC6:AC68)+SUMIF(AB6:AB68,"*:N*",AC6:AC68)+SUMIF(AB6:AB68,"*:P*",AC6:AC68)+SUMIF(AB6:AB68,"*:R*",AC6:AC68)+SUMIF(AB6:AB68,"*:T*",AC6:AC68)+SUMIF(AB6:AB68,"*:V*",AC6:AC68)+SUMIF(AB6:AB68,"*:X*",AC6:AC68)+SUMIF(AB6:AB68,"*:Z*",AC6:AC68)+SUMIF(AB6:AB68,"*:AB*",AC6:AC68)+SUMIF(AB6:AB68,"*:AD*",AC6:AC68)+SUMIF(AB6:AB68,"*:AF*",AC6:AC68)+SUMIF(AB6:AB68,"*:AH*",AC6:AC68)+SUMIF(AB6:AB68,"*:AJ*",AC6:AC68) -> 0 | AE70: =SUMIF(AD6:AD68,"*:F*",AE6:AE68)+SUMIF(AD6:AD68,"*:H*",AE6:AE68)+SUMIF(AD6:AD68,"*:J*",AE6:AE68)+SUMIF(AD6:AD68,"*:L*",AE6:AE68)+SUMIF(AD6:AD68,"*:N*",AE6:AE68)+SUMIF(AD6:AD68,"*:P*",AE6:AE68)+SUMIF(AD6:AD68,"*:R*",AE6:AE68)+SUMIF(AD6:AD68,"*:T*",AE6:AE68)+SUMIF(AD6:AD68,"*:V*",AE6:AE68)+SUMIF(AD6:AD68,"*:X*",AE6:AE68)+SUMIF(AD6:AD68,"*:Z*",AE6:AE68)+SUMIF(AD6:AD68,"*:AB*",AE6:AE68)+SUMIF(AD6:AD68,"*:AD*",AE6:AE68)+SUMIF(AD6:AD68,"*:AF*",AE6:AE68)+SUMIF(AD6:AD68,"*:AH*",AE6:AE68)+SUMIF(AD6:AD68,"*:AJ*",AE6:AE68) -> 0 | AG70: =SUMIF(AF6:AF68,"*:F*",AG6:AG68)+SUMIF(AF6:AF68,"*:H*",AG6:AG68)+SUMIF(AF6:AF68,"*:J*",AG6:AG68)+SUMIF(AF6:AF68,"*:L*",AG6:AG68)+SUMIF(AF6:AF68,"*:N*",AG6:AG68)+SUMIF(AF6:AF68,"*:P*",AG6:AG68)+SUMIF(AF6:AF68,"*:R*",AG6:AG68)+SUMIF(AF6:AF68,"*:T*",AG6:AG68)+SUMIF(AF6:AF68,"*:V*",AG6:AG68)+SUMIF(AF6:AF68,"*:X*",AG6:AG68)+SUMIF(AF6:AF68,"*:Z*",AG6:AG68)+SUMIF(AF6:AF68,"*:AB*",AG6:AG68)+SUMIF(AF6:AF68,"*:AD*",AG6:AG68)+SUMIF(AF6:AF68,"*:AF*",AG6:AG68)+SUMIF(AF6:AF68,"*:AH*",AG6:AG68)+SUMIF(AF6:AF68,"*:AJ*",AG6:AG68) -> 0 | AI70: =SUMIF(AH6:AH68,"*:F*",AI6:AI68)+SUMIF(AH6:AH68,"*:H*",AI6:AI68)+SUMIF(AH6:AH68,"*:J*",AI6:AI68)+SUMIF(AH6:AH68,"*:L*",AI6:AI68)+SUMIF(AH6:AH68,"*:N*",AI6:AI68)+SUMIF(AH6:AH68,"*:P*",AI6:AI68)+SUMIF(AH6:AH68,"*:R*",AI6:AI68)+SUMIF(AH6:AH68,"*:T*",AI6:AI68)+SUMIF(AH6:AH68,"*:V*",AI6:AI68)+SUMIF(AH6:AH68,"*:X*",AI6:AI68)+SUMIF(AH6:AH68,"*:Z*",AI6:AI68)+SUMIF(AH6:AH68,"*:AB*",AI6:AI68)+SUMIF(AH6:AH68,"*:AD*",AI6:AI68)+SUMIF(AH6:AH68,"*:AF*",AI6:AI68)+SUMIF(AH6:AH68,"*:AH*",AI6:AI68)+SUMIF(AH6:AH68,"*:AJ*",AI6:AI68) -> 0 | AK70: =SUMIF(AJ6:AJ68,"*:F*",AK6:AK68)+SUMIF(AJ6:AJ68,"*:H*",AK6:AK68)+SUMIF(AJ6:AJ68,"*:J*",AK6:AK68)+SUMIF(AJ6:AJ68,"*:L*",AK6:AK68)+SUMIF(AJ6:AJ68,"*:N*",AK6:AK68)+SUMIF(AJ6:AJ68,"*:P*",AK6:AK68)+SUMIF(AJ6:AJ68,"*:R*",AK6:AK68)+SUMIF(AJ6:AJ68,"*:T*",AK6:AK68)+SUMIF(AJ6:AJ68,"*:V*",AK6:AK68)+SUMIF(AJ6:AJ68,"*:X*",AK6:AK68)+SUMIF(AJ6:AJ68,"*:Z*",AK6:AK68)+SUMIF(AJ6:AJ68,"*:AB*",AK6:AK68)+SUMIF(AJ6:AJ68,"*:AD*",AK6:AK68)+SUMIF(AJ6:AJ68,"*:AF*",AK6:AK68)+SUMIF(AJ6:AJ68,"*:AH*",AK6:AK68)+SUMIF(AJ6:AJ68,"*:AJ*",AK6:AK68) -> 0 | AL70: =SUM(G70:AK70) -> 0 | AS70: 放假後上課總節數
C71: 融入節數: | E71: =SUM(E6:E68) -> 17 | G71: =SUM(G72-G69-G70) -> 0 | I71: =SUM(I72-I69-I70) -> 0 | K71: =SUM(K72-K69-K70) -> 0 | M71: =SUM(M72-M69-M70) -> 0 | O71: =SUM(O72-O69-O70) -> 0 | Q71: =SUM(Q72-Q69-Q70) -> 0 | S71: =SUM(S72-S69-S70) -> 0 | U71: =SUM(U72-U69-U70) -> 8 | W71: =SUM(W72-W69-W70) -> 0 | Y71: =SUM(Y72-Y69-Y70) -> 0 | AA71: =SUM(AA72-AA69-AA70) -> 1 | AC71: =SUM(AC72-AC69-AC70) -> 1 | AE71: =SUM(AE72-AE69-AE70) -> 1 | AG71: =SUM(AG72-AG69-AG70) -> 2 | AI71: =SUM(AI72-AI69-AI70) -> 10 | AK71: =SUM(AK72-AK69-AK70) -> 26 | AL71: =SUM(G71:AK71) -> 49
C72: 總節數: | E72: =SUM(E6:E68) -> 17 | G72: =SUM(G6:G68) -> 13 | I72: =SUM(I6:I68) -> 18 | K72: =SUM(K6:K68) -> 15 | M72: =SUM(M6:M68) -> 21 | O72: =SUM(O6:O68) -> 21 | Q72: =SUM(Q6:Q68) -> 0 | S72: =SUM(S6:S68) -> 3 | U72: =SUM(U6:U68) -> 107 | W72: =SUM(W6:W68) -> 21 | Y72: =SUM(Y6:Y68) -> 21 | AA72: =SUM(AA6:AA68) -> 80 | AC72: =SUM(AC6:AC68) -> 59 | AE72: =SUM(AE6:AE68) -> 59 | AG72: =SUM(AG6:AG68) -> 81 | AI72: =SUM(AI6:AI68) -> 68 | AK72: =SUM(AK6:AK68) -> 85 | AL72: =SUM(E72:AK72) -> 689 | AQ72: =SUM(AL72-AL70-AL71-AP69) -> 637

Sheet 下學期
B1: 下學期總週數: | C1: 20 | D1: 請輸入搜尋代號或字串: | F1: 共:0節 | P1: * | AZ1: 高雄市左營區屏山國小109年度第二學期__ | BB1: 7 | BC1: 22 | BD1: 1 | BF1: 客家語文
A2: 5 | B2: 年級: | C2: 五 | F2: =AZ1& C2 & "年級各領域教學進度總表" -> 高雄市左營區屏山國小109年度第二學期__五年級各領域教學進度總表 | AM2: 正確
B3: 上課總天數:92天
C4: 部領域校彈性課程/節數 | D4: 全校_活動 | F4: 校本課程d | H4: 學習扶助(國語) | J4: 學習扶助(數學) | L4: 資訊教育 | R4: 非課程領域 | T4: 國語文 | V4: 本土語言 | X4: 英語 | Z4: 數學 | AB4: 社會 | AD4: 藝術與人文 | AF4: 自然與科技 | AH4: 健康與體育 | AJ4: 綜合活動 | AM4: (每週節數設定參考用) | AR4: 減少總節數: | AS4: =SUM(AS6:AS64) -> 0 | EC4: 部領域校彈性課程/節數 | ED4: 全校_活動 | EF4: 校本課程d | EH4: 學習扶助(國語) | EJ4: 學習扶助(數學) | EL4: 資訊教育 | EN4: 彈性英語 | ER4: 非課程領域 | ET4: 國語文 | EV4: 本土語言 | EX4: 英語 | EZ4: 數學 | FB4: 社會 | FD4: 藝術與人文 | FF4: 自然與科技 | FH4: 健康與體育 | FJ4: 綜合活動
B5: 週別 | C5: 週別日期 | D5: 自編1 | E5: 節數 | F5: 自編A | G5: 節數 | H5: 自編B | I5: 節數 | J5: 自編C | K5: 節數 | L5: 自編D | M5: 節數 | N5: 自編E | O5: 節數 | Q5: 節數 | R5: =作業平台__教育部局年度規定節數!AF4 -> D:非領域 | S5: 節數 | T5: 國語 ( 康軒版) 5下 | U5: 節數R | V5: 本土語言 ( 真平版)5下 | W5: 節數 | X5: 英語 ( 何嘉仁story.com.)第6冊 | Y5: 節數 | Z5: 數學 ( 康軒版)5下 | AA5: 節數 | AB5: 社會 (康軒版)5下 | AC5: 節數 | AD5: 藝術與人文 (翰林版)5下 | AE5: 節數 | AF5: 自然與科技 (康軒版)5下 | AG5: 節數 | AH5: 健康與體育翰林 (南一版)5下 | AI5: 節數 | AJ5: 綜合活動 (康軒版)5下 | AK5: 節數 | AL5: 備 註 | AM5: 每週彈性節數 | AN5: 每週融入領域節數 | AO5: 每週領域節數 | AP5: 每週非課程節數 | AQ5: 每週法定節數小計 | AR5: 跨領域總節數 | AS5: 放假內定減節數 | AT5: 自己完成減節數 | AU5: 節數增減檢核 | AV5: 參考備用 | DA5: 1 | DB5: 2 | DC5: 3 | DD5: 4 | DE5: 5 | DF5: 6 | DG5: 7 | DH5: 8 | DI5: 9 | DJ5: 10 | DK5: 11 | DL5: 12 | DM5: 13 | DN5: 14 | DO5: 15 | DP5: 16 | DQ5: 17 | DR5: 18 | DS5: 19 | DT5: 20 | DU5: 21 | DV5: 22 | EB5: 週別 | EC5: 週別日期 | ED5: 自編1 | EE5: 節數 | EF5: 自編A | EG5: 節數 | EH5: 自編B | EI5: 節數 | EJ5: 自編C | EK5: 節數 | EL5: 自編D | EM5: 節數 | EN5: 自編E | EO5: 節數 | EQ5: 節數 | ER5: D:非領域 | ES5: 節數 | ET5: 國語 ( 康軒版) 5下 | EU5: 節數R | EV5: 本土語言 ( 真平版)5下 | EW5: 節數 | EX5: 英語 ( 何嘉仁story.com.)第6冊 | EY5: 節數 | EZ5: 數學 ( 康軒版)5下 | FA5: 節數 | FB5: 社會 (康軒版)5下 | FC5: 節數 | FD5: 藝術與人文 (翰林版)5下 | FE5: 節數 | FF5: 自然與科技 (康軒版)5下 | FG5: 節數 | FH5: 健康與體育翰林 (南一版)5下 | FI5: 節數 | FJ5: 綜合活動 (康軒版)5下 | FK5: 節數
B6: 1 | C6: 第一週 2021/2/14~2021/2/20 | F6: SA:預防注射(流感)P(1_1) 一、生活高手 | G6: 1 | J6: SC:數與量、幾何 一.體積 | K6: 1 | L6: SD:*SD:一、簡報初體驗 | M6: 1 | N6: SE:圖示介紹、角色介紹、發音複習表 | O6: 1 | T6: 機智的故事 一、名人記趣 | U6: 3 | V6: 一、快樂的囡仔時 1.歇睏日 | W6: 1 | X6: 圖示介紹、角色介紹、發音複習表 | Y6: 1 | Z6: 數與量、幾何 一.體積 | AA6: 2 | AB6: 一、唐山來的拓荒客 1.清代的統治與開發 | AC6: 1 | AD6: 【視覺】壹、藝術就在你身邊一‧圖紋與生活 【表演】貳、表演任我行一‧「戲」說從頭 【音樂】參、音樂的禮讚一‧搖籃曲 | AE6: 1 | AF6: 一、美麗的星空 活動一 星星與星座 活動二 觀測星空 | AG6: 2 | AH6: 壹、健康防護站一.消費停看聽 | AI6: 1 | AJ6: 一、快樂做自己 1.角色大探索 | AK6: 1 | AL6: 教育部調整110年2月18日（星期四）為開學日正式上課，原110年2月17日課務調整至2月20日（星期六）實施。 友善校園週 | AM6: =SUM(E6:E8)+SUM(G6:Q6)+SUMIF(F6:F8,"*P",G6:G8)+SUMIF(H6:H8,"*P",I6:I8)+SUMIF(J6:J8,"*P",K6:K8)+SUMIF(L6:L8,"*P",M6:M8)+SUMIF(N6:N8,"*P",O6:O8)+SUMIF(P6:P8,"*P",Q6:Q8) -> 5 | AN6: =SUM(F7:Q8)+SUM(T7:AK8)-SUMIF(F7:F8,"*P",G7:G8)-SUMIF(H7:H8,"*P",I7:I8)-SUMIF(J7:J8,"*P",K7:K8)-SUMIF(L7:L8,"*P",M7:M8)-SUMIF(N7:N8,"*P",O7:O8)-SUMIF(P7:P8,"*P",Q7:Q8)-SUMIF(R7:R8,"*P",S7:S8)-SUMIF(T7:T8,"*P",U7:U8)-SUMIF(V7:V8,"*P",W7:W8)-SUMIF(X7:X8,"*P",Y7:Y8)-SUMIF(Z7:Z8,"*P",AA7:AA8)-SUMIF(AB7:AB8,"*P",AC7:AC8)-SUMIF(AD7:AD8,"*P",AE7:AE8)-SUMIF(AF7:AF8,"*P",AG7:AG8)-SUMIF(AH7:AH8,"*P",AI7:AI8)-SUMIF(AJ7:AJ8,"*P",AK7:AK8)-AR6 -> 0 | AO6: =SUM(U6:AK6) -> 13 | AP6: =SUM(S6:S8) -> 0 | AQ6: =AM6+AO6-AS6 -> 18 | AR6: 0 | AT6: =32-AQ6-AS6 -> 14 | AU6: =IF(OR(AT6=0,AS6=0),"OK",IF(AS6<>AT6,"尚未完成減節數",IF(AS6=AT6,"修正正確/請刪除內定減的節數","OK"))) -> OK | AV6: 14 | DA6: 110年2月17日(三)開學日正式上課 | DB6: 110年2月26日(五)調整和平紀念日放假1天 疾病防治週 | DC6: 110年2月28日(日)和平紀念日 110年3月5日(五)班親會 | DG6: 110年4月2日(五)調整兒童節 放假1天 | DH6: 110年4月4日(日)兒童節 110年4月5日(一)清明節放假一天 | DJ6: 期中評量 | DP6: 畢業班評量 | DQ6: 畢業典禮(6月11~16日) | DR6: 110年6月14日(一) 端午節放假一天 | DT6: 期末評量 110年6月30日(三)課程結束 | EB6: 1 | EC6: 第一週 2021/2/14~2021/2/20 | EF6: SA:校本課程d | EG6: 1 | EJ6: SC:學習扶助(數學) | EK6: 1 | EL6: SD:資訊教育 | EM6: 1 | EN6: SE:彈性英語 | EO6: 1 | ET6: 機智的故事 一、名人記趣 | EU6: 3 | EV6: 一、快樂的囡仔時 1.歇睏日 | EW6: 1 | EX6: 圖示介紹、角色介紹、發音複習表 | EY6: 1 | EZ6: 數與量、幾何 一.體積 | FA6: 2 | FB6: 一、唐山來的拓荒客 1.清代的統治與開發 | FC6: 1 | FD6: 【視覺】壹、藝術就在你身邊一‧圖紋與生活 【表演】貳、表演任我行一‧「戲」說從頭 【音樂】參、音樂的禮讚一‧搖籃曲 | FE6: 1 | FF6: 一、美麗的星空 活動一 星星與星座 活動二 觀測星空 | FG6: 2 | FH6: 壹、健康防護站一.消費停看聽 | FI6: 1 | FJ6: 一、快樂做自己 1.角色大探索 | FK6: 1
B7: 1 | D7: CJ: 預防注射(流感)P | E7: 1 | EB7: 1 | ED7: CJ: 預防注射(流感)P | EE7: 1
B8: 1 | EB8: 1
B9: 2 | C9: 第二週 2021/2/21~2021/2/27 | F9: SA:一、生活高手 | G9: 1 | H9: SB:機智的故事 二、秋江獨釣 | I9: 1 | J9: SC:數與量 二.分數的計算 | K9: 1 | L9: SD:*SD:二、圖文並茂的簡報軟體：背景設計 | M9: 1 | N9: SE:Unit 1 What Day Is Today? | O9: 1 | T9: 機智的故事 二、秋江獨釣 | U9: 5 | V9: 一、快樂的囡仔時 1.歇睏日 | W9: 1 | X9: Unit 1 What Day Is Today? | Y9: 1 | Z9: 數與量 二.分數的計算 | AA9: 4 | AB9: 一、唐山來的拓荒客 2.清代的社會與文化 | AC9: 3 | AD9: 【視覺】壹、藝術就在你身邊一‧圖紋與生活 【表演】貳、表演任我行一‧「戲」說從頭 【音樂】參、音樂的禮讚一‧搖籃曲 | AE9: 3 | AF9: 一、美麗的星空 活動二 觀測星空 活動三 星星位置的改變 | AG9: 4 | AH9: 壹、健康防護站一.消費停看聽 | AI9: 3 | AJ9: 一、快樂做自己 1.角色大探索 | AK9: 3 | AM9: =SUM(E9:E11)+SUM(G9:Q9)+SUMIF(F9:F11,"*P",G9:G11)+SUMIF(H9:H11,"*P",I9:I11)+SUMIF(J9:J11,"*P",K9:K11)+SUMIF(L9:L11,"*P",M9:M11)+SUMIF(N9:N11,"*P",O9:O11)+SUMIF(P9:P11,"*P",Q9:Q11) -> 5 | AN9: =SUM(F10:Q11)+SUM(T10:AK11)-SUMIF(F10:F11,"*P",G10:G11)-SUMIF(H10:H11,"*P",I10:I11)-SUMIF(J10:J11,"*P",K10:K11)-SUMIF(L10:L11,"*P",M10:M11)-SUMIF(N10:N11,"*P",O10:O11)-SUMIF(P10:P11,"*P",Q10:Q11)-SUMIF(R10:R11,"*P",S10:S11)-SUMIF(T10:T11,"*P",U10:U11)-SUMIF(V10:V11,"*P",W10:W11)-SUMIF(X10:X11,"*P",Y10:Y11)-SUMIF(Z10:Z11,"*P",AA10:AA11)-SUMIF(AB10:AB11,"*P",AC10:AC11)-SUMIF(AD10:AD11,"*P",AE10:AE11)-SUMIF(AF10:AF11,"*P",AG10:AG11)-SUMIF(AH10:AH11,"*P",AI10:AI11)-SUMIF(AJ10:AJ11,"*P",AK10:AK11)-AR9 -> 2 | AO9: =SUM(U9:AK9) -> 27 | AP9: =SUM(S9:S11) -> 0 | AQ9: =AM9+AO9-AS9 -> 32 | AR9: 0 | AS9: 0 | AT9: =32-AQ9-AS9 -> 0 | AU9: =IF(OR(AT9=0,AS9=0),"OK",IF(AS9<>AT9,"尚未完成減節數",IF(AS9=AT9,"修正正確/請刪除內定減的節數","OK"))) -> OK | AV9: 0 | EB9: 2 | EC9: 第二週 2021/2/21~2021/2/27 | EF9: SA:校本課程d | EG9: 1 | EH9: SB:學習扶助(國語) | EI9: 1 | EJ9: SC:學習扶助(數學) | EK9: 1 | EL9: SD:資訊教育 | EM9: 1 | EN9: SE:彈性英語 | EO9: 1 | ET9: 機智的故事 二、秋江獨釣 | EU9: 5 | EV9: 一、快樂的囡仔時 1.歇睏日 | EW9: 1 | EX9: Unit 1 What Day Is Today? | EY9: 1 | EZ9: 數與量 二.分數的計算 | FA9: 4 | FB9: 一、唐山來的拓荒客 2.清代的社會與文化 | FC9: 3 | FD9: 【視覺】壹、藝術就在你身邊一‧圖紋與生活 【表演】貳、表演任我行一‧「戲」說從頭 【音樂】參、音樂的禮讚一‧搖籃曲 | FE9: 3 | FF9: 一、美麗的星空 活動二 觀測星空 活動三 星星位置的改變 | FG9: 4 | FH9: 壹、健康防護站一.消費停看聽 | FI9: 3 | FJ9: 一、快樂做自己 1.角色大探索 | FK9: 3
B10: 2 | AJ10: AH:1.【性別平等教育】 | AK10: 1 | EB10: 2 | FJ10: AH:1.【性別平等教育】 | FK10: 1
B11: 2 | AJ11: BI:交通安全教育 | AK11: 1 | EB11: 2 | FJ11: BI:交通安全教育 | FK11: 1
B12: 3 | C12: 第三週 2021/2/28~2021/3/6 | F12: SA:口腔檢查P(3_1) 一、生活高手 | G12: 1 | J12: SC:數與量 二.分數的計算 | K12: 1 | L12: SD:*SD:三、簡報動起來：投影片切換 | M12: 1 | N12: SE:Unit 1 What Day Is Today? | O12: 1 | T12: 機智的故事 三、智救養馬人 | U12: 4 | V12: 一、快樂的囡仔時 1.歇睏日 | W12: 1 | X12: Unit 1 What Day Is Today? | Y12: 1 | Z12: 數與量 二.分數的計算 | AA12: 3 | AB12: 一、唐山來的拓荒客 2.清代的社會與文化 | AC12: 2 | AD12: 【視覺】壹、藝術就在你身邊一‧圖紋與生活 【表演】貳、表演任我行一．「戲」說從頭 【音樂】參、音樂的禮讚一‧搖籃曲 | AE12: 2 | AF12: 一、美麗的星空 活動三 星星位置的改變 | AG12: 3 | AH12: 壹、健康防護站二.寶貝奶奶的健康 | AI12: 2 | AJ12: 一、快樂做自己 2.調整與嘗試 | AK12: 2 | AL12: 110年2月28日(日)和平紀念日 110年3月1日(一)調整和平紀念日放假一天 防災教育(下學期第3週) | AM12: =SUM(E12:E14)+SUM(G12:Q12)+SUMIF(F12:F14,"*P",G12:G14)+SUMIF(H12:H14,"*P",I12:I14)+SUMIF(J12:J14,"*P",K12:K14)+SUMIF(L12:L14,"*P",M12:M14)+SUMIF(N12:N14,"*P",O12:O14)+SUMIF(P12:P14,"*P",Q12:Q14) -> 5 | AN12: =SUM(F13:Q14)+SUM(T13:AK14)-SUMIF(F13:F14,"*P",G13:G14)-SUMIF(H13:H14,"*P",I13:I14)-SUMIF(J13:J14,"*P",K13:K14)-SUMIF(L13:L14,"*P",M13:M14)-SUMIF(N13:N14,"*P",O13:O14)-SUMIF(P13:P14,"*P",Q13:Q14)-SUMIF(R13:R14,"*P",S13:S14)-SUMIF(T13:T14,"*P",U13:U14)-SUMIF(V13:V14,"*P",W13:W14)-SUMIF(X13:X14,"*P",Y13:Y14)-SUMIF(Z13:Z14,"*P",AA13:AA14)-SUMIF(AB13:AB14,"*P",AC13:AC14)-SUMIF(AD13:AD14,"*P",AE13:AE14)-SUMIF(AF13:AF14,"*P",AG13:AG14)-SUMIF(AH13:AH14,"*P",AI13:AI14)-SUMIF(AJ13:AJ14,"*P",AK13:AK14)-AR12 -> 2 | AO12: =SUM(U12:AK12) -> 20 | AP12: =SUM(S12:S14) -> 0 | AQ12: =AM12+AO12-AS12 -> 25 | AR12: 0 | AT12: =32-AQ12-AS12 -> 7 | AU12: =IF(OR(AT12=0,AS12=0),"OK",IF(AS12<>AT12,"尚未完成減節數",IF(AS12=AT12,"修正正確/請刪除內定減的節數","OK"))) -> OK | AV12: 7 | EB12: 3 | EC12: 第三週 2021/2/28~2021/3/6 | EF12: SA:校本課程d | EG12: 1 | EJ12: SC:學習扶助(數學) | EK12: 1 | EL12: SD:資訊教育 | EM12: 1 | EN12: SE:彈性英語 | EO12: 1 | ET12: 機智的故事 三、智救養馬人 | EU12: 4 | EV12: 一、快樂的囡仔時 1.歇睏日 | EW12: 1 | EX12: Unit 1 What Day Is Today? | EY12: 1 | EZ12: 數與量 二.分數的計算 | FA12: 3 | FB12: 一、唐山來的拓荒客 2.清代的社會與文化 | FC12: 2 | FD12: 【視覺】壹、藝術就在你身邊一‧圖紋與生活 【表演】貳、表演任我行一．「戲」說從頭 【音樂】參、音樂的禮讚一‧搖籃曲 | FE12: 2 | FF12: 一、美麗的星空 活動三 星星位置的改變 | FG12: 3 | FH12: 壹、健康防護站二.寶貝奶奶的健康 | FI12: 2 | FJ12: 一、快樂做自己 2.調整與嘗試 | FK12: 2
B13: 3 | D13: CG:口腔檢查P | E13: 1 | AJ13: AH:1.【性別平等教育】 | AK13: 1 | EB13: 3 | ED13: CG:口腔檢查P | EE13: 1 | FJ13: AH:1.【性別平等教育】 | FK13: 1
B14: 3 | AJ14: BI:交通安全教育 | AK14: 1 | EB14: 3 | FJ14: BI:交通安全教育 | FK14: 1
B15: 4 | C15: 第四週 2021/3/7~2021/3/13 | F15: 作文教學P(4_1) 身高體重視力檢查P(4_1) | J15: SC:數與量 三.容積 | K15: 1 | L15: SD:*SD:三、簡報動起來：版面配置 | M15: 1 | N15: SE:Unit 1 What Day Is Today? | O15: 1 | T15: 機智的故事 統整活動一 | U15: 5 | V15: 一、快樂的囡仔時 2.鬥陣來tshit4 tho5 | W15: 1 | X15: Unit 1 What Day Is Today? | Y15: 1 | Z15: 數與量 三.容積 | AA15: 4 | AB15: 二、臺灣現代化的起步 1.清末的開港通商 | AC15: 3 | AD15: 【視覺】壹、藝術就在你身邊一‧圖紋與生活 【表演】貳、表演任我行一‧「戲」說從頭 【音樂】參、音樂的禮讚一‧搖籃曲 | AE15: 3 | AF15: 二、燃燒和生鏽 活動一 氧氣 | AG15: 4 | AH15: 壹、健康防護站三.無毒家園 | AI15: 3 | AJ15: 一、快樂做自己 3.盡情的展現 | AK15: 3 | AM15: =SUM(E15:E17)+SUM(G15:Q15)+SUMIF(F15:F17,"*P",G15:G17)+SUMIF(H15:H17,"*P",I15:I17)+SUMIF(J15:J17,"*P",K15:K17)+SUMIF(L15:L17,"*P",M15:M17)+SUMIF(N15:N17,"*P",O15:O17)+SUMIF(P15:P17,"*P",Q15:Q17) -> 5 | AN15: =SUM(F16:Q17)+SUM(T16:AK17)-SUMIF(F16:F17,"*P",G16:G17)-SUMIF(H16:H17,"*P",I16:I17)-SUMIF(J16:J17,"*P",K16:K17)-SUMIF(L16:L17,"*P",M16:M17)-SUMIF(N16:N17,"*P",O16:O17)-SUMIF(P16:P17,"*P",Q16:Q17)-SUMIF(R16:R17,"*P",S16:S17)-SUMIF(T16:T17,"*P",U16:U17)-SUMIF(V16:V17,"*P",W16:W17)-SUMIF(X16:X17,"*P",Y16:Y17)-SUMIF(Z16:Z17,"*P",AA16:AA17)-SUMIF(AB16:AB17,"*P",AC16:AC17)-SUMIF(AD16:AD17,"*P",AE16:AE17)-SUMIF(AF16:AF17,"*P",AG16:AG17)-SUMIF(AH16:AH17,"*P",AI16:AI17)-SUMIF(AJ16:AJ17,"*P",AK16:AK17)-AR15 -> 3 | AO15: =SUM(U15:AK15) -> 27 | AP15: =SUM(S15:S17) -> 0 | AQ15: =AM15+AO15-AS15 -> 32 | AR15: 0 | AS15: 0 | AT15: =32-AQ15-AS15 -> 0 | AU15: =IF(OR(AT15=0,AS15=0),"OK",IF(AS15<>AT15,"尚未完成減節數",IF(AS15=AT15,"修正正確/請刪除內定減的節數","OK"))) -> OK | AV15: 0 | EB15: 4 | EC15: 第四週 2021/3/7~2021/3/13 | EJ15: SC:學習扶助(數學) | EK15: 1 | EL15: SD:資訊教育 | EM15: 1 | EN15: SE:彈性英語 | EO15: 1 | ET15: 機智的故事 統整活動一 | EU15: 5 | EV15: 一、快樂的囡仔時 2.鬥陣來tshit4 tho5 | EW15: 1 | EX15: Unit 1 What Day Is Today? | EY15: 1 | EZ15: 數與量 三.容積 | FA15: 4 | FB15: 二、臺灣現代化的起步 1.清末的開港通商 | FC15: 3 | FD15: 【視覺】壹、藝術就在你身邊一‧圖紋與生活 【表演】貳、表演任我行一‧「戲」說從頭 【音樂】參、音樂的禮讚一‧搖籃曲 | FE15: 3 | FF15: 二、燃燒和生鏽 活動一 氧氣 | FG15: 4 | FH15: 壹、健康防護站三.無毒家園 | FI15: 3 | FJ15: 一、快樂做自己 3.盡情的展現 | FK15: 3
B16: 4 | D16: AN:作文教學P | E16: 1 | T16: AN:作文教學 | U16: 1 | AJ16: AH:1.【性別平等教育】 | AK16: 1 | EB16: 4 | ED16: AN:作文教學P | EE16: 1 | ET16: AN:作文教學 | EU16: 1 | FJ16: AH:1.【性別平等教育】 | FK16: 1
B17: 4 | D17: CH:身高體重視力檢查P | E17: 1 | AJ17: BI:交通安全教育 | AK17: 1 | EB17: 4 | ED17: CH:身高體重視力檢查P | EE17: 1 | FJ17: BI:交通安全教育 | FK17: 1
B18: 5 | C18: 第五週 2021/3/14~2021/3/20 | F18: SA:一、生活高手 | G18: 1 | H18: SB:藝術天地 四、故宮挖「寶」趣 | I18: 1 | J18: SC:數與量 三.容積 | K18: 1 | L18: SD:*SD:四、簡報分鏡圖：物件動畫 | M18: 1 | N18: SE:Unit2HowDoYouGotoRedHouse? | O18: 1 | T18: 藝術天地 四、故宮挖「寶」趣 | U18: 5 | V18: 一、快樂的囡仔時 2.鬥陣來tshit4 tho5 | W18: 1 | X18: Unit 2 How Do You Go to Red House? | Y18: 1 | Z18: 數與量 三.容積 | AA18: 4 | AB18: 二、臺灣現代化的起步 1.清末的開港通商 | AC18: 3 | AD18: 【視覺】壹、藝術就在你身邊一‧圖紋與生活 【表演】貳、表演任我行一‧「戲」說從頭 【音樂】參、音樂的禮讚一‧搖籃曲 | AE18: 3 | AF18: 二、燃燒和生鏽 活動二 二氧化碳 | AG18: 4 | AH18: 壹、健康防護站三.無毒家園 | AI18: 3 | AJ18: 二、與壓力共處 1.壓力在哪裡 | AK18: 3 | AM18: =SUM(E18:E20)+SUM(G18:Q18)+SUMIF(F18:F20,"*P",G18:G20)+SUMIF(H18:H20,"*P",I18:I20)+SUMIF(J18:J20,"*P",K18:K20)+SUMIF(L18:L20,"*P",M18:M20)+SUMIF(N18:N20,"*P",O18:O20)+SUMIF(P18:P20,"*P",Q18:Q20) -> 5 | AN18: =SUM(F19:Q20)+SUM(T19:AK20)-SUMIF(F19:F20,"*P",G19:G20)-SUMIF(H19:H20,"*P",I19:I20)-SUMIF(J19:J20,"*P",K19:K20)-SUMIF(L19:L20,"*P",M19:M20)-SUMIF(N19:N20,"*P",O19:O20)-SUMIF(P19:P20,"*P",Q19:Q20)-SUMIF(R19:R20,"*P",S19:S20)-SUMIF(T19:T20,"*P",U19:U20)-SUMIF(V19:V20,"*P",W19:W20)-SUMIF(X19:X20,"*P",Y19:Y20)-SUMIF(Z19:Z20,"*P",AA19:AA20)-SUMIF(AB19:AB20,"*P",AC19:AC20)-SUMIF(AD19:AD20,"*P",AE19:AE20)-SUMIF(AF19:AF20,"*P",AG19:AG20)-SUMIF(AH19:AH20,"*P",AI19:AI20)-SUMIF(AJ19:AJ20,"*P",AK19:AK20)-AR18 -> 1 | AO18: =SUM(U18:AK18) -> 27 | AP18: =SUM(S18:S20) -> 0 | AQ18: =AM18+AO18-AS18 -> 32 | AR18: 0 | AS18: 0 | AT18: =32-AQ18-AS18 -> 0 | AU18: =IF(OR(AT18=0,AS18=0),"OK",IF(AS18<>AT18,"尚未完成減節數",IF(AS18=AT18,"修正正確/請刪除內定減的節數","OK"))) -> OK | AV18: 0 | EB18: 5 | EC18: 第五週 2021/3/14~2021/3/20 | EF18: SA:校本課程d | EG18: 1 | EH18: SB:學習扶助(國語) | EI18: 1 | EJ18: SC:學習扶助(數學) | EK18: 1 | EL18: SD:資訊教育 | EM18: 1 | EN18: SE:彈性英語 | EO18: 1 | ET18: 藝術天地 四、故宮挖「寶」趣 | EU18: 5 | EV18: 一、快樂的囡仔時 2.鬥陣來tshit4 tho5 | EW18: 1 | EX18: Unit 2 How Do You Go to Red House? | EY18: 1 | EZ18: 數與量 三.容積 | FA18: 4 | FB18: 二、臺灣現代化的起步 1.清末的開港通商 | FC18: 3 | FD18: 【視覺】壹、藝術就在你身邊一‧圖紋與生活 【表演】貳、表演任我行一‧「戲」說從頭 【音樂】參、音樂的禮讚一‧搖籃曲 | FE18: 3 | FF18: 二、燃燒和生鏽 活動二 二氧化碳 | FG18: 4 | FH18: 壹、健康防護站三.無毒家園 | FI18: 3 | FJ18: 二、與壓力共處 1.壓力在哪裡 | FK18: 3
B19: 5 | AF19: BH:低碳教育 | AG19: 1 | EB19: 5 | FF19: BH:低碳教育 | FG19: 1
B20: 5 | EB20: 5
B21: 6 | C21: 第六週 2021/3/21~2021/3/27 | F21: SA:一、生活高手 | G21: 1 | H21: SB:藝術天地 五、恆久的美 | I21: 1 | J21: SC:數與量 四.小數的乘法 | K21: 1 | L21: SD:*SD:五、簡報大導演：文字藝術師 | M21: 1 | N21: SE:Unit2HowDoYouGotoRedHouse? | O21: 1 | T21: 藝術天地 五、恆久的美 | U21: 5 | V21: 一、快樂的囡仔時 2.鬥陣來tshit4 tho5 | W21: 1 | X21: Unit 2 How Do You Go to Red House? | Y21: 1 | Z21: 數與量 四.小數的乘法 | AA21: 4 | AB21: 二、臺灣現代化的起步 2.清末的建設 | AC21: 3 | AD21: 【視覺】壹、藝術就在你身邊一‧圖紋與生活 【表演】貳、表演任我行二‧戲劇造形百寶箱 【音樂】參、音樂的禮讚一‧搖籃曲 | AE21: 3 | AF21: 二、燃燒和生鏽 活動二 二氧化碳 | AG21: 4 | AH21: 貳、青春組曲四.飛躍的青春 | AI21: 3 | AJ21: 二、與壓力共處 1.壓力在哪裡 | AK21: 3 | AL21: 110年3月26日(五)兒童節慶祝活動 | AM21: =SUM(E21:E23)+SUM(G21:Q21)+SUMIF(F21:F23,"*P",G21:G23)+SUMIF(H21:H23,"*P",I21:I23)+SUMIF(J21:J23,"*P",K21:K23)+SUMIF(L21:L23,"*P",M21:M23)+SUMIF(N21:N23,"*P",O21:O23)+SUMIF(P21:P23,"*P",Q21:Q23) -> 5 | AN21: =SUM(F22:Q23)+SUM(T22:AK23)-SUMIF(F22:F23,"*P",G22:G23)-SUMIF(H22:H23,"*P",I22:I23)-SUMIF(J22:J23,"*P",K22:K23)-SUMIF(L22:L23,"*P",M22:M23)-SUMIF(N22:N23,"*P",O22:O23)-SUMIF(P22:P23,"*P",Q22:Q23)-SUMIF(R22:R23,"*P",S22:S23)-SUMIF(T22:T23,"*P",U22:U23)-SUMIF(V22:V23,"*P",W22:W23)-SUMIF(X22:X23,"*P",Y22:Y23)-SUMIF(Z22:Z23,"*P",AA22:AA23)-SUMIF(AB22:AB23,"*P",AC22:AC23)-SUMIF(AD22:AD23,"*P",AE22:AE23)-SUMIF(AF22:AF23,"*P",AG22:AG23)-SUMIF(AH22:AH23,"*P",AI22:AI23)-SUMIF(AJ22:AJ23,"*P",AK22:AK23)-AR21 -> 2 | AO21: =SUM(U21:AK21) -> 27 | AP21: =SUM(S21:S23) -> 0 | AQ21: =AM21+AO21-AS21 -> 32 | AR21: 0 | AS21: 0 | AT21: =32-AQ21-AS21 -> 0 | AU21: =IF(OR(AT21=0,AS21=0),"OK",IF(AS21<>AT21,"尚未完成減節數",IF(AS21=AT21,"修正正確/請刪除內定減的節數","OK"))) -> OK | AV21: 0 | EB21: 6 | EC21: 第六週 2021/3/21~2021/3/27 | EF21: SA:校本課程d | EG21: 1 | EH21: SB:學習扶助(國語) | EI21: 1 | EJ21: SC:學習扶助(數學) | EK21: 1 | EL21: SD:資訊教育 | EM21: 1 | EN21: SE:彈性英語 | EO21: 1 | ET21: 藝術天地 五、恆久的美 | EU21: 5 | EV21: 一、快樂的囡仔時 2.鬥陣來tshit4 tho5 | EW21: 1 | EX21: Unit 2 How Do You Go to Red House? | EY21: 1 | EZ21: 數與量 四.小數的乘法 | FA21: 4 | FB21: 二、臺灣現代化的起步 2.清末的建設 | FC21: 3 | FD21: 【視覺】壹、藝術就在你身邊一‧圖紋與生活 【表演】貳、表演任我行二‧戲劇造形百寶箱 【音樂】參、音樂的禮讚一‧搖籃曲 | FE21: 3 | FF21: 二、燃燒和生鏽 活動二 二氧化碳 | FG21: 4 | FH21: 貳、青春組曲四.飛躍的青春 | FI21: 3 | FJ21: 二、與壓力共處 1.壓力在哪裡 | FK21: 3
B22: 6 | AJ22: AC:家政教育 | AK22: 2 | EB22: 6 | FJ22: AC:家政教育 | FK22: 2
B23: 6 | EB23: 6
B24: 7 | C24: 第七週 2021/3/28~2021/4/3 | F24: 兒童節慶祝活動P(7_2) | J24: SC:數與量 四.小數的乘法 | K24: 1 | L24: SD:*SD:五、簡報大導演：視訊影片 | M24: 1 | N24: SE:Unit2HowDoYouGotoRedHouse? | O24: 1 | T24: 藝術天地 六、戲迷 | U24: 4 | V24: 一、快樂的囡仔時 2.鬥陣來tshit4 tho5 | W24: 1 | X24: Unit 2 How Do You Go to Red House? | Y24: 1 | Z24: 數與量 四.小數的乘法 | AA24: 3 | AB24: 二、臺灣現代化的起步 2.清末的建設 | AC24: 2 | AD24: 【視覺】壹、藝術就在你身邊二‧繪畫與生活 【表演】貳、表演任我行二‧戲劇造形百寶箱 【音樂】參、音樂的禮讚一‧搖籃曲 | AE24: 2 | AF24: 二、燃燒和生鏽 活動二 二氧化碳 活動三 鐵生鏽 | AG24: 3 | AH24: 貳、青春組曲五.家和萬事興 | AI24: 2 | AJ24: 二、與壓力共處 2.正向的思考 | AK24: 2 | AL24: 110年4月2日(五)調整兒童節 放假1天 | AM24: =SUM(E24:E26)+SUM(G24:Q24)+SUMIF(F24:F26,"*P",G24:G26)+SUMIF(H24:H26,"*P",I24:I26)+SUMIF(J24:J26,"*P",K24:K26)+SUMIF(L24:L26,"*P",M24:M26)+SUMIF(N24:N26,"*P",O24:O26)+SUMIF(P24:P26,"*P",Q24:Q26) -> 5 | AN24: =SUM(F25:Q26)+SUM(T25:AK26)-SUMIF(F25:F26,"*P",G25:G26)-SUMIF(H25:H26,"*P",I25:I26)-SUMIF(J25:J26,"*P",K25:K26)-SUMIF(L25:L26,"*P",M25:M26)-SUMIF(N25:N26,"*P",O25:O26)-SUMIF(P25:P26,"*P",Q25:Q26)-SUMIF(R25:R26,"*P",S25:S26)-SUMIF(T25:T26,"*P",U25:U26)-SUMIF(V25:V26,"*P",W25:W26)-SUMIF(X25:X26,"*P",Y25:Y26)-SUMIF(Z25:Z26,"*P",AA25:AA26)-SUMIF(AB25:AB26,"*P",AC25:AC26)-SUMIF(AD25:AD26,"*P",AE25:AE26)-SUMIF(AF25:AF26,"*P",AG25:AG26)-SUMIF(AH25:AH26,"*P",AI25:AI26)-SUMIF(AJ25:AJ26,"*P",AK25:AK26)-AR24 -> 4 | AO24: =SUM(U24:AK24) -> 20 | AP24: =SUM(S24:S26) -> 1 | AQ24: =AM24+AO24-AS24 -> 25 | AR24: 0 | AT24: =32-AQ24-AS24 -> 7 | AU24: =IF(OR(AT24=0,AS24=0),"OK",IF(AS24<>AT24,"尚未完成減節數",IF(AS24=AT24,"修正正確/請刪除內定減的節數","OK"))) -> OK | AV24: 7 | EB24: 7 | EC24: 第七週 2021/3/28~2021/4/3 | EJ24: SC:學習扶助(數學) | EK24: 1 | EL24: SD:資訊教育 | EM24: 1 | EN24: SE:彈性英語 | EO24: 1 | ET24: 藝術天地 六、戲迷 | EU24: 4 | EV24: 一、快樂的囡仔時 2.鬥陣來tshit4 tho5 | EW24: 1 | EX24: Unit 2 How Do You Go to Red House? | EY24: 1 | EZ24: 數與量 四.小數的乘法 | FA24: 3 | FB24: 二、臺灣現代化的起步 2.清末的建設 | FC24: 2 | FD24: 【視覺】壹、藝術就在你身邊二‧繪畫與生活 【表演】貳、表演任我行二‧戲劇造形百寶箱 【音樂】參、音樂的禮讚一‧搖籃曲 | FE24: 2 | FF24: 二、燃燒和生鏽 活動二 二氧化碳 活動三 鐵生鏽 | FG24: 3 | FH24: 貳、青春組曲五.家和萬事興 | FI24: 2 | FJ24: 二、與壓力共處 2.正向的思考 | FK24: 2
B25: 7 | D25: CM:兒童節慶祝活動P | E25: 2 | R25: AD:7.【家庭教育】 | S25: 1 | AF25: AI:3.【環境教育】 | AG25: 1 | AH25: BG:4.【海洋教育】 | AI25: 1 | AJ25: AC:家政教育 | AK25: 2 | EB25: 7 | ED25: CM:兒童節慶祝活動P | EE25: 2 | ER25: AD:7.【家庭教育】 | ES25: 1 | FF25: AI:3.【環境教育】 | FG25: 1 | FH25: BG:4.【海洋教育】 | FI25: 1 | FJ25: AC:家政教育 | FK25: 2
B26: 7 | EB26: 7
B27: 8 | C27: 第八週 2021/4/4~2021/4/10 | F27: 作文教學P(8_1) 兒童節慶祝活動P(8_1) | J27: SC:幾何 五.線對稱圖形 | K27: 1 | L27: SD:*SD:五、簡報大導演：時間控管 | M27: 1 | N27: SE:*Review 1& 期中成績考查 | O27: 1 | T27: 藝術天地 七、舞動美麗人生 | U27: 4 | V27: 二、咱的故鄉 3.迎媽祖 | W27: 1 | X27: *Review 1& 期中成績考查 | Y27: 1 | Z27: 幾何 五.線對稱圖形 | AA27: 3 | AB27: 三、生產與消費 1.生產活動 | AC27: 2 | AD27: 【視覺】壹、藝術就在你身邊二‧繪畫與生活 【表演】貳、表演任我行二‧戲劇造形百寶箱 【音樂】參、音樂的禮讚二‧傳唱藝術瑰寶 | AE27: 2 | AF27: 二、燃燒和生鏽 活動三 鐵生鏽 | AG27: 3 | AH27: 參、樂活跑碰跳六.班際大隊接力賽 | AI27: 2 | AJ27: 二、與壓力共處 2.正向的思考 | AK27: 2 | AL27: 110年4月4日(日)兒童節、清明節 110年4月5日(一)調整清明節放假一天 游泳教學(4/6~4/30) | AM27: =SUM(E27:E29)+SUM(G27:Q27)+SUMIF(F27:F29,"*P",G27:G29)+SUMIF(H27:H29,"*P",I27:I29)+SUMIF(J27:J29,"*P",K27:K29)+SUMIF(L27:L29,"*P",M27:M29)+SUMIF(N27:N29,"*P",O27:O29)+SUMIF(P27:P29,"*P",Q27:Q29) -> 5 | AN27: =SUM(F28:Q29)+SUM(T28:AK29)-SUMIF(F28:F29,"*P",G28:G29)-SUMIF(H28:H29,"*P",I28:I29)-SUMIF(J28:J29,"*P",K28:K29)-SUMIF(L28:L29,"*P",M28:M29)-SUMIF(N28:N29,"*P",O28:O29)-SUMIF(P28:P29,"*P",Q28:Q29)-SUMIF(R28:R29,"*P",S28:S29)-SUMIF(T28:T29,"*P",U28:U29)-SUMIF(V28:V29,"*P",W28:W29)-SUMIF(X28:X29,"*P",Y28:Y29)-SUMIF(Z28:Z29,"*P",AA28:AA29)-SUMIF(AB28:AB29,"*P",AC28:AC29)-SUMIF(AD28:AD29,"*P",AE28:AE29)-SUMIF(AF28:AF29,"*P",AG28:AG29)-SUMIF(AH28:AH29,"*P",AI28:AI29)-SUMIF(AJ28:AJ29,"*P",AK28:AK29)-AR27 -> 6 | AO27: =SUM(U27:AK27) -> 20 | AP27: =SUM(S27:S29) -> 1 | AQ27: =AM27+AO27-AS27 -> 25 | AR27: 0 | AT27: =32-AQ27-AS27 -> 7 | AU27: =IF(OR(AT27=0,AS27=0),"OK",IF(AS27<>AT27,"尚未完成減節數",IF(AS27=AT27,"修正正確/請刪除內定減的節數","OK"))) -> OK | AV27: 7 | EB27: 8 | EC27: 第八週 2021/4/4~2021/4/10 | EJ27: SC:學習扶助(數學) | EK27: 1 | EL27: SD:資訊教育 | EM27: 1 | EN27: SE:彈性英語 | EO27: 1 | ET27: 藝術天地 七、舞動美麗人生 | EU27: 4 | EV27: 二、咱的故鄉 3.迎媽祖 | EW27: 1 | EX27: *Review 1& 期中成績考查 | EY27: 1 | EZ27: 幾何 五.線對稱圖形 | FA27: 3 | FB27: 三、生產與消費 1.生產活動 | FC27: 2 | FD27: 【視覺】壹、藝術就在你身邊二‧繪畫與生活 【表演】貳、表演任我行二‧戲劇造形百寶箱 【音樂】參、音樂的禮讚二‧傳唱藝術瑰寶 | FE27: 2 | FF27: 二、燃燒和生鏽 活動三 鐵生鏽 | FG27: 3 | FH27: 參、樂活跑碰跳六.班際大隊接力賽 | FI27: 2 | FJ27: 二、與壓力共處 2.正向的思考 | FK27: 2
B28: 8 | D28: AN:作文教學P | E28: 1 | R28: AD:7.【家庭教育】 | S28: 1 | T28: AN:作文教學 | U28: 1 | AF28: AI:3.【環境教育】 | AG28: 1 | AH28: CR:游泳教學 | AI28: 2 | AJ28: AC:家政教育 | AK28: 2 | EB28: 8 | ED28: AN:作文教學P | EE28: 1 | ER28: AD:7.【家庭教育】 | ES28: 1 | ET28: AN:作文教學 | EU28: 1 | FF28: AI:3.【環境教育】 | FG28: 1 | FH28: CR:游泳教學 | FI28: 2 | FJ28: AC:家政教育 | FK28: 2
B29: 8 | D29: CM:兒童節慶祝活動P | E29: 1 | EB29: 8 | ED29: CM:兒童節慶祝活動P | EE29: 1
B30: 9 | C30: 第九週 2021/4/11~2021/4/17 | F30: SA:二、過關斬將 | G30: 1 | H30: SB:藝術天地 統整活動二 | I30: 1 | J30: SC:數與量 六.整數、小數除以整數 | K30: 1 | L30: SD:*SD:六、主題簡報製作 | M30: 1 | N30: SE:*Culture & Festivals Easter | O30: 1 | T30: 藝術天地 統整活動二 | U30: 5 | V30: 二、咱的故鄉 3.迎媽祖 | W30: 1 | X30: *Culture & Festivals Easter | Y30: 1 | Z30: 數與量 六.整數、小數除以整數 | AA30: 4 | AB30: 三、生產與消費 2.消費行為 | AC30: 3 | AD30: 【視覺】壹、藝術就在你身邊二‧繪畫與生活 【表演】貳、表演任我行二‧戲劇造形百寶箱 【音樂】參、音樂的禮讚二‧傳唱藝術瑰寶 | AE30: 3 | AF30: 二、燃燒和生鏽 活動三 鐵生鏽 | AG30: 4 | AH30: 參、樂活跑碰跳七.急行跳遠 | AI30: 3 | AJ30: 三、戶外活動樂趣多 1.活動萬花筒 | AK30: 3 | AL30: 游泳教學(4/6~4/30) | AM30: =SUM(E30:E32)+SUM(G30:Q30)+SUMIF(F30:F32,"*P",G30:G32)+SUMIF(H30:H32,"*P",I30:I32)+SUMIF(J30:J32,"*P",K30:K32)+SUMIF(L30:L32,"*P",M30:M32)+SUMIF(N30:N32,"*P",O30:O32)+SUMIF(P30:P32,"*P",Q30:Q32) -> 5 | AN30: =SUM(F31:Q32)+SUM(T31:AK32)-SUMIF(F31:F32,"*P",G31:G32)-SUMIF(H31:H32,"*P",I31:I32)-SUMIF(J31:J32,"*P",K31:K32)-SUMIF(L31:L32,"*P",M31:M32)-SUMIF(N31:N32,"*P",O31:O32)-SUMIF(P31:P32,"*P",Q31:Q32)-SUMIF(R31:R32,"*P",S31:S32)-SUMIF(T31:T32,"*P",U31:U32)-SUMIF(V31:V32,"*P",W31:W32)-SUMIF(X31:X32,"*P",Y31:Y32)-SUMIF(Z31:Z32,"*P",AA31:AA32)-SUMIF(AB31:AB32,"*P",AC31:AC32)-SUMIF(AD31:AD32,"*P",AE31:AE32)-SUMIF(AF31:AF32,"*P",AG31:AG32)-SUMIF(AH31:AH32,"*P",AI31:AI32)-SUMIF(AJ31:AJ32,"*P",AK31:AK32)-AR30 -> 2 | AO30: =SUM(U30:AK30) -> 27 | AP30: =SUM(S30:S32) -> 1 | AQ30: =AM30+AO30-AS30 -> 32 | AR30: 0 | AS30: 0 | AT30: =32-AQ30-AS30 -> 0 | AU30: =IF(OR(AT30=0,AS30=0),"OK",IF(AS30<>AT30,"尚未完成減節數",IF(AS30=AT30,"修正正確/請刪除內定減的節數","OK"))) -> OK | AV30: 0 | EB30: 9 | EC30: 第九週 2021/4/11~2021/4/17 | EF30: SA:校本課程d | EG30: 1 | EH30: SB:學習扶助(國語) | EI30: 1 | EJ30: SC:學習扶助(數學) | EK30: 1 | EL30: SD:資訊教育 | EM30: 1 | EN30: SE:彈性英語 | EO30: 1 | ET30: 藝術天地 統整活動二 | EU30: 5 | EV30: 二、咱的故鄉 3.迎媽祖 | EW30: 1 | EX30: *Culture & Festivals Easter | EY30: 1 | EZ30: 數與量 六.整數、小數除以整數 | FA30: 4 | FB30: 三、生產與消費 2.消費行為 | FC30: 3 | FD30: 【視覺】壹、藝術就在你身邊二‧繪畫與生活 【表演】貳、表演任我行二‧戲劇造形百寶箱 【音樂】參、音樂的禮讚二‧傳唱藝術瑰寶 | FE30: 3 | FF30: 二、燃燒和生鏽 活動三 鐵生鏽 | FG30: 4 | FH30: 參、樂活跑碰跳七.急行跳遠 | FI30: 3 | FJ30: 三、戶外活動樂趣多 1.活動萬花筒 | FK30: 3
B31: 9 | R31: AD:7.【家庭教育】 | S31: 1 | AH31: CR:游泳教學 | AI31: 2 | EB31: 9 | ER31: AD:7.【家庭教育】 | ES31: 1 | FH31: CR:游泳教學 | FI31: 2
B32: 9 | EB32: 9
B33: 10 | C33: 第十週 2021/4/18~2021/4/24 | F33: SA:二、過關斬將 | G33: 1 | H33: SB:閱讀階梯一、要挑最大的 | I33: 1 | J33: SC:數與量 六.整數、小數除以整數 | K33: 1 | L33: SD:*SD:七、智慧財產小達人 【資訊倫理教育】 | M33: 1 | N33: SE:Unit 3 What’s Wrong? | O33: 1 | T33: 閱讀階梯一、要挑最大的 | U33: 5 | V33: 二、咱的故鄉 3.迎媽祖 | W33: 1 | X33: Unit 3 What’s Wrong? | Y33: 1 | Z33: 數與量 六.整數、小數除以整數 | AA33: 4 | AB33: 三、生產與消費 2.消費行為 | AC33: 3 | AD33: 【視覺】壹、藝術就在你身邊二‧繪畫與生活 【表演】貳、表演任我行二‧戲劇造形百寶箱 【音樂】參、音樂的禮讚二‧傳唱藝術瑰寶 | AE33: 3 | AF33: 三、動物世界面面觀 活動一 動物如何求生存 | AG33: 4 | AH33: 參、樂活跑碰跳八.旋轉之美 | AI33: 3 | AJ33: 三、戶外活動樂趣多 2.旅遊活動計畫 | AK33: 3 | AL33: 期中評量(4/19~23) 游泳教學(4/6~4/30) | AM33: =SUM(E33:E35)+SUM(G33:Q33)+SUMIF(F33:F35,"*P",G33:G35)+SUMIF(H33:H35,"*P",I33:I35)+SUMIF(J33:J35,"*P",K33:K35)+SUMIF(L33:L35,"*P",M33:M35)+SUMIF(N33:N35,"*P",O33:O35)+SUMIF(P33:P35,"*P",Q33:Q35) -> 5 | AN33: =SUM(F34:Q35)+SUM(T34:AK35)-SUMIF(F34:F35,"*P",G34:G35)-SUMIF(H34:H35,"*P",I34:I35)-SUMIF(J34:J35,"*P",K34:K35)-SUMIF(L34:L35,"*P",M34:M35)-SUMIF(N34:N35,"*P",O34:O35)-SUMIF(P34:P35,"*P",Q34:Q35)-SUMIF(R34:R35,"*P",S34:S35)-SUMIF(T34:T35,"*P",U34:U35)-SUMIF(V34:V35,"*P",W34:W35)-SUMIF(X34:X35,"*P",Y34:Y35)-SUMIF(Z34:Z35,"*P",AA34:AA35)-SUMIF(AB34:AB35,"*P",AC34:AC35)-SUMIF(AD34:AD35,"*P",AE34:AE35)-SUMIF(AF34:AF35,"*P",AG34:AG35)-SUMIF(AH34:AH35,"*P",AI34:AI35)-SUMIF(AJ34:AJ35,"*P",AK34:AK35)-AR33 -> 2 | AO33: =SUM(U33:AK33) -> 27 | AP33: =SUM(S33:S35) -> 0 | AQ33: =AM33+AO33-AS33 -> 32 | AR33: 0 | AS33: 0 | AT33: =32-AQ33-AS33 -> 0 | AU33: =IF(OR(AT33=0,AS33=0),"OK",IF(AS33<>AT33,"尚未完成減節數",IF(AS33=AT33,"修正正確/請刪除內定減的節數","OK"))) -> OK | AV33: 0 | EB33: 10 | EC33: 第十週 2021/4/18~2021/4/24 | EF33: SA:校本課程d | EG33: 1 | EH33: SB:學習扶助(國語) | EI33: 1 | EJ33: SC:學習扶助(數學) | EK33: 1 | EL33: SD:資訊教育 | EM33: 1 | EN33: SE:彈性英語 | EO33: 1 | ET33: 閱讀階梯一、要挑最大的 | EU33: 5 | EV33: 二、咱的故鄉 3.迎媽祖 | EW33: 1 | EX33: Unit 3 What’s Wrong? | EY33: 1 | EZ33: 數與量 六.整數、小數除以整數 | FA33: 4 | FB33: 三、生產與消費 2.消費行為 | FC33: 3 | FD33: 【視覺】壹、藝術就在你身邊二‧繪畫與生活 【表演】貳、表演任我行二‧戲劇造形百寶箱 【音樂】參、音樂的禮讚二‧傳唱藝術瑰寶 | FE33: 3 | FF33: 三、動物世界面面觀 活動一 動物如何求生存 | FG33: 4 | FH33: 參、樂活跑碰跳八.旋轉之美 | FI33: 3 | FJ33: 三、戶外活動樂趣多 2.旅遊活動計畫 | FK33: 3
B34: 10 | AH34: CR:游泳教學 | AI34: 2 | EB34: 10 | FH34: CR:游泳教學 | FI34: 2
B35: 10 | EB35: 10
B36: 11 | C36: 第十一週 2021/4/25~2021/5/1 | F36: SA:二、過關斬將 | G36: 1 | H36: SB:問題與答案 八、動物的尾巴 | I36: 1 | J36: SC:代數 七.列式與解題 | K36: 1 | L36: SD:*SD:八、知識王：問答遊戲規劃 | M36: 1 | N36: SE:Unit 3 What’s Wrong? | O36: 1 | T36: 問題與答案 八、動物的尾巴 | U36: 5 | V36: 二、咱的故鄉 4.「鹿仔港」的由來 | W36: 1 | X36: Unit 3 What’s Wrong? | Y36: 1 | Z36: 代數 七.列式與解題 | AA36: 4 | AB36: 四、投資與理財 1.理財面面觀 | AC36: 3 | AD36: 【視覺】壹、藝術就在你身邊二‧繪畫與生活 【表演】貳、表演任我行二‧戲劇造形百寶箱 【音樂】參、音樂的禮讚二‧傳唱藝術瑰寶 | AE36: 3 | AF36: 三、動物世界面面觀 活動一 動物如何求生存 | AG36: 4 | AH36: 參、樂活跑碰跳八.旋轉之美 | AI36: 3 | AJ36: 三、戶外活動樂趣多 3.戶外活動跨步走 | AK36: 3 | AL36: 110年4月30日(五)慶祝母親節活動 游泳教學(4/6~4/30) | AM36: =SUM(E36:E38)+SUM(G36:Q36)+SUMIF(F36:F38,"*P",G36:G38)+SUMIF(H36:H38,"*P",I36:I38)+SUMIF(J36:J38,"*P",K36:K38)+SUMIF(L36:L38,"*P",M36:M38)+SUMIF(N36:N38,"*P",O36:O38)+SUMIF(P36:P38,"*P",Q36:Q38) -> 5 | AN36: =SUM(F37:Q38)+SUM(T37:AK38)-SUMIF(F37:F38,"*P",G37:G38)-SUMIF(H37:H38,"*P",I37:I38)-SUMIF(J37:J38,"*P",K37:K38)-SUMIF(L37:L38,"*P",M37:M38)-SUMIF(N37:N38,"*P",O37:O38)-SUMIF(P37:P38,"*P",Q37:Q38)-SUMIF(R37:R38,"*P",S37:S38)-SUMIF(T37:T38,"*P",U37:U38)-SUMIF(V37:V38,"*P",W37:W38)-SUMIF(X37:X38,"*P",Y37:Y38)-SUMIF(Z37:Z38,"*P",AA37:AA38)-SUMIF(AB37:AB38,"*P",AC37:AC38)-SUMIF(AD37:AD38,"*P",AE37:AE38)-SUMIF(AF37:AF38,"*P",AG37:AG38)-SUMIF(AH37:AH38,"*P",AI37:AI38)-SUMIF(AJ37:AJ38,"*P",AK37:AK38)-AR36 -> 9 | AO36: =SUM(U36:AK36) -> 27 | AP36: =SUM(S36:S38) -> 0 | AQ36: =AM36+AO36-AS36 -> 32 | AR36: 0 | AS36: 0 | AT36: =32-AQ36-AS36 -> 0 | AU36: =IF(OR(AT36=0,AS36=0),"OK",IF(AS36<>AT36,"尚未完成減節數",IF(AS36=AT36,"修正正確/請刪除內定減的節數","OK"))) -> OK | AV36: 0 | EB36: 11 | EC36: 第十一週 2021/4/25~2021/5/1 | EF36: SA:校本課程d | EG36: 1 | EH36: SB:學習扶助(國語) | EI36: 1 | EJ36: SC:學習扶助(數學) | EK36: 1 | EL36: SD:資訊教育 | EM36: 1 | EN36: SE:彈性英語 | EO36: 1 | ET36: 問題與答案 八、動物的尾巴 | EU36: 5 | EV36: 二、咱的故鄉 4.「鹿仔港」的由來 | EW36: 1 | EX36: Unit 3 What’s Wrong? | EY36: 1 | EZ36: 代數 七.列式與解題 | FA36: 4 | FB36: 四、投資與理財 1.理財面面觀 | FC36: 3 | FD36: 【視覺】壹、藝術就在你身邊二‧繪畫與生活 【表演】貳、表演任我行二‧戲劇造形百寶箱 【音樂】參、音樂的禮讚二‧傳唱藝術瑰寶 | FE36: 3 | FF36: 三、動物世界面面觀 活動一 動物如何求生存 | FG36: 4 | FH36: 參、樂活跑碰跳八.旋轉之美 | FI36: 3 | FJ36: 三、戶外活動樂趣多 3.戶外活動跨步走 | FK36: 3
B37: 11 | T37: CD:18.【戶外教育】 | U37: 1 | Z37: CD:18.【戶外教育】 | AA37: 1 | AB37: CD:18.【戶外教育】 | AC37: 1 | AD37: CD:18.【戶外教育】 | AE37: 1 | AF37: CD:18.【戶外教育】 | AG37: 1 | AH37: CD:18.【戶外教育】 | AI37: 1 | AJ37: CD:18.【戶外教育】 | AK37: 1 | EB37: 11 | ET37: CD:18.【戶外教育】 | EU37: 1 | EZ37: CD:18.【戶外教育】 | FA37: 1 | FB37: CD:18.【戶外教育】 | FC37: 1 | FD37: CD:18.【戶外教育】 | FE37: 1 | FF37: CD:18.【戶外教育】 | FG37: 1 | FH37: CD:18.【戶外教育】 | FI37: 1 | FJ37: CD:18.【戶外教育】 | FK37: 1
B38: 11 | AH38: CR:游泳教學 | AI38: 2 | EB38: 11 | FH38: CR:游泳教學 | FI38: 2
B39: 12 | C39: 第十二週 2021/5/2~2021/5/8 | F39: 慶祝母親節活動P(12_2) | J39: SC:代數 七.列式與解題 | K39: 1 | L39: SD:*SD:八、知識王：SmartArt圖形 | M39: 1 | N39: SE:Unit 3 What’s Wrong? | O39: 1 | T39: 問題與答案 九、生命中的「大石頭」 | U39: 5 | V39: 二、咱的故鄉 4.「鹿仔港」的由來 | W39: 1 | X39: Unit 3 What’s Wrong? | Y39: 1 | Z39: 代數 七.列式與解題 | AA39: 4 | AB39: 四、投資與理財 1.理財面面觀 | AC39: 3 | AD39: 【視覺】壹、藝術就在你身邊二‧繪畫與生活 【表演】貳、表演任我行二‧戲劇造形百寶箱 【音樂】參、音樂的禮讚二．傳唱藝術瑰寶 | AE39: 3 | AF39: 三、動物世界面面觀 活動二 動物如何延續生命 | AG39: 4 | AH39: 參、樂活跑碰跳九.武術高手 | AI39: 3 | AJ39: 三、戶外活動樂趣多 3.戶外活動跨步走 | AK39: 3 | AL39: 110年5月7日(五)自治市長選舉 家庭教育110年5月5日 | AM39: =SUM(E39:E41)+SUM(G39:Q39)+SUMIF(F39:F41,"*P",G39:G41)+SUMIF(H39:H41,"*P",I39:I41)+SUMIF(J39:J41,"*P",K39:K41)+SUMIF(L39:L41,"*P",M39:M41)+SUMIF(N39:N41,"*P",O39:O41)+SUMIF(P39:P41,"*P",Q39:Q41) -> 5 | AN39: =SUM(F40:Q41)+SUM(T40:AK41)-SUMIF(F40:F41,"*P",G40:G41)-SUMIF(H40:H41,"*P",I40:I41)-SUMIF(J40:J41,"*P",K40:K41)-SUMIF(L40:L41,"*P",M40:M41)-SUMIF(N40:N41,"*P",O40:O41)-SUMIF(P40:P41,"*P",Q40:Q41)-SUMIF(R40:R41,"*P",S40:S41)-SUMIF(T40:T41,"*P",U40:U41)-SUMIF(V40:V41,"*P",W40:W41)-SUMIF(X40:X41,"*P",Y40:Y41)-SUMIF(Z40:Z41,"*P",AA40:AA41)-SUMIF(AB40:AB41,"*P",AC40:AC41)-SUMIF(AD40:AD41,"*P",AE40:AE41)-SUMIF(AF40:AF41,"*P",AG40:AG41)-SUMIF(AH40:AH41,"*P",AI40:AI41)-SUMIF(AJ40:AJ41,"*P",AK40:AK41)-AR39 -> 0 | AO39: =SUM(U39:AK39) -> 27 | AP39: =SUM(S39:S41) -> 0 | AQ39: =AM39+AO39-AS39 -> 32 | AR39: 0 | AS39: 0 | AT39: =32-AQ39-AS39 -> 0 | AU39: =IF(OR(AT39=0,AS39=0),"OK",IF(AS39<>AT39,"尚未完成減節數",IF(AS39=AT39,"修正正確/請刪除內定減的節數","OK"))) -> OK | AV39: 0 | EB39: 12 | EC39: 第十二週 2021/5/2~2021/5/8 | EJ39: SC:學習扶助(數學) | EK39: 1 | EL39: SD:資訊教育 | EM39: 1 | EN39: SE:彈性英語 | EO39: 1 | ET39: 問題與答案 九、生命中的「大石頭」 | EU39: 5 | EV39: 二、咱的故鄉 4.「鹿仔港」的由來 | EW39: 1 | EX39: Unit 3 What’s Wrong? | EY39: 1 | EZ39: 代數 七.列式與解題 | FA39: 4 | FB39: 四、投資與理財 1.理財面面觀 | FC39: 3 | FD39: 【視覺】壹、藝術就在你身邊二‧繪畫與生活 【表演】貳、表演任我行二‧戲劇造形百寶箱 【音樂】參、音樂的禮讚二．傳唱藝術瑰寶 | FE39: 3 | FF39: 三、動物世界面面觀 活動二 動物如何延續生命 | FG39: 4 | FH39: 參、樂活跑碰跳九.武術高手 | FI39: 3 | FJ39: 三、戶外活動樂趣多 3.戶外活動跨步走 | FK39: 3
B40: 12 | D40: CO:慶祝母親節活動P | E40: 2 | EB40: 12 | ED40: CO:慶祝母親節活動P | EE40: 2
B41: 12 | EB41: 12
B42: 13 | C42: 第十三週 2021/5/9~2021/5/15 | F42: 作文教學P(13_1) 自治市長選舉P(13_1) | J42: SC:數與量、幾何 八.表面積 | K42: 1 | L42: SD:*SD:八、知識王：互動連結 | M42: 1 | N42: SE:Unit4It’sTimetoGotoBed. | O42: 1 | T42: 問題與答案 十、果真如此嗎 | U42: 5 | V42: 二、咱的故鄉 4.「鹿仔港」的由來 | W42: 1 | X42: Unit 4 It’s Time to Go to Bed. | Y42: 1 | Z42: 數與量、幾何 八.表面積 | AA42: 4 | AB42: 四、投資與理財 2.投資活動 | AC42: 3 | AD42: 【視覺】壹、藝術就在你身邊二‧繪畫與生活 【表演】貳、表演任我行二．戲劇造形百寶箱 【音樂】參、音樂的禮讚三．自然的吟唱 | AE42: 3 | AF42: 三、動物世界面面觀 活動二 動物如何延續生命 活動三 動物的分類 | AG42: 4 | AH42: 參、樂活跑碰跳十.一起來玩巧固球 | AI42: 3 | AJ42: 四、互動調色盤 1.發現他人特質 | AK42: 3 | AM42: =SUM(E42:E44)+SUM(G42:Q42)+SUMIF(F42:F44,"*P",G42:G44)+SUMIF(H42:H44,"*P",I42:I44)+SUMIF(J42:J44,"*P",K42:K44)+SUMIF(L42:L44,"*P",M42:M44)+SUMIF(N42:N44,"*P",O42:O44)+SUMIF(P42:P44,"*P",Q42:Q44) -> 5 | AN42: =SUM(F43:Q44)+SUM(T43:AK44)-SUMIF(F43:F44,"*P",G43:G44)-SUMIF(H43:H44,"*P",I43:I44)-SUMIF(J43:J44,"*P",K43:K44)-SUMIF(L43:L44,"*P",M43:M44)-SUMIF(N43:N44,"*P",O43:O44)-SUMIF(P43:P44,"*P",Q43:Q44)-SUMIF(R43:R44,"*P",S43:S44)-SUMIF(T43:T44,"*P",U43:U44)-SUMIF(V43:V44,"*P",W43:W44)-SUMIF(X43:X44,"*P",Y43:Y44)-SUMIF(Z43:Z44,"*P",AA43:AA44)-SUMIF(AB43:AB44,"*P",AC43:AC44)-SUMIF(AD43:AD44,"*P",AE43:AE44)-SUMIF(AF43:AF44,"*P",AG43:AG44)-SUMIF(AH43:AH44,"*P",AI43:AI44)-SUMIF(AJ43:AJ44,"*P",AK43:AK44)-AR42 -> 4 | AO42: =SUM(U42:AK42) -> 27 | AP42: =SUM(S42:S44) -> 0 | AQ42: =AM42+AO42-AS42 -> 32 | AR42: 0 | AS42: 0 | AT42: =32-AQ42-AS42 -> 0 | AU42: =IF(OR(AT42=0,AS42=0),"OK",IF(AS42<>AT42,"尚未完成減節數",IF(AS42=AT42,"修正正確/請刪除內定減的節數","OK"))) -> OK | AV42: 0 | EB42: 13 | EC42: 第十三週 2021/5/9~2021/5/15 | EJ42: SC:學習扶助(數學) | EK42: 1 | EL42: SD:資訊教育 | EM42: 1 | EN42: SE:彈性英語 | EO42: 1 | ET42: 問題與答案 十、果真如此嗎 | EU42: 5 | EV42: 二、咱的故鄉 4.「鹿仔港」的由來 | EW42: 1 | EX42: Unit 4 It’s Time to Go to Bed. | EY42: 1 | EZ42: 數與量、幾何 八.表面積 | FA42: 4 | FB42: 四、投資與理財 2.投資活動 | FC42: 3 | FD42: 【視覺】壹、藝術就在你身邊二‧繪畫與生活 【表演】貳、表演任我行二．戲劇造形百寶箱 【音樂】參、音樂的禮讚三．自然的吟唱 | FE42: 3 | FF42: 三、動物世界面面觀 活動二 動物如何延續生命 活動三 動物的分類 | FG42: 4 | FH42: 參、樂活跑碰跳十.一起來玩巧固球 | FI42: 3 | FJ42: 四、互動調色盤 1.發現他人特質 | FK42: 3
B43: 13 | D43: AN:作文教學P | E43: 1 | T43: AN:作文教學 | U43: 1 | AH43: AL:登革熱防治 | AI43: 1 | AJ43: AE:家暴_家庭暴力防治教育 | AK43: 1 | EB43: 13 | ED43: AN:作文教學P | EE43: 1 | ET43: AN:作文教學 | EU43: 1 | FH43: AL:登革熱防治 | FI43: 1 | FJ43: AE:家暴_家庭暴力防治教育 | FK43: 1
B44: 13 | D44: CN:自治市長選舉P | E44: 1 | AJ44: BF:職業試探 | AK44: 1 | EB44: 13 | ED44: CN:自治市長選舉P | EE44: 1 | FJ44: BF:職業試探 | FK44: 1
B45: 14 | C45: 第十四週 2021/5/16~2021/5/22 | F45: 基本能力檢測(五年級)P(14_2) | H45: SB:問題與答案 統整活動三 | I45: 1 | L45: SD:*SD:八、知識王：簡報製作 | M45: 1 | N45: SE:Unit4It’sTimetoGotoBed. | O45: 1 | T45: 問題與答案 統整活動三 | U45: 5 | V45: 二、咱的故鄉 4.「鹿仔港」的由來 | W45: 1 | X45: Unit 4 It’s Time to Go to Bed. | Y45: 1 | Z45: 數與量、幾何 八.表面積 | AA45: 4 | AB45: 五、臺灣的自然災害 1.地震 | AC45: 3 | AD45: 【視覺】壹、藝術就在你身邊三‧漫畫與生活 【表演】貳、表演任我行三‧話說傳統、「戲」往開來 【音樂】參、音樂的禮讚三‧自然的吟唱 | AE45: 3 | AF45: 三、動物世界面面觀 活動三 動物的分類 四、聲音與樂器 活動一 生活中常見的聲音 | AG45: 4 | AH45: 參、樂活跑碰跳十.一起來玩巧固球 | AI45: 3 | AJ45: 四、互動調色盤 1.發現他人特質 | AK45: 3 | AL45: 110年5月21日(五)歡送畢業生園遊會 (第14週)五年級基本學力檢測 | AM45: =SUM(E45:E47)+SUM(G45:Q45)+SUMIF(F45:F47,"*P",G45:G47)+SUMIF(H45:H47,"*P",I45:I47)+SUMIF(J45:J47,"*P",K45:K47)+SUMIF(L45:L47,"*P",M45:M47)+SUMIF(N45:N47,"*P",O45:O47)+SUMIF(P45:P47,"*P",Q45:Q47) -> 5 | AN45: =SUM(F46:Q47)+SUM(T46:AK47)-SUMIF(F46:F47,"*P",G46:G47)-SUMIF(H46:H47,"*P",I46:I47)-SUMIF(J46:J47,"*P",K46:K47)-SUMIF(L46:L47,"*P",M46:M47)-SUMIF(N46:N47,"*P",O46:O47)-SUMIF(P46:P47,"*P",Q46:Q47)-SUMIF(R46:R47,"*P",S46:S47)-SUMIF(T46:T47,"*P",U46:U47)-SUMIF(V46:V47,"*P",W46:W47)-SUMIF(X46:X47,"*P",Y46:Y47)-SUMIF(Z46:Z47,"*P",AA46:AA47)-SUMIF(AB46:AB47,"*P",AC46:AC47)-SUMIF(AD46:AD47,"*P",AE46:AE47)-SUMIF(AF46:AF47,"*P",AG46:AG47)-SUMIF(AH46:AH47,"*P",AI46:AI47)-SUMIF(AJ46:AJ47,"*P",AK46:AK47)-AR45 -> 2 | AO45: =SUM(U45:AK45) -> 27 | AP45: =SUM(S45:S47) -> 0 | AQ45: =AM45+AO45-AS45 -> 32 | AR45: 0 | AS45: 0 | AT45: =32-AQ45-AS45 -> 0 | AU45: =IF(OR(AT45=0,AS45=0),"OK",IF(AS45<>AT45,"尚未完成減節數",IF(AS45=AT45,"修正正確/請刪除內定減的節數","OK"))) -> OK | AV45: 0 | EB45: 14 | EC45: 第十四週 2021/5/16~2021/5/22 | EH45: SB:學習扶助(國語) | EI45: 1 | EL45: SD:資訊教育 | EM45: 1 | EN45: SE:彈性英語 | EO45: 1 | ET45: 問題與答案 統整活動三 | EU45: 5 | EV45: 二、咱的故鄉 4.「鹿仔港」的由來 | EW45: 1 | EX45: Unit 4 It’s Time to Go to Bed. | EY45: 1 | EZ45: 數與量、幾何 八.表面積 | FA45: 4 | FB45: 五、臺灣的自然災害 1.地震 | FC45: 3 | FD45: 【視覺】壹、藝術就在你身邊三‧漫畫與生活 【表演】貳、表演任我行三‧話說傳統、「戲」往開來 【音樂】參、音樂的禮讚三‧自然的吟唱 | FE45: 3 | FF45: 三、動物世界面面觀 活動三 動物的分類 四、聲音與樂器 活動一 生活中常見的聲音 | FG45: 4 | FH45: 參、樂活跑碰跳十.一起來玩巧固球 | FI45: 3 | FJ45: 四、互動調色盤 1.發現他人特質 | FK45: 3
B46: 14 | D46: CL:基本能力檢測(五年級)P | E46: 2 | T46: 基本能力檢測 | Z46: 基本能力檢測 | AH46: BA:飲食教育 | AI46: 1 | AJ46: AE:家暴_家庭暴力防治教育 | AK46: 1 | EB46: 14 | ED46: CL:基本能力檢測(五年級)P | EE46: 2 | FH46: BA:飲食教育 | FI46: 1 | FJ46: AE:家暴_家庭暴力防治教育 | FK46: 1
B47: 14 | EB47: 14
B48: 15 | C48: 第十五週 2021/5/23~2021/5/29 | F48: 班際體育競賽P(15_1) 歡送畢業生園遊會P(15_2) | L48: SD:*SD:八、知識王：大家來找碴 | M48: 1 | N48: SE:Unit4It’sTimetoGotoBed. | O48: 1 | T48: 文學步道─感受自然 十一、湖光山色 | U48: 5 | V48: 三、海洋世界 5.白海豬仔心驚驚 | W48: 1 | X48: Unit 4 It’s Time to Go to Bed. | Y48: 1 | Z48: 數與量 九.比率與百分率 | AA48: 4 | AB48: 五、臺灣的自然災害 2.颱風、豪雨、土石流 | AC48: 3 | AD48: 【視覺】壹、藝術就在你身邊三‧漫畫與生活 【表演】貳、表演任我行三‧話說傳統、「戲」往開來 【音樂】參、音樂的禮讚三‧自然的吟唱 | AE48: 3 | AF48: 四、聲音與樂器 活動一 生活中常見的聲音 | AG48: 4 | AH48: 肆、運動你我他十一.跳箱高手 | AI48: 3 | AJ48: 四、互動調色盤 2.我懂你的心 | AK48: 3 | AM48: =SUM(E48:E50)+SUM(G48:Q48)+SUMIF(F48:F50,"*P",G48:G50)+SUMIF(H48:H50,"*P",I48:I50)+SUMIF(J48:J50,"*P",K48:K50)+SUMIF(L48:L50,"*P",M48:M50)+SUMIF(N48:N50,"*P",O48:O50)+SUMIF(P48:P50,"*P",Q48:Q50) -> 5 | AN48: =SUM(F49:Q50)+SUM(T49:AK50)-SUMIF(F49:F50,"*P",G49:G50)-SUMIF(H49:H50,"*P",I49:I50)-SUMIF(J49:J50,"*P",K49:K50)-SUMIF(L49:L50,"*P",M49:M50)-SUMIF(N49:N50,"*P",O49:O50)-SUMIF(P49:P50,"*P",Q49:Q50)-SUMIF(R49:R50,"*P",S49:S50)-SUMIF(T49:T50,"*P",U49:U50)-SUMIF(V49:V50,"*P",W49:W50)-SUMIF(X49:X50,"*P",Y49:Y50)-SUMIF(Z49:Z50,"*P",AA49:AA50)-SUMIF(AB49:AB50,"*P",AC49:AC50)-SUMIF(AD49:AD50,"*P",AE49:AE50)-SUMIF(AF49:AF50,"*P",AG49:AG50)-SUMIF(AH49:AH50,"*P",AI49:AI50)-SUMIF(AJ49:AJ50,"*P",AK49:AK50)-AR48 -> 4 | AO48: =SUM(U48:AK48) -> 27 | AP48: =SUM(S48:S50) -> 0 | AQ48: =AM48+AO48-AS48 -> 32 | AR48: 0 | AS48: 0 | AT48: =32-AQ48-AS48 -> 0 | AU48: =IF(OR(AT48=0,AS48=0),"OK",IF(AS48<>AT48,"尚未完成減節數",IF(AS48=AT48,"修正正確/請刪除內定減的節數","OK"))) -> OK | AV48: 0 | EB48: 15 | EC48: 第十五週 2021/5/23~2021/5/29 | EL48: SD:資訊教育 | EM48: 1 | EN48: SE:彈性英語 | EO48: 1 | ET48: 文學步道─感受自然 十一、湖光山色 | EU48: 5 | EV48: 三、海洋世界 5.白海豬仔心驚驚 | EW48: 1 | EX48: Unit 4 It’s Time to Go to Bed. | EY48: 1 | EZ48: 數與量 九.比率與百分率 | FA48: 4 | FB48: 五、臺灣的自然災害 2.颱風、豪雨、土石流 | FC48: 3 | FD48: 【視覺】壹、藝術就在你身邊三‧漫畫與生活 【表演】貳、表演任我行三‧話說傳統、「戲」往開來 【音樂】參、音樂的禮讚三‧自然的吟唱 | FE48: 3 | FF48: 四、聲音與樂器 活動一 生活中常見的聲音 | FG48: 4 | FH48: 肆、運動你我他十一.跳箱高手 | FI48: 3 | FJ48: 四、互動調色盤 2.我懂你的心 | FK48: 3
B49: 15 | D49: CP:班際體育競賽P | E49: 1 | AH49: BA:飲食教育 | AI49: 1 | AJ49: AC:家政教育 | AK49: 2 | EB49: 15 | ED49: CP:班際體育競賽P | EE49: 1 | FH49: BA:飲食教育 | FI49: 1 | FJ49: AC:家政教育 | FK49: 2
B50: 15 | D50: CQ:歡送畢業生園遊會P | E50: 2 | AJ50: AE:家暴_家庭暴力防治教育 | AK50: 1 | EB50: 15 | ED50: CQ:歡送畢業生園遊會P | EE50: 2 | FJ50: AE:家暴_家庭暴力防治教育 | FK50: 1
B51: 16 | C51: 第十六週 2021/5/30~2021/6/5 | F51: 畢業典禮活動P(16_3) | L51: SD:*SD:九、運算思維－WebBit：介紹 | M51: 1 | N51: SE:Unit5WhatDoYouLiketoDo? | O51: 1 | T51: 文學步道─感受自然 十二、田園交響曲 | U51: 5 | V51: 三、海洋世界 5.白海豬仔心驚驚 | W51: 1 | X51: Unit 5 What Do You Like to Do? | Y51: 1 | Z51: 數與量 九.比率與百分率 | AA51: 4 | AB51: 六、生活與環境 1.臺灣的資源 | AC51: 3 | AD51: 【視覺】壹、藝術就在你身邊三‧漫畫與生活 【表演】貳、表演任我行三‧話說傳統、「戲」往開來 【音樂】參、音樂人生四‧動物狂歡節 | AE51: 3 | AF51: 四、聲音與樂器 活動二 樂音 | AG51: 4 | AH51: 肆、運動你我他十一.跳箱高手 | AI51: 3 | AJ51: 四、互動調色盤 2.我懂你的心 | AK51: 3 | AL51: 110年6月3日(四)畢業典禮預演 | AM51: =SUM(E51:E53)+SUM(G51:Q51)+SUMIF(F51:F53,"*P",G51:G53)+SUMIF(H51:H53,"*P",I51:I53)+SUMIF(J51:J53,"*P",K51:K53)+SUMIF(L51:L53,"*P",M51:M53)+SUMIF(N51:N53,"*P",O51:O53)+SUMIF(P51:P53,"*P",Q51:Q53) -> 5 | AN51: =SUM(F52:Q53)+SUM(T52:AK53)-SUMIF(F52:F53,"*P",G52:G53)-SUMIF(H52:H53,"*P",I52:I53)-SUMIF(J52:J53,"*P",K52:K53)-SUMIF(L52:L53,"*P",M52:M53)-SUMIF(N52:N53,"*P",O52:O53)-SUMIF(P52:P53,"*P",Q52:Q53)-SUMIF(R52:R53,"*P",S52:S53)-SUMIF(T52:T53,"*P",U52:U53)-SUMIF(V52:V53,"*P",W52:W53)-SUMIF(X52:X53,"*P",Y52:Y53)-SUMIF(Z52:Z53,"*P",AA52:AA53)-SUMIF(AB52:AB53,"*P",AC52:AC53)-SUMIF(AD52:AD53,"*P",AE52:AE53)-SUMIF(AF52:AF53,"*P",AG52:AG53)-SUMIF(AH52:AH53,"*P",AI52:AI53)-SUMIF(AJ52:AJ53,"*P",AK52:AK53)-AR51 -> 5 | AO51: =SUM(U51:AK51) -> 27 | AP51: =SUM(S51:S53) -> 0 | AQ51: =AM51+AO51-AS51 -> 32 | AR51: 0 | AS51: 0 | AT51: =32-AQ51-AS51 -> 0 | AU51: =IF(OR(AT51=0,AS51=0),"OK",IF(AS51<>AT51,"尚未完成減節數",IF(AS51=AT51,"修正正確/請刪除內定減的節數","OK"))) -> OK | AV51: 0 | EB51: 16 | EC51: 第十六週 2021/5/30~2021/6/5 | EL51: SD:資訊教育 | EM51: 1 | EN51: SE:彈性英語 | EO51: 1 | ET51: 文學步道─感受自然 十二、田園交響曲 | EU51: 5 | EV51: 三、海洋世界 5.白海豬仔心驚驚 | EW51: 1 | EX51: Unit 5 What Do You Like to Do? | EY51: 1 | EZ51: 數與量 九.比率與百分率 | FA51: 4 | FB51: 六、生活與環境 1.臺灣的資源 | FC51: 3 | FD51: 【視覺】壹、藝術就在你身邊三‧漫畫與生活 【表演】貳、表演任我行三‧話說傳統、「戲」往開來 【音樂】參、音樂人生四‧動物狂歡節 | FE51: 3 | FF51: 四、聲音與樂器 活動二 樂音 | FG51: 4 | FH51: 肆、運動你我他十一.跳箱高手 | FI51: 3 | FJ51: 四、互動調色盤 2.我懂你的心 | FK51: 3
B52: 16 | D52: CE:畢業典禮活動P | E52: 3 | T52: AG:性侵害防治教育 | U52: 1 | AH52: BA:飲食教育 | AI52: 1 | AJ52: AC:家政教育 | AK52: 2 | EB52: 16 | ED52: CE:畢業典禮活動P | EE52: 3 | ET52: AG:性侵害防治教育 | EU52: 1 | FH52: BA:飲食教育 | FI52: 1 | FJ52: AC:家政教育 | FK52: 2
B53: 16 | AJ53: AH:1.【性別平等教育】 | AK53: 1 | EB53: 16 | FJ53: AH:1.【性別平等教育】 | FK53: 1
B54: 17 | C54: 第十七週 2021/6/6~2021/6/12 | F54: 畢業典禮活動P(17_3) | L54: SD:*SD:九、運算思維－WebBit：LED燈光秀 | M54: 1 | N54: SE:Unit5WhatDoYouLiketoDo? | O54: 1 | T54: 文學步道─感受自然 十三、山豬學校，飛鼠大學 | U54: 5 | V54: 三、海洋世界 5.白海豬仔心驚驚 | W54: 1 | X54: Unit 5 What Do You Like to Do? | Y54: 1 | Z54: 數與量 九.比率與百分率 | AA54: 4 | AB54: 六、生活與環境 2.環境的問題與保育 | AC54: 3 | AD54: 【視覺】壹、藝術就在你身邊三‧漫畫與生活 【表演】貳、表演任我行三．話說傳統、「戲」往開來 【音樂】參、音樂人生四‧動物狂歡節 | AE54: 3 | AF54: 四、聲音與樂器 活動二 樂音 | AG54: 4 | AH54: 肆、運動你我他十二.大家來跳竹竿舞 | AI54: 3 | AJ54: 五、聽見喝采與卓見 1.欣賞你我他 | AK54: 3 | AL54: 畢業典禮(6月7日) | AM54: =SUM(E54:E56)+SUM(G54:Q54)+SUMIF(F54:F56,"*P",G54:G56)+SUMIF(H54:H56,"*P",I54:I56)+SUMIF(J54:J56,"*P",K54:K56)+SUMIF(L54:L56,"*P",M54:M56)+SUMIF(N54:N56,"*P",O54:O56)+SUMIF(P54:P56,"*P",Q54:Q56) -> 5 | AN54: =SUM(F55:Q56)+SUM(T55:AK56)-SUMIF(F55:F56,"*P",G55:G56)-SUMIF(H55:H56,"*P",I55:I56)-SUMIF(J55:J56,"*P",K55:K56)-SUMIF(L55:L56,"*P",M55:M56)-SUMIF(N55:N56,"*P",O55:O56)-SUMIF(P55:P56,"*P",Q55:Q56)-SUMIF(R55:R56,"*P",S55:S56)-SUMIF(T55:T56,"*P",U55:U56)-SUMIF(V55:V56,"*P",W55:W56)-SUMIF(X55:X56,"*P",Y55:Y56)-SUMIF(Z55:Z56,"*P",AA55:AA56)-SUMIF(AB55:AB56,"*P",AC55:AC56)-SUMIF(AD55:AD56,"*P",AE55:AE56)-SUMIF(AF55:AF56,"*P",AG55:AG56)-SUMIF(AH55:AH56,"*P",AI55:AI56)-SUMIF(AJ55:AJ56,"*P",AK55:AK56)-AR54 -> 5 | AO54: =SUM(U54:AK54) -> 27 | AP54: =SUM(S54:S56) -> 0 | AQ54: =AM54+AO54-AS54 -> 32 | AR54: 0 | AS54: 0 | AT54: =32-AQ54-AS54 -> 0 | AU54: =IF(OR(AT54=0,AS54=0),"OK",IF(AS54<>AT54,"尚未完成減節數",IF(AS54=AT54,"修正正確/請刪除內定減的節數","OK"))) -> OK | AV54: 0 | EB54: 17 | EC54: 第十七週 2021/6/6~2021/6/12 | EL54: SD:資訊教育 | EM54: 1 | EN54: SE:彈性英語 | EO54: 1 | ET54: 文學步道─感受自然 十三、山豬學校，飛鼠大學 | EU54: 5 | EV54: 三、海洋世界 5.白海豬仔心驚驚 | EW54: 1 | EX54: Unit 5 What Do You Like to Do? | EY54: 1 | EZ54: 數與量 九.比率與百分率 | FA54: 4 | FB54: 六、生活與環境 2.環境的問題與保育 | FC54: 3 | FD54: 【視覺】壹、藝術就在你身邊三‧漫畫與生活 【表演】貳、表演任我行三．話說傳統、「戲」往開來 【音樂】參、音樂人生四‧動物狂歡節 | FE54: 3 | FF54: 四、聲音與樂器 活動二 樂音 | FG54: 4 | FH54: 肆、運動你我他十二.大家來跳竹竿舞 | FI54: 3 | FJ54: 五、聽見喝采與卓見 1.欣賞你我他 | FK54: 3
B55: 17 | D55: CE:畢業典禮活動P | E55: 3 | T55: AG:性侵害防治教育 | U55: 1 | AH55: BA:飲食教育 | AI55: 1 | AJ55: AC:家政教育 | AK55: 2 | EB55: 17 | ED55: CE:畢業典禮活動P | EE55: 3 | ET55: AG:性侵害防治教育 | EU55: 1 | FH55: BA:飲食教育 | FI55: 1 | FJ55: AC:家政教育 | FK55: 2
B56: 17 | AJ56: AH:1.【性別平等教育】 | AK56: 1 | EB56: 17 | FJ56: AH:1.【性別平等教育】 | FK56: 1
B57: 18 | C57: 第十八週 2021/6/13~2021/6/19 | F57: SA:三、全民動起來 | G57: 1 | H57: SB:文學步道─感受自然 十四、湖濱散記 | I57: 1 | J57: SC:數與量 十.生活中的單位與換算 | K57: 1 | L57: SD:*SD:十、運算思維－WebBit：LED燈光秀 | M57: 1 | N57: SE:Unit5WhatDoYouLiketoDo? | O57: 1 | T57: 文學步道─感受自然 十四、湖濱散記 | U57: 4 | V57: 三、咱的故鄉 5.民俗藝品收藏家 | W57: 1 | X57: Unit 5 What Do You Like to Do? | Y57: 1 | Z57: 數與量 十.生活中的單位與換算 | AA57: 3 | AB57: 六、生活與環境 2.環境的問題與保育 | AC57: 2 | AD57: 【視覺】壹、藝術就在你身邊三‧漫畫與生活 【表演】貳、表演任我行三‧話說傳統、「戲」往開來 【音樂】參、音樂人生四‧動物狂歡節 | AE57: 2 | AF57: 四、聲音與樂器 活動三 製作簡易樂器 | AG57: 3 | AH57: 肆、運動你我他十三.單槓運動我最行 | AI57: 2 | AJ57: 五、聽見喝采與卓見 1.欣賞你我他 | AK57: 2 | AL57: 110年6月14日(一) 端午節放假一天 | AM57: =SUM(E57:E59)+SUM(G57:Q57)+SUMIF(F57:F59,"*P",G57:G59)+SUMIF(H57:H59,"*P",I57:I59)+SUMIF(J57:J59,"*P",K57:K59)+SUMIF(L57:L59,"*P",M57:M59)+SUMIF(N57:N59,"*P",O57:O59)+SUMIF(P57:P59,"*P",Q57:Q59) -> 5 | AN57: =SUM(F58:Q59)+SUM(T58:AK59)-SUMIF(F58:F59,"*P",G58:G59)-SUMIF(H58:H59,"*P",I58:I59)-SUMIF(J58:J59,"*P",K58:K59)-SUMIF(L58:L59,"*P",M58:M59)-SUMIF(N58:N59,"*P",O58:O59)-SUMIF(P58:P59,"*P",Q58:Q59)-SUMIF(R58:R59,"*P",S58:S59)-SUMIF(T58:T59,"*P",U58:U59)-SUMIF(V58:V59,"*P",W58:W59)-SUMIF(X58:X59,"*P",Y58:Y59)-SUMIF(Z58:Z59,"*P",AA58:AA59)-SUMIF(AB58:AB59,"*P",AC58:AC59)-SUMIF(AD58:AD59,"*P",AE58:AE59)-SUMIF(AF58:AF59,"*P",AG58:AG59)-SUMIF(AH58:AH59,"*P",AI58:AI59)-SUMIF(AJ58:AJ59,"*P",AK58:AK59)-AR57 -> 3 | AO57: =SUM(U57:AK57) -> 20 | AP57: =SUM(S57:S59) -> 0 | AQ57: =AM57+AO57-AS57 -> 25 | AR57: 0 | AT57: =32-AQ57-AS57 -> 7 | AU57: =IF(OR(AT57=0,AS57=0),"OK",IF(AS57<>AT57,"尚未完成減節數",IF(AS57=AT57,"修正正確/請刪除內定減的節數","OK"))) -> OK | AV57: 7 | EB57: 18 | EC57: 第十八週 2021/6/13~2021/6/19 | EF57: SA:校本課程d | EG57: 1 | EH57: SB:學習扶助(國語) | EI57: 1 | EJ57: SC:學習扶助(數學) | EK57: 1 | EL57: SD:資訊教育 | EM57: 1 | EN57: SE:彈性英語 | EO57: 1 | ET57: 文學步道─感受自然 十四、湖濱散記 | EU57: 4 | EV57: 三、咱的故鄉 5.民俗藝品收藏家 | EW57: 1 | EX57: Unit 5 What Do You Like to Do? | EY57: 1 | EZ57: 數與量 十.生活中的單位與換算 | FA57: 3 | FB57: 六、生活與環境 2.環境的問題與保育 | FC57: 2 | FD57: 【視覺】壹、藝術就在你身邊三‧漫畫與生活 【表演】貳、表演任我行三‧話說傳統、「戲」往開來 【音樂】參、音樂人生四‧動物狂歡節 | FE57: 2 | FF57: 四、聲音與樂器 活動三 製作簡易樂器 | FG57: 3 | FH57: 肆、運動你我他十三.單槓運動我最行 | FI57: 2 | FJ57: 五、聽見喝采與卓見 1.欣賞你我他 | FK57: 2
B58: 18 | T58: AG:性侵害防治教育 | U58: 1 | AH58: BA:飲食教育 | AI58: 1 | AJ58: AH:1.【性別平等教育】 | AK58: 1 | EB58: 18 | ET58: AG:性侵害防治教育 | EU58: 1 | FH58: BA:飲食教育 | FI58: 1 | FJ58: AH:1.【性別平等教育】 | FK58: 1
B59: 18 | EB59: 18
B60: 19 | C60: 第十九週 2021/6/20~2021/6/26 | F60: SA:作文教學P(19_1) 三、全民動起來 | G60: 1 | H60: SB:文學步道─感受自然 統整活動四 | I60: 1 | L60: SD:*SD:十、運算思維－WebBit：LED燈光秀 | M60: 1 | N60: SE:*Review 2 | O60: 1 | T60: 文學步道─感受自然 統整活動四 | U60: 5 | V60: 俗語、傳統念謠～耕農歌 | W60: 1 | X60: *Review 2 | Y60: 1 | Z60: 數與量 十.生活中的單位與換算 | AA60: 4 | AB60: 六、生活與環境 3.永續經營與發展 | AC60: 3 | AD60: 【視覺】壹、藝術就在你身邊三‧漫畫與生活 【表演】參、話說傳統、「戲」往開來 【音樂】參、音樂人生四‧動物狂歡節 | AE60: 3 | AF60: 科學閱讀 | AG60: 4 | AH60: 肆、運動你我他十四.排球高手 | AI60: 3 | AJ60: 五、聽見喝采與卓見 2.溝通與接納 | AK60: 3 | AM60: =SUM(E60:E62)+SUM(G60:Q60)+SUMIF(F60:F62,"*P",G60:G62)+SUMIF(H60:H62,"*P",I60:I62)+SUMIF(J60:J62,"*P",K60:K62)+SUMIF(L60:L62,"*P",M60:M62)+SUMIF(N60:N62,"*P",O60:O62)+SUMIF(P60:P62,"*P",Q60:Q62) -> 5 | AN60: =SUM(F61:Q62)+SUM(T61:AK62)-SUMIF(F61:F62,"*P",G61:G62)-SUMIF(H61:H62,"*P",I61:I62)-SUMIF(J61:J62,"*P",K61:K62)-SUMIF(L61:L62,"*P",M61:M62)-SUMIF(N61:N62,"*P",O61:O62)-SUMIF(P61:P62,"*P",Q61:Q62)-SUMIF(R61:R62,"*P",S61:S62)-SUMIF(T61:T62,"*P",U61:U62)-SUMIF(V61:V62,"*P",W61:W62)-SUMIF(X61:X62,"*P",Y61:Y62)-SUMIF(Z61:Z62,"*P",AA61:AA62)-SUMIF(AB61:AB62,"*P",AC61:AC62)-SUMIF(AD61:AD62,"*P",AE61:AE62)-SUMIF(AF61:AF62,"*P",AG61:AG62)-SUMIF(AH61:AH62,"*P",AI61:AI62)-SUMIF(AJ61:AJ62,"*P",AK61:AK62)-AR60 -> 1 | AO60: =SUM(U60:AK60) -> 27 | AP60: =SUM(S60:S62) -> 0 | AQ60: =AM60+AO60-AS60 -> 32 | AR60: 0 | AS60: 0 | AT60: =32-AQ60-AS60 -> 0 | AU60: =IF(OR(AT60=0,AS60=0),"OK",IF(AS60<>AT60,"尚未完成減節數",IF(AS60=AT60,"修正正確/請刪除內定減的節數","OK"))) -> OK | AV60: 0 | EB60: 19 | EC60: 第十九週 2021/6/20~2021/6/26 | EF60: SA:校本課程d | EG60: 1 | EH60: SB:學習扶助(國語) | EI60: 1 | EL60: SD:資訊教育 | EM60: 1 | EN60: SE:彈性英語 | EO60: 1 | ET60: 文學步道─感受自然 統整活動四 | EU60: 5 | EV60: 俗語、傳統念謠～耕農歌 | EW60: 1 | EX60: *Review 2 | EY60: 1 | EZ60: 數與量 十.生活中的單位與換算 | FA60: 4 | FB60: 六、生活與環境 3.永續經營與發展 | FC60: 3 | FD60: 【視覺】壹、藝術就在你身邊三‧漫畫與生活 【表演】參、話說傳統、「戲」往開來 【音樂】參、音樂人生四‧動物狂歡節 | FE60: 3 | FF60: 科學閱讀 | FG60: 4 | FH60: 肆、運動你我他十四.排球高手 | FI60: 3 | FJ60: 五、聽見喝采與卓見 2.溝通與接納 | FK60: 3
B61: 19 | D61: AN:作文教學P | E61: 1 | T61: AN:作文教學 | U61: 1 | EB61: 19 | ED61: AN:作文教學P | EE61: 1 | ET61: AN:作文教學 | EU61: 1
B62: 19 | EB62: 19
B63: 20 | C63: 第二十週 2021/6/27~2021/7/3 | F63: SA:三、全民動起來 | G63: 1 | H63: SB:閱讀階梯二、蜘蛛的電報線 | I63: 1 | J63: SC:數與量 十.生活中的單位與換算 | K63: 1 | L63: SD:*SD:十一、個人資料保護法 【資訊倫理教育】 | M63: 1 | N63: SE:*Final Review 、期末考 | O63: 1 | T63: 閱讀階梯二、蜘蛛的電報線 | U63: 3 | V63: 古詩吟唱～夜雨寄北、閩南語歌欣賞～月光掖佇東門城 | W63: 1 | X63: *Final Review 、期末考 | Y63: 1 | Z63: 數與量 十.生活中的單位與換算 | AA63: 2 | AB63: 六、生活與環境 3.永續經營與發展 | AC63: 1 | AD63: 【視覺】壹、藝術就在你身邊三‧漫畫與生活 【表演】貳、表演任我行三‧話說傳統、「戲」往開來 【音樂】參、音樂人生四‧動物狂歡節 | AE63: 1 | AF63: 科學閱讀 | AG63: 2 | AH63: 肆、運動你我他十四.排球高手 | AI63: 1 | AJ63: 五、聽見喝采與卓見 2.溝通與接納 | AK63: 1 | AL63: 期末評量 110年6月30日(三)課程結束 | AM63: =SUM(E63:E65)+SUM(G63:Q63)+SUMIF(F63:F65,"*P",G63:G65)+SUMIF(H63:H65,"*P",I63:I65)+SUMIF(J63:J65,"*P",K63:K65)+SUMIF(L63:L65,"*P",M63:M65)+SUMIF(N63:N65,"*P",O63:O65)+SUMIF(P63:P65,"*P",Q63:Q65) -> 5 | AN63: =SUM(F64:Q65)+SUM(T64:AK65)-SUMIF(F64:F65,"*P",G64:G65)-SUMIF(H64:H65,"*P",I64:I65)-SUMIF(J64:J65,"*P",K64:K65)-SUMIF(L64:L65,"*P",M64:M65)-SUMIF(N64:N65,"*P",O64:O65)-SUMIF(P64:P65,"*P",Q64:Q65)-SUMIF(R64:R65,"*P",S64:S65)-SUMIF(T64:T65,"*P",U64:U65)-SUMIF(V64:V65,"*P",W64:W65)-SUMIF(X64:X65,"*P",Y64:Y65)-SUMIF(Z64:Z65,"*P",AA64:AA65)-SUMIF(AB64:AB65,"*P",AC64:AC65)-SUMIF(AD64:AD65,"*P",AE64:AE65)-SUMIF(AF64:AF65,"*P",AG64:AG65)-SUMIF(AH64:AH65,"*P",AI64:AI65)-SUMIF(AJ64:AJ65,"*P",AK64:AK65)-AR63 -> 0 | AO63: =SUM(U63:AK63) -> 13 | AP63: =SUM(S63:S65) -> 0 | AQ63: =AM63+AO63-AS63 -> 18 | AR63: 0 | AT63: =32-AQ63-AS63 -> 14 | AU63: =IF(OR(AT63=0,AS63=0),"OK",IF(AS63<>AT63,"尚未完成減節數",IF(AS63=AT63,"修正正確/請刪除內定減的節數","OK"))) -> OK | AV63: 14 | EB63: 20 | EC63: 第二十週 2021/6/27~2021/7/3 | EF63: SA:校本課程d | EG63: 1 | EH63: SB:學習扶助(國語) | EI63: 1 | EJ63: SC:學習扶助(數學) | EK63: 1 | EL63: SD:資訊教育 | EM63: 1 | EN63: SE:彈性英語 | EO63: 1 | ET63: 閱讀階梯二、蜘蛛的電報線 | EU63: 3 | EV63: 古詩吟唱～夜雨寄北、閩南語歌欣賞～月光掖佇東門城 | EW63: 1 | EX63: *Final Review 、期末考 | EY63: 1 | EZ63: 數與量 十.生活中的單位與換算 | FA63: 2 | FB63: 六、生活與環境 3.永續經營與發展 | FC63: 1 | FD63: 【視覺】壹、藝術就在你身邊三‧漫畫與生活 【表演】貳、表演任我行三‧話說傳統、「戲」往開來 【音樂】參、音樂人生四‧動物狂歡節 | FE63: 1 | FF63: 科學閱讀 | FG63: 2 | FH63: 肆、運動你我他十四.排球高手 | FI63: 1 | FJ63: 五、聽見喝采與卓見 2.溝通與接納 | FK63: 1
B64: 20 | EB64: 20
B65: 20 | EB65: 20
C66: 下學期節數合計 | E66: =SUM(E6:E65) -> 24 | G66: =G6+G9+G12+G15+G18+G21+G24+G27+G30+G33+G36+G39+G42+G45+G48+G51+G54+G57+G60+G63+SUMIF(F6:F65,"*P",G6:G65) -> 11 | I66: =I6+I9+I12+I15+I18+I21+I24+I27+I30+I33+I36+I39+I42+I45+I48+I51+I54+I57+I60+I63+SUMIF(H6:H65,"*P",I6:I65) -> 10 | K66: =K6+K9+K12+K15+K18+K21+K24+K27+K30+K33+K36+K39+K42+K45+K48+K51+K54+K57+K60+K63+SUMIF(J6:J65,"*P",K6:K65) -> 15 | M66: =M6+M9+M12+M15+M18+M21+M24+M27+M30+M33+M36+M39+M42+M45+M48+M51+M54+M57+M60+M63+SUMIF(L6:L65,"*P",M6:M65) -> 20 | O66: =O6+O9+O12+O15+O18+O21+O24+O27+O30+O33+O36+O39+O42+O45+O48+O51+O54+O57+O60+O63+SUMIF(N6:N65,"*P",O6:O65) -> 20 | Q66: =Q6+Q9+Q12+Q15+Q18+Q21+Q24+Q27+Q30+Q33+Q36+Q39+Q42+Q45+Q48+Q51+Q54+Q57+Q60+Q63+SUMIF(P6:P65,"*P",Q6:Q65) -> 0 | S66: =SUM(S6:S65) -> 3 | U66: =U6+U9+U12+U15+U18+U21+U24+U27+U30+U33+U36+U39+U42+U45+U48+U51+U54+U57+U60+U63+SUMIF(T6:T65,"*P",U6:U65) -> 92 | W66: =W6+W9+W12+W15+W18+W21+W24+W27+W30+W33+W36+W39+W42+W45+W48+W51+W54+W57+W60+W63+SUMIF(V6:V65,"*P",W6:W65) -> 20 | Y66: =Y6+Y9+Y12+Y15+Y18+Y21+Y24+Y27+Y30+Y33+Y36+Y39+Y42+Y45+Y48+Y51+Y54+Y57+Y60+Y63+SUMIF(X6:X65,"*P",Y6:Y65) -> 20 | AA66: =AA6+AA9+AA12+AA15+AA18+AA21+AA24+AA27+AA30+AA33+AA36+AA39+AA42+AA45+AA48+AA51+AA54+AA57+AA60+AA63+SUMIF(Z6:Z65,"*P",AA6:AA65) -> 72 | AC66: =AC6+AC9+AC12+AC15+AC18+AC21+AC24+AC27+AC30+AC33+AC36+AC39+AC42+AC45+AC48+AC51+AC54+AC57+AC60+AC63+SUMIF(AB6:AB65,"*P",AC6:AC65) -> 52 | AE66: =AE6+AE9+AE12+AE15+AE18+AE21+AE24+AE27+AE30+AE33+AE36+AE39+AE42+AE45+AE48+AE51+AE54+AE57+AE60+AE63+SUMIF(AD6:AD65,"*P",AE6:AE65) -> 52 | AG66: =AG6+AG9+AG12+AG15+AG18+AG21+AG24+AG27+AG30+AG33+AG36+AG39+AG42+AG45+AG48+AG51+AG54+AG57+AG60+AG63+SUMIF(AF6:AF65,"*P",AG6:AG65) -> 72 | AI66: =AI6+AI9+AI12+AI15+AI18+AI21+AI24+AI27+AI30+AI33+AI36+AI39+AI42+AI45+AI48+AI51+AI54+AI57+AI60+AI63+SUMIF(AH6:AH65,"*P",AI6:AI65) -> 52 | AK66: =AK6+AK9+AK12+AK15+AK18+AK21+AK24+AK27+AK30+AK33+AK36+AK39+AK42+AK45+AK48+AK51+AK54+AK57+AK60+AK63+SUMIF(AJ6:AJ65,"*P",AK6:AK65) -> 52 | AL66: 跨領域總節數 | AM66: =SUM(AM6:AM65) -> 100 | AN66: =SUM(AN6:AN65) -> 57 | AO66: =SUM(AO6:AO65) -> 484 | AP66: =SUM(AP6:AP65) -> 3 | AQ66: =SUM(AQ6:AQ65) -> 584 | AR66: 0 | AS66: 584 | AT66: =IF(AQ66="","",IF(AQ66=AS66,"正確",IF(AQ66>AS66,"節數多:"&AQ66-AS66&"節",IF(AQ66<AS66,"節數少:"&AS66-AQ66&"節")))) -> 正確
C67: 跨領域 | G67: =SUMIF(F6:F65,"*:F*",G6:G65)+SUMIF(F6:F65,"*:H*",G6:G65)+SUMIF(F6:F65,"*:J*",G6:G65)+SUMIF(F6:F65,"*:L*",G6:G65)+SUMIF(F6:F65,"*:N*",G6:G65)+SUMIF(F6:F65,"*:P*",G6:G65)+SUMIF(F6:F65,"*:R*",G6:G65)+SUMIF(F6:F65,"*:T*",G6:G65)+SUMIF(F6:F65,"*:V*",G6:G65)+SUMIF(F6:F65,"*:X*",G6:G65)+SUMIF(F6:F65,"*:Z*",G6:G65)+SUMIF(F6:F65,"*:AB*",G6:G65)+SUMIF(F6:F65,"*:AD*",G6:G65)+SUMIF(F6:F65,"*:AF*",G6:G65)+SUMIF(F6:F65,"*:AH*",G6:G65)+SUMIF(F6:F65,"*:AJ*",G6:G65) -> 0 | I67: =SUMIF(H6:H65,"*:F*",I6:I65)+SUMIF(H6:H65,"*:H*",I6:I65)+SUMIF(H6:H65,"*:J*",I6:I65)+SUMIF(H6:H65,"*:L*",I6:I65)+SUMIF(H6:H65,"*:N*",I6:I65)+SUMIF(H6:H65,"*:P*",I6:I65)+SUMIF(H6:H65,"*:R*",I6:I65)+SUMIF(H6:H65,"*:T*",I6:I65)+SUMIF(H6:H65,"*:V*",I6:I65)+SUMIF(H6:H65,"*:X*",I6:I65)+SUMIF(H6:H65,"*:Z*",I6:I65)+SUMIF(H6:H65,"*:AB*",I6:I65)+SUMIF(H6:H65,"*:AD*",I6:I65)+SUMIF(H6:H65,"*:AF*",I6:I65)+SUMIF(H6:H65,"*:AH*",I6:I65)+SUMIF(H6:H65,"*:AJ*",I6:I65) -> 0 | K67: =SUMIF(J6:J65,"*:F*",K6:K65)+SUMIF(J6:J65,"*:H*",K6:K65)+SUMIF(J6:J65,"*:J*",K6:K65)+SUMIF(J6:J65,"*:L*",K6:K65)+SUMIF(J6:J65,"*:N*",K6:K65)+SUMIF(J6:J65,"*:P*",K6:K65)+SUMIF(J6:J65,"*:R*",K6:K65)+SUMIF(J6:J65,"*:T*",K6:K65)+SUMIF(J6:J65,"*:V*",K6:K65)+SUMIF(J6:J65,"*:X*",K6:K65)+SUMIF(J6:J65,"*:Z*",K6:K65)+SUMIF(J6:J65,"*:AB*",K6:K65)+SUMIF(J6:J65,"*:AD*",K6:K65)+SUMIF(J6:J65,"*:AF*",K6:K65)+SUMIF(J6:J65,"*:AH*",K6:K65)+SUMIF(J6:J65,"*:AJ*",K6:K65) -> 0 | M67: =SUMIF(L6:L65,"*:F*",M6:M65)+SUMIF(L6:L65,"*:H*",M6:M65)+SUMIF(L6:L65,"*:J*",M6:M65)+SUMIF(L6:L65,"*:L*",M6:M65)+SUMIF(L6:L65,"*:N*",M6:M65)+SUMIF(L6:L65,"*:P*",M6:M65)+SUMIF(L6:L65,"*:R*",M6:M65)+SUMIF(L6:L65,"*:T*",M6:M65)+SUMIF(L6:L65,"*:V*",M6:M65)+SUMIF(L6:L65,"*:X*",M6:M65)+SUMIF(L6:L65,"*:Z*",M6:M65)+SUMIF(L6:L65,"*:AB*",M6:M65)+SUMIF(L6:L65,"*:AD*",M6:M65)+SUMIF(L6:L65,"*:AF*",M6:M65)+SUMIF(L6:L65,"*:AH*",M6:M65)+SUMIF(L6:L65,"*:AJ*",M6:M65) -> 0 | O67: =SUMIF(N6:N65,"*:F*",O6:O65)+SUMIF(N6:N65,"*:H*",O6:O65)+SUMIF(N6:N65,"*:J*",O6:O65)+SUMIF(N6:N65,"*:L*",O6:O65)+SUMIF(N6:N65,"*:N*",O6:O65)+SUMIF(N6:N65,"*:P*",O6:O65)+SUMIF(N6:N65,"*:R*",O6:O65)+SUMIF(N6:N65,"*:T*",O6:O65)+SUMIF(N6:N65,"*:V*",O6:O65)+SUMIF(N6:N65,"*:X*",O6:O65)+SUMIF(N6:N65,"*:Z*",O6:O65)+SUMIF(N6:N65,"*:AB*",O6:O65)+SUMIF(N6:N65,"*:AD*",O6:O65)+SUMIF(N6:N65,"*:AF*",O6:O65)+SUMIF(N6:N65,"*:AH*",O6:O65)+SUMIF(N6:N65,"*:AJ*",O6:O65) -> 0 | Q67: =SUMIF(P6:P65,"*:F*",Q6:Q65)+SUMIF(P6:P65,"*:H*",Q6:Q65)+SUMIF(P6:P65,"*:J*",Q6:Q65)+SUMIF(P6:P65,"*:L*",Q6:Q65)+SUMIF(P6:P65,"*:N*",Q6:Q65)+SUMIF(P6:P65,"*:P*",Q6:Q65)+SUMIF(P6:P65,"*:R*",Q6:Q65)+SUMIF(P6:P65,"*:T*",Q6:Q65)+SUMIF(P6:P65,"*:V*",Q6:Q65)+SUMIF(P6:P65,"*:X*",Q6:Q65)+SUMIF(P6:P65,"*:Z*",Q6:Q65)+SUMIF(P6:P65,"*:AB*",Q6:Q65)+SUMIF(P6:P65,"*:AD*",Q6:Q65)+SUMIF(P6:P65,"*:AF*",Q6:Q65)+SUMIF(P6:P65,"*:AH*",Q6:Q65)+SUMIF(P6:P65,"*:AJ*",Q6:Q65) -> 0 | S67: =SUMIF(R6:R65,"*:F*",S6:S65)+SUMIF(R6:R65,"*:H*",S6:S65)+SUMIF(R6:R65,"*:J*",S6:S65)+SUMIF(R6:R65,"*:L*",S6:S65)+SUMIF(R6:R65,"*:N*",S6:S65)+SUMIF(R6:R65,"*:P*",S6:S65)+SUMIF(R6:R65,"*:R*",S6:S65)+SUMIF(R6:R65,"*:T*",S6:S65)+SUMIF(R6:R65,"*:V*",S6:S65)+SUMIF(R6:R65,"*:X*",S6:S65)+SUMIF(R6:R65,"*:Z*",S6:S65)+SUMIF(R6:R65,"*:AB*",S6:S65)+SUMIF(R6:R65,"*:AD*",S6:S65)+SUMIF(R6:R65,"*:AF*",S6:S65)+SUMIF(R6:R65,"*:AH*",S6:S65)+SUMIF(R6:R65,"*:AJ*",S6:S65) -> 0 | U67: =SUMIF(T6:T65,"*:F*",U6:U65)+SUMIF(T6:T65,"*:H*",U6:U65)+SUMIF(T6:T65,"*:J*",U6:U65)+SUMIF(T6:T65,"*:L*",U6:U65)+SUMIF(T6:T65,"*:N*",U6:U65)+SUMIF(T6:T65,"*:P*",U6:U65)+SUMIF(T6:T65,"*:R*",U6:U65)+SUMIF(T6:T65,"*:T*",U6:U65)+SUMIF(T6:T65,"*:V*",U6:U65)+SUMIF(T6:T65,"*:X*",U6:U65)+SUMIF(T6:T65,"*:Z*",U6:U65)+SUMIF(T6:T65,"*:AB*",U6:U65)+SUMIF(T6:T65,"*:AD*",U6:U65)+SUMIF(T6:T65,"*:AF*",U6:U65)+SUMIF(T6:T65,"*:AH*",U6:U65)+SUMIF(T6:T65,"*:AJ*",U6:U65) -> 0 | W67: =SUMIF(V6:V65,"*:F*",W6:W65)+SUMIF(V6:V65,"*:H*",W6:W65)+SUMIF(V6:V65,"*:J*",W6:W65)+SUMIF(V6:V65,"*:L*",W6:W65)+SUMIF(V6:V65,"*:N*",W6:W65)+SUMIF(V6:V65,"*:P*",W6:W65)+SUMIF(V6:V65,"*:R*",W6:W65)+SUMIF(V6:V65,"*:T*",W6:W65)+SUMIF(V6:V65,"*:V*",W6:W65)+SUMIF(V6:V65,"*:X*",W6:W65)+SUMIF(V6:V65,"*:Z*",W6:W65)+SUMIF(V6:V65,"*:AB*",W6:W65)+SUMIF(V6:V65,"*:AD*",W6:W65)+SUMIF(V6:V65,"*:AF*",W6:W65)+SUMIF(V6:V65,"*:AH*",W6:W65)+SUMIF(V6:V65,"*:AJ*",W6:W65) -> 0 | Y67: =SUMIF(X6:X65,"*:F*",Y6:Y65)+SUMIF(X6:X65,"*:H*",Y6:Y65)+SUMIF(X6:X65,"*:J*",Y6:Y65)+SUMIF(X6:X65,"*:L*",Y6:Y65)+SUMIF(X6:X65,"*:N*",Y6:Y65)+SUMIF(X6:X65,"*:P*",Y6:Y65)+SUMIF(X6:X65,"*:R*",Y6:Y65)+SUMIF(X6:X65,"*:T*",Y6:Y65)+SUMIF(X6:X65,"*:V*",Y6:Y65)+SUMIF(X6:X65,"*:X*",Y6:Y65)+SUMIF(X6:X65,"*:Z*",Y6:Y65)+SUMIF(X6:X65,"*:AB*",Y6:Y65)+SUMIF(X6:X65,"*:AD*",Y6:Y65)+SUMIF(X6:X65,"*:AF*",Y6:Y65)+SUMIF(X6:X65,"*:AH*",Y6:Y65)+SUMIF(X6:X65,"*:AJ*",Y6:Y65) -> 0 | AA67: =SUMIF(Z6:Z65,"*:F*",AA6:AA65)+SUMIF(Z6:Z65,"*:H*",AA6:AA65)+SUMIF(Z6:Z65,"*:J*",AA6:AA65)+SUMIF(Z6:Z65,"*:L*",AA6:AA65)+SUMIF(Z6:Z65,"*:N*",AA6:AA65)+SUMIF(Z6:Z65,"*:P*",AA6:AA65)+SUMIF(Z6:Z65,"*:R*",AA6:AA65)+SUMIF(Z6:Z65,"*:T*",AA6:AA65)+SUMIF(Z6:Z65,"*:V*",AA6:AA65)+SUMIF(Z6:Z65,"*:X*",AA6:AA65)+SUMIF(Z6:Z65,"*:Z*",AA6:AA65)+SUMIF(Z6:Z65,"*:AB*",AA6:AA65)+SUMIF(Z6:Z65,"*:AD*",AA6:AA65)+SUMIF(Z6:Z65,"*:AF*",AA6:AA65)+SUMIF(Z6:Z65,"*:AH*",AA6:AA65)+SUMIF(Z6:Z65,"*:AJ*",AA6:AA65) -> 0 | AC67: =SUMIF(AB6:AB65,"*:F*",AC6:AC65)+SUMIF(AB6:AB65,"*:H*",AC6:AC65)+SUMIF(AB6:AB65,"*:J*",AC6:AC65)+SUMIF(AB6:AB65,"*:L*",AC6:AC65)+SUMIF(AB6:AB65,"*:N*",AC6:AC65)+SUMIF(AB6:AB65,"*:P*",AC6:AC65)+SUMIF(AB6:AB65,"*:R*",AC6:AC65)+SUMIF(AB6:AB65,"*:T*",AC6:AC65)+SUMIF(AB6:AB65,"*:V*",AC6:AC65)+SUMIF(AB6:AB65,"*:X*",AC6:AC65)+SUMIF(AB6:AB65,"*:Z*",AC6:AC65)+SUMIF(AB6:AB65,"*:AB*",AC6:AC65)+SUMIF(AB6:AB65,"*:AD*",AC6:AC65)+SUMIF(AB6:AB65,"*:AF*",AC6:AC65)+SUMIF(AB6:AB65,"*:AH*",AC6:AC65)+SUMIF(AB6:AB65,"*:AJ*",AC6:AC65) -> 0 | AE67: =SUMIF(AD6:AD65,"*:F*",AE6:AE65)+SUMIF(AD6:AD65,"*:H*",AE6:AE65)+SUMIF(AD6:AD65,"*:J*",AE6:AE65)+SUMIF(AD6:AD65,"*:L*",AE6:AE65)+SUMIF(AD6:AD65,"*:N*",AE6:AE65)+SUMIF(AD6:AD65,"*:P*",AE6:AE65)+SUMIF(AD6:AD65,"*:R*",AE6:AE65)+SUMIF(AD6:AD65,"*:T*",AE6:AE65)+SUMIF(AD6:AD65,"*:V*",AE6:AE65)+SUMIF(AD6:AD65,"*:X*",AE6:AE65)+SUMIF(AD6:AD65,"*:Z*",AE6:AE65)+SUMIF(AD6:AD65,"*:AB*",AE6:AE65)+SUMIF(AD6:AD65,"*:AD*",AE6:AE65)+SUMIF(AD6:AD65,"*:AF*",AE6:AE65)+SUMIF(AD6:AD65,"*:AH*",AE6:AE65)+SUMIF(AD6:AD65,"*:AJ*",AE6:AE65) -> 0 | AG67: =SUMIF(AF6:AF65,"*:F*",AG6:AG65)+SUMIF(AF6:AF65,"*:H*",AG6:AG65)+SUMIF(AF6:AF65,"*:J*",AG6:AG65)+SUMIF(AF6:AF65,"*:L*",AG6:AG65)+SUMIF(AF6:AF65,"*:N*",AG6:AG65)+SUMIF(AF6:AF65,"*:P*",AG6:AG65)+SUMIF(AF6:AF65,"*:R*",AG6:AG65)+SUMIF(AF6:AF65,"*:T*",AG6:AG65)+SUMIF(AF6:AF65,"*:V*",AG6:AG65)+SUMIF(AF6:AF65,"*:X*",AG6:AG65)+SUMIF(AF6:AF65,"*:Z*",AG6:AG65)+SUMIF(AF6:AF65,"*:AB*",AG6:AG65)+SUMIF(AF6:AF65,"*:AD*",AG6:AG65)+SUMIF(AF6:AF65,"*:AF*",AG6:AG65)+SUMIF(AF6:AF65,"*:AH*",AG6:AG65)+SUMIF(AF6:AF65,"*:AJ*",AG6:AG65) -> 0 | AI67: =SUMIF(AH6:AH65,"*:F*",AI6:AI65)+SUMIF(AH6:AH65,"*:H*",AI6:AI65)+SUMIF(AH6:AH65,"*:J*",AI6:AI65)+SUMIF(AH6:AH65,"*:L*",AI6:AI65)+SUMIF(AH6:AH65,"*:N*",AI6:AI65)+SUMIF(AH6:AH65,"*:P*",AI6:AI65)+SUMIF(AH6:AH65,"*:R*",AI6:AI65)+SUMIF(AH6:AH65,"*:T*",AI6:AI65)+SUMIF(AH6:AH65,"*:V*",AI6:AI65)+SUMIF(AH6:AH65,"*:X*",AI6:AI65)+SUMIF(AH6:AH65,"*:Z*",AI6:AI65)+SUMIF(AH6:AH65,"*:AB*",AI6:AI65)+SUMIF(AH6:AH65,"*:AD*",AI6:AI65)+SUMIF(AH6:AH65,"*:AF*",AI6:AI65)+SUMIF(AH6:AH65,"*:AH*",AI6:AI65)+SUMIF(AH6:AH65,"*:AJ*",AI6:AI65) -> 0 | AK67: =SUMIF(AJ6:AJ65,"*:F*",AK6:AK65)+SUMIF(AJ6:AJ65,"*:H*",AK6:AK65)+SUMIF(AJ6:AJ65,"*:J*",AK6:AK65)+SUMIF(AJ6:AJ65,"*:L*",AK6:AK65)+SUMIF(AJ6:AJ65,"*:N*",AK6:AK65)+SUMIF(AJ6:AJ65,"*:P*",AK6:AK65)+SUMIF(AJ6:AJ65,"*:R*",AK6:AK65)+SUMIF(AJ6:AJ65,"*:T*",AK6:AK65)+SUMIF(AJ6:AJ65,"*:V*",AK6:AK65)+SUMIF(AJ6:AJ65,"*:X*",AK6:AK65)+SUMIF(AJ6:AJ65,"*:Z*",AK6:AK65)+SUMIF(AJ6:AJ65,"*:AB*",AK6:AK65)+SUMIF(AJ6:AJ65,"*:AD*",AK6:AK65)+SUMIF(AJ6:AJ65,"*:AF*",AK6:AK65)+SUMIF(AJ6:AJ65,"*:AH*",AK6:AK65)+SUMIF(AJ6:AJ65,"*:AJ*",AK6:AK65) -> 0 | AL67: =SUM(G67:AK67) -> 0 | AS67: 放假後上課總節數
C68: 融入節數: | E68: =SUM(E6:E65) -> 24 | G68: =SUM(G69-G66-G67) -> 0 | I68: =SUM(I69-I66-I67) -> 0 | K68: =SUM(K69-K66-K67) -> 0 | M68: =SUM(M69-M66-M67) -> 0 | O68: =SUM(O69-O66-O67) -> 0 | Q68: =SUM(Q69-Q66-Q67) -> 0 | S68: =SUM(S69-S66-S67) -> 0 | U68: =SUM(U69-U66-U67) -> 8 | W68: =SUM(W69-W66-W67) -> 0 | Y68: =SUM(Y69-Y66-Y67) -> 0 | AA68: =SUM(AA69-AA66-AA67) -> 1 | AC68: =SUM(AC69-AC66-AC67) -> 1 | AE68: =SUM(AE69-AE66-AE67) -> 1 | AG68: =SUM(AG69-AG66-AG67) -> 4 | AI68: =SUM(AI69-AI66-AI67) -> 16 | AK68: =SUM(AK69-AK66-AK67) -> 26 | AL68: =SUM(G68:AK68) -> 57
C69: 總節數: | E69: =SUM(E6:E65) -> 24 | G69: =SUM(G6:G65) -> 11 | I69: =SUM(I6:I65) -> 10 | K69: =SUM(K6:K65) -> 15 | M69: =SUM(M6:M65) -> 20 | O69: =SUM(O6:O65) -> 20 | Q69: =SUM(Q6:Q65) -> 0 | S69: =SUM(S6:S65) -> 3 | U69: =SUM(U6:U65) -> 100 | W69: =SUM(W6:W65) -> 20 | Y69: =SUM(Y6:Y65) -> 20 | AA69: =SUM(AA6:AA65) -> 73 | AC69: =SUM(AC6:AC65) -> 53 | AE69: =SUM(AE6:AE65) -> 53 | AG69: =SUM(AG6:AG65) -> 76 | AI69: =SUM(AI6:AI65) -> 68 | AK69: =SUM(AK6:AK65) -> 78 | AL69: =SUM(E69:AK69) -> 644 | AQ69: =SUM(AL69-AL67-AL68-AP66) -> 584

Sheet 學習領域各單元
B1: 週次: | D1: 21 | E1: 上學期 | G1: 1.請將正確的資料放在正確的週次右側儲存格) | V1: 每周上課總節數 | AJ1: 4
B2: 第2列_輸入每周上課節數→→→(沒有學習領域節數輸入0,不是空白) | D2: 每周上課節數 | E2: 5 | G2: 1 | I2: 1 | K2: 4 | M2: 3 | O2: 3 | Q2: 4 | S2: 3 | U2: 3 | V2: =SUM(E2:U2) -> 27
D3: 上課週次 | E3: 國語文 | F3: 上課週次 | G3: 本土語言 | H3: 上課週次 | I3: 英語 | J3: 上課週次 | K3: 數學 | L3: 上課週次 | M3: 社會 | N3: 上課週次 | O3: 藝術與人文 | P3: 上課週次 | Q3: 自然與科技 | R3: 上課週次 | S3: 健康與體育 | T3: 上課週次 | U3: 綜合活動 | AI3: 週次 | AJ3: 代號 | AK3: 單元活動名稱 | AL3: 週次 | AM3: 代號 | AN3: 單元活動名稱
B4: 第4列_輸入正確書局版本→→ | E4: 國語 ( 康軒版) 5上 | G4: 本土語言 ( 真平版)5上 | I4: 英語 ( 何嘉仁story.com.)第5冊 | K4: 數學 ( 康軒版)5上 | M4: 社會 (康軒版)5上 | O4: 藝術與人文 (翰林版)5上 | Q4: 自然與科技 (康軒版)5上 | S4: 健康與體育 (南一版)5上 | U4: 綜合活動 (康軒版)5上 | AI4: 1 | AJ4: SB | AK4: 1.認識山門
B5: 第一單元一定在5列→→ | D5: 1 | E5: 擁夢飛翔 一、拔一條河 | F5: 1 | G5: 一、行行出狀元1.阿和人人褒 | H5: 1 | I5: 英語入學輔導週 圖示介紹、角色介紹 | J5: 1 | K5: 數與量 一、小數的加減 | L5: 1 | M5: 一、臺灣在哪裡 1.臺灣我的家 | N5: 1 | O5: 【視覺】壹、動手玩創意一‧天生好手 【表演】貳.、表演任我行一‧化身劇作家 【音樂】參、音樂人生一‧咚得隆咚將鏘 | P5: 1 | Q5: 一、觀測太陽 活動一 會發光發熱的星球 | R5: 1 | S5: 壹、生活智慧王一.聰明消費樂無窮 | T5: 1 | U5: 一、新生活進行式 1.新想法 新嘗試 | AI5: 2 | AJ5: SB | AK5: 2.建築語彙-蓮入瓶安
D6: 2 | E6: 擁夢飛翔 二、從空中看臺灣 | F6: 2 | G6: 一、行行出狀元1.阿和人人褒 | H6: 2 | I6: Unit 1 What Are You Doing? | J6: 2 | K6: 數與量 一、小數的加減 | L6: 2 | M6: 一、臺灣在哪裡 1.臺灣我的家 | N6: 2 | O6: 【視覺】壹、動手玩創意一‧天生好手 【表演】貳.、表演任我行一‧化身劇作家 【音樂】參、音樂人生一‧咚得隆咚將鏘 | P6: 2 | Q6: 一、觀測太陽 活動二 太陽位置的變化 | R6: 2 | S6: 壹、生活智慧王一.聰明消費樂無窮 | T6: 2 | U6: 一、新生活進行式 2.新想法 新嘗試 | AI6: 3 | AJ6: SB | AK6: 3.建築語彙-葫蘆
D7: 3 | E7: 擁夢飛翔 三、蚊帳大使 | F7: 3 | G7: 一、行行出狀元1.阿和人人褒 | H7: 3 | I7: Unit 1 What Are You Doing? | J7: 3 | K7: 數與量 二、因數與倍數 | L7: 3 | M7: 一、臺灣在哪裡 2.臺灣的經度與緯度 | N7: 3 | O7: 【視覺】壹、動手玩創意一‧天生好手 【表演】貳.、表演任我行一‧化身劇作家 【音樂】參、音樂人生一‧咚得隆咚將鏘 | P7: 3 | Q7: 一、觀測太陽 活動二 太陽位置的變化 | R7: 3 | S7: 壹、生活智慧王二.飲食放大鏡 | T7: 3 | U7: 一、新生活進行式 2.走出自己的路 | AI7: 4 | AJ7: SB | AK7: 4.建築語彙-蝙蝠
D8: 4 | E8: 統整活動一 | F8: 4 | G8: 一、行行出狀元2.阿伯欲賣餅 | H8: 4 | I8: Unit 1 What Are You Doing? | J8: 4 | K8: 數與量 二、因數與倍數 | L8: 4 | M8: 一、臺灣在哪裡 2.臺灣的經度與緯度 | N8: 4 | O8: 【視覺】壹、動手玩創意一‧天生好手 【表演】貳.、表演任我行一‧化身劇作家 【音樂】參、音樂人生一‧咚得隆咚將鏘 | P8: 4 | Q8: 一、觀測太陽 活動二 太陽位置的變化 活動三 太陽與生活 | R8: 4 | S8: 壹、生活智慧王二.飲食放大鏡 | T8: 4 | U8: 一、新生活進行式 2.走出自己的路 | AI8: 5 | AJ8: SB | AK8: 5.認識山牆
D9: 5 | E9: 生命啟示錄 四、不一樣的醫生 | F9: 5 | G9: 一、行行出狀元2.阿伯欲賣餅 | H9: 5 | I9: Unit 2 Are You Riding a Bike? | J9: 5 | K9: 數與量 三、擴分、約分和通分 | L9: 5 | M9: 二、自然環境 1.臺灣的地形 | N9: 5 | O9: 【視覺】壹、動手玩創意一‧天生好手 【表演】貳.、表演任我行一‧化身劇作家 【音樂】參、音樂人生一‧咚得隆咚將鏘 | P9: 5 | Q9: 一、觀測太陽 活動三 太陽與生活 二、植物世界面面觀 活動一 植物根、莖、葉的功能 | R9: 5 | S9: 貳、青春無限三.青春紀事簿 | T9: 5 | U9: 二、人際跑跳碰 1.人格特質大不同 | AI9: 6 | AJ9: SB | AK9: 6.馬背、鳥踏
D10: 6 | E10: 生命啟示錄 五、分享的力量 | F10: 6 | G10: 一、行行出狀元2.阿伯欲賣餅 | H10: 6 | I10: Unit 2 Are You Riding a Bike? | J10: 6 | K10: 數與量 三、擴分、約分和通分 | L10: 6 | M10: 二、自然環境 2. 臺灣的氣候 | N10: 6 | O10: 【視覺】壹、動手玩創意一‧天生好手 【表演】貳.、表演任我行一‧化身劇作家 【音樂】參、音樂人生一‧咚得隆咚將鏘 | P10: 6 | Q10: 二、植物世界面面觀 活動一 植物根、莖、葉的功能 | R10: 6 | S10: 貳、青春無限四.青春你我他 | T10: 6 | U10: 二、人際跑跳碰 1.人格特質大不同 | AI10: 7 | AJ10: SB | AK10: 7.斗子牆
D11: 7 | E11: 生命啟示錄 六、田裡的魔法師 | F11: 7 | G11: 一、行行出狀元2.阿伯欲賣餅 | H11: 7 | I11: Unit 2 Are You Riding a Bike? | J11: 7 | K11: 幾何 四、多邊形與扇形 | L11: 7 | M11: 二、自然環境 3.臺灣的河川與海岸 | N11: 7 | O11: 【視覺】壹、動手玩創意二‧我生長的地方 【表演】貳.、表演任我行二‧創意偶戲 【音樂】參、音樂人生二‧咱的家鄉咱的歌 | P11: 7 | Q11: 二、植物世界面面觀 活動一 植物根、莖、葉的功能 活動二 植物的繁殖 | R11: 7 | S11: 貳、青春無限五.小心危險在身邊 | T11: 7 | U11: 二、人際跑跳碰 2.相處有策略 | AI11: 8 | AJ11: SB | AK11: 8.花格磚
D12: 8 | E12: 生命啟示錄 七、從失敗中覺醒 | F12: 8 | G12: 二、臺灣真正好3.公園 | H12: 8 | I12: *Review 1& 期中成績考查 | J12: 8 | K12: 幾何 四、多邊形與扇形 | L12: 8 | M12: 二、自然環境 3.臺灣的河川與海岸 | N12: 8 | O12: 【視覺】壹、動手玩創意二‧我生長的地方 【表演】貳.、表演任我行二‧創意偶戲 【音樂】參、音樂人生二‧咱的家鄉咱的歌 | P12: 8 | Q12: 二、植物世界面面觀 活動二 植物的繁殖 | R12: 8 | S12: 參、活力滿分六.來玩飛盤 | T12: 8 | U12: 二、人際跑跳碰 3.互動有妙招 | AI12: 9 | AJ12: SB | AK12: 9.西施脊、柳條窗
D13: 9 | E13: 生命啟示錄 統整活動二 | F13: 9 | G13: 二、臺灣真正好3.公園 | H13: 9 | I13: *Culture & Festivals Moon Festival | J13: 9 | K13: 數與量 五、異分母分數的加減 | L13: 9 | M13: 三、生活中的規範 1.社會規範面面觀 | N13: 9 | O13: 【視覺】壹、動手玩創意二‧我生長的地方 【表演】貳.、表演任我行二‧創意偶戲 【音樂】參、音樂人生二‧咱的家鄉咱的歌 | P13: 9 | Q13: 二、植物世界面面觀 活動二 植物的繁殖 活動三 植物的分類 | R13: 9 | S13: 參、活力滿分七.我是飛毛腿 | T13: 9 | U13: 三、尊重心關懷情 1.美食無國界 | AI13: 10 | AJ13: SB | AK13: 10.瓦當、滴水
D14: 10 | E14: 閱讀階梯一 永不掉落的葉子 | F14: 10 | G14: 二、臺灣真正好3.公園 | H14: 10 | I14: Unit 3 How’s the Weather? | J14: 10 | K14: 數與量 五、異分母分數的加減 | L14: 10 | M14: 三、生活中的規範 1.社會規範面面觀 | N14: 10 | O14: 【視覺】壹、動手玩創意二‧我生長的地方 【表演】貳.、表演任我行二‧創意偶戲 【音樂】參、音樂人生二‧咱的家鄉咱的歌 | P14: 10 | Q14: 二、植物世界面面觀 活動三 植物的分類 | R14: 10 | S14: 參、活力滿分七.我是飛毛腿 | T14: 10 | U14: 三、尊重心關懷情 2.文化你我他 | AI14: 11 | AJ14: SB | AK14: 11.女兒牆
D15: 11 | E15: 觀察與探索 八、火星人，你好嗎？ | F15: 11 | G15: 二、臺灣真正好4.臺灣風景上蓋讚 | H15: 11 | I15: Unit 3 How’s the Weather? | J15: 11 | K15: 數與量 六、乘法和除法 | L15: 11 | M15: 三、生活中的規範 2.法律你我他 | N15: 11 | O15: 【視覺】壹、動手玩創意二‧我生長的地方 【表演】貳.、表演任我行二‧創意偶戲 【音樂】參、音樂人生二‧咱的家鄉咱的歌 | P15: 11 | Q15: 三、水溶液 活動一 溶解現象 | R15: 11 | S15: 參、活力滿分八.旋轉之王 | T15: 11 | U15: 三、尊重心關懷情 2.文化你我他 | AI15: 12 | AJ15: SB | AK15: 12.尺二磚
D16: 12 | E16: 觀察與探索 九、溪谷間的野鳥 | F16: 12 | G16: 二、臺灣真正好4.臺灣風景上蓋讚 | H16: 12 | I16: Unit 3 How’s the Weather? | J16: 12 | K16: 數與量 六、乘法和除法 | L16: 12 | M16: 四、人民的權利與義務 1.權利人人享 | N16: 12 | O16: 【視覺】壹、動手玩創意二‧我生長的地方 【表演】貳.、表演任我行二‧創意偶戲 【音樂】參、音樂人生二‧咱的家鄉咱的歌 | P16: 12 | Q16: 三、水溶液 活動一 溶解現象 活動二 水溶液的酸鹼性 | R16: 12 | S16: 參、活力滿分八.旋轉之王 | T16: 12 | U16: 三、尊重心關懷情 3、讓愛傳出去 | AI16: 13 | AJ16: SB | AK16: 13.(金木水火土)五形馬背
D17: 13 | E17: 觀察與探索 十、海豚 | F17: 13 | G17: 二、臺灣真正好4.臺灣風景上蓋讚 | H17: 13 | I17: Unit 4 Do You Like Apples? | J17: 13 | K17: 數與量 六、乘法和除法 | L17: 13 | M17: 四、人民的權利與義務 2.義務人人有 | N17: 13 | O17: 【視覺】壹、動手玩創意二‧我生長的地方 【表演】貳.、表演任我行二‧創意偶戲 【音樂】參、音樂人生三‧樂思泉湧 | P17: 13 | Q17: 三、水溶液 活動二 水溶液的酸鹼性 | R17: 13 | S17: 參、活力滿分九.活力有氧 | T17: 13 | U17: 三、尊重心關懷情 3.讓愛傳出去 | AI17: 14 | AJ17: SB | AK17: 14.閩式建築院落
D18: 14 | E18: 觀察與探索 統整活動三 | F18: 14 | G18: 二、臺灣真正好4.臺灣風景上蓋讚 | H18: 14 | I18: Unit 4 Do You Like Apples? | J18: 14 | K18: 數與量、代數 七、整數四則運算 | L18: 14 | M18: 四、人民的權利與義務 2.義務人人有 | N18: 14 | O18: 【視覺】壹、動手玩創意三‧環保你我他 【表演】貳.、表演任我行三‧偶戲賞析大解密 【音樂】參、音樂人生三‧樂思泉湧 | P18: 14 | Q18: 三、水溶液 活動二 水溶液的酸鹼性 | R18: 14 | S18: 參、活力滿分十.投籃高手 | T18: 14 | U18: 四、環境守護者 1.大自然受傷了 | AI18: 15 | AJ18: SB | AK18: 15.一條龍、轆轤把
D19: 15 | E19: 文學步道—人與環境 十一、你想做人魚嗎？ | F19: 15 | G19: 三、歡喜過年5.正月調 | H19: 15 | I19: Unit 4 Do You Like Apples? | J19: 15 | K19: 數與量、代數 七、整數四則運算 | L19: 15 | M19: 五、臺灣的先民 1.史前文化 | N19: 15 | O19: 【視覺】壹、動手玩創意三‧環保你我他 【表演】貳.、表演任我行三‧偶戲賞析大解密 【音樂】參、音樂人生三‧樂思泉湧 | P19: 15 | Q19: 三、水溶液 活動二 水溶液的酸鹼性 活動三 水溶液的導電性 | R19: 15 | S19: 參、活力滿分十.投籃高手 | T19: 15 | U19: 四、環境守護者 1.大自然受傷了 | AI19: 16 | AJ19: SB | AK19: 16.三合院、四合院
D20: 16 | E20: 文學步道—人與環境 十二、衝破逆境 | F20: 16 | G20: 三、歡喜過年5.正月調 | H20: 16 | I20: Unit 5 What Do You Want to Drink? | J20: 16 | K20: 數與量、幾何 八、面積 | L20: 16 | M20: 五、臺灣的先民 2.原住民族文化 | N20: 16 | O20: 【視覺】壹、動手玩創意三‧環保你我他 【表演】貳.、表演任我行三‧偶戲賞析大解密 【音樂】參、音樂人生三‧樂思泉湧 | P20: 16 | Q20: 四、力與運動 活動一 力的作用 | R20: 16 | S20: 肆、矯健身手十一.大顯身手 | T20: 16 | U20: 四、環境守護者 2.綠色生活達人 | AI20: 17 | AJ20: SB | AK20: 17.多護龍、多院落、書院
D21: 17 | E21: 文學步道—人與環境 十三、想念的季節 | F21: 17 | G21: 三、歡喜過年5.正月調 | H21: 17 | I21: Unit 5 What Do You Want to Drink? | J21: 17 | K21: 數與量、幾何 八、面積 | L21: 17 | M21: 五、臺灣的先民 2.原住民族文化 | N21: 17 | O21: 【視覺】壹、動手玩創意三‧環保你我他 【表演】貳.、表演任我行三‧偶戲賞析大解密 【音樂】參、音樂人生三‧樂思泉湧 | P21: 17 | Q21: 四、力與運動 活動一 力的作用 | R21: 17 | S21: 肆、矯健身手十二.與繩共舞 | T21: 17 | U21: 四、環境守護者 2.綠色生活達人 | AI21: 18 | AJ21: SB | AK21: 18.認識廟宇建築
D22: 18 | E22: 文學步道—人與環境 十四、小樹 | F22: 18 | G22: 三、歡喜過年5.正月調 | H22: 18 | I22: Unit 5 What Do You Want to Drink? | J22: 18 | K22: 數與量 九、時間的乘除 | L22: 18 | M22: 六、世界發現臺灣 1.海上來的紅毛人 | N22: 18 | O22: 【視覺】壹、動手玩創意三‧環保你我他 【表演】貳.、表演任我行三‧偶戲賞析大解密 【音樂】參、音樂人生三‧樂思泉湧 | P22: 18 | Q22: 四、力與運動 活動一 力的作用 活動二 物體運動的快慢 | R22: 18 | S22: 肆、矯健身手十二.與繩共舞 | T22: 18 | U22: 五、化解環境危機 1.颱風地震應變通 | AI22: 1 | AJ22: SA | AK22: 都是放屁惹的禍
D23: 19 | E23: 文學步道—人與環境 十四、小樹 | F23: 19 | G23: 俗語、歡喜來過年 ～二九暝 | H23: 19 | I23: *Review 2 | J23: 19 | K23: 數與量 九、時間的乘除 | L23: 19 | M23: 六、世界發現臺灣 1.海上來的紅毛人 | N23: 19 | O23: 【視覺】壹、動手玩創意三‧環保你我他 【表演】貳.、表演任我行三‧偶戲賞析大解密 【音樂】參、音樂人生四‧音樂百寶箱 | P23: 19 | Q23: 四、力與運動 活動二 物體運動的快慢 活動三 摩擦力 | R23: 19 | S23: 肆、矯健身手十三.羽球高手 | T23: 19 | U23: 五、化解環境危機 1.颱風地震應變通 | AI23: 2 | AJ23: SA | AK23: 親愛的漢修先生
D24: 20 | E24: 文學步道—人與環境 統整活動四 | F24: 20 | G24: 古詩吟唱～金縷衣、閩南語歌欣賞～天燈 | H24: 20 | I24: *Final Review 、期末考 | J24: 20 | K24: 幾何 十、柱體、錐體和球 | L24: 20 | M24: 六、世界發現臺灣 2.鄭氏時代的經營 | N24: 20 | O24: 【視覺】壹、動手玩創意三‧環保你我他 【表演】貳.、表演任我行三‧偶戲賞析大解密 【音樂】參、音樂人生四‧音樂百寶箱 | P24: 20 | Q24: 四、力與運動 活動三 摩擦力 | R24: 20 | S24: 肆、矯健身手十三.羽球高手 | T24: 20 | U24: 五、化解環境危機 2.火災意外慎因應 | AI24: 3 | AJ24: SA | AK24: 吸墨鬼來了
D25: 21 | E25: 閱讀階梯二 珍惜水資源 | F25: 21 | G25: 咱來熟似語詞佮句型 | H25: 21 | I25: 成果發表會、休業式 | J25: 21 | K25: 幾何 十、柱體、錐體和球 | L25: 21 | M25: 六、世界發現臺灣 2.鄭氏時代的經營 | N25: 21 | O25: 【視覺】壹、動手玩創意三‧環保你我他 【表演】貳.、表演任我行三‧偶戲賞析大解密 【音樂】參、音樂人生四‧音樂百寶箱 | P25: 21 | Q25: 科學閱讀 | R25: 21 | S25: 總複習 | T25: 21 | U25: 五、化解環境危機 2.火災意外慎因應
B51: 週次: | D51: 20 | E51: 下學期 | G51: (說明:如果COPY的資料有合併儲存的,請取消,將正確的資料放在正確的週次旁儲存格) | V51: 每周上課總節數
B52: 第52列_輸入每周上課節數→→ | E52: 5 | G52: 1 | I52: 1 | K52: 4 | M52: 3 | O52: 3 | Q52: 4 | S52: 3 | U52: 3 | V52: =SUM(E52:U52) -> 27
D53: 上課週次 | E53: 國語文 | F53: 上課週次 | G53: 本土語言 | H53: 上課週次 | I53: 英語 | J53: 上課週次 | K53: 數學 | L53: 上課週次 | M53: 社會 | N53: 上課週次 | O53: 藝術與人文 | P53: 上課週次 | Q53: 自然與科技 | R53: 上課週次 | S53: 健康與體育 | T53: 上課週次 | U53: 綜合活動
B54: 第54列_輸入正確書局版本→→ | C54: 輸入書局版本→→ | E54: 國語 ( 康軒版) 5下 | G54: 本土語言 ( 真平版)5下 | I54: 英語 ( 何嘉仁story.com.)第6冊 | K54: 數學 ( 康軒版)5下 | M54: 社會 (康軒版)5下 | O54: 藝術與人文 (翰林版)5下 | Q54: 自然與科技 (康軒版)5下 | S54: 健康與體育翰林 (南一版)5下 | U54: 綜合活動 (康軒版)5下
B55: 第一單元一定在55列→→ | C55: 第一單元一定在55列→→→→ | D55: 1 | E55: 機智的故事 一、名人記趣 | F55: 1 | G55: 一、快樂的囡仔時 1.歇睏日 | H55: 1 | I55: 圖示介紹、角色介紹、發音複習表 | J55: 1 | K55: 數與量、幾何 一.體積 | L55: 1 | M55: 一、唐山來的拓荒客 1.清代的統治與開發 | N55: 1 | O55: 【視覺】壹、藝術就在你身邊一‧圖紋與生活 【表演】貳、表演任我行一‧「戲」說從頭 【音樂】參、音樂的禮讚一‧搖籃曲 | P55: 1 | Q55: 一、美麗的星空 活動一 星星與星座 活動二 觀測星空 | R55: 1 | S55: 壹、健康防護站一.消費停看聽 | T55: 1 | U55: 一、快樂做自己 1.角色大探索
D56: 2 | E56: 機智的故事 二、秋江獨釣 | F56: 2 | G56: 一、快樂的囡仔時 1.歇睏日 | H56: 2 | I56: Unit 1 What Day Is Today? | J56: 2 | K56: 數與量 二.分數的計算 | L56: 2 | M56: 一、唐山來的拓荒客 2.清代的社會與文化 | N56: 2 | O56: 【視覺】壹、藝術就在你身邊一‧圖紋與生活 【表演】貳、表演任我行一‧「戲」說從頭 【音樂】參、音樂的禮讚一‧搖籃曲 | P56: 2 | Q56: 一、美麗的星空 活動二 觀測星空 活動三 星星位置的改變 | R56: 2 | S56: 壹、健康防護站一.消費停看聽 | T56: 2 | U56: 一、快樂做自己 1.角色大探索
D57: 3 | E57: 機智的故事 三、智救養馬人 | F57: 3 | G57: 一、快樂的囡仔時 1.歇睏日 | H57: 3 | I57: Unit 1 What Day Is Today? | J57: 3 | K57: 數與量 二.分數的計算 | L57: 3 | M57: 一、唐山來的拓荒客 2.清代的社會與文化 | N57: 3 | O57: 【視覺】壹、藝術就在你身邊一‧圖紋與生活 【表演】貳、表演任我行一．「戲」說從頭 【音樂】參、音樂的禮讚一‧搖籃曲 | P57: 3 | Q57: 一、美麗的星空 活動三 星星位置的改變 | R57: 3 | S57: 壹、健康防護站二.寶貝奶奶的健康 | T57: 3 | U57: 一、快樂做自己 2.調整與嘗試
D58: 4 | E58: 機智的故事 統整活動一 | F58: 4 | G58: 一、快樂的囡仔時 2.鬥陣來tshit4 tho5 | H58: 4 | I58: Unit 1 What Day Is Today? | J58: 4 | K58: 數與量 三.容積 | L58: 4 | M58: 二、臺灣現代化的起步 1.清末的開港通商 | N58: 4 | O58: 【視覺】壹、藝術就在你身邊一‧圖紋與生活 【表演】貳、表演任我行一‧「戲」說從頭 【音樂】參、音樂的禮讚一‧搖籃曲 | P58: 4 | Q58: 二、燃燒和生鏽 活動一 氧氣 | R58: 4 | S58: 壹、健康防護站三.無毒家園 | T58: 4 | U58: 一、快樂做自己 3.盡情的展現
D59: 5 | E59: 藝術天地 四、故宮挖「寶」趣 | F59: 5 | G59: 一、快樂的囡仔時 2.鬥陣來tshit4 tho5 | H59: 5 | I59: Unit 2 How Do You Go to Red House? | J59: 5 | K59: 數與量 三.容積 | L59: 5 | M59: 二、臺灣現代化的起步 1.清末的開港通商 | N59: 5 | O59: 【視覺】壹、藝術就在你身邊一‧圖紋與生活 【表演】貳、表演任我行一‧「戲」說從頭 【音樂】參、音樂的禮讚一‧搖籃曲 | P59: 5 | Q59: 二、燃燒和生鏽 活動二 二氧化碳 | R59: 5 | S59: 壹、健康防護站三.無毒家園 | T59: 5 | U59: 二、與壓力共處 1.壓力在哪裡
D60: 6 | E60: 藝術天地 五、恆久的美 | F60: 6 | G60: 一、快樂的囡仔時 2.鬥陣來tshit4 tho5 | H60: 6 | I60: Unit 2 How Do You Go to Red House? | J60: 6 | K60: 數與量 四.小數的乘法 | L60: 6 | M60: 二、臺灣現代化的起步 2.清末的建設 | N60: 6 | O60: 【視覺】壹、藝術就在你身邊一‧圖紋與生活 【表演】貳、表演任我行二‧戲劇造形百寶箱 【音樂】參、音樂的禮讚一‧搖籃曲 | P60: 6 | Q60: 二、燃燒和生鏽 活動二 二氧化碳 | R60: 6 | S60: 貳、青春組曲四.飛躍的青春 | T60: 6 | U60: 二、與壓力共處 1.壓力在哪裡
D61: 7 | E61: 藝術天地 六、戲迷 | F61: 7 | G61: 一、快樂的囡仔時 2.鬥陣來tshit4 tho5 | H61: 7 | I61: Unit 2 How Do You Go to Red House? | J61: 7 | K61: 數與量 四.小數的乘法 | L61: 7 | M61: 二、臺灣現代化的起步 2.清末的建設 | N61: 7 | O61: 【視覺】壹、藝術就在你身邊二‧繪畫與生活 【表演】貳、表演任我行二‧戲劇造形百寶箱 【音樂】參、音樂的禮讚一‧搖籃曲 | P61: 7 | Q61: 二、燃燒和生鏽 活動二 二氧化碳 活動三 鐵生鏽 | R61: 7 | S61: 貳、青春組曲五.家和萬事興 | T61: 7 | U61: 二、與壓力共處 2.正向的思考
D62: 8 | E62: 藝術天地 七、舞動美麗人生 | F62: 8 | G62: 二、咱的故鄉 3.迎媽祖 | H62: 8 | I62: *Review 1& 期中成績考查 | J62: 8 | K62: 幾何 五.線對稱圖形 | L62: 8 | M62: 三、生產與消費 1.生產活動 | N62: 8 | O62: 【視覺】壹、藝術就在你身邊二‧繪畫與生活 【表演】貳、表演任我行二‧戲劇造形百寶箱 【音樂】參、音樂的禮讚二‧傳唱藝術瑰寶 | P62: 8 | Q62: 二、燃燒和生鏽 活動三 鐵生鏽 | R62: 8 | S62: 參、樂活跑碰跳六.班際大隊接力賽 | T62: 8 | U62: 二、與壓力共處 2.正向的思考
D63: 9 | E63: 藝術天地 統整活動二 | F63: 9 | G63: 二、咱的故鄉 3.迎媽祖 | H63: 9 | I63: *Culture & Festivals Easter | J63: 9 | K63: 數與量 六.整數、小數除以整數 | L63: 9 | M63: 三、生產與消費 2.消費行為 | N63: 9 | O63: 【視覺】壹、藝術就在你身邊二‧繪畫與生活 【表演】貳、表演任我行二‧戲劇造形百寶箱 【音樂】參、音樂的禮讚二‧傳唱藝術瑰寶 | P63: 9 | Q63: 二、燃燒和生鏽 活動三 鐵生鏽 | R63: 9 | S63: 參、樂活跑碰跳七.急行跳遠 | T63: 9 | U63: 三、戶外活動樂趣多 1.活動萬花筒
D64: 10 | E64: 閱讀階梯一、要挑最大的 | F64: 10 | G64: 二、咱的故鄉 3.迎媽祖 | H64: 10 | I64: Unit 3 What’s Wrong? | J64: 10 | K64: 數與量 六.整數、小數除以整數 | L64: 10 | M64: 三、生產與消費 2.消費行為 | N64: 10 | O64: 【視覺】壹、藝術就在你身邊二‧繪畫與生活 【表演】貳、表演任我行二‧戲劇造形百寶箱 【音樂】參、音樂的禮讚二‧傳唱藝術瑰寶 | P64: 10 | Q64: 三、動物世界面面觀 活動一 動物如何求生存 | R64: 10 | S64: 參、樂活跑碰跳八.旋轉之美 | T64: 10 | U64: 三、戶外活動樂趣多 2.旅遊活動計畫
D65: 11 | E65: 問題與答案 八、動物的尾巴 | F65: 11 | G65: 二、咱的故鄉 4.「鹿仔港」的由來 | H65: 11 | I65: Unit 3 What’s Wrong? | J65: 11 | K65: 代數 七.列式與解題 | L65: 11 | M65: 四、投資與理財 1.理財面面觀 | N65: 11 | O65: 【視覺】壹、藝術就在你身邊二‧繪畫與生活 【表演】貳、表演任我行二‧戲劇造形百寶箱 【音樂】參、音樂的禮讚二‧傳唱藝術瑰寶 | P65: 11 | Q65: 三、動物世界面面觀 活動一 動物如何求生存 | R65: 11 | S65: 參、樂活跑碰跳八.旋轉之美 | T65: 11 | U65: 三、戶外活動樂趣多 3.戶外活動跨步走
D66: 12 | E66: 問題與答案 九、生命中的「大石頭」 | F66: 12 | G66: 二、咱的故鄉 4.「鹿仔港」的由來 | H66: 12 | I66: Unit 3 What’s Wrong? | J66: 12 | K66: 代數 七.列式與解題 | L66: 12 | M66: 四、投資與理財 1.理財面面觀 | N66: 12 | O66: 【視覺】壹、藝術就在你身邊二‧繪畫與生活 【表演】貳、表演任我行二‧戲劇造形百寶箱 【音樂】參、音樂的禮讚二．傳唱藝術瑰寶 | P66: 12 | Q66: 三、動物世界面面觀 活動二 動物如何延續生命 | R66: 12 | S66: 參、樂活跑碰跳九.武術高手 | T66: 12 | U66: 三、戶外活動樂趣多 3.戶外活動跨步走
D67: 13 | E67: 問題與答案 十、果真如此嗎 | F67: 13 | G67: 二、咱的故鄉 4.「鹿仔港」的由來 | H67: 13 | I67: Unit 4 It’s Time to Go to Bed. | J67: 13 | K67: 數與量、幾何 八.表面積 | L67: 13 | M67: 四、投資與理財 2.投資活動 | N67: 13 | O67: 【視覺】壹、藝術就在你身邊二‧繪畫與生活 【表演】貳、表演任我行二．戲劇造形百寶箱 【音樂】參、音樂的禮讚三．自然的吟唱 | P67: 13 | Q67: 三、動物世界面面觀 活動二 動物如何延續生命 活動三 動物的分類 | R67: 13 | S67: 參、樂活跑碰跳十.一起來玩巧固球 | T67: 13 | U67: 四、互動調色盤 1.發現他人特質
D68: 14 | E68: 問題與答案 統整活動三 | F68: 14 | G68: 二、咱的故鄉 4.「鹿仔港」的由來 | H68: 14 | I68: Unit 4 It’s Time to Go to Bed. | J68: 14 | K68: 數與量、幾何 八.表面積 | L68: 14 | M68: 五、臺灣的自然災害 1.地震 | N68: 14 | O68: 【視覺】壹、藝術就在你身邊三‧漫畫與生活 【表演】貳、表演任我行三‧話說傳統、「戲」往開來 【音樂】參、音樂的禮讚三‧自然的吟唱 | P68: 14 | Q68: 三、動物世界面面觀 活動三 動物的分類 四、聲音與樂器 活動一 生活中常見的聲音 | R68: 14 | S68: 參、樂活跑碰跳十.一起來玩巧固球 | T68: 14 | U68: 四、互動調色盤 1.發現他人特質
D69: 15 | E69: 文學步道─感受自然 十一、湖光山色 | F69: 15 | G69: 三、海洋世界 5.白海豬仔心驚驚 | H69: 15 | I69: Unit 4 It’s Time to Go to Bed. | J69: 15 | K69: 數與量 九.比率與百分率 | L69: 15 | M69: 五、臺灣的自然災害 2.颱風、豪雨、土石流 | N69: 15 | O69: 【視覺】壹、藝術就在你身邊三‧漫畫與生活 【表演】貳、表演任我行三‧話說傳統、「戲」往開來 【音樂】參、音樂的禮讚三‧自然的吟唱 | P69: 15 | Q69: 四、聲音與樂器 活動一 生活中常見的聲音 | R69: 15 | S69: 肆、運動你我他十一.跳箱高手 | T69: 15 | U69: 四、互動調色盤 2.我懂你的心
D70: 16 | E70: 文學步道─感受自然 十二、田園交響曲 | F70: 16 | G70: 三、海洋世界 5.白海豬仔心驚驚 | H70: 16 | I70: Unit 5 What Do You Like to Do? | J70: 16 | K70: 數與量 九.比率與百分率 | L70: 16 | M70: 六、生活與環境 1.臺灣的資源 | N70: 16 | O70: 【視覺】壹、藝術就在你身邊三‧漫畫與生活 【表演】貳、表演任我行三‧話說傳統、「戲」往開來 【音樂】參、音樂人生四‧動物狂歡節 | P70: 16 | Q70: 四、聲音與樂器 活動二 樂音 | R70: 16 | S70: 肆、運動你我他十一.跳箱高手 | T70: 16 | U70: 四、互動調色盤 2.我懂你的心
D71: 17 | E71: 文學步道─感受自然 十三、山豬學校，飛鼠大學 | F71: 17 | G71: 三、海洋世界 5.白海豬仔心驚驚 | H71: 17 | I71: Unit 5 What Do You Like to Do? | J71: 17 | K71: 數與量 九.比率與百分率 | L71: 17 | M71: 六、生活與環境 2.環境的問題與保育 | N71: 17 | O71: 【視覺】壹、藝術就在你身邊三‧漫畫與生活 【表演】貳、表演任我行三．話說傳統、「戲」往開來 【音樂】參、音樂人生四‧動物狂歡節 | P71: 17 | Q71: 四、聲音與樂器 活動二 樂音 | R71: 17 | S71: 肆、運動你我他十二.大家來跳竹竿舞 | T71: 17 | U71: 五、聽見喝采與卓見 1.欣賞你我他
D72: 18 | E72: 文學步道─感受自然 十四、湖濱散記 | F72: 18 | G72: 三、咱的故鄉 5.民俗藝品收藏家 | H72: 18 | I72: Unit 5 What Do You Like to Do? | J72: 18 | K72: 數與量 十.生活中的單位與換算 | L72: 18 | M72: 六、生活與環境 2.環境的問題與保育 | N72: 18 | O72: 【視覺】壹、藝術就在你身邊三‧漫畫與生活 【表演】貳、表演任我行三‧話說傳統、「戲」往開來 【音樂】參、音樂人生四‧動物狂歡節 | P72: 18 | Q72: 四、聲音與樂器 活動三 製作簡易樂器 | R72: 18 | S72: 肆、運動你我他十三.單槓運動我最行 | T72: 18 | U72: 五、聽見喝采與卓見 1.欣賞你我他
D73: 19 | E73: 文學步道─感受自然 統整活動四 | F73: 19 | G73: 俗語、傳統念謠～耕農歌 | H73: 19 | I73: *Review 2 | J73: 19 | K73: 數與量 十.生活中的單位與換算 | L73: 19 | M73: 六、生活與環境 3.永續經營與發展 | N73: 19 | O73: 【視覺】壹、藝術就在你身邊三‧漫畫與生活 【表演】參、話說傳統、「戲」往開來 【音樂】參、音樂人生四‧動物狂歡節 | P73: 19 | Q73: 科學閱讀 | R73: 19 | S73: 肆、運動你我他十四.排球高手 | T73: 19 | U73: 五、聽見喝采與卓見 2.溝通與接納
D74: 20 | E74: 閱讀階梯二、蜘蛛的電報線 | F74: 20 | G74: 古詩吟唱～夜雨寄北、閩南語歌欣賞～月光掖佇東門城 | H74: 20 | I74: *Final Review 、期末考 | J74: 20 | K74: 數與量 十.生活中的單位與換算 | L74: 20 | M74: 六、生活與環境 3.永續經營與發展 | N74: 20 | O74: 【視覺】壹、藝術就在你身邊三‧漫畫與生活 【表演】貳、表演任我行三‧話說傳統、「戲」往開來 【音樂】參、音樂人生四‧動物狂歡節 | P74: 20 | Q74: 科學閱讀 | R74: 20 | S74: 肆、運動你我他十四.排球高手 | T74: 20 | U74: 五、聽見喝采與卓見 2.溝通與接納
I75: 成果發表會、休業式

Sheet 作業平台__教育部局年度規定節數
M1: =IF(I1="","",IF((J1+K1+L1)<T1,"錯,最低節數:"&T1,J1+K1+L1)) ->  | Q1: =IF(I1="","",IF((N1+O1+P1)<U1,"錯,最低節數:"&U1,N1+O1+P1)) ->  | R1: =IF(I1="","",IF(ISERROR(M1+Q1),"錯誤",IF((M1+Q1)<V1,"錯誤,最低節數:"&V1,M1+Q1))) ->  | S1: =IF(H1="","",IF(AND(I1<>"",OR(M1="",Q1="",R1="")),"錯誤_MQR欄之公式被取消",IF(AND(H1="A",OR(K1>0,L1>0,O1>0,P1>0)),"錯誤_修正為A",IF(AND(H1="B",OR(J1>0,L1>0,N1>0,P1>0)),"錯誤_修正為B",IF(AND(H1="C",OR(L1>0,P1>0)),"錯誤_修正為A或B",IF(AND(H1="D",OR(J1>0,K1>0,N1>0,O1>0)),"錯誤_修正為D","")))))) ->  | T1: 公式儲存 | U1: 公式恢復 | W1: =IF(OR(RIGHT(X1,1)=",",RIGHT(Y1,1)=",",RIGHT(Z1,1)=",",RIGHT(AA1,1)=",",RIGHT(AB1,1)=",",RIGHT(AC1,1)=",",RIGHT(AD1,1)=",",RIGHT(AE1,1)=",",RIGHT(AF1,1)=","),"錯多，",IF(OR(LEFT(X1,1)=",",LEFT(Y1,1)=",",LEFT(Z1,1)=",",LEFT(AA1,1)=",",LEFT(AB1,1)=",",LEFT(AC1,1)=",",LEFT(AD1,1)=",",LEFT(AE1,1)=",",LEFT(AF1,1)=","),"錯多，","")) ->  | AE1: 步驟4 | AG1: =IF(X1="",0,LEN(X1)-LEN(SUBSTITUTE(X1,",",""))+1)+IF(Y1="",0,LEN(Y1)-LEN(SUBSTITUTE(Y1,",",""))+1)+IF(Z1="",0,LEN(Z1)-LEN(SUBSTITUTE(Z1,",",""))+1)+IF(AA1="",0,LEN(AA1)-LEN(SUBSTITUTE(AA1,",",""))+1)+IF(AB1="",0,LEN(AB1)-LEN(SUBSTITUTE(AB1,",",""))+1)+IF(AC1="",0,LEN(AC1)-LEN(SUBSTITUTE(AC1,",",""))+1)+IF(AD1="",0,LEN(AD1)-LEN(SUBSTITUTE(AD1,",",""))+1) -> 0 | AH1: =IF(AE1="",0,LEN(AE1)-LEN(SUBSTITUTE(AE1,",",""))+1) -> 1 | AI1: =IF(AF1="",0,LEN(AF1)-LEN(SUBSTITUTE(AF1,",",""))+1) -> 0 | AJ1: =IF(AND(M1=0,(AG1+AH1+AI1)>0),"錯誤輸入",IF(AND(J1="",K1="",L1=""),"",IF(AND(AG1=J1,AH1=K1,AI1=L1),"正確","No"))) ->  | AK1: =COUNTIF(AK6:AK117,">5") -> 0 | AM1: =COUNTIF(AM6:AM46,">6") -> 0 | AQ1: =IF(OR(RIGHT(AR1,1)=",",RIGHT(AS1,1)=",",RIGHT(AT1,1)=",",RIGHT(AU1,1)=",",RIGHT(AV1,1)=",",RIGHT(AW1,1)=",",RIGHT(AX1,1)=",",RIGHT(AY1,1)=",",RIGHT(AZ1,1)=","),"錯多，",IF(OR(LEFT(AR1,1)=",",LEFT(AS1,1)=",",LEFT(AT1,1)=",",LEFT(AU1,1)=",",LEFT(AV1,1)=",",LEFT(AW1,1)=",",LEFT(AX1,1)=",",LEFT(AY1,1)=",",LEFT(AZ1,1)=","),"錯多，","")) ->  | AR1: 備用:步驟3 | AS1: 備用:步驟4 | AY1: 步驟4 | AZ1: =IF(AND(AR3="",AU3="",AV3="",AY3="",AZ3=""),"",IF(AND(Q3=BD3,BD3=BH3),"你很棒,輸入全部正確!可以按步驟4"," 尚未完成,加油!")) -> 你很棒,輸入全部正確!可以按步驟4 | BA1: =IF(AR1="",0,LEN(AR1)-LEN(SUBSTITUTE(AR1,",",""))+1)+IF(AS1="",0,LEN(AS1)-LEN(SUBSTITUTE(AS1,",",""))+1)+IF(AT1="",0,LEN(AT1)-LEN(SUBSTITUTE(AT1,",",""))+1)+IF(AU1="",0,LEN(AU1)-LEN(SUBSTITUTE(AU1,",",""))+1)+IF(AV1="",0,LEN(AV1)-LEN(SUBSTITUTE(AV1,",",""))+1)+IF(AW1="",0,LEN(AW1)-LEN(SUBSTITUTE(AW1,",",""))+1)+IF(AX1="",0,LEN(AX1)-LEN(SUBSTITUTE(AX1,",",""))+1) -> 2 | BB1: =IF(AY1="",0,LEN(AY1)-LEN(SUBSTITUTE(AY1,",",""))+1) -> 1 | BC1: =IF(AZ1="",0,LEN(AZ1)-LEN(SUBSTITUTE(AZ1,",",""))+1) -> 2 | BD1: =IF(AND(Q1=0,(BA1+BB1+BC1)>0),"錯誤輸入",IF(AND(N1="",O1="",P1=""),"",IF(AND(BA1=N1,BB1=O1,BC1=P1),"正確","No"))) ->  | BE1: =COUNTIF(BE6:BE117,">5") -> 0 | BG1: =COUNTIF(BG6:BG46,">6") -> 0 | CP1: 13
D2: 這是:5年級子檔 | G2: 上學期彈性節數分配檢核 | H2: 下學期彈性節數分配檢核 | I2: 6下分配檢核 | J2: 部&局法定最低節數&各校可依需求新增節數 | W2: ※ | X2: ※步驟2:(上課_週次/節數/融入領域/設定)&操作方法:(在X~AB欄綠色儲存格滑鼠左鍵快按2次選取) | AJ2: =COUNTIF(AJ6:AJ105,"No")+COUNTIF(AJ6:AJ105,"錯誤輸入") -> 0 | AL2: 目前已設定的彈性節數(參考用) | AR2: ※步驟2:(上課_週次/節數/融入領域/設定)& 操作方法:(在AR~AV欄綠色儲存格滑鼠左鍵快按2次選取) | BD2: =COUNTIF(BD6:BD105,"No")+COUNTIF(BD6:BD105,"錯誤輸入") -> 0 | BF2: 目前已設定的彈性節數(參考用)
B3: 2 | D3: 插入一列E3* | F3: 刪除一列E3*在名稱儲存格滑鼠快按2次可刪除該列 | G3: =IF(I5="","",IF(SUMIF($E$6:$E$58,"SA",$J$6:$J$58)>使用說明!O3*2,"A2節數太多",IF(SUMIF($E$6:$E$58,"SB",$J$6:$J$58)>使用說明!O3*2,"A3節數太多",IF(SUMIF($E$6:$E$58,"SC",$J$6:$J$58)>使用說明!O3*2,"A4節數太多",IF(SUMIF($E$6:$E$58,"SD",$J$6:$J$58)>使用說明!O3*2,"A5節數太多",IF(SUMIF($E$6:$E$58,"SE",$J$6:$J$58)>使用說明!O3*2,"A6節數太多",IF(SUMIF($E$6:$E$58,"SF",$J$6:$J$58)>使用說明!O3*2,"A7節數太多","OK"))))))) -> OK | H3: =IF(OR(I5="",I5=6),"",IF(SUMIF($E$6:$E$58,"SA",$N$6:$N$58)>使用說明!O4*2,"A2節數太多",IF(SUMIF($E$6:$E$58,"SB",$N$6:$N$58)>使用說明!O4*2,"A3節數太多",IF(SUMIF($E$6:$E$58,"SC",$N$6:$N$58)>使用說明!O4*2,"A4節數太多",IF(SUMIF($E$6:$E$58,"SD",$N$6:$N$58)>使用說明!O4*2,"A5節數太多",IF(SUMIF($E$6:$E$58,"SE",$N$6:$N$58)>使用說明!O4*2,"A6節數太多",IF(SUMIF($E$6:$E$58,"SF",$N$6:$N$58)>使用說明!O4*2,"A7節數太多","OK"))))))) -> OK | I3: =IF(OR(I5="",I5<>6),"",IF(SUMIF($E$6:$E$58,"SA",$N$6:$N$58)>使用說明!O5*2,"A2節數太多",IF(SUMIF($E$6:$E$58,"SB",$N$6:$N$58)>使用說明!O5*2,"A3節數太多",IF(SUMIF($E$6:$E$58,"SC",$N$6:$N$58)>使用說明!O5*2,"A4節數太多",IF(SUMIF($E$6:$E$58,"SD",$N$6:$N$58)>使用說明!O5*2,"A5節數太多",IF(SUMIF($E$6:$E$58,"SE",$N$6:$N$58)>使用說明!O5*2,"A6節數太多",IF(SUMIF($E$6:$E$58,"SF",$N$6:$N$58)>使用說明!O5*2,"A7節數太多","OK"))))))) ->  | J3: =IF(I5="","",IF(VLOOKUP(I5,使用說明!B13:D18,2)="","",IF(J5>(VLOOKUP(I5,使用說明!B13:D18,2)),"彈性節數太多!",IF(J5<(VLOOKUP(I5,使用說明!B13:D18,2)),"彈性節數太少","正確")))) -> 正確 | K3: 上學期 | N3: =IF(I5="","",IF(VLOOKUP(I5,使用說明!B13:D18,3)="","",IF(N5>(VLOOKUP(I5,使用說明!B13:D18,3)),"彈性節數太多!",IF(N5<(VLOOKUP(I5,使用說明!B13:D18,3)),"彈性節數太少","正確")))) -> 正確 | O3: 下學期 | R3: =IF(COUNTIF(R6:R58,"錯誤*")>0,"錯誤請修正!","") ->  | T3: * | U3: REF | X3: 上學期 | Y3: =IF(AND(X5="",Y5="",Z5="",AA5="",AB5="",AC5="",AD5=""),"",IF(AG5=0,"",IF(AJ2>0,"尚未完成或輸入錯誤請修正!",IF(AND(M5=AJ5,AJ5=AN5,AM1>0),"你很棒,輸入全部正確，但是有週次彈性節數太多須修正(補課例外)!","你很棒,輸入全部正確!!可以按步驟4")))) -> 你很棒,輸入全部正確!!可以按步驟4 | AL3: =IF(AM5=0,"",IF(AM1>0,"(※※紅色數字表示該週彈性節數太多!!)","(※各週彈性節數OK正確)")) -> (※各週彈性節數OK正確) | AR3: 下學期 | AS3: =IF(AND(AR5="",AS5="",AT5="",AU5="",AV5="",AW5="",AX5=""),"",IF(BA5=0,"",IF(BD2>0,"尚未完成或輸入錯誤請修正!",IF(AND(Q5=BD5,BD5=BH5,BG1>0),"你很棒,輸入全部正確，但是有週次彈性節數太多須修正(補課例外)","你很棒,輸入全部正確!!可以按步驟4")))) -> 你很棒,輸入全部正確!!可以按步驟4 | BF3: =IF(BG5=0,"",IF(BG1>0,"(※※紅色數字表示該週彈性節數太多!!)","(※各週彈性節數OK正確)")) -> (※各週彈性節數OK正確)
C4: 顏色管理/(學校自行調整) | D4: 編號add | E4: 項目代號 | F4: 檢核項目大綱 | G4: 內定融入領域 | H4: 課程類別代號 | I4: 年級 | J4: A:彈性(105) | K4: B:融入領域 | L4: D:非領域 | M4: 節數合計 | N4: A:彈性(100) | O4: B:融入領域 | P4: D:非領域 | Q4: 節數合計 | R4: 學年度總節數: | T4: 上學期最低節數 | U4: 下學期最低節數 | V4: 總節數 | W4: & | X4: 全校_活動 | Y4: 校本課程d | Z4: 學習扶助(國語) | AA4: 學習扶助(數學) | AB4: 資訊教育 | AE4: B:融入領域課程 | AF4: D:非領域 | AG4: 彈性合計 | AH4: 融入節數 | AI4: 非領域節數 | AJ4: 節數正確否? | AL4: 週次 | AM4: 已設定的彈性節數 | AN4: 各週已設定的彈+融+非領域節數 | AO4: 彈性課程(自訂)跨領域設定D2總節數 | AP4: 跨領域節數小計 | AR4: 全校_活動 | AS4: 校本課程d | AT4: 學習扶助(國語) | AU4: 學習扶助(數學) | AV4: 資訊教育 | AY4: =AE4 -> B:融入領域課程 | AZ4: =AF4 -> D:非領域 | BA4: 彈性合計 | BB4: 融入節數 | BC4: 非領域節數 | BD4: 節數正確否? | BF4: 週次 | BG4: 已設定的彈性節數 | BH4: 各週已設定的彈+融+非領域節數 | BI4: 彈性課程(自訂)跨領域設定D2總節數 | BJ4: 跨領域節數小計
A5: 1* | C5: 1.教 2.學 3.總 4.輔 | F5: 說明:校訂彈性課程,項目自訂,等單元名稱確定後,再執行更新 | G5: 說明:避免校本更換單名稱錯誤 | H5: A:彈性B:融入C:A或B皆可D:非領域E:任何 | I5: 5 | J5: =SUM(J6:J57) -> 105 | K5: 49 | L5: 3 | M5: 157 | N5: 100 | O5: 57 | P5: 3 | Q5: 160 | R5: 317 | X5: 17 | Y5: 13 | Z5: 18 | AA5: 15 | AB5: 21 | AC5: 21 | AD5: 0 | AE5: 49 | AF5: 3 | AG5: 105 | AH5: 49 | AI5: 3 | AJ5: 157 | AL5: 合計 | AM5: 105 | AN5: 157 | AR5: 24 | AS5: 11 | AT5: 10 | AU5: 15 | AV5: 20 | AW5: 20 | AX5: 0 | AY5: 57 | AZ5: 3 | BA5: 100 | BB5: 57 | BC5: 3 | BD5: 160 | BF5: 合計 | BG5: 100 | BH5: 160
B6: =IF(COUNTIF($E$6:$E$58,E6)>1,"代號重複,須更正","") ->  | C6: 1 | D6: 1 | E6: AC | F6: 家政教育 | G6: 9綜合 | H6: B | I6: 5~6 | K6: 12 | M6: =IF(I6="","",IF((J6+K6+L6)<T6,"少於最低節數",J6+K6+L6)) -> 12 | O6: 12 | Q6: =IF(I6="","",IF((N6+O6+P6)<T6,"少於最低節數",N6+O6+P6)) -> 12 | R6: =IF(I6="","",IF((M6+Q6)<V6,"少於最低節數",M6+Q6)) -> 24 | S6: =IF(H6="","",IF(AND(H6="A",OR(K6>0,L6>0,O6>0,P6>0)),"錯誤",IF(AND(H6="B",OR(J6>0,L6>0,N6>0,P6>0)),"錯誤",IF(AND(H6="C",OR(L6>0,P6>0)),"錯誤",IF(AND(H6="D",OR(J6>0,K6>0,N6>0,O6>0)),"錯誤",""))))) ->  | T6: 12 | U6: 12 | V6: =T6+U6 -> 24 | W6: =IF(OR(RIGHT(X6,1)=",",RIGHT(AA6,1)=",",RIGHT(AB6,1)=",",RIGHT(AE6,1)=",",RIGHT(AF6,1)=","),"錯多，",IF(OR(LEFT(X6,1)=",",LEFT(AA6,1)=",",LEFT(AB6,1)=",",LEFT(AE6,1)=",",LEFT(AF6,1)=","),"錯多，","")) ->  | AE6: AJ_2,AJ_2,AJ_3,AJ_3,AJ_4,AJ_4,AJ_14,AJ_14,AJ_15,AJ_15,AJ_16,AJ_16 | AG6: =IF(X6="",0,LEN(X6)-LEN(SUBSTITUTE(X6,",",""))+1)+IF(Y6="",0,LEN(Y6)-LEN(SUBSTITUTE(Y6,",",""))+1)+IF(Z6="",0,LEN(Z6)-LEN(SUBSTITUTE(Z6,",",""))+1)+IF(AA6="",0,LEN(AA6)-LEN(SUBSTITUTE(AA6,",",""))+1)+IF(AB6="",0,LEN(AB6)-LEN(SUBSTITUTE(AB6,",",""))+1)+IF(AC6="",0,LEN(AC6)-LEN(SUBSTITUTE(AC6,",",""))+1)+IF(AD6="",0,LEN(AD6)-LEN(SUBSTITUTE(AD6,",",""))+1) -> 0 | AH6: =IF(AE6="",0,LEN(AE6)-LEN(SUBSTITUTE(AE6,",",""))+1) -> 12 | AI6: =IF(AF6="",0,LEN(AF6)-LEN(SUBSTITUTE(AF6,",",""))+1) -> 0 | AJ6: =IF(AND(M6=0,(AG6+AH6+AI6)>0),"錯誤輸入",IF(AND(J6="",K6="",L6=""),"",IF(AND(AG6=J6,K6=AH6,AI6=L6),"正確","No"))) -> 正確 | AL6: 第1週 | AM6: 5 | AN6: 6 | AQ6: =IF(OR(RIGHT(AR6,1)=",",RIGHT(AU6,1)=",",RIGHT(AV6,1)=",",RIGHT(AY6,1)=",",RIGHT(AZ6,1)=","),"錯多，",IF(OR(LEFT(AR6,1)=",",LEFT(AU6,1)=",",LEFT(AV6,1)=",",LEFT(AY6,1)=",",LEFT(AZ6,1)=","),"錯多，","")) ->  | AY6: AJ_6,AJ_6,AJ_7,AJ_7,AJ_8,AJ_8,AJ_15,AJ_15,AJ_16,AJ_16,AJ_17,AJ_17 | BA6: =IF(AR6="",0,LEN(AR6)-LEN(SUBSTITUTE(AR6,",",""))+1)+IF(AS6="",0,LEN(AS6)-LEN(SUBSTITUTE(AS6,",",""))+1)+IF(AT6="",0,LEN(AT6)-LEN(SUBSTITUTE(AT6,",",""))+1)+IF(AU6="",0,LEN(AU6)-LEN(SUBSTITUTE(AU6,",",""))+1)+IF(AV6="",0,LEN(AV6)-LEN(SUBSTITUTE(AV6,",",""))+1)+IF(AW6="",0,LEN(AW6)-LEN(SUBSTITUTE(AW6,",",""))+1)+IF(AX6="",0,LEN(AX6)-LEN(SUBSTITUTE(AX6,",",""))+1) -> 0 | BB6: =IF(AY6="",0,LEN(AY6)-LEN(SUBSTITUTE(AY6,",",""))+1) -> 12 | BC6: =IF(AZ6="",0,LEN(AZ6)-LEN(SUBSTITUTE(AZ6,",",""))+1) -> 0 | BD6: =IF(AND(Q6=0,(BA6+BB6+BC6)>0),"錯誤輸入",IF(AND(N6="",O6="",P6=""),"",IF(AND(BA6=N6,BB6=O6,BC6=P6),"正確","No"))) -> 正確 | BF6: 第1週 | BG6: 5 | BH6: 5
C7: 4 | D7: 2 | E7: AD | F7: 7.【家庭教育】 | H7: D | I7: 1~6 | L7: 3 | M7: 3 | P7: 3 | Q7: 3 | R7: 6 | S7: =IF(H7="","",IF(AND(H7="A",OR(K7>0,L7>0,O7>0,P7>0)),"錯誤",IF(AND(H7="B",OR(J7>0,L7>0,N7>0,P7>0)),"錯誤",IF(AND(H7="C",OR(L7>0,P7>0)),"錯誤",IF(AND(H7="D",OR(J7>0,K7>0,N7>0,O7>0)),"錯誤",""))))) ->  | T7: 0 | U7: 0 | V7: 6 | AF7: 2,3,4 | AG7: 0 | AH7: =IF(AE7="",0,LEN(AE7)-LEN(SUBSTITUTE(AE7,",",""))+1) -> 0 | AI7: 3 | AJ7: 正確 | AL7: 第2週 | AM7: 5 | AN7: 8 | AQ7: =IF(OR(RIGHT(AR7,1)=",",RIGHT(AU7,1)=",",RIGHT(AV7,1)=",",RIGHT(AY7,1)=",",RIGHT(AZ7,1)=","),"錯多，",IF(OR(LEFT(AR7,1)=",",LEFT(AU7,1)=",",LEFT(AV7,1)=",",LEFT(AY7,1)=",",LEFT(AZ7,1)=","),"錯多，","")) ->  | AZ7: 7,8,9 | BA7: 0 | BB7: 0 | BC7: =IF(AZ7="",0,LEN(AZ7)-LEN(SUBSTITUTE(AZ7,",",""))+1) -> 3 | BD7: 正確 | BF7: 第2週 | BG7: 5 | BH7: 7
C8: 4 | D8: 3 | E8: AE | F8: 家暴_家庭暴力防治教育 | H8: E | I8: 1~6 | K8: 3 | M8: 3 | O8: 3 | Q8: 3 | R8: 6 | T8: 0 | U8: 0 | V8: 6 | AE8: AJ_5,AJ_6,AJ_7 | AG8: 0 | AH8: 3 | AI8: 0 | AJ8: 正確 | AL8: 第3週 | AM8: 5 | AN8: 10 | AQ8: =IF(OR(RIGHT(AR8,1)=",",RIGHT(AU8,1)=",",RIGHT(AV8,1)=",",RIGHT(AY8,1)=",",RIGHT(AZ8,1)=","),"錯多，",IF(OR(LEFT(AR8,1)=",",LEFT(AU8,1)=",",LEFT(AV8,1)=",",LEFT(AY8,1)=",",LEFT(AZ8,1)=","),"錯多，","")) ->  | AY8: AJ_13,AJ_14,AJ_15 | BA8: 0 | BB8: 3 | BC8: =IF(AZ8="",0,LEN(AZ8)-LEN(SUBSTITUTE(AZ8,",",""))+1) -> 0 | BD8: 正確 | BF8: 第3週 | BG8: 5 | BH8: 7
C9: 4 | D9: 4 | E9: AG | F9: 性侵害防治教育 | H9: E | I9: 1~6 | K9: 3 | M9: 3 | O9: 3 | Q9: 3 | R9: 6 | T9: 0 | U9: 0 | V9: 6 | AE9: T_3,T_4,T_6 | AG9: 0 | AH9: 3 | AI9: 0 | AJ9: 正確 | AL9: 第4週 | AM9: 5 | AN9: 10 | AQ9: =IF(OR(RIGHT(AR9,1)=",",RIGHT(AU9,1)=",",RIGHT(AV9,1)=",",RIGHT(AY9,1)=",",RIGHT(AZ9,1)=","),"錯多，",IF(OR(LEFT(AR9,1)=",",LEFT(AU9,1)=",",LEFT(AV9,1)=",",LEFT(AY9,1)=",",LEFT(AZ9,1)=","),"錯多，","")) ->  | AY9: T_16,T_17,T_18 | BA9: 0 | BB9: 3 | BC9: =IF(AZ9="",0,LEN(AZ9)-LEN(SUBSTITUTE(AZ9,",",""))+1) -> 0 | BD9: 正確 | BF9: 第4週 | BG9: 5 | BH9: 8
C10: 4 | D10: 5 | E10: AH | F10: 1.【性別平等教育】 | H10: E | I10: 1~6 | K10: 6 | M10: 6 | O10: 6 | Q10: 6 | R10: 12 | T10: 6 | U10: 6 | V10: 12 | AE10: AJ_8,AJ_9,AJ_10,AJ_12,AJ_13,AJ_14 | AG10: 0 | AH10: 6 | AI10: 0 | AJ10: 正確 | AL10: 第5週 | AM10: 5 | AN10: 9 | AQ10: =IF(OR(RIGHT(AR10,1)=",",RIGHT(AU10,1)=",",RIGHT(AV10,1)=",",RIGHT(AY10,1)=",",RIGHT(AZ10,1)=","),"錯多，",IF(OR(LEFT(AR10,1)=",",LEFT(AU10,1)=",",LEFT(AV10,1)=",",LEFT(AY10,1)=",",LEFT(AZ10,1)=","),"錯多，","")) ->  | AY10: AJ_2,AJ_3,AJ_4,AJ_16,AJ_17,AJ_18 | BA10: 0 | BB10: 6 | BC10: 0 | BD10: 正確 | BF10: 第5週 | BG10: 5 | BH10: 6
C11: 2 | D11: 6 | E11: AI | F11: 3.【環境教育】 | H11: E | I11: 1~6 | K11: 2 | M11: 2 | O11: 2 | Q11: 2 | R11: 4 | T11: 0 | U11: 0 | V11: 4 | AE11: AH_16,AH_17 | AG11: 0 | AH11: 2 | AI11: 0 | AJ11: 正確 | AL11: 第6週 | AM11: 5 | AN11: 9 | AY11: AF_7,AF_8 | BA11: 0 | BB11: 2 | BC11: 0 | BD11: 正確 | BF11: 第6週 | BG11: 5 | BH11: 7
C12: 2 | D12: 7 | E12: AL | F12: 登革熱防治 | G12: 8健體 | H12: B | I12: 1~6 | K12: 1 | M12: 1 | O12: 1 | Q12: 1 | R12: 2 | T12: 1 | U12: 1 | V12: 2 | W12: =IF(OR(RIGHT(X12,1)=",",RIGHT(AA12,1)=",",RIGHT(AB12,1)=",",RIGHT(AE12,1)=",",RIGHT(AF12,1)=","),"錯多，",IF(OR(LEFT(X12,1)=",",LEFT(AA12,1)=",",LEFT(AB12,1)=",",LEFT(AE12,1)=",",LEFT(AF12,1)=","),"錯多，","")) ->  | AE12: AH_3 | AG12: =IF(X12="",0,LEN(X12)-LEN(SUBSTITUTE(X12,",",""))+1)+IF(Y12="",0,LEN(Y12)-LEN(SUBSTITUTE(Y12,",",""))+1)+IF(Z12="",0,LEN(Z12)-LEN(SUBSTITUTE(Z12,",",""))+1)+IF(AA12="",0,LEN(AA12)-LEN(SUBSTITUTE(AA12,",",""))+1)+IF(AB12="",0,LEN(AB12)-LEN(SUBSTITUTE(AB12,",",""))+1)+IF(AC12="",0,LEN(AC12)-LEN(SUBSTITUTE(AC12,",",""))+1)+IF(AD12="",0,LEN(AD12)-LEN(SUBSTITUTE(AD12,",",""))+1) -> 0 | AH12: 1 | AI12: 0 | AJ12: 正確 | AL12: 第7週 | AM12: 5 | AN12: 8 | AY12: AH_13 | BA12: 0 | BB12: 1 | BC12: 0 | BD12: 正確 | BF12: 第7週 | BG12: 5 | BH12: 9
C13: 1 | D13: 8 | E13: AN | F13: 作文教學 | H13: C | I13: 3~6 | J13: 4 | K13: 4 | M13: 8 | N13: 4 | O13: 4 | Q13: 8 | R13: 16 | T13: 4 | U13: 4 | V13: 8 | X13: 4,8,13,18 | AE13: T_4,T_8,T_13,T_18 | AG13: 4 | AH13: 4 | AI13: 0 | AJ13: 正確 | AL13: 第8週 | AM13: 5 | AN13: 8 | AR13: 4,8,13,19 | AY13: T_4,T_8,T_13,T_19 | BA13: 4 | BB13: 4 | BC13: 0 | BD13: 正確 | BF13: 第8週 | BG13: 5 | BH13: 11
C14: 2 | D14: 9 | E14: BA | F14: 飲食教育 | G14: 8健體 | H14: B | I14: 1~6 | K14: 5 | M14: 5 | O14: 5 | Q14: 5 | R14: 10 | T14: 5 | U14: 5 | V14: 10 | AE14: AH_13,AH_14,AH_15,AH_16,AH_17 | AG14: 0 | AH14: 5 | AI14: 0 | AJ14: 正確 | AL14: 第9週 | AM14: 5 | AN14: 7 | AY14: AH_14,AH_15,AH_16,AH_17,AH_18 | BA14: 0 | BB14: 5 | BC14: 0 | BD14: 正確 | BF14: 第9週 | BG14: 5 | BH14: 7
C15: 4 | D15: 10 | E15: BF | F15: 職業試探 | H15: B | I15: 1~6 | K15: 1 | M15: 1 | O15: 1 | Q15: 1 | R15: 2 | T15: 0 | U15: 0 | V15: 0 | AE15: AJ_17 | AG15: 0 | AH15: 1 | AI15: 0 | AJ15: 正確 | AL15: 第10週 | AM15: 5 | AN15: 7 | AY15: AJ_13 | BA15: 0 | BB15: 1 | BC15: 0 | BD15: 正確 | BF15: 第10週 | BG15: 5 | BH15: 7
C16: 2 | D16: 11 | E16: BG | F16: 4.【海洋教育】 | H16: B | I16: 1~6 | K16: 1 | M16: 1 | O16: 1 | Q16: 1 | R16: 2 | T16: 0 | U16: 0 | V16: 0 | AE16: AH_5 | AG16: 0 | AH16: 1 | AI16: 0 | AJ16: 正確 | AL16: 第11週 | AM16: 5 | AN16: 13 | AY16: AH_7 | BA16: 0 | BB16: 1 | BC16: 0 | BD16: 正確 | BF16: 第11週 | BG16: 5 | BH16: 14
C17: 2 | D17: 12 | E17: BH | F17: 低碳教育 | H17: E | I17: 1~6 | K17: 1 | M17: 1 | O17: 1 | Q17: 1 | R17: 2 | T17: 0 | U17: 0 | V17: 2 | AE17: AF_15 | AG17: 0 | AH17: 1 | AI17: 0 | AJ17: 正確 | AL17: 第12週 | AM17: 5 | AN17: 7 | AY17: AF_5 | BA17: 0 | BB17: 1 | BC17: 0 | BD17: 正確 | BF17: 第12週 | BG17: 5 | BH17: 5
C18: 2 | D18: 13 | E18: BI | F18: 交通安全教育 | H18: B | I18: 1~6 | K18: 3 | M18: 3 | O18: 3 | Q18: 3 | R18: 6 | T18: 0 | U18: 0 | V18: 0 | AE18: AJ_5,AJ_6,AJ_7 | AG18: 0 | AH18: 3 | AI18: 0 | AJ18: 正確 | AL18: 第13週 | AM18: 5 | AN18: 9 | AY18: AJ_2,AJ_3,AJ_4 | BA18: 0 | BB18: 3 | BC18: 0 | BD18: 正確 | BF18: 第13週 | BG18: 5 | BH18: 9
C19: 1 | D19: 14 | E19: SA | F19: 校本課程d | G19: A2 | H19: A | I19: 1~6 | J19: 13 | M19: 13 | N19: 11 | Q19: 11 | R19: 24 | Y19: 1,2,5,6,7,9,10,11,15,16,19,20,21 | AG19: 13 | AH19: 0 | AI19: 0 | AJ19: 正確 | AL19: 第14週 | AM19: 5 | AN19: 10 | AS19: 1,2,3,5,6,9,10,11,18,19,20 | BA19: 11 | BB19: 0 | BC19: 0 | BD19: =IF(AND(Q19=0,(BA19+BB19+BC19)>0),"錯誤輸入",IF(AND(N19="",O19="",P19=""),"",IF(AND(BA19=N19,BB19=O19,BC19=P19),"正確","No"))) -> 正確 | BF19: 第14週 | BG19: 5 | BH19: 7
C20: 1 | D20: 15 | E20: SB | F20: 學習扶助(國語) | G20: A3 | H20: A | I20: 1~6 | J20: 18 | M20: 18 | N20: 10 | Q20: 10 | R20: 28 | Z20: 1,2,3,4,5,6,7,8,9,10,11,15,16,17,18,19,20,21 | AG20: 18 | AH20: 0 | AI20: 0 | AJ20: 正確 | AL20: 第15週 | AM20: 5 | AN20: 10 | AT20: 2,5,6,9,10,11,14,18,19,20 | BA20: 10 | BB20: 0 | BC20: 0 | BD20: 正確 | BF20: 第15週 | BG20: 5 | BH20: 9
C21: 1 | D21: 16 | E21: SC | F21: 學習扶助(數學) | G21: A4 | H21: A | I21: 1~6 | J21: 15 | M21: 15 | N21: 15 | Q21: 15 | R21: 30 | AA21: 2,4,5,6,7,8,9,10,11,15,16,18,19,20,21 | AG21: 15 | AH21: 0 | AI21: 0 | AJ21: 正確 | AL21: 第16週 | AM21: 5 | AN21: 10 | AU21: 1,2,3,4,5,6,7,8,9,10,11,12,13,18,20 | BA21: 15 | BB21: 0 | BC21: 0 | BD21: 正確 | BF21: 第16週 | BG21: 5 | BH21: 10
C22: 1 | D22: 17 | E22: SD | F22: 資訊教育 | G22: A5 | H22: A | I22: 1~6 | J22: 21 | M22: 21 | N22: 20 | Q22: 20 | R22: 41 | AB22: 1,2,3,4,5,6,7,8,9,10,11,12,13,14,15,16,17,18,19,20,21 | AG22: 21 | AH22: 0 | AI22: 0 | AJ22: 正確 | AL22: 第17週 | AM22: 5 | AN22: 9 | AV22: 1,2,3,4,5,6,7,8,9,10,11,12,13,14,15,16,17,18,19,20 | BA22: 20 | BB22: 0 | BC22: 0 | BD22: 正確 | BF22: 第17週 | BG22: 5 | BH22: 10
C23: 1 | D23: 18 | E23: SE | G23: A6 | H23: A | I23: 1~6 | J23: 21 | M23: 21 | N23: 20 | Q23: 20 | R23: 41 | AC23: 1,2,3,4,5,6,7,8,9,10,11,12,13,14,15,16,17,18,19,20,21 | AG23: 21 | AH23: 0 | AI23: 0 | AJ23: 正確 | AL23: 第18週 | AM23: 5 | AN23: 7 | AW23: 1,2,3,4,5,6,7,8,9,10,11,12,13,14,15,16,17,18,19,20 | BA23: 20 | BB23: 0 | BC23: 0 | BD23: 正確 | BF23: 第18週 | BG23: 5 | BH23: 8
C24: 2 | D24: 19 | E24: CC | F24: 校慶活動(含預演) | H24: A | I24: 3~6 | J24: 8 | K24: 0 | M24: 8 | Q24: 0 | R24: 8 | X24: 12,12,12,13,13,14,14,14 | AG24: 8 | AH24: 0 | AI24: 0 | AJ24: 正確 | AL24: 第19週 | AM24: 5 | AN24: 6 | BA24: 0 | BB24: 0 | BC24: 0 | BF24: 第19週 | BG24: 5 | BH24: 6
C25: 2 | D25: 20 | E25: CD | F25: 18.【戶外教育】 | H25: C | I25: 1~6 | K25: 7 | M25: 7 | N25: 0 | O25: 7 | Q25: 7 | R25: 14 | AE25: T_11,Z_11,AB_11,AD_11,AF_11,AH_11,AJ_11 | AG25: 0 | AH25: 7 | AI25: 0 | AJ25: 正確 | AL25: 第20週 | AM25: 5 | AN25: 6 | AY25: T_11,Z_11,AB_11,AD_11,AF_11,AH_11,AJ_11 | BA25: 0 | BB25: 7 | BC25: 0 | BD25: 正確 | BF25: 第20週 | BG25: 5 | BH25: 5
C26: 1 | D26: 21 | E26: CE | F26: 畢業典禮活動 | H26: A | I26: 1~6 | J26: 0 | M26: 0 | N26: 6 | O26: 0 | Q26: 6 | R26: 6 | AG26: 0 | AH26: 0 | AI26: 0 | AJ26: 正確 | AL26: 第21週 | AM26: 5 | AN26: 6 | AR26: 16,16,16,17,17,17 | BA26: 6 | BB26: 0 | BC26: 0 | BD26: 正確
C27: 2 | D27: 22 | E27: CG | F27: 口腔檢查 | H27: A | I27: 1~6 | J27: 1 | M27: 1 | N27: 1 | Q27: 1 | R27: 2 | X27: 3 | AG27: 1 | AH27: 0 | AI27: 0 | AJ27: 正確 | AR27: 3 | BA27: 1 | BB27: 0 | BC27: 0 | BD27: 正確
C28: 2 | D28: 23 | E28: CH | F28: 身高體重視力檢查 | H28: A | I28: 1~6 | J28: 1 | M28: 1 | N28: 1 | Q28: 1 | R28: 2 | X28: 3 | AG28: 1 | AH28: 0 | AI28: 0 | AJ28: 正確 | AR28: 4 | BA28: 1 | BB28: 0 | BC28: 0 | BD28: 正確
C29: 2 | D29: 24 | E29: CI | F29: 一四年級健康檢查 | H29: A | I29: 1~6 | M29: 0 | Q29: 0 | R29: 0 | AG29: 0 | AH29: 0 | AI29: 0 | BA29: 0 | BB29: 0 | BC29: 0
C30: 2 | D30: 25 | E30: CJ | F30: 預防注射(流感) | H30: A | I30: 1~6 | J30: 1 | M30: 1 | N30: 1 | Q30: 1 | R30: 2 | S30: =IF(H30="","",IF(AND(H30="A",OR(K30>0,L30>0,O30>0,P30>0)),"錯誤",IF(AND(H30="B",OR(J30>0,L30>0,N30>0,P30>0)),"錯誤",IF(AND(H30="C",OR(L30>0,P30>0)),"錯誤",IF(AND(H30="D",OR(J30>0,K30>0,N30>0,O30>0)),"錯誤",""))))) ->  | W30: =IF(OR(RIGHT(X30,1)=",",RIGHT(AA30,1)=",",RIGHT(AB30,1)=",",RIGHT(AE30,1)=",",RIGHT(AF30,1)=","),"錯多，",IF(OR(LEFT(X30,1)=",",LEFT(AA30,1)=",",LEFT(AB30,1)=",",LEFT(AE30,1)=",",LEFT(AF30,1)=","),"錯多，","")) ->  | X30: 1 | AG30: 1 | AH30: 0 | AI30: =IF(AF30="",0,LEN(AF30)-LEN(SUBSTITUTE(AF30,",",""))+1) -> 0 | AJ30: 正確 | AQ30: =IF(OR(RIGHT(AR30,1)=",",RIGHT(AU30,1)=",",RIGHT(AV30,1)=",",RIGHT(AY30,1)=",",RIGHT(AZ30,1)=","),"錯多，",IF(OR(LEFT(AR30,1)=",",LEFT(AU30,1)=",",LEFT(AV30,1)=",",LEFT(AY30,1)=",",LEFT(AZ30,1)=","),"錯多，","")) ->  | AR30: 1 | BA30: 1 | BB30: =IF(AY30="",0,LEN(AY30)-LEN(SUBSTITUTE(AY30,",",""))+1) -> 0 | BC30: 0 | BD30: =IF(AND(Q30=0,(BA30+BB30+BC30)>0),"錯誤輸入",IF(AND(N30="",O30="",P30=""),"",IF(AND(BA30=N30,BB30=O30,BC30=P30),"正確","No"))) -> 正確
C31: 2 | D31: 26 | E31: CK | F31: 聖誕節活動 | H31: A | I31: 1~6 | J31: 2 | M31: 2 | Q31: 0 | R31: 2 | X31: 17,17 | AG31: =IF(X31="",0,LEN(X31)-LEN(SUBSTITUTE(X31,",",""))+1)+IF(Y31="",0,LEN(Y31)-LEN(SUBSTITUTE(Y31,",",""))+1)+IF(Z31="",0,LEN(Z31)-LEN(SUBSTITUTE(Z31,",",""))+1)+IF(AA31="",0,LEN(AA31)-LEN(SUBSTITUTE(AA31,",",""))+1)+IF(AB31="",0,LEN(AB31)-LEN(SUBSTITUTE(AB31,",",""))+1)+IF(AC31="",0,LEN(AC31)-LEN(SUBSTITUTE(AC31,",",""))+1)+IF(AD31="",0,LEN(AD31)-LEN(SUBSTITUTE(AD31,",",""))+1) -> 2 | AH31: 0 | AI31: 0 | AJ31: 正確 | BA31: =IF(AR31="",0,LEN(AR31)-LEN(SUBSTITUTE(AR31,",",""))+1)+IF(AS31="",0,LEN(AS31)-LEN(SUBSTITUTE(AS31,",",""))+1)+IF(AT31="",0,LEN(AT31)-LEN(SUBSTITUTE(AT31,",",""))+1)+IF(AU31="",0,LEN(AU31)-LEN(SUBSTITUTE(AU31,",",""))+1)+IF(AV31="",0,LEN(AV31)-LEN(SUBSTITUTE(AV31,",",""))+1)+IF(AW31="",0,LEN(AW31)-LEN(SUBSTITUTE(AW31,",",""))+1)+IF(AX31="",0,LEN(AX31)-LEN(SUBSTITUTE(AX31,",",""))+1) -> 0 | BB31: 0 | BC31: 0
C32: 2 | D32: 27 | E32: CL | F32: 基本能力檢測(五年級) | H32: A | I32: 5 | M32: 0 | N32: 2 | Q32: 2 | R32: 2 | AG32: 0 | AH32: =IF(AE32="",0,LEN(AE32)-LEN(SUBSTITUTE(AE32,",",""))+1) -> 0 | AI32: 0 | AJ32: =IF(AND(M32=0,(AG32+AH32+AI32)>0),"錯誤輸入",IF(AND(J32="",K32="",L32=""),"",IF(AND(AG32=J32,K32=AH32,AI32=L32),"正確","No"))) ->  | AR32: 14,14 | BA32: 2 | BB32: 0 | BC32: 0 | BD32: 正確
C33: 2 | D33: 28 | E33: CM | F33: 兒童節慶祝活動 | H33: A | I33: 1~6 | M33: 0 | N33: 3 | Q33: 3 | R33: 3 | AG33: 0 | AH33: 0 | AI33: 0 | AR33: 7,7,8 | BA33: 3 | BB33: 0 | BC33: 0 | BD33: 正確
C34: 2 | D34: 57 | E34: CN | F34: 自治市長選舉 | H34: A | I34: 1~6 | M34: 0 | N34: 1 | Q34: 1 | R34: 1 | S34: =IF(H34="","",IF(AND(I34<>"",OR(M34="",Q34="",R34="")),"錯誤_MQR欄之公式被取消",IF(AND(H34="A",OR(K34>0,L34>0,O34>0,P34>0)),"錯誤",IF(AND(H34="B",OR(J34>0,L34>0,N34>0,P34>0)),"錯誤",IF(AND(H34="C",OR(L34>0,P34>0)),"錯誤",IF(AND(H34="D",OR(J34>0,K34>0,N34>0,O34>0)),"錯誤","")))))) ->  | AG34: 0 | AH34: 0 | AI34: 0 | AR34: 13 | BA34: 1 | BB34: 0 | BC34: 0 | BD34: 正確
C35: 2 | D35: 58 | E35: CO | F35: 慶祝母親節活動 | H35: A | I35: 1~6 | M35: 0 | N35: 2 | Q35: 2 | R35: 2 | S35: =IF(H35="","",IF(AND(I35<>"",OR(M35="",Q35="",R35="")),"錯誤_MQR欄之公式被取消",IF(AND(H35="A",OR(K35>0,L35>0,O35>0,P35>0)),"錯誤",IF(AND(H35="B",OR(J35>0,L35>0,N35>0,P35>0)),"錯誤",IF(AND(H35="C",OR(L35>0,P35>0)),"錯誤",IF(AND(H35="D",OR(J35>0,K35>0,N35>0,O35>0)),"錯誤","")))))) ->  | AG35: 0 | AH35: 0 | AI35: 0 | AR35: 12,12 | BA35: 2 | BB35: 0 | BC35: 0 | BD35: 正確
C36: 1 | D36: 59 | E36: CP | F36: 班際體育競賽 | H36: A | I36: 1~6 | M36: 0 | N36: 1 | Q36: 1 | R36: 1 | S36: =IF(H36="","",IF(AND(I36<>"",OR(M36="",Q36="",R36="")),"錯誤_MQR欄之公式被取消",IF(AND(H36="A",OR(K36>0,L36>0,O36>0,P36>0)),"錯誤",IF(AND(H36="B",OR(J36>0,L36>0,N36>0,P36>0)),"錯誤",IF(AND(H36="C",OR(L36>0,P36>0)),"錯誤",IF(AND(H36="D",OR(J36>0,K36>0,N36>0,O36>0)),"錯誤","")))))) ->  | AG36: 0 | AH36: 0 | AI36: 0 | AR36: 15 | BA36: 1 | BB36: 0 | BC36: 0 | BD36: 正確
C37: 1 | D37: 60 | E37: CQ | F37: 歡送畢業生園遊會 | H37: A | I37: 1~6 | M37: 0 | N37: 2 | Q37: 2 | R37: 2 | AG37: 0 | AH37: 0 | AI37: 0 | AR37: 15,15 | BA37: 2 | BB37: 0 | BC37: 0 | BD37: 正確
C38: 1 | D38: 61 | E38: CR | F38: 游泳教學 | H38: B | I38: 3~6 | M38: 0 | O38: 8 | Q38: 8 | R38: 8 | AG38: 0 | AH38: 0 | AI38: 0 | AY38: AH_8,AH_8,AH_9,AH_9,AH_10,AH_10,AH_11,AH_11 | BA38: 0 | BB38: 8 | BC38: 0 | BD38: 正確
M39: =IF(I39="","",IF((J39+K39+L39)<T39,"錯,最低節數:"&T39,J39+K39+L39)) ->  | Q39: =IF(I39="","",IF((N39+O39+P39)<U39,"錯,最低節數:"&U39,N39+O39+P39)) ->  | R39: =IF(I39="","",IF(ISERROR(M39+Q39),"錯誤",IF((M39+Q39)<V39,"錯誤,最低節數:"&V39,M39+Q39))) ->  | AG39: 0 | AH39: 0 | AI39: 0 | BA39: 0 | BB39: =IF(AY39="",0,LEN(AY39)-LEN(SUBSTITUTE(AY39,",",""))+1) -> 0 | BC39: 0 | BD39: =IF(AND(Q39=0,(BA39+BB39+BC39)>0),"錯誤輸入",IF(AND(N39="",O39="",P39=""),"",IF(AND(BA39=N39,BB39=O39,BC39=P39),"正確","No"))) -> 
AG40: 0 | AH40: 0 | AI40: 0 | BA40: 0 | BB40: 0 | BC40: 0
AG41: 0 | AH41: =IF(AE41="",0,LEN(AE41)-LEN(SUBSTITUTE(AE41,",",""))+1) -> 0 | AI41: 0 | BA41: 0 | BB41: 0 | BC41: 0
AG42: 0 | AH42: 0 | AI42: 0 | BA42: 0 | BB42: 0 | BC42: 0
AG43: 0 | AH43: 0 | AI43: 0 | BA43: 0 | BB43: 0 | BC43: 0
AG44: 0 | AH44: 0 | AI44: 0 | BA44: 0 | BB44: 0 | BC44: 0
AG45: 0 | AH45: 0 | AI45: 0 | BA45: 0 | BB45: 0 | BC45: 0
AG46: 0 | AH46: 0 | AI46: 0 | BA46: 0 | BB46: 0 | BC46: 0
W53: =IF(OR(RIGHT(X53,1)=",",RIGHT(AA53,1)=",",RIGHT(AB53,1)=",",RIGHT(AE53,1)=",",RIGHT(AF53,1)=","),"錯多，",IF(OR(LEFT(X53,1)=",",LEFT(AA53,1)=",",LEFT(AB53,1)=",",LEFT(AE53,1)=",",LEFT(AF53,1)=","),"錯多，","")) -> 
W61: =IF(OR(RIGHT(X61,1)=",",RIGHT(AA61,1)=",",RIGHT(AB61,1)=",",RIGHT(AE61,1)=",",RIGHT(AF61,1)=","),"錯多，",IF(OR(LEFT(X61,1)=",",LEFT(AA61,1)=",",LEFT(AB61,1)=",",LEFT(AE61,1)=",",LEFT(AF61,1)=","),"錯多，","")) -> 
W125: =IF(OR(RIGHT(X125,1)=",",RIGHT(AA125,1)=",",RIGHT(AB125,1)=",",RIGHT(AE125,1)=",",RIGHT(AF125,1)=","),"錯多，",IF(OR(LEFT(X125,1)=",",LEFT(AA125,1)=",",LEFT(AB125,1)=",",LEFT(AE125,1)=",",LEFT(AF125,1)=","),"錯多，","")) -> 
W189: =IF(OR(RIGHT(X189,1)=",",RIGHT(AA189,1)=",",RIGHT(AB189,1)=",",RIGHT(AE189,1)=",",RIGHT(AF189,1)=","),"錯多，",IF(OR(LEFT(X189,1)=",",LEFT(AA189,1)=",",LEFT(AB189,1)=",",LEFT(AE189,1)=",",LEFT(AF189,1)=","),"錯多，","")) -> 
W253: =IF(OR(RIGHT(X253,1)=",",RIGHT(AA253,1)=",",RIGHT(AB253,1)=",",RIGHT(AE253,1)=",",RIGHT(AF253,1)=","),"錯多，",IF(OR(LEFT(X253,1)=",",LEFT(AA253,1)=",",LEFT(AB253,1)=",",LEFT(AE253,1)=",",LEFT(AF253,1)=","),"錯多，","")) -> 
W317: =IF(OR(RIGHT(X317,1)=",",RIGHT(AA317,1)=",",RIGHT(AB317,1)=",",RIGHT(AE317,1)=",",RIGHT(AF317,1)=","),"錯多，",IF(OR(LEFT(X317,1)=",",LEFT(AA317,1)=",",LEFT(AB317,1)=",",LEFT(AE317,1)=",",LEFT(AF317,1)=","),"錯多，","")) -> 
W381: =IF(OR(RIGHT(X381,1)=",",RIGHT(AA381,1)=",",RIGHT(AB381,1)=",",RIGHT(AE381,1)=",",RIGHT(AF381,1)=","),"錯多，",IF(OR(LEFT(X381,1)=",",LEFT(AA381,1)=",",LEFT(AB381,1)=",",LEFT(AE381,1)=",",LEFT(AF381,1)=","),"錯多，","")) -> 
W445: =IF(OR(RIGHT(X445,1)=",",RIGHT(AA445,1)=",",RIGHT(AB445,1)=",",RIGHT(AE445,1)=",",RIGHT(AF445,1)=","),"錯多，",IF(OR(LEFT(X445,1)=",",LEFT(AA445,1)=",",LEFT(AB445,1)=",",LEFT(AE445,1)=",",LEFT(AF445,1)=","),"錯多，","")) -> 
W509: =IF(OR(RIGHT(X509,1)=",",RIGHT(AA509,1)=",",RIGHT(AB509,1)=",",RIGHT(AE509,1)=",",RIGHT(AF509,1)=","),"錯多，",IF(OR(LEFT(X509,1)=",",LEFT(AA509,1)=",",LEFT(AB509,1)=",",LEFT(AE509,1)=",",LEFT(AF509,1)=","),"錯多，","")) -> 
W573: =IF(OR(RIGHT(X573,1)=",",RIGHT(AA573,1)=",",RIGHT(AB573,1)=",",RIGHT(AE573,1)=",",RIGHT(AF573,1)=","),"錯多，",IF(OR(LEFT(X573,1)=",",LEFT(AA573,1)=",",LEFT(AB573,1)=",",LEFT(AE573,1)=",",LEFT(AF573,1)=","),"錯多，","")) -> 
W637: =IF(OR(RIGHT(X637,1)=",",RIGHT(AA637,1)=",",RIGHT(AB637,1)=",",RIGHT(AE637,1)=",",RIGHT(AF637,1)=","),"錯多，",IF(OR(LEFT(X637,1)=",",LEFT(AA637,1)=",",LEFT(AB637,1)=",",LEFT(AE637,1)=",",LEFT(AF637,1)=","),"錯多，","")) -> 
W701: =IF(OR(RIGHT(X701,1)=",",RIGHT(AA701,1)=",",RIGHT(AB701,1)=",",RIGHT(AE701,1)=",",RIGHT(AF701,1)=","),"錯多，",IF(OR(LEFT(X701,1)=",",LEFT(AA701,1)=",",LEFT(AB701,1)=",",LEFT(AE701,1)=",",LEFT(AF701,1)=","),"錯多，","")) -> 
W765: =IF(OR(RIGHT(X765,1)=",",RIGHT(AA765,1)=",",RIGHT(AB765,1)=",",RIGHT(AE765,1)=",",RIGHT(AF765,1)=","),"錯多，",IF(OR(LEFT(X765,1)=",",LEFT(AA765,1)=",",LEFT(AB765,1)=",",LEFT(AE765,1)=",",LEFT(AF765,1)=","),"錯多，","")) -> 
W829: =IF(OR(RIGHT(X829,1)=",",RIGHT(AA829,1)=",",RIGHT(AB829,1)=",",RIGHT(AE829,1)=",",RIGHT(AF829,1)=","),"錯多，",IF(OR(LEFT(X829,1)=",",LEFT(AA829,1)=",",LEFT(AB829,1)=",",LEFT(AE829,1)=",",LEFT(AF829,1)=","),"錯多，","")) -> 
W893: =IF(OR(RIGHT(X893,1)=",",RIGHT(AA893,1)=",",RIGHT(AB893,1)=",",RIGHT(AE893,1)=",",RIGHT(AF893,1)=","),"錯多，",IF(OR(LEFT(X893,1)=",",LEFT(AA893,1)=",",LEFT(AB893,1)=",",LEFT(AE893,1)=",",LEFT(AF893,1)=","),"錯多，","")) -> 
W957: =IF(OR(RIGHT(X957,1)=",",RIGHT(AA957,1)=",",RIGHT(AB957,1)=",",RIGHT(AE957,1)=",",RIGHT(AF957,1)=","),"錯多，",IF(OR(LEFT(X957,1)=",",LEFT(AA957,1)=",",LEFT(AB957,1)=",",LEFT(AE957,1)=",",LEFT(AF957,1)=","),"錯多，","")) -> 
W1021: =IF(OR(RIGHT(X1021,1)=",",RIGHT(AA1021,1)=",",RIGHT(AB1021,1)=",",RIGHT(AE1021,1)=",",RIGHT(AF1021,1)=","),"錯多，",IF(OR(LEFT(X1021,1)=",",LEFT(AA1021,1)=",",LEFT(AB1021,1)=",",LEFT(AE1021,1)=",",LEFT(AF1021,1)=","),"錯多，","")) -> 

Sheet 上學期週次節數總表
C1: 彈性課程
C2: 年級 | D2: 1 | E2: 2 | F2: 3 | G2: 4 | H2: 5 | I2: 6 | J2: 7 | K2: 8 | L2: 9 | M2: 10 | N2: 11 | O2: 12 | P2: 13 | Q2: 14 | R2: 15 | S2: 16 | T2: 17 | U2: 18 | V2: 19 | W2: 20 | X2: 21 | Y2: 22
B3: 彈性課程 | C3: 1 | AE3: 17 | AF3: 2
B4: 彈性課程 | C4: 2
B5: 彈性課程 | C5: 3
B6: 彈性課程 | C6: 4
B7: 彈性課程 | C7: 5 | D7: 校本課程*1 學習扶助*1 資訊教育*1 彈性英語*1 預防注*1 | E7: 校本課程*1 學習扶助*1 學習扶助*1 資訊教育*1 彈性英語*1 | F7: 學習扶助*1 資訊教育*1 彈性英語*1 口腔檢查*1 身高體重*1 | G7: 作文教學*1 學習扶助*1 學習扶助*1 資訊教育*1 彈性英語*1 | H7: 校本課程*1 學習扶助*1 學習扶助*1 資訊教育*1 彈性英語*1 | I7: 校本課程*1 學習扶助*1 學習扶助*1 資訊教育*1 彈性英語*1 | J7: 校本課程*1 學習扶助*1 學習扶助*1 資訊教育*1 彈性英語*1 | K7: 作文教學*1 學習扶助*1 學習扶助*1 資訊教育*1 彈性英語*1 | L7: 校本課程*1 學習扶助*1 學習扶助*1 資訊教育*1 彈性英語*1 | M7: 校本課程*1 學習扶助*1 學習扶助*1 資訊教育*1 彈性英語*1 | N7: 校本課程*1 學習扶助*1 學習扶助*1 資訊教育*1 彈性英語*1 | O7: 資訊教育*1 彈性英語*1 校慶活動*3 | P7: 作文教學*1 資訊教育*1 彈性英語*1 校慶活動*2 | Q7: 資訊教育*1 彈性英語*1 校慶活動*3 | R7: 校本課程*1 學習扶助*1 學習扶助*1 資訊教育*1 彈性英語*1 | S7: 校本課程*1 學習扶助*1 學習扶助*1 資訊教育*1 彈性英語*1 | T7: 學習扶助*1 資訊教育*1 彈性英語*1 聖誕節活*2 | U7: 作文教學*1 學習扶助*1 學習扶助*1 資訊教育*1 彈性英語*1 | V7: 校本課程*1 學習扶助*1 學習扶助*1 資訊教育*1 彈性英語*1 | W7: 校本課程*1 學習扶助*1 學習扶助*1 資訊教育*1 彈性英語*1 | X7: 校本課程*1 學習扶助*1 學習扶助*1 資訊教育*1 彈性英語*1
B8: 彈性課程 | C8: 6
B9: 各週小計: | C9: =SUM(D9:Y9) -> 105 | D9: 5 | E9: 5 | F9: 5 | G9: 5 | H9: 5 | I9: 5 | J9: 5 | K9: 5 | L9: 5 | M9: 5 | N9: 5 | O9: 5 | P9: 5 | Q9: 5 | R9: 5 | S9: 5 | T9: 5 | U9: 5 | V9: 5 | W9: 5 | X9: 5
B11: N | C11: 非領域
C12: 年級 | D12: 1 | E12: 2 | F12: 3 | G12: 4 | H12: 5 | I12: 6 | J12: 7 | K12: 8 | L12: 9 | M12: 10 | N12: 11 | O12: 12 | P12: 13 | Q12: 14 | R12: 15 | S12: 16 | T12: 17 | U12: 18 | V12: 19 | W12: 20 | X12: 21 | Y12: 22
B13: 非領域 | C13: 1
B14: 非領域 | C14: 2
B15: 非領域 | C15: 3
B16: 非領域 | C16: 4
B17: 非領域 | C17: 5 | E17: 【家庭教育】*1 | F17: 【家庭教育】*1 | G17: 【家庭教育】*1
B18: 非領域 | C18: 6
B19: 各週小計: | C19: =SUM(D19:Y19) -> 3 | D19: 0 | E19: 1 | F19: 1 | G19: 1 | H19: 0 | I19: 0 | J19: 0 | K19: 0 | L19: 0 | M19: 0 | N19: 0 | O19: 0 | P19: 0 | Q19: 0 | R19: 0 | S19: 0 | T19: 0 | U19: 0 | V19: 0 | W19: 0 | X19: 0
B21: A | C21: 國語文 | D21: 週次
C22: 年級 | D22: 1 | E22: 2 | F22: 3 | G22: 4 | H22: 5 | I22: 6 | J22: 7 | K22: 8 | L22: 9 | M22: 10 | N22: 11 | O22: 12 | P22: 13 | Q22: 14 | R22: 15 | S22: 16 | T22: 17 | U22: 18 | V22: 19 | W22: 20 | X22: 21 | Y22: 22
B23: 國語文 | C23: 1
B24: 國語文 | C24: 2
B25: 國語文 | C25: 3
B26: 國語文 | C26: 4
B27: 國語文 | C27: 5 | F27: 性侵害防*1 | G27: 性侵害防*1 作文教學*1 | I27: 性侵害防*1 | K27: 作文教學*1 | N27: 【戶外教育】*1 | P27: 作文教學*1 | U27: 作文教學*1
B28: 國語文 | C28: 6
B29: 各週小計: | C29: =SUM(D29:Y29) -> 8 | D29: 0 | E29: 0 | F29: 1 | G29: 2 | H29: 0 | I29: 1 | J29: 0 | K29: 1 | L29: 0 | M29: 0 | N29: 1 | O29: 0 | P29: 1 | Q29: 0 | R29: 0 | S29: 0 | T29: 0 | U29: 1 | V29: 0 | W29: 0 | X29: 0
B31: B | C31: 本土語言
C32: 年級 | D32: 1 | E32: 2 | F32: 3 | G32: 4 | H32: 5 | I32: 6 | J32: 7 | K32: 8 | L32: 9 | M32: 10 | N32: 11 | O32: 12 | P32: 13 | Q32: 14 | R32: 15 | S32: 16 | T32: 17 | U32: 18 | V32: 19 | W32: 20 | X32: 21 | Y32: 22
B33: 本土語言 | C33: 1
B34: 本土語言 | C34: 2
B35: 本土語言 | C35: 3
B36: 本土語言 | C36: 4
B37: 本土語言 | C37: 5
B38: 本土語言 | C38: 6
B39: 各週小計: | C39: =SUM(D39:Y39) -> 0 | D39: 0 | E39: 0 | F39: 0 | G39: 0 | H39: 0 | I39: 0 | J39: 0 | K39: 0 | L39: 0 | M39: 0 | N39: 0 | O39: 0 | P39: 0 | Q39: 0 | R39: 0 | S39: 0 | T39: 0 | U39: 0 | V39: 0 | W39: 0 | X39: 0
B41: C | C41: 英語
C42: 年級 | D42: 1 | E42: 2 | F42: 3 | G42: 4 | H42: 5 | I42: 6 | J42: 7 | K42: 8 | L42: 9 | M42: 10 | N42: 11 | O42: 12 | P42: 13 | Q42: 14 | R42: 15 | S42: 16 | T42: 17 | U42: 18 | V42: 19 | W42: 20 | X42: 21 | Y42: 22
B43: 英語 | C43: 1
B44: 英語 | C44: 2
B45: 英語 | C45: 3
B46: 英語 | C46: 4
B47: 英語 | C47: 5
B48: 英語 | C48: 6
B49: 各週小計: | C49: =SUM(D49:Y49) -> 0 | D49: 0 | E49: 0 | F49: 0 | G49: 0 | H49: 0 | I49: 0 | J49: 0 | K49: 0 | L49: 0 | M49: 0 | N49: 0 | O49: 0 | P49: 0 | Q49: 0 | R49: 0 | S49: 0 | T49: 0 | U49: 0 | V49: 0 | W49: 0 | X49: 0
B51: D | C51: 數學
C52: 年級 | D52: 1 | E52: 2 | F52: 3 | G52: 4 | H52: 5 | I52: 6 | J52: 7 | K52: 8 | L52: 9 | M52: 10 | N52: 11 | O52: 12 | P52: 13 | Q52: 14 | R52: 15 | S52: 16 | T52: 17 | U52: 18 | V52: 19 | W52: 20 | X52: 21 | Y52: 22
B53: 數學 | C53: 1
B54: 數學 | C54: 2
B55: 數學 | C55: 3
B56: 數學 | C56: 4
B57: 數學 | C57: 5 | N57: 【戶外教育】*1
B58: 數學 | C58: 6
B59: 各週小計: | C59: =SUM(D59:Y59) -> 1 | D59: 0 | E59: 0 | F59: 0 | G59: 0 | H59: 0 | I59: 0 | J59: 0 | K59: 0 | L59: 0 | M59: 0 | N59: 1 | O59: 0 | P59: 0 | Q59: 0 | R59: 0 | S59: 0 | T59: 0 | U59: 0 | V59: 0 | W59: 0 | X59: 0
B61: E | C61: 社會
C62: 年級 | D62: 1 | E62: 2 | F62: 3 | G62: 4 | H62: 5 | I62: 6 | J62: 7 | K62: 8 | L62: 9 | M62: 10 | N62: 11 | O62: 12 | P62: 13 | Q62: 14 | R62: 15 | S62: 16 | T62: 17 | U62: 18 | V62: 19 | W62: 20 | X62: 21 | Y62: 22
B63: 社會 | C63: 1
B64: 社會 | C64: 2
B65: 社會 | C65: 3
B66: 社會 | C66: 4
B67: 社會 | C67: 5 | N67: 【戶外教育】*1
B68: 社會 | C68: 6
B69: 各週小計: | C69: =SUM(D69:Y69) -> 1 | D69: 0 | E69: 0 | F69: 0 | G69: 0 | H69: 0 | I69: 0 | J69: 0 | K69: 0 | L69: 0 | M69: 0 | N69: 1 | O69: 0 | P69: 0 | Q69: 0 | R69: 0 | S69: 0 | T69: 0 | U69: 0 | V69: 0 | W69: 0 | X69: 0
B71: F | C71: 藝術與人文
C72: 年級 | D72: 1 | E72: 2 | F72: 3 | G72: 4 | H72: 5 | I72: 6 | J72: 7 | K72: 8 | L72: 9 | M72: 10 | N72: 11 | O72: 12 | P72: 13 | Q72: 14 | R72: 15 | S72: 16 | T72: 17 | U72: 18 | V72: 19 | W72: 20 | X72: 21 | Y72: 22
B73: 藝術與人文 | C73: 1
B74: 藝術與人文 | C74: 2
B75: 藝術與人文 | C75: 3
B76: 藝術與人文 | C76: 4
B77: 藝術與人文 | C77: 5 | N77: 【戶外教育】*1
B78: 藝術與人文 | C78: 6
B79: 各週小計: | C79: =SUM(D79:Y79) -> 1 | D79: 0 | E79: 0 | F79: 0 | G79: 0 | H79: 0 | I79: 0 | J79: 0 | K79: 0 | L79: 0 | M79: 0 | N79: 1 | O79: 0 | P79: 0 | Q79: 0 | R79: 0 | S79: 0 | T79: 0 | U79: 0 | V79: 0 | W79: 0 | X79: 0
B81: G | C81: 自然與科技
C82: 年級 | D82: 1 | E82: 2 | F82: 3 | G82: 4 | H82: 5 | I82: 6 | J82: 7 | K82: 8 | L82: 9 | M82: 10 | N82: 11 | O82: 12 | P82: 13 | Q82: 14 | R82: 15 | S82: 16 | T82: 17 | U82: 18 | V82: 19 | W82: 20 | X82: 21 | Y82: 22
B83: 自然與科技 | C83: 1
B84: 自然與科技 | C84: 2
B85: 自然與科技 | C85: 3
B86: 自然與科技 | C86: 4
B87: 自然與科技 | C87: 5 | N87: 【戶外教育】*1 | R87: 低碳教育*1
B88: 自然與科技 | C88: 6
B89: 各週小計: | C89: =SUM(D89:Y89) -> 2 | D89: 0 | E89: 0 | F89: 0 | G89: 0 | H89: 0 | I89: 0 | J89: 0 | K89: 0 | L89: 0 | M89: 0 | N89: 1 | O89: 0 | P89: 0 | Q89: 0 | R89: 1 | S89: 0 | T89: 0 | U89: 0 | V89: 0 | W89: 0 | X89: 0
B91: H | C91: 健康與體育
C92: 年級 | D92: 1 | E92: 2 | F92: 3 | G92: 4 | H92: 5 | I92: 6 | J92: 7 | K92: 8 | L92: 9 | M92: 10 | N92: 11 | O92: 12 | P92: 13 | Q92: 14 | R92: 15 | S92: 16 | T92: 17 | U92: 18 | V92: 19 | W92: 20 | X92: 21 | Y92: 22
B93: 健康與體育 | C93: 1
B94: 健康與體育 | C94: 2
B95: 健康與體育 | C95: 3
B96: 健康與體育 | C96: 4
B97: 健康與體育 | C97: 5 | F97: 登革熱防*1 | H97: 【海洋教育】*1 | N97: 【戶外教育】*1 | P97: 飲食教育*1 | Q97: 飲食教育*1 | R97: 飲食教育*1 | S97: 【環境教育】*1 飲食教育*1 | T97: 【環境教育】*1 飲食教育*1
B98: 健康與體育 | C98: 6
B99: 各週小計: | C99: =SUM(D99:Y99) -> 10 | D99: 0 | E99: 0 | F99: 1 | G99: 0 | H99: 1 | I99: 0 | J99: 0 | K99: 0 | L99: 0 | M99: 0 | N99: 1 | O99: 0 | P99: 1 | Q99: 1 | R99: 1 | S99: 2 | T99: 2 | U99: 0 | V99: 0 | W99: 0 | X99: 0
B101: I | C101: 綜合活動
C102: 年級 | D102: 1 | E102: 2 | F102: 3 | G102: 4 | H102: 5 | I102: 6 | J102: 7 | K102: 8 | L102: 9 | M102: 10 | N102: 11 | O102: 12 | P102: 13 | Q102: 14 | R102: 15 | S102: 16 | T102: 17 | U102: 18 | V102: 19 | W102: 20 | X102: 21 | Y102: 22
B103: 綜合活動 | C103: 1
B104: 綜合活動 | C104: 2
B105: 綜合活動 | C105: 3
B106: 綜合活動 | C106: 4
B107: 綜合活動 | C107: 5 | E107: 家政教育*2 | F107: 家政教育*2 | G107: 家政教育*2 | H107: 家暴_家*1 交通安全*1 | I107: 家暴_家*1 交通安全*1 | J107: 家暴_家*1 交通安全*1 | K107: 【性別平等】*1 | L107: 【性別平等】*1 | M107: 【性別平等】*1 | N107: 【戶外教育】*1 | O107: 【性別平等】*1 | P107: 【性別平等】*1 | Q107: 家政教育*2 【性別平等】*1 | R107: 家政教育*2 | S107: 家政教育*2 | T107: 職業試探*1
B108: 綜合活動 | C108: 6
B109: 各週小計: | C109: =SUM(D109:Y109) -> 26 | D109: 0 | E109: 2 | F109: 2 | G109: 2 | H109: 2 | I109: 2 | J109: 2 | K109: 1 | L109: 1 | M109: 1 | N109: 1 | O109: 1 | P109: 1 | Q109: 3 | R109: 2 | S109: 2 | T109: 1 | U109: 0 | V109: 0 | W109: 0 | X109: 0
B110: 彈性課程融入各項議題專用
B111: J | C111: 校本課程d
C112: 年級 | D112: 1 | E112: 2 | F112: 3 | G112: 4 | H112: 5 | I112: 6 | J112: 7 | K112: 8 | L112: 9 | M112: 10 | N112: 11 | O112: 12 | P112: 13 | Q112: 14 | R112: 15 | S112: 16 | T112: 17 | U112: 18 | V112: 19 | W112: 20 | X112: 21 | Y112: 22
B113: 校本課程d | C113: 1
B114: 校本課程d | C114: 2
B115: 校本課程d | C115: 3
B116: 校本課程d | C116: 4
B117: 校本課程d | C117: 5
B118: 校本課程d | C118: 6
B119: 各週小計: | C119: =SUM(D119:Y119) -> 0 | D119: 0 | E119: 0 | F119: 0 | G119: 0 | H119: 0 | I119: 0 | J119: 0 | K119: 0 | L119: 0 | M119: 0 | N119: 0 | O119: 0 | P119: 0 | Q119: 0 | R119: 0 | S119: 0 | T119: 0 | U119: 0 | V119: 0 | W119: 0 | X119: 0
B121: K | C121: 學習扶助(國語)
C122: 年級 | D122: 1 | E122: 2 | F122: 3 | G122: 4 | H122: 5 | I122: 6 | J122: 7 | K122: 8 | L122: 9 | M122: 10 | N122: 11 | O122: 12 | P122: 13 | Q122: 14 | R122: 15 | S122: 16 | T122: 17 | U122: 18 | V122: 19 | W122: 20 | X122: 21 | Y122: 22
B123: 學習扶助(國語) | C123: 1
B124: 學習扶助(國語) | C124: 2
B125: 學習扶助(國語) | C125: 3
B126: 學習扶助(國語) | C126: 4
B127: 學習扶助(國語) | C127: 5
B128: 學習扶助(國語) | C128: 6
B129: 各週小計: | C129: =SUM(D129:Y129) -> 0 | D129: 0 | E129: 0 | F129: 0 | G129: 0 | H129: 0 | I129: 0 | J129: 0 | K129: 0 | L129: 0 | M129: 0 | N129: 0 | O129: 0 | P129: 0 | Q129: 0 | R129: 0 | S129: 0 | T129: 0 | U129: 0 | V129: 0 | W129: 0 | X129: 0
B131: L | C131: 學習扶助(數學)
C132: 年級 | D132: 1 | E132: 2 | F132: 3 | G132: 4 | H132: 5 | I132: 6 | J132: 7 | K132: 8 | L132: 9 | M132: 10 | N132: 11 | O132: 12 | P132: 13 | Q132: 14 | R132: 15 | S132: 16 | T132: 17 | U132: 18 | V132: 19 | W132: 20 | X132: 21 | Y132: 22
B133: 學習扶助(數學) | C133: 1
B134: 學習扶助(數學) | C134: 2
B135: 學習扶助(數學) | C135: 3
B136: 學習扶助(數學) | C136: 4
B137: 學習扶助(數學) | C137: 5
B138: 學習扶助(數學) | C138: 6
B139: 各週小計: | C139: =SUM(D139:Y139) -> 0 | D139: 0 | E139: 0 | F139: 0 | G139: 0 | H139: 0 | I139: 0 | J139: 0 | K139: 0 | L139: 0 | M139: 0 | N139: 0 | O139: 0 | P139: 0 | Q139: 0 | R139: 0 | S139: 0 | T139: 0 | U139: 0 | V139: 0 | W139: 0 | X139: 0
B141: M | C141: 資訊教育
C142: 年級 | D142: 1 | E142: 2 | F142: 3 | G142: 4 | H142: 5 | I142: 6 | J142: 7 | K142: 8 | L142: 9 | M142: 10 | N142: 11 | O142: 12 | P142: 13 | Q142: 14 | R142: 15 | S142: 16 | T142: 17 | U142: 18 | V142: 19 | W142: 20 | X142: 21 | Y142: 22
B143: 資訊教育 | C143: 1
B144: 資訊教育 | C144: 2
B145: 資訊教育 | C145: 3
B146: 資訊教育 | C146: 4
B147: 資訊教育 | C147: 5
B148: 資訊教育 | C148: 6
B149: 各週小計: | C149: =SUM(D149:Y149) -> 0 | D149: 0 | E149: 0 | F149: 0 | G149: 0 | H149: 0 | I149: 0 | J149: 0 | K149: 0 | L149: 0 | M149: 0 | N149: 0 | O149: 0 | P149: 0 | Q149: 0 | R149: 0 | S149: 0 | T149: 0 | U149: 0 | V149: 0 | W149: 0 | X149: 0
B151: N | C151: 彈性英語
C152: 年級 | D152: 1 | E152: 2 | F152: 3 | G152: 4 | H152: 5 | I152: 6 | J152: 7 | K152: 8 | L152: 9 | M152: 10 | N152: 11 | O152: 12 | P152: 13 | Q152: 14 | R152: 15 | S152: 16 | T152: 17 | U152: 18 | V152: 19 | W152: 20 | X152: 21 | Y152: 22
B153: 彈性英語 | C153: 1
B154: 彈性英語 | C154: 2
B155: 彈性英語 | C155: 3
B156: 彈性英語 | C156: 4
B157: 彈性英語 | C157: 5
B158: 彈性英語 | C158: 6
B159: 各週小計: | C159: =SUM(D159:Y159) -> 0 | D159: 0 | E159: 0 | F159: 0 | G159: 0 | H159: 0 | I159: 0 | J159: 0 | K159: 0 | L159: 0 | M159: 0 | N159: 0 | O159: 0 | P159: 0 | Q159: 0 | R159: 0 | S159: 0 | T159: 0 | U159: 0 | V159: 0 | W159: 0 | X159: 0
B161: O
C162: 年級 | D162: 1 | E162: 2 | F162: 3 | G162: 4 | H162: 5 | I162: 6 | J162: 7 | K162: 8 | L162: 9 | M162: 10 | N162: 11 | O162: 12 | P162: 13 | Q162: 14 | R162: 15 | S162: 16 | T162: 17 | U162: 18 | V162: 19 | W162: 20 | X162: 21 | Y162: 22
C163: 1
C164: 2
C165: 3
C166: 4
C167: 5
C168: 6
B169: 各週小計: | C169: =SUM(D169:Y169) -> 0 | D169: 0 | E169: 0 | F169: 0 | G169: 0 | H169: 0 | I169: 0 | J169: 0 | K169: 0 | L169: 0 | M169: 0 | N169: 0 | O169: 0 | P169: 0 | Q169: 0 | R169: 0 | S169: 0 | T169: 0 | U169: 0 | V169: 0 | W169: 0 | X169: 0
B173: 年級: | C173: 五 | E173: 總節數:
A174: 各領域節數 | B174: 跨領域專用 | D174: 1 | E174: 2 | F174: 3 | G174: 4 | H174: 5 | I174: 6 | J174: 7 | K174: 8 | L174: 9 | M174: 10 | N174: 11 | O174: 12 | P174: 13 | Q174: 14 | R174: 15 | S174: 16 | T174: 17 | U174: 18 | V174: 19 | W174: 20 | X174: 21 | Y174: 22
A175: =SUM(D175:Y175) -> 0 | B175: A | C175: 國語文 | D175: 0 | E175: 0 | F175: 0 | G175: 0 | H175: 0 | I175: 0 | J175: 0 | K175: 0 | L175: 0 | M175: 0 | N175: 0 | O175: 0 | P175: 0 | Q175: 0 | R175: 0 | S175: 0 | T175: 0 | U175: 0 | V175: 0 | W175: 0 | X175: 0
A176: =SUM(D176:Y176) -> 0 | B176: B | C176: 本土語言 | D176: 0 | E176: 0 | F176: 0 | G176: 0 | H176: 0 | I176: 0 | J176: 0 | K176: 0 | L176: 0 | M176: 0 | N176: 0 | O176: 0 | P176: 0 | Q176: 0 | R176: 0 | S176: 0 | T176: 0 | U176: 0 | V176: 0 | W176: 0 | X176: 0
A177: 0 | B177: C | C177: 英語 | D177: 0 | E177: 0 | F177: 0 | G177: 0 | H177: 0 | I177: 0 | J177: 0 | K177: 0 | L177: 0 | M177: 0 | N177: 0 | O177: 0 | P177: 0 | Q177: 0 | R177: 0 | S177: 0 | T177: 0 | U177: 0 | V177: 0 | W177: 0 | X177: 0
A178: 0 | B178: D | C178: 數學 | D178: 0 | E178: 0 | F178: 0 | G178: 0 | H178: 0 | I178: 0 | J178: 0 | K178: 0 | L178: 0 | M178: 0 | N178: 0 | O178: 0 | P178: 0 | Q178: 0 | R178: 0 | S178: 0 | T178: 0 | U178: 0 | V178: 0 | W178: 0 | X178: 0
A179: 0 | B179: E | C179: 社會 | D179: 0 | E179: 0 | F179: 0 | G179: 0 | H179: 0 | I179: 0 | J179: 0 | K179: 0 | L179: 0 | M179: 0 | N179: 0 | O179: 0 | P179: 0 | Q179: 0 | R179: 0 | S179: 0 | T179: 0 | U179: 0 | V179: 0 | W179: 0 | X179: 0
A180: 0 | B180: F | C180: 藝術與人文 | D180: 0 | E180: 0 | F180: 0 | G180: 0 | H180: 0 | I180: 0 | J180: 0 | K180: 0 | L180: 0 | M180: 0 | N180: 0 | O180: 0 | P180: 0 | Q180: 0 | R180: 0 | S180: 0 | T180: 0 | U180: 0 | V180: 0 | W180: 0 | X180: 0
A181: 0 | B181: G | C181: 自然與科技 | D181: 0 | E181: 0 | F181: 0 | G181: 0 | H181: 0 | I181: 0 | J181: 0 | K181: 0 | L181: 0 | M181: 0 | N181: 0 | O181: 0 | P181: 0 | Q181: 0 | R181: 0 | S181: 0 | T181: 0 | U181: 0 | V181: 0 | W181: 0 | X181: 0
A182: 0 | B182: H | C182: 健康與體育 | D182: 0 | E182: 0 | F182: 0 | G182: 0 | H182: 0 | I182: 0 | J182: 0 | K182: 0 | L182: 0 | M182: 0 | N182: 0 | O182: 0 | P182: 0 | Q182: 0 | R182: 0 | S182: 0 | T182: 0 | U182: 0 | V182: 0 | W182: 0 | X182: 0
A183: 0 | B183: I | C183: 綜合活動 | D183: 0 | E183: 0 | F183: 0 | G183: 0 | H183: 0 | I183: 0 | J183: 0 | K183: 0 | L183: 0 | M183: 0 | N183: 0 | O183: 0 | P183: 0 | Q183: 0 | R183: 0 | S183: 0 | T183: 0 | U183: 0 | V183: 0 | W183: 0 | X183: 0
A184: 0
A185: 0 | B185: J | C185: 校本課程d | D185: 0 | E185: 0 | F185: 0 | G185: 0 | H185: 0 | I185: 0 | J185: 0 | K185: 0 | L185: 0 | M185: 0 | N185: 0 | O185: 0 | P185: 0 | Q185: 0 | R185: 0 | S185: 0 | T185: 0 | U185: 0 | V185: 0 | W185: 0 | X185: 0
A186: 0 | B186: K | C186: 學習扶助(國語) | D186: 0 | E186: 0 | F186: 0 | G186: 0 | H186: 0 | I186: 0 | J186: 0 | K186: 0 | L186: 0 | M186: 0 | N186: 0 | O186: 0 | P186: 0 | Q186: 0 | R186: 0 | S186: 0 | T186: 0 | U186: 0 | V186: 0 | W186: 0 | X186: 0
A187: 0 | B187: L | C187: 學習扶助(數學) | D187: 0 | E187: 0 | F187: 0 | G187: 0 | H187: 0 | I187: 0 | J187: 0 | K187: 0 | L187: 0 | M187: 0 | N187: 0 | O187: 0 | P187: 0 | Q187: 0 | R187: 0 | S187: 0 | T187: 0 | U187: 0 | V187: 0 | W187: 0 | X187: 0
A188: 0 | B188: M | C188: 資訊教育 | D188: 0 | E188: 0 | F188: 0 | G188: 0 | H188: 0 | I188: 0 | J188: 0 | K188: 0 | L188: 0 | M188: 0 | N188: 0 | O188: 0 | P188: 0 | Q188: 0 | R188: 0 | S188: 0 | T188: 0 | U188: 0 | V188: 0 | W188: 0 | X188: 0
A189: 0 | B189: N | C189: 彈性英語 | D189: 0 | E189: 0 | F189: 0 | G189: 0 | H189: 0 | I189: 0 | J189: 0 | K189: 0 | L189: 0 | M189: 0 | N189: 0 | O189: 0 | P189: 0 | Q189: 0 | R189: 0 | S189: 0 | T189: 0 | U189: 0 | V189: 0 | W189: 0 | X189: 0
A190: 0 | B190: O | D190: 0 | E190: 0 | F190: 0 | G190: 0 | H190: 0 | I190: 0 | J190: 0 | K190: 0 | L190: 0 | M190: 0 | N190: 0 | O190: 0 | P190: 0 | Q190: 0 | R190: 0 | S190: 0 | T190: 0 | U190: 0 | V190: 0 | W190: 0 | X190: 0
A191: =SUM(A175:A190) -> 0 | D191: =SUM(D175:D190) -> 0 | E191: 0 | F191: 0 | G191: 0 | H191: 0 | I191: 0 | J191: 0 | K191: 0 | L191: 0 | M191: 0 | N191: 0 | O191: 0 | P191: 0 | Q191: 0 | R191: 0 | S191: 0 | T191: 0 | U191: 0 | V191: 0 | W191: 0 | X191: 0 | Y191: 0

Sheet 下學期週次節數總表
C1: 彈性課程
C2: 年級 | D2: 1 | E2: 2 | F2: 3 | G2: 4 | H2: 5 | I2: 6 | J2: 7 | K2: 8 | L2: 9 | M2: 10 | N2: 11 | O2: 12 | P2: 13 | Q2: 14 | R2: 15 | S2: 16 | T2: 17 | U2: 18 | V2: 19 | W2: 20 | X2: 21 | Y2: 22
B3: 彈性課程 | C3: 1 | AD3: AH | AE3: 8 | AF3: 2
B4: 彈性課程 | C4: 2 | AD4: AH | AE4: 9 | AF4: 2
B5: 彈性課程 | C5: 3 | AD5: AH | AE5: 10 | AF5: 2
B6: 彈性課程 | C6: 4 | AD6: AH | AE6: 11 | AF6: 2
B7: 彈性課程 | C7: 5 | D7: 校本課程*1 學習扶助*1 資訊教育*1 彈性英語*1 預防注*1 | E7: 校本課程*1 學習扶助*1 學習扶助*1 資訊教育*1 彈性英語*1 | F7: 校本課程*1 學習扶助*1 資訊教育*1 彈性英語*1 口腔檢查*1 | G7: 作文教學*1 學習扶助*1 資訊教育*1 彈性英語*1 身高體重*1 | H7: 校本課程*1 學習扶助*1 學習扶助*1 資訊教育*1 彈性英語*1 | I7: 校本課程*1 學習扶助*1 學習扶助*1 資訊教育*1 彈性英語*1 | J7: 學習扶助*1 資訊教育*1 彈性英語*1 兒童節慶*2 | K7: 作文教學*1 學習扶助*1 資訊教育*1 彈性英語*1 兒童節慶*1 | L7: 校本課程*1 學習扶助*1 學習扶助*1 資訊教育*1 彈性英語*1 | M7: 校本課程*1 學習扶助*1 學習扶助*1 資訊教育*1 彈性英語*1 | N7: 校本課程*1 學習扶助*1 學習扶助*1 資訊教育*1 彈性英語*1 | O7: 學習扶助*1 資訊教育*1 彈性英語*1 慶祝母親*2 | P7: 作文教學*1 學習扶助*1 資訊教育*1 彈性英語*1 自治市長*1 | Q7: 學習扶助*1 資訊教育*1 彈性英語*1 基本能力*2 | R7: 資訊教育*1 彈性英語*1 班際體育*1 歡送畢業*2 | S7: 資訊教育*1 彈性英語*1 畢業典禮*3 | T7: 資訊教育*1 彈性英語*1 畢業典禮*3 | U7: 校本課程*1 學習扶助*1 學習扶助*1 資訊教育*1 彈性英語*1 | V7: 作文教學*1 校本課程*1 學習扶助*1 資訊教育*1 彈性英語*1 | W7: 校本課程*1 學習扶助*1 學習扶助*1 資訊教育*1 彈性英語*1
B8: 彈性課程 | C8: 6
B9: 各週小計: | C9: =SUM(D9:Y9) -> 100 | D9: 5 | E9: 5 | F9: 5 | G9: 5 | H9: 5 | I9: 5 | J9: 5 | K9: 5 | L9: 5 | M9: 5 | N9: 5 | O9: 5 | P9: 5 | Q9: 5 | R9: 5 | S9: 5 | T9: 5 | U9: 5 | V9: 5 | W9: 5
B11: N | C11: 非領域
C12: 年級 | D12: 1 | E12: 2 | F12: 3 | G12: 4 | H12: 5 | I12: 6 | J12: 7 | K12: 8 | L12: 9 | M12: 10 | N12: 11 | O12: 12 | P12: 13 | Q12: 14 | R12: 15 | S12: 16 | T12: 17 | U12: 18 | V12: 19 | W12: 20 | X12: 21 | Y12: 22
B13: 非領域 | C13: 1
B14: 非領域 | C14: 2
B15: 非領域 | C15: 3
B16: 非領域 | C16: 4
B17: 非領域 | C17: 5 | J17: 【家庭教育】*1 | K17: 【家庭教育】*1 | L17: 【家庭教育】*1
B18: 非領域 | C18: 6
B19: 各週小計: | C19: =SUM(D19:Y19) -> 3 | D19: 0 | E19: 0 | F19: 0 | G19: 0 | H19: 0 | I19: 0 | J19: 1 | K19: 1 | L19: 1 | M19: 0 | N19: 0 | O19: 0 | P19: 0 | Q19: 0 | R19: 0 | S19: 0 | T19: 0 | U19: 0 | V19: 0 | W19: 0
B21: A | C21: 國語文 | D21: 週次
C22: 年級 | D22: 1 | E22: 2 | F22: 3 | G22: 4 | H22: 5 | I22: 6 | J22: 7 | K22: 8 | L22: 9 | M22: 10 | N22: 11 | O22: 12 | P22: 13 | Q22: 14 | R22: 15 | S22: 16 | T22: 17 | U22: 18 | V22: 19 | W22: 20 | X22: 21 | Y22: 22
B23: 國語文 | C23: 1
B24: 國語文 | C24: 2
B25: 國語文 | C25: 3
B26: 國語文 | C26: 4
B27: 國語文 | C27: 5 | G27: 作文教學*1 | K27: 作文教學*1 | N27: 【戶外教育】*1 | P27: 作文教學*1 | S27: 性侵害防*1 | T27: 性侵害防*1 | U27: 性侵害防*1 | V27: 作文教學*1
B28: 國語文 | C28: 6
B29: 各週小計: | C29: =SUM(D29:Y29) -> 8 | D29: 0 | E29: 0 | F29: 0 | G29: 1 | H29: 0 | I29: 0 | J29: 0 | K29: 1 | L29: 0 | M29: 0 | N29: 1 | O29: 0 | P29: 1 | Q29: 0 | R29: 0 | S29: 1 | T29: 1 | U29: 1 | V29: 1 | W29: 0
B31: B | C31: 本土語言
C32: 年級 | D32: 1 | E32: 2 | F32: 3 | G32: 4 | H32: 5 | I32: 6 | J32: 7 | K32: 8 | L32: 9 | M32: 10 | N32: 11 | O32: 12 | P32: 13 | Q32: 14 | R32: 15 | S32: 16 | T32: 17 | U32: 18 | V32: 19 | W32: 20 | X32: 21 | Y32: 22
B33: 本土語言 | C33: 1
B34: 本土語言 | C34: 2
B35: 本土語言 | C35: 3
B36: 本土語言 | C36: 4
B37: 本土語言 | C37: 5
B38: 本土語言 | C38: 6
B39: 各週小計: | C39: =SUM(D39:Y39) -> 0 | D39: 0 | E39: 0 | F39: 0 | G39: 0 | H39: 0 | I39: 0 | J39: 0 | K39: 0 | L39: 0 | M39: 0 | N39: 0 | O39: 0 | P39: 0 | Q39: 0 | R39: 0 | S39: 0 | T39: 0 | U39: 0 | V39: 0 | W39: 0
B41: C | C41: 英語
C42: 年級 | D42: 1 | E42: 2 | F42: 3 | G42: 4 | H42: 5 | I42: 6 | J42: 7 | K42: 8 | L42: 9 | M42: 10 | N42: 11 | O42: 12 | P42: 13 | Q42: 14 | R42: 15 | S42: 16 | T42: 17 | U42: 18 | V42: 19 | W42: 20 | X42: 21 | Y42: 22
B43: 英語 | C43: 1
B44: 英語 | C44: 2
B45: 英語 | C45: 3
B46: 英語 | C46: 4
B47: 英語 | C47: 5
B48: 英語 | C48: 6
B49: 各週小計: | C49: =SUM(D49:Y49) -> 0 | D49: 0 | E49: 0 | F49: 0 | G49: 0 | H49: 0 | I49: 0 | J49: 0 | K49: 0 | L49: 0 | M49: 0 | N49: 0 | O49: 0 | P49: 0 | Q49: 0 | R49: 0 | S49: 0 | T49: 0 | U49: 0 | V49: 0 | W49: 0
B51: D | C51: 數學
C52: 年級 | D52: 1 | E52: 2 | F52: 3 | G52: 4 | H52: 5 | I52: 6 | J52: 7 | K52: 8 | L52: 9 | M52: 10 | N52: 11 | O52: 12 | P52: 13 | Q52: 14 | R52: 15 | S52: 16 | T52: 17 | U52: 18 | V52: 19 | W52: 20 | X52: 21 | Y52: 22
B53: 數學 | C53: 1
B54: 數學 | C54: 2
B55: 數學 | C55: 3
B56: 數學 | C56: 4
B57: 數學 | C57: 5 | N57: 【戶外教育】*1
B58: 數學 | C58: 6
B59: 各週小計: | C59: =SUM(D59:Y59) -> 1 | D59: 0 | E59: 0 | F59: 0 | G59: 0 | H59: 0 | I59: 0 | J59: 0 | K59: 0 | L59: 0 | M59: 0 | N59: 1 | O59: 0 | P59: 0 | Q59: 0 | R59: 0 | S59: 0 | T59: 0 | U59: 0 | V59: 0 | W59: 0
B61: E | C61: 社會
C62: 年級 | D62: 1 | E62: 2 | F62: 3 | G62: 4 | H62: 5 | I62: 6 | J62: 7 | K62: 8 | L62: 9 | M62: 10 | N62: 11 | O62: 12 | P62: 13 | Q62: 14 | R62: 15 | S62: 16 | T62: 17 | U62: 18 | V62: 19 | W62: 20 | X62: 21 | Y62: 22
B63: 社會 | C63: 1
B64: 社會 | C64: 2
B65: 社會 | C65: 3
B66: 社會 | C66: 4
B67: 社會 | C67: 5 | N67: 【戶外教育】*1
B68: 社會 | C68: 6
B69: 各週小計: | C69: =SUM(D69:Y69) -> 1 | D69: 0 | E69: 0 | F69: 0 | G69: 0 | H69: 0 | I69: 0 | J69: 0 | K69: 0 | L69: 0 | M69: 0 | N69: 1 | O69: 0 | P69: 0 | Q69: 0 | R69: 0 | S69: 0 | T69: 0 | U69: 0 | V69: 0 | W69: 0
B71: F | C71: 藝術與人文
C72: 年級 | D72: 1 | E72: 2 | F72: 3 | G72: 4 | H72: 5 | I72: 6 | J72: 7 | K72: 8 | L72: 9 | M72: 10 | N72: 11 | O72: 12 | P72: 13 | Q72: 14 | R72: 15 | S72: 16 | T72: 17 | U72: 18 | V72: 19 | W72: 20 | X72: 21 | Y72: 22
B73: 藝術與人文 | C73: 1
B74: 藝術與人文 | C74: 2
B75: 藝術與人文 | C75: 3
B76: 藝術與人文 | C76: 4
B77: 藝術與人文 | C77: 5 | N77: 【戶外教育】*1
B78: 藝術與人文 | C78: 6
B79: 各週小計: | C79: =SUM(D79:Y79) -> 1 | D79: 0 | E79: 0 | F79: 0 | G79: 0 | H79: 0 | I79: 0 | J79: 0 | K79: 0 | L79: 0 | M79: 0 | N79: 1 | O79: 0 | P79: 0 | Q79: 0 | R79: 0 | S79: 0 | T79: 0 | U79: 0 | V79: 0 | W79: 0
B81: G | C81: 自然與科技
C82: 年級 | D82: 1 | E82: 2 | F82: 3 | G82: 4 | H82: 5 | I82: 6 | J82: 7 | K82: 8 | L82: 9 | M82: 10 | N82: 11 | O82: 12 | P82: 13 | Q82: 14 | R82: 15 | S82: 16 | T82: 17 | U82: 18 | V82: 19 | W82: 20 | X82: 21 | Y82: 22
B83: 自然與科技 | C83: 1
B84: 自然與科技 | C84: 2
B85: 自然與科技 | C85: 3
B86: 自然與科技 | C86: 4
B87: 自然與科技 | C87: 5 | H87: 低碳教育*1 | J87: 【環境教育】*1 | K87: 【環境教育】*1 | N87: 【戶外教育】*1
B88: 自然與科技 | C88: 6
B89: 各週小計: | C89: =SUM(D89:Y89) -> 4 | D89: 0 | E89: 0 | F89: 0 | G89: 0 | H89: 1 | I89: 0 | J89: 1 | K89: 1 | L89: 0 | M89: 0 | N89: 1 | O89: 0 | P89: 0 | Q89: 0 | R89: 0 | S89: 0 | T89: 0 | U89: 0 | V89: 0 | W89: 0
B91: H | C91: 健康與體育
C92: 年級 | D92: 1 | E92: 2 | F92: 3 | G92: 4 | H92: 5 | I92: 6 | J92: 7 | K92: 8 | L92: 9 | M92: 10 | N92: 11 | O92: 12 | P92: 13 | Q92: 14 | R92: 15 | S92: 16 | T92: 17 | U92: 18 | V92: 19 | W92: 20 | X92: 21 | Y92: 22
B93: 健康與體育 | C93: 1
B94: 健康與體育 | C94: 2
B95: 健康與體育 | C95: 3
B96: 健康與體育 | C96: 4
B97: 健康與體育 | C97: 5 | J97: 【海洋教育】*1 | K97: 游泳教學*2 | L97: 游泳教學*2 | M97: 游泳教學*2 | N97: 【戶外教育】*1 游泳教學*2 | P97: 登革熱防*1 | Q97: 飲食教育*1 | R97: 飲食教育*1 | S97: 飲食教育*1 | T97: 飲食教育*1 | U97: 飲食教育*1
B98: 健康與體育 | C98: 6
B99: 各週小計: | C99: =SUM(D99:Y99) -> 16 | D99: 0 | E99: 0 | F99: 0 | G99: 0 | H99: 0 | I99: 0 | J99: 1 | K99: 2 | L99: 2 | M99: 2 | N99: 3 | O99: 0 | P99: 1 | Q99: 1 | R99: 1 | S99: 1 | T99: 1 | U99: 1 | V99: 0 | W99: 0
B101: I | C101: 綜合活動
C102: 年級 | D102: 1 | E102: 2 | F102: 3 | G102: 4 | H102: 5 | I102: 6 | J102: 7 | K102: 8 | L102: 9 | M102: 10 | N102: 11 | O102: 12 | P102: 13 | Q102: 14 | R102: 15 | S102: 16 | T102: 17 | U102: 18 | V102: 19 | W102: 20 | X102: 21 | Y102: 22
B103: 綜合活動 | C103: 1
B104: 綜合活動 | C104: 2
B105: 綜合活動 | C105: 3
B106: 綜合活動 | C106: 4
B107: 綜合活動 | C107: 5 | E107: 【性別平等】*1 交通安全*1 | F107: 【性別平等】*1 交通安全*1 | G107: 【性別平等】*1 交通安全*1 | I107: 家政教育*2 | J107: 家政教育*2 | K107: 家政教育*2 | N107: 【戶外教育】*1 | P107: 家暴_家*1 職業試探*1 | Q107: 家暴_家*1 | R107: 家政教育*2 家暴_家*1 | S107: 家政教育*2 【性別平等】*1 | T107: 家政教育*2 【性別平等】*1 | U107: 【性別平等】*1
B108: 綜合活動 | C108: 6
B109: 各週小計: | C109: =SUM(D109:Y109) -> 26 | D109: 0 | E109: 2 | F109: 2 | G109: 2 | H109: 0 | I109: 2 | J109: 2 | K109: 2 | L109: 0 | M109: 0 | N109: 1 | O109: 0 | P109: 2 | Q109: 1 | R109: 3 | S109: 3 | T109: 3 | U109: 1 | V109: 0 | W109: 0
B110: 彈性課程融入各項議題專用
B111: J | C111: 校本課程d
C112: 年級 | D112: 1 | E112: 2 | F112: 3 | G112: 4 | H112: 5 | I112: 6 | J112: 7 | K112: 8 | L112: 9 | M112: 10 | N112: 11 | O112: 12 | P112: 13 | Q112: 14 | R112: 15 | S112: 16 | T112: 17 | U112: 18 | V112: 19 | W112: 20 | X112: 21 | Y112: 22
B113: 校本課程d | C113: 1
B114: 校本課程d | C114: 2
B115: 校本課程d | C115: 3
B116: 校本課程d | C116: 4
B117: 校本課程d | C117: 5
B118: 校本課程d | C118: 6
B119: 各週小計: | C119: =SUM(D119:Y119) -> 0 | D119: 0 | E119: 0 | F119: 0 | G119: 0 | H119: 0 | I119: 0 | J119: 0 | K119: 0 | L119: 0 | M119: 0 | N119: 0 | O119: 0 | P119: 0 | Q119: 0 | R119: 0 | S119: 0 | T119: 0 | U119: 0 | V119: 0 | W119: 0
B121: K | C121: 學習扶助(國語)
C122: 年級 | D122: 1 | E122: 2 | F122: 3 | G122: 4 | H122: 5 | I122: 6 | J122: 7 | K122: 8 | L122: 9 | M122: 10 | N122: 11 | O122: 12 | P122: 13 | Q122: 14 | R122: 15 | S122: 16 | T122: 17 | U122: 18 | V122: 19 | W122: 20 | X122: 21 | Y122: 22
B123: 學習扶助(國語) | C123: 1
B124: 學習扶助(國語) | C124: 2
B125: 學習扶助(國語) | C125: 3
B126: 學習扶助(國語) | C126: 4
B127: 學習扶助(國語) | C127: 5
B128: 學習扶助(國語) | C128: 6
B129: 各週小計: | C129: =SUM(D129:Y129) -> 0 | D129: 0 | E129: 0 | F129: 0 | G129: 0 | H129: 0 | I129: 0 | J129: 0 | K129: 0 | L129: 0 | M129: 0 | N129: 0 | O129: 0 | P129: 0 | Q129: 0 | R129: 0 | S129: 0 | T129: 0 | U129: 0 | V129: 0 | W129: 0
B131: L | C131: 學習扶助(數學)
C132: 年級 | D132: 1 | E132: 2 | F132: 3 | G132: 4 | H132: 5 | I132: 6 | J132: 7 | K132: 8 | L132: 9 | M132: 10 | N132: 11 | O132: 12 | P132: 13 | Q132: 14 | R132: 15 | S132: 16 | T132: 17 | U132: 18 | V132: 19 | W132: 20 | X132: 21 | Y132: 22
B133: 學習扶助(數學) | C133: 1
B134: 學習扶助(數學) | C134: 2
B135: 學習扶助(數學) | C135: 3
B136: 學習扶助(數學) | C136: 4
B137: 學習扶助(數學) | C137: 5
B138: 學習扶助(數學) | C138: 6
B139: 各週小計: | C139: =SUM(D139:Y139) -> 0 | D139: 0 | E139: 0 | F139: 0 | G139: 0 | H139: 0 | I139: 0 | J139: 0 | K139: 0 | L139: 0 | M139: 0 | N139: 0 | O139: 0 | P139: 0 | Q139: 0 | R139: 0 | S139: 0 | T139: 0 | U139: 0 | V139: 0 | W139: 0
B141: M | C141: 資訊教育
C142: 年級 | D142: 1 | E142: 2 | F142: 3 | G142: 4 | H142: 5 | I142: 6 | J142: 7 | K142: 8 | L142: 9 | M142: 10 | N142: 11 | O142: 12 | P142: 13 | Q142: 14 | R142: 15 | S142: 16 | T142: 17 | U142: 18 | V142: 19 | W142: 20 | X142: 21 | Y142: 22
B143: 資訊教育 | C143: 1
B144: 資訊教育 | C144: 2
B145: 資訊教育 | C145: 3
B146: 資訊教育 | C146: 4
B147: 資訊教育 | C147: 5
B148: 資訊教育 | C148: 6
B149: 各週小計: | C149: =SUM(D149:Y149) -> 0 | D149: 0 | E149: 0 | F149: 0 | G149: 0 | H149: 0 | I149: 0 | J149: 0 | K149: 0 | L149: 0 | M149: 0 | N149: 0 | O149: 0 | P149: 0 | Q149: 0 | R149: 0 | S149: 0 | T149: 0 | U149: 0 | V149: 0 | W149: 0
B151: N | C151: 彈性英語
C152: 年級 | D152: 1 | E152: 2 | F152: 3 | G152: 4 | H152: 5 | I152: 6 | J152: 7 | K152: 8 | L152: 9 | M152: 10 | N152: 11 | O152: 12 | P152: 13 | Q152: 14 | R152: 15 | S152: 16 | T152: 17 | U152: 18 | V152: 19 | W152: 20 | X152: 21 | Y152: 22
B153: 彈性英語 | C153: 1
B154: 彈性英語 | C154: 2
B155: 彈性英語 | C155: 3
B156: 彈性英語 | C156: 4
B157: 彈性英語 | C157: 5
B158: 彈性英語 | C158: 6
B159: 各週小計: | C159: =SUM(D159:Y159) -> 0 | D159: 0 | E159: 0 | F159: 0 | G159: 0 | H159: 0 | I159: 0 | J159: 0 | K159: 0 | L159: 0 | M159: 0 | N159: 0 | O159: 0 | P159: 0 | Q159: 0 | R159: 0 | S159: 0 | T159: 0 | U159: 0 | V159: 0 | W159: 0
B161: O
C162: 年級 | D162: 1 | E162: 2 | F162: 3 | G162: 4 | H162: 5 | I162: 6 | J162: 7 | K162: 8 | L162: 9 | M162: 10 | N162: 11 | O162: 12 | P162: 13 | Q162: 14 | R162: 15 | S162: 16 | T162: 17 | U162: 18 | V162: 19 | W162: 20 | X162: 21 | Y162: 22
C163: 1
C164: 2
C165: 3
C166: 4
C167: 5
C168: 6
B169: 各週小計: | C169: =SUM(D169:Y169) -> 0 | D169: 0 | E169: 0 | F169: 0 | G169: 0 | H169: 0 | I169: 0 | J169: 0 | K169: 0 | L169: 0 | M169: 0 | N169: 0 | O169: 0 | P169: 0 | Q169: 0 | R169: 0 | S169: 0 | T169: 0 | U169: 0 | V169: 0 | W169: 0
B173: 年級: | C173: 五 | E173: 總節數:
A174: 各領域節數 | B174: 跨領域專用 | D174: 1 | E174: 2 | F174: 3 | G174: 4 | H174: 5 | I174: 6 | J174: 7 | K174: 8 | L174: 9 | M174: 10 | N174: 11 | O174: 12 | P174: 13 | Q174: 14 | R174: 15 | S174: 16 | T174: 17 | U174: 18 | V174: 19 | W174: 20 | X174: 21 | Y174: 22
A175: =SUM(D175:Y175) -> 0 | B175: A | C175: 國語文 | D175: 0 | E175: 0 | F175: 0 | G175: 0 | H175: 0 | I175: 0 | J175: 0 | K175: 0 | L175: 0 | M175: 0 | N175: 0 | O175: 0 | P175: 0 | Q175: 0 | R175: 0 | S175: 0 | T175: 0 | U175: 0 | V175: 0 | W175: 0 | X175: 0
A176: =SUM(D176:Y176) -> 0 | B176: B | C176: 本土語言 | D176: 0 | E176: 0 | F176: 0 | G176: 0 | H176: 0 | I176: 0 | J176: 0 | K176: 0 | L176: 0 | M176: 0 | N176: 0 | O176: 0 | P176: 0 | Q176: 0 | R176: 0 | S176: 0 | T176: 0 | U176: 0 | V176: 0 | W176: 0 | X176: 0
A177: 0 | B177: C | C177: 英語 | D177: 0 | E177: 0 | F177: 0 | G177: 0 | H177: 0 | I177: 0 | J177: 0 | K177: 0 | L177: 0 | M177: 0 | N177: 0 | O177: 0 | P177: 0 | Q177: 0 | R177: 0 | S177: 0 | T177: 0 | U177: 0 | V177: 0 | W177: 0 | X177: 0
A178: 0 | B178: D | C178: 數學 | D178: 0 | E178: 0 | F178: 0 | G178: 0 | H178: 0 | I178: 0 | J178: 0 | K178: 0 | L178: 0 | M178: 0 | N178: 0 | O178: 0 | P178: 0 | Q178: 0 | R178: 0 | S178: 0 | T178: 0 | U178: 0 | V178: 0 | W178: 0 | X178: 0
A179: 0 | B179: E | C179: 社會 | D179: 0 | E179: 0 | F179: 0 | G179: 0 | H179: 0 | I179: 0 | J179: 0 | K179: 0 | L179: 0 | M179: 0 | N179: 0 | O179: 0 | P179: 0 | Q179: 0 | R179: 0 | S179: 0 | T179: 0 | U179: 0 | V179: 0 | W179: 0 | X179: 0
A180: 0 | B180: F | C180: 藝術與人文 | D180: 0 | E180: 0 | F180: 0 | G180: 0 | H180: 0 | I180: 0 | J180: 0 | K180: 0 | L180: 0 | M180: 0 | N180: 0 | O180: 0 | P180: 0 | Q180: 0 | R180: 0 | S180: 0 | T180: 0 | U180: 0 | V180: 0 | W180: 0 | X180: 0
A181: 0 | B181: G | C181: 自然與科技 | D181: 0 | E181: 0 | F181: 0 | G181: 0 | H181: 0 | I181: 0 | J181: 0 | K181: 0 | L181: 0 | M181: 0 | N181: 0 | O181: 0 | P181: 0 | Q181: 0 | R181: 0 | S181: 0 | T181: 0 | U181: 0 | V181: 0 | W181: 0 | X181: 0
A182: 0 | B182: H | C182: 健康與體育 | D182: 0 | E182: 0 | F182: 0 | G182: 0 | H182: 0 | I182: 0 | J182: 0 | K182: 0 | L182: 0 | M182: 0 | N182: 0 | O182: 0 | P182: 0 | Q182: 0 | R182: 0 | S182: 0 | T182: 0 | U182: 0 | V182: 0 | W182: 0 | X182: 0
A183: 0 | B183: I | C183: 綜合活動 | D183: 0 | E183: 0 | F183: 0 | G183: 0 | H183: 0 | I183: 0 | J183: 0 | K183: 0 | L183: 0 | M183: 0 | N183: 0 | O183: 0 | P183: 0 | Q183: 0 | R183: 0 | S183: 0 | T183: 0 | U183: 0 | V183: 0 | W183: 0 | X183: 0
A184: 0
A185: 0 | B185: J | C185: 校本課程d | D185: 0 | E185: 0 | F185: 0 | G185: 0 | H185: 0 | I185: 0 | J185: 0 | K185: 0 | L185: 0 | M185: 0 | N185: 0 | O185: 0 | P185: 0 | Q185: 0 | R185: 0 | S185: 0 | T185: 0 | U185: 0 | V185: 0 | W185: 0 | X185: 0
A186: 0 | B186: K | C186: 學習扶助(國語) | D186: 0 | E186: 0 | F186: 0 | G186: 0 | H186: 0 | I186: 0 | J186: 0 | K186: 0 | L186: 0 | M186: 0 | N186: 0 | O186: 0 | P186: 0 | Q186: 0 | R186: 0 | S186: 0 | T186: 0 | U186: 0 | V186: 0 | W186: 0 | X186: 0
A187: 0 | B187: L | C187: 學習扶助(數學) | D187: 0 | E187: 0 | F187: 0 | G187: 0 | H187: 0 | I187: 0 | J187: 0 | K187: 0 | L187: 0 | M187: 0 | N187: 0 | O187: 0 | P187: 0 | Q187: 0 | R187: 0 | S187: 0 | T187: 0 | U187: 0 | V187: 0 | W187: 0 | X187: 0
A188: 0 | B188: M | C188: 資訊教育 | D188: 0 | E188: 0 | F188: 0 | G188: 0 | H188: 0 | I188: 0 | J188: 0 | K188: 0 | L188: 0 | M188: 0 | N188: 0 | O188: 0 | P188: 0 | Q188: 0 | R188: 0 | S188: 0 | T188: 0 | U188: 0 | V188: 0 | W188: 0 | X188: 0
A189: 0 | B189: N | C189: 彈性英語 | D189: 0 | E189: 0 | F189: 0 | G189: 0 | H189: 0 | I189: 0 | J189: 0 | K189: 0 | L189: 0 | M189: 0 | N189: 0 | O189: 0 | P189: 0 | Q189: 0 | R189: 0 | S189: 0 | T189: 0 | U189: 0 | V189: 0 | W189: 0 | X189: 0
A190: 0 | B190: O | D190: 0 | E190: 0 | F190: 0 | G190: 0 | H190: 0 | I190: 0 | J190: 0 | K190: 0 | L190: 0 | M190: 0 | N190: 0 | O190: 0 | P190: 0 | Q190: 0 | R190: 0 | S190: 0 | T190: 0 | U190: 0 | V190: 0 | W190: 0 | X190: 0
A191: =SUM(A175:A190) -> 0 | D191: =SUM(D175:D190) -> 0 | E191: 0 | F191: 0 | G191: 0 | H191: 0 | I191: 0 | J191: 0 | K191: 0 | L191: 0 | M191: 0 | N191: 0 | O191: 0 | P191: 0 | Q191: 0 | R191: 0 | S191: 0 | T191: 0 | U191: 0 | V191: 0 | W191: 0 | X191: 0 | Y191: 0

Sheet 上學期彈性課程名稱變換
AV1: =作業平台__教育部局年度規定節數!I5 -> 5 | AW1: SHOW | AX1: 1 | BA1: 上 | BB1: 可以先輸入彈性課程預定更換單元名稱(不更改__空白) | BJ1: 英語單元名稱最後有p__自動加上"_"號
A2: SHOW | B2: recover | C2: 1 | D2: 不更改__空白 | J2: A2 | Q2: A3 | S2: A3:已經完成匯出 | X2: A4 | AE2: A5 | AL2: A6 | AS2: A7 | AW2: 4 | BB2: 2 | BD2: 3 | BF2: 4 | BH2: 5 | BJ2: 6 | BL2: 7
B3: 上課週次 | C3: 代號 | D3: 全校_活動 | E3: 更改單元活動名稱 | F3: 節數 | G3: 彈性類別 | I3: 上課週次 | J3: 代號 | K3: 校本課程d | L3: 更改單元活動名稱 | M3: 節數 | N3: 彈性類別(選取) | P3: 上課週次 | Q3: 代號 | R3: 學習扶助(國語) | S3: 更改單元活動名稱 | T3: 節數 | U3: 彈性類別(選取) | W3: 上課週次 | X3: 代號 | Y3: 學習扶助(數學) | Z3: 更改單元活動名稱 | AA3: 節數 | AB3: 彈性類別(選取) | AD3: 上課週次 | AE3: 代號 | AF3: 資訊教育 | AG3: 更改單元活動名稱 | AH3: 節數 | AI3: 彈性類別(選取) | AK3: 上課週次 | AL3: 代號 | AN3: 更改單元活動名稱 | AO3: 節數 | AP3: 彈性類別(選取) | AR3: 上課週次 | AS3: 代號 | AU3: 更改單元活動名稱 | AV3: 節數 | AW3: 彈性類別(選取) | BA3: 週次 | BB3: =K3 -> 校本課程d | BC3: 彈性類別 | BD3: =R3 -> 學習扶助(國語) | BE3: 彈性類別 | BF3: =Y3 -> 學習扶助(數學) | BG3: 彈性類別 | BH3: =AF3 -> 資訊教育 | BI3: 彈性類別 | BJ3: =AM3 -> 0 | BK3: 彈性類別 | BL3: =AT3 -> 0 | BM3: 彈性類別 | BZ3: 周次 | CA3: 項目 | CB3: 節數
C4: 教材來源 | D4: 自編1 | J4: 教材來源 | K4: 自編A | M4: =SUM(M5:M26) -> 13 | Q4: 教材來源 | R4: 自編B | T4: =SUM(T5:T26) -> 18 | X4: 教材來源 | Y4: 自編C | AA4: =SUM(AA5:AA26) -> 15 | AE4: 教材來源 | AF4: 自編D | AH4: =SUM(AH5:AH26) -> 21 | AL4: 教材來源 | AM4: 自編E | AO4: =SUM(AO5:AO26) -> 21 | AS4: 教材來源 | AT4: 自編F | AV4: =SUM(AV5:AV26) -> 0 | BC4: =COUNTA(BC5:BC26) -> 21 | BE4: 21 | BG4: 21 | BI4: 21 | BK4: 21
B5: 1 | I5: 1 | J5: SA | K5: SA:校本課程d | L5: 預防注射(流感)P(1_1) 一、大家來找碴 | M5: 1 | N5: a | P5: 1 | Q5: SB | R5: SB:學習扶助(國語) | S5: 擁夢飛翔 一、拔一條河 | T5: 1 | U5: a | W5: 1 | AD5: 1 | AE5: SD | AF5: SD:資訊教育 | AG5: SD:一、電腦的元件介紹 | AH5: 1 | AI5: a | AK5: 1 | AL5: SE | AM5: SE:彈性英語 | AN5: 英語入學輔導週 圖示介紹、角色介紹 | AO5: 1 | AP5: a | AR5: 1 | AY5: 1 | BA5: 1 | BB5: 一、大家來找碴 | BC5: a | BD5: 擁夢飛翔 一、拔一條河 | BE5: a | BF5: 數與量 一、小數的加減 | BG5: a | BH5: SD:一、電腦的元件介紹 | BI5: a | BJ5: 英語入學輔導週 圖示介紹、角色介紹 | BK5: a | BL5: 一、大家來找碴 | BM5: d | BZ5: 4 | CA5: 作文教學 | CB5: 1 | FD5: SB:C英語文,SB:C英語文,SB:E社會,SB:E社會,SB:G自然科學,SB:G自然科學 | FE5: 6
B6: 2 | I6: 2 | J6: SA | K6: SA:校本課程d | L6: 一、大家來找碴 | M6: 1 | N6: a | P6: 2 | Q6: SB | R6: SB:學習扶助(國語) | S6: 擁夢飛翔 二、從空中看臺灣 | T6: 1 | U6: a | W6: 2 | X6: SC | Y6: SC:學習扶助(數學) | Z6: 數與量 一、小數的加減 | AA6: 1 | AB6: a | AD6: 2 | AE6: SD | AF6: SD:資訊教育 | AG6: SD:二、電腦的輸入、輸出裝置 | AH6: 1 | AI6: a | AK6: 2 | AL6: SE | AM6: SE:彈性英語 | AN6: Unit 1 What Are You Doing? | AO6: 1 | AP6: a | AR6: 2 | AY6: 2 | BA6: 2 | BB6: 一、大家來找碴 | BC6: a | BD6: 擁夢飛翔 二、從空中看臺灣 | BE6: a | BF6: 數與量 一、小數的加減 | BG6: a | BH6: SD:二、電腦的輸入、輸出裝置 | BI6: a | BJ6: Unit 1 What Are You Doing? | BK6: a | BL6: 一、大家來找碴 | BM6: d | BZ6: 8 | CA6: 作文教學 | CB6: 1
B7: 3 | I7: 3 | L7: 口腔檢查P(3_1) 身高體重視力檢查P(3_1) | P7: 3 | Q7: SB | R7: SB:學習扶助(國語) | S7: 擁夢飛翔 三、蚊帳大使 | T7: 1 | U7: a | W7: 3 | AD7: 3 | AE7: SD | AF7: SD:資訊教育 | AG7: SD:三、影音繽紛樂 | AH7: 1 | AI7: a | AK7: 3 | AL7: SE | AM7: SE:彈性英語 | AN7: Unit 1 What Are You Doing? | AO7: 1 | AP7: a | AR7: 3 | AY7: 3 | BA7: 3 | BC7: a | BD7: 擁夢飛翔 三、蚊帳大使 | BE7: a | BF7: 數與量 二、因數與倍數 | BG7: a | BH7: SD:三、影音繽紛樂 | BI7: a | BJ7: Unit 1 What Are You Doing? | BK7: a | BL7: 二、高鐵知識大進擊 | BM7: d | BZ7: 13 | CA7: 作文教學 | CB7: 1
B8: 4 | I8: 4 | L8: 作文教學P(4_1) | P8: 4 | Q8: SB | R8: SB:學習扶助(國語) | S8: 統整活動一 | T8: 1 | U8: a | W8: 4 | X8: SC | Y8: SC:學習扶助(數學) | Z8: 數與量 二、因數與倍數 | AA8: 1 | AB8: a | AD8: 4 | AE8: SD | AF8: SD:資訊教育 | AG8: SD:四、「攝」彩繽紛 | AH8: 1 | AI8: a | AK8: 4 | AL8: SE | AM8: SE:彈性英語 | AN8: Unit 1 What Are You Doing? | AO8: 1 | AP8: a | AR8: 4 | AY8: 4 | BA8: 4 | BC8: a | BD8: 統整活動一 | BE8: a | BF8: 數與量 二、因數與倍數 | BG8: a | BH8: SD:四、「攝」彩繽紛 | BI8: a | BJ8: Unit 1 What Are You Doing? | BK8: a | BL8: 二、高鐵知識大進擊 | BM8: d | BZ8: 18 | CA8: 作文教學 | CB8: 1
B9: 5 | I9: 5 | J9: SA | K9: SA:校本課程d | L9: 二、高鐵知識大進擊 | M9: 1 | N9: a | P9: 5 | Q9: SB | R9: SB:學習扶助(國語) | S9: 生命啟示錄 四、不一樣的醫生 | T9: 1 | U9: a | W9: 5 | X9: SC | Y9: SC:學習扶助(數學) | Z9: 數與量 三、擴分、約分和通分 | AA9: 1 | AB9: a | AD9: 5 | AE9: SD | AF9: SD:資訊教育 | AG9: SD:運算思維－達克武館 | AH9: 1 | AI9: a | AK9: 5 | AL9: SE | AM9: SE:彈性英語 | AN9: Unit 2 Are You Riding a Bike? | AO9: 1 | AP9: a | AR9: 5 | AY9: 5 | BA9: 5 | BB9: 二、高鐵知識大進擊 | BC9: a | BD9: 生命啟示錄 四、不一樣的醫生 | BE9: a | BF9: 數與量 三、擴分、約分和通分 | BG9: a | BH9: SD:運算思維－達克武館 | BI9: a | BJ9: Unit 2 Are You Riding a Bike? | BK9: a | BL9: 三、超級比一比 | BM9: d | BZ9: 12 | CA9: 校慶活動(含預演) | CB9: 1
B10: 6 | I10: 6 | J10: SA | K10: SA:校本課程d | L10: 三、超級比一比 | M10: 1 | N10: a | P10: 6 | Q10: SB | R10: SB:學習扶助(國語) | S10: 生命啟示錄 五、分享的力量 | T10: 1 | U10: a | W10: 6 | X10: SC | Y10: SC:學習扶助(數學) | Z10: 數與量 三、擴分、約分和通分 | AA10: 1 | AB10: a | AD10: 6 | AE10: SD | AF10: SD:資訊教育 | AG10: SD:運算思維－達克武館 | AH10: 1 | AI10: a | AK10: 6 | AL10: SE | AM10: SE:彈性英語 | AN10: Unit 2 Are You Riding a Bike? | AO10: 1 | AP10: a | AR10: 6 | AY10: 6 | BA10: 6 | BB10: 三、超級比一比 | BC10: a | BD10: 生命啟示錄 五、分享的力量 | BE10: a | BF10: 數與量 三、擴分、約分和通分 | BG10: a | BH10: SD:運算思維－達克武館 | BI10: a | BJ10: Unit 2 Are You Riding a Bike? | BK10: a | BL10: 三、超級比一比 | BM10: d | BZ10: 12 | CA10: 校慶活動(含預演) | CB10: 1
B11: 7 | I11: 7 | J11: SA | K11: SA:校本課程d | L11: 四、半屏湖溼地公園想像畫 | M11: 1 | N11: a | P11: 7 | Q11: SB | R11: SB:學習扶助(國語) | S11: 生命啟示錄 六、田裡的魔法師 | T11: 1 | U11: a | W11: 7 | X11: SC | Y11: SC:學習扶助(數學) | Z11: 幾何 四、多邊形與扇形 | AA11: 1 | AB11: a | AD11: 7 | AE11: SD | AF11: SD:資訊教育 | AG11: SD:運算思維－達克武館 | AH11: 1 | AI11: a | AK11: 7 | AL11: SE | AM11: SE:彈性英語 | AN11: Unit 2 Are You Riding a Bike? | AO11: 1 | AP11: a | AR11: 7 | AY11: 7 | BA11: 7 | BB11: 四、半屏湖溼地公園想像畫 | BC11: a | BD11: 生命啟示錄 六、田裡的魔法師 | BE11: a | BF11: 幾何 四、多邊形與扇形 | BG11: a | BH11: SD:運算思維－達克武館 | BI11: a | BJ11: Unit 2 Are You Riding a Bike? | BK11: a | BL11: 四、半屏湖溼地公園想像畫 | BM11: d | BZ11: 12 | CA11: 校慶活動(含預演) | CB11: 1
B12: 8 | I12: 8 | L12: 作文教學P(8_1) | P12: 8 | Q12: SB | R12: SB:學習扶助(國語) | S12: 生命啟示錄 七、從失敗中覺醒 | T12: 1 | U12: a | W12: 8 | X12: SC | Y12: SC:學習扶助(數學) | Z12: 幾何 四、多邊形與扇形 | AA12: 1 | AB12: a | AD12: 8 | AE12: SD | AF12: SD:資訊教育 | AG12: SD:運算思維－達克武館 | AH12: 1 | AI12: a | AK12: 8 | AL12: SE | AM12: SE:彈性英語 | AN12: Review 1& 期中成績考查 | AO12: 1 | AP12: a | AR12: 8 | AY12: 8 | BA12: 8 | BC12: a | BD12: 生命啟示錄 七、從失敗中覺醒 | BE12: a | BF12: 幾何 四、多邊形與扇形 | BG12: a | BH12: SD:運算思維－達克武館 | BI12: a | BJ12: Review 1& 期中成績考查 | BK12: a | BL12: 四、半屏湖溼地公園想像畫 | BM12: d | BZ12: 13 | CA12: 校慶活動(含預演) | CB12: 1
B13: 9 | I13: 9 | J13: SA | K13: SA:校本課程d | L13: 四、半屏湖溼地公園想像畫 | M13: 1 | N13: a | P13: 9 | Q13: SB | R13: SB:學習扶助(國語) | S13: 生命啟示錄 統整活動二 | T13: 1 | U13: a | W13: 9 | X13: SC | Y13: SC:學習扶助(數學) | Z13: 數與量 五、異分母分數的加減 | AA13: 1 | AB13: a | AD13: 9 | AE13: SD | AF13: SD:資訊教育 | AG13: SD:五、photoCap初體驗 | AH13: 1 | AI13: a | AK13: 9 | AL13: SE | AM13: SE:彈性英語 | AN13: Culture&FestivalsMoonFestival | AO13: 1 | AP13: a | AR13: 9 | AY13: 9 | BA13: 9 | BB13: 四、半屏湖溼地公園想像畫 | BC13: a | BD13: 生命啟示錄 統整活動二 | BE13: a | BF13: 數與量 五、異分母分數的加減 | BG13: a | BH13: SD:五、photoCap初體驗 | BI13: a | BJ13: Culture&FestivalsMoonFestival | BK13: a | BL13: 四、半屏湖溼地公園想像畫 | BM13: d | BZ13: 13 | CA13: 校慶活動(含預演) | CB13: 1
B14: 10 | I14: 10 | J14: SA | K14: SA:校本課程d | L14: 三、超級比一比 | M14: 1 | N14: a | P14: 10 | Q14: SB | R14: SB:學習扶助(國語) | S14: 閱讀階梯一 永不掉落的葉子 | T14: 1 | U14: a | W14: 10 | X14: SC | Y14: SC:學習扶助(數學) | Z14: 數與量 五、異分母分數的加減 | AA14: 1 | AB14: a | AD14: 10 | AE14: SD | AF14: SD:資訊教育 | AG14: SD:六、相片大變身: 合成 | AH14: 1 | AI14: a | AK14: 10 | AL14: SE | AM14: SE:彈性英語 | AN14: Unit 3 How’s the Weather? | AO14: 1 | AP14: a | AR14: 10 | AY14: 10 | BA14: 10 | BB14: 三、超級比一比 | BC14: a | BD14: 閱讀階梯一 永不掉落的葉子 | BE14: a | BF14: 數與量 五、異分母分數的加減 | BG14: a | BH14: SD:六、相片大變身: 合成 | BI14: a | BJ14: Unit 3 How’s the Weather? | BK14: a | BL14: 三、超級比一比 | BM14: d | BZ14: 14 | CA14: 校慶活動(含預演) | CB14: 1
B15: 11 | I15: 11 | J15: SA | K15: SA:校本課程d | L15: 五、半屏湖溼地大調查 | M15: 1 | N15: a | P15: 11 | Q15: SB | R15: SB:學習扶助(國語) | S15: 觀察與探索 八、火星人，你好嗎？ | T15: 1 | U15: a | W15: 11 | X15: SC | Y15: SC:學習扶助(數學) | Z15: 數與量 六、乘法和除法 | AA15: 1 | AB15: a | AD15: 11 | AE15: SD | AF15: SD:資訊教育 | AG15: SD:七、相片說故事: 文字的應用 | AH15: 1 | AI15: a | AK15: 11 | AL15: SE | AM15: SE:彈性英語 | AN15: Unit 3 How’s the Weather? | AO15: 1 | AP15: a | AR15: 11 | AY15: 11 | BA15: 11 | BB15: 五、半屏湖溼地大調查 | BC15: a | BD15: 觀察與探索 八、火星人，你好嗎？ | BE15: a | BF15: 數與量 六、乘法和除法 | BG15: a | BH15: SD:七、相片說故事: 文字的應用 | BI15: a | BJ15: Unit 3 How’s the Weather? | BK15: a | BL15: 五、半屏湖溼地大調查 | BM15: d | BZ15: 14 | CA15: 校慶活動(含預演) | CB15: 1
B16: 12 | I16: 12 | L16: 校慶活動(含預演)P(12_3) | P16: 12 | W16: 12 | AD16: 12 | AE16: SD | AF16: SD:資訊教育 | AG16: SD:七、相片說故事: 相片併貼 | AH16: 1 | AI16: a | AK16: 12 | AL16: SE | AM16: SE:彈性英語 | AN16: Unit 3 How’s the Weather? | AO16: 1 | AP16: a | AR16: 12 | AY16: 12 | BA16: 12 | BC16: a | BD16: 觀察與探索 九、溪谷間的野鳥 | BE16: a | BF16: 數與量 六、乘法和除法 | BG16: a | BH16: SD:七、相片說故事: 相片併貼 | BI16: a | BJ16: Unit 3 How’s the Weather? | BK16: a | BL16: 五、半屏湖溼地大調查 | BM16: d | BZ16: 14 | CA16: 校慶活動(含預演) | CB16: 1
B17: 13 | I17: 13 | L17: 作文教學P(13_1) 校慶活動(含預演)P(13_2) | P17: 13 | W17: 13 | AD17: 13 | AE17: SD | AF17: SD:資訊教育 | AG17: SD:八、不同的回憶: 布景主題 | AH17: 1 | AI17: a | AK17: 13 | AL17: SE | AM17: SE:彈性英語 | AN17: Unit 4 Do You Like Apples? | AO17: 1 | AP17: a | AR17: 13 | AY17: 13 | BA17: 13 | BC17: a | BD17: 觀察與探索 十、海豚 | BE17: a | BF17: 數與量 六、乘法和除法 | BG17: a | BH17: SD:八、不同的回憶: 布景主題 | BI17: a | BJ17: Unit 4 Do You Like Apples? | BK17: a | BL17: 五、半屏湖溼地大調查 | BM17: d | BZ17: 3 | CA17: 口腔檢查 | CB17: 1
B18: 14 | I18: 14 | L18: 校慶活動(含預演)P(14_3) | P18: 14 | W18: 14 | AD18: 14 | AE18: SD | AF18: SD:資訊教育 | AG18: SD:八、不同的回憶: 相片桌曆 | AH18: 1 | AI18: a | AK18: 14 | AL18: SE | AM18: SE:彈性英語 | AN18: Unit 4 Do You Like Apples? | AO18: 1 | AP18: a | AR18: 14 | AY18: 14 | BA18: 14 | BC18: a | BD18: 觀察與探索 統整活動三 | BE18: a | BF18: 數與量、代數 七、整數四則運算 | BG18: a | BH18: SD:八、不同的回憶: 相片桌曆 | BI18: a | BJ18: Unit 4 Do You Like Apples? | BK18: a | BL18: 六、小小半屏湖溼地公園解說員 | BM18: d | BZ18: 3 | CA18: 身高體重視力檢查 | CB18: 1
B19: 15 | I19: 15 | J19: SA | K19: SA:校本課程d | L19: 六、小小半屏湖溼地公園解說員 | M19: 1 | N19: a | P19: 15 | Q19: SB | R19: SB:學習扶助(國語) | S19: 文學步道—人與環境 十一、你想做人魚嗎？ | T19: 1 | U19: a | W19: 15 | X19: SC | Y19: SC:學習扶助(數學) | Z19: 數與量、代數 七、整數四則運算 | AA19: 1 | AB19: a | AD19: 15 | AE19: SD | AF19: SD:資訊教育 | AG19: SD:八、不同的回憶: 相簿製作 | AH19: 1 | AI19: a | AK19: 15 | AL19: SE | AM19: SE:彈性英語 | AN19: Unit 4 Do You Like Apples? | AO19: 1 | AP19: a | AR19: 15 | AY19: 15 | BA19: 15 | BB19: 六、小小半屏湖溼地公園解說員 | BC19: a | BD19: 文學步道—人與環境 十一、你想做人魚嗎？ | BE19: a | BF19: 數與量、代數 七、整數四則運算 | BG19: a | BH19: SD:八、不同的回憶: 相簿製作 | BI19: a | BJ19: Unit 4 Do You Like Apples? | BK19: a | BL19: 六、小小半屏湖溼地公園解說員 | BM19: d | BZ19: 1 | CA19: 預防注射(流感) | CB19: 1
B20: 16 | I20: 16 | J20: SA | K20: SA:校本課程d | L20: 六、小小半屏湖溼地公園解說員 | M20: 1 | N20: a | P20: 16 | Q20: SB | R20: SB:學習扶助(國語) | S20: 文學步道—人與環境 十二、衝破逆境 | T20: 1 | U20: a | W20: 16 | X20: SC | Y20: SC:學習扶助(數學) | Z20: 數與量、幾何 八、面積 | AA20: 1 | AB20: a | AD20: 16 | AE20: SD | AF20: SD:資訊教育 | AG20: SD:九、相片管理: 批次檔案 | AH20: 1 | AI20: a | AK20: 16 | AL20: SE | AM20: SE:彈性英語 | AN20: Unit5WhatDoYouWanttoDrink? | AO20: 1 | AP20: a | AR20: 16 | AY20: 16 | BA20: 16 | BB20: 六、小小半屏湖溼地公園解說員 | BC20: a | BD20: 文學步道—人與環境 十二、衝破逆境 | BE20: a | BF20: 數與量、幾何 八、面積 | BG20: a | BH20: SD:九、相片管理: 批次檔案 | BI20: a | BJ20: Unit5WhatDoYouWanttoDrink? | BK20: a | BL20: 六、小小半屏湖溼地公園解說員 | BM20: d | BZ20: 17 | CA20: 聖誕節活動 | CB20: 1
B21: 17 | I21: 17 | L21: 聖誕節活動P(17_2) | P21: 17 | Q21: SB | R21: SB:學習扶助(國語) | S21: 文學步道—人與環境 十三、想念的季節 | T21: 1 | U21: a | W21: 17 | AD21: 17 | AE21: SD | AF21: SD:資訊教育 | AG21: SD:九、相片管理: 儲存與備份 | AH21: 1 | AI21: a | AK21: 17 | AL21: SE | AM21: SE:彈性英語 | AN21: Unit5WhatDoYouWanttoDrink? | AO21: 1 | AP21: a | AR21: 17 | AY21: 17 | BA21: 17 | BC21: a | BD21: 文學步道—人與環境 十三、想念的季節 | BE21: a | BF21: 數與量、幾何 八、面積 | BG21: a | BH21: SD:九、相片管理: 儲存與備份 | BI21: a | BJ21: Unit5WhatDoYouWanttoDrink? | BK21: a | BL21: 七、半屏山植物知多少 | BM21: d | BZ21: 17 | CA21: 聖誕節活動 | CB21: 1
B22: 18 | I22: 18 | L22: 作文教學P(18_1) | P22: 18 | Q22: SB | R22: SB:學習扶助(國語) | S22: 文學步道—人與環境 十四、小樹 | T22: 1 | U22: a | W22: 18 | X22: SC | Y22: SC:學習扶助(數學) | Z22: 數與量 九、時間的乘除 | AA22: 1 | AB22: a | AD22: 18 | AE22: SD | AF22: SD:資訊教育 | AG22: SD:十、網路生活誌: 圖文分享 【資訊倫理教育】 | AH22: 1 | AI22: a | AK22: 18 | AL22: SE | AM22: SE:彈性英語 | AN22: Unit5WhatDoYouWanttoDrink? | AO22: 1 | AP22: a | AR22: 18 | AY22: 18 | BA22: 18 | BC22: a | BD22: 文學步道—人與環境 十四、小樹 | BE22: a | BF22: 數與量 九、時間的乘除 | BG22: a | BH22: SD:十、網路生活誌: 圖文分享 【資訊倫理教育】 | BI22: a | BJ22: Unit5WhatDoYouWanttoDrink? | BK22: a | BL22: 五、半屏湖溼地大調查 | BM22: d
B23: 19 | I23: 19 | J23: SA | K23: SA:校本課程d | L23: 五、半屏湖溼地大調查 | M23: 1 | N23: a | P23: 19 | Q23: SB | R23: SB:學習扶助(國語) | S23: 文學步道—人與環境 十四、小樹 | T23: 1 | U23: a | W23: 19 | X23: SC | Y23: SC:學習扶助(數學) | Z23: 數與量 九、時間的乘除 | AA23: 1 | AB23: a | AD23: 19 | AE23: SD | AF23: SD:資訊教育 | AG23: SD:十、網路生活誌: 智慧財產 【資訊倫理教育】 | AH23: 1 | AI23: a | AK23: 19 | AL23: SE | AM23: SE:彈性英語 | AN23: Review 2 | AO23: 1 | AP23: a | AR23: 19 | AY23: 19 | BA23: 19 | BB23: 五、半屏湖溼地大調查 | BC23: a | BD23: 文學步道—人與環境 十四、小樹 | BE23: a | BF23: 數與量 九、時間的乘除 | BG23: a | BH23: SD:十、網路生活誌: 智慧財產 【資訊倫理教育】 | BI23: a | BJ23: Review 2 | BK23: a | BL23: 五、半屏湖溼地大調查 | BM23: d
B24: 20 | I24: 20 | J24: SA | K24: SA:校本課程d | L24: 六、植物分類!你做到了嗎? | M24: 1 | N24: a | P24: 20 | Q24: SB | R24: SB:學習扶助(國語) | S24: 文學步道—人與環境 統整活動四 | T24: 1 | U24: a | W24: 20 | X24: SC | Y24: SC:學習扶助(數學) | Z24: 幾何 十、柱體、錐體和球 | AA24: 1 | AB24: a | AD24: 20 | AE24: SD | AF24: SD:資訊教育 | AG24: SD:十、網路生活誌: 網路禮儀 【資訊倫理教育】 | AH24: 1 | AI24: a | AK24: 20 | AL24: SE | AM24: SE:彈性英語 | AN24: Final Review | AO24: 1 | AP24: a | AR24: 20 | AY24: 20 | BA24: 20 | BB24: 六、植物分類!你做到了嗎? | BC24: a | BD24: 文學步道—人與環境 統整活動四 | BE24: a | BF24: 幾何 十、柱體、錐體和球 | BG24: a | BH24: SD:十、網路生活誌: 網路禮儀 【資訊倫理教育】 | BI24: a | BJ24: Final Review | BK24: a | BL24: 六、植物分類!你做到了嗎? | BM24: d
B25: 21 | I25: 21 | J25: SA | K25: SA:校本課程d | L25: 六、植物分類!你做到了嗎? | M25: 1 | N25: a | P25: 21 | Q25: SB | R25: SB:學習扶助(國語) | S25: 閱讀階梯二 珍惜水資源 | T25: 1 | U25: a | W25: 21 | X25: SC | Y25: SC:學習扶助(數學) | Z25: 幾何 十、柱體、錐體和球 | AA25: 1 | AB25: a | AD25: 21 | AE25: SD | AF25: SD:資訊教育 | AG25: SD:課程回饋與檢討 | AH25: 1 | AI25: a | AK25: 21 | AL25: SE | AM25: SE:彈性英語 | AN25: Final Review 、期末考 | AO25: 1 | AP25: a | AR25: 21 | AY25: 21 | BA25: 21 | BB25: 六、植物分類!你做到了嗎? | BC25: a | BD25: 閱讀階梯二 珍惜水資源 | BE25: a | BF25: 幾何 十、柱體、錐體和球 | BG25: a | BH25: SD:課程回饋與檢討 | BI25: a | BJ25: Final Review 、期末考 | BK25: a | BL25: 六、植物分類!你做到了嗎? | BM25: d
I29: 彈性類別 | J29: 節數
I30: a | J30: =SUMIF(N5:N26,"a",M5:M26)+SUMIF(U5:U26,"a",T5:T26)+SUMIF(AB5:AB26,"a",AA5:AA26)+SUMIF(AI5:AI26,"a",AH5:AH26)+SUMIF(AP5:AP26,"a",AO5:AO26)+SUMIF(AW5:AW26,"a",AV5:AV26)+SUMIF(G5:G26,"a",F5:F26) -> 88
I31: b | J31: =SUMIF(N5:N26,"b",M5:M26)+SUMIF(U5:U26,"b",T5:T26)+SUMIF(AB5:AB26,"b",AA5:AA26)+SUMIF(AI5:AI26,"b",AH5:AH26)+SUMIF(AP5:AP26,"b",AO5:AO26)+SUMIF(AW5:AW26,"b",AV5:AV26)+SUMIF(G5:G26,"b",F5:F26) -> 0
I32: c | J32: =SUMIF(N5:N26,"c",M5:M26)+SUMIF(U5:U26,"c",T5:T26)+SUMIF(AB5:AB26,"c",AA5:AA26)+SUMIF(AI5:AI26,"c",AH5:AH26)+SUMIF(AP5:AP26,"c",AO5:AO26)+SUMIF(AW5:AW26,"c",AV5:AV26)+SUMIF(G5:G26,"c",F5:F26) -> 0
I33: d | J33: =SUMIF(N5:N26,"d",M5:M26)+SUMIF(U5:U26,"d",T5:T26)+SUMIF(AB5:AB26,"d",AA5:AA26)+SUMIF(AI5:AI26,"d",AH5:AH26)+SUMIF(AP5:AP26,"d",AO5:AO26)+SUMIF(AW5:AW26,"d",AV5:AV26)+SUMIF(G5:G26,"d",F5:F26) -> 0

Sheet 下學期彈性課程名稱變換
AV1: =作業平台__教育部局年度規定節數!I5 -> 5 | AW1: SHOW | AX1: 1 | BA1: 下 | BB1: 可以先輸入彈性課程預定更換單元名稱(不更改__空白)
A2: SHOW | B2: recover | C2: 1 | D2: 不更改__空白 | J2: A2 | Q2: A3 | S2: A3:已經完成匯出 | X2: A4 | AE2: A5 | AL2: A6 | AS2: A7 | AW2: 4 | BB2: 2 | BD2: 3 | BF2: 4 | BH2: 5 | BJ2: 6 | BL2: 7
B3: 上課週次 | C3: 代號 | D3: 全校_活動 | E3: 更改單元活動名稱 | F3: 節數 | G3: 彈性類別 | I3: 上課週次 | J3: 代號 | K3: 校本課程d | L3: 更改單元活動名稱 | M3: 節數 | N3: 彈性類別(選取) | P3: 上課週次 | Q3: 代號 | R3: 學習扶助(國語) | S3: 更改單元活動名稱 | T3: 節數 | U3: 彈性類別(選取) | W3: 上課週次 | X3: 代號 | Y3: 學習扶助(數學) | Z3: 更改單元活動名稱 | AA3: 節數 | AB3: 彈性類別(選取) | AD3: 上課週次 | AE3: 代號 | AF3: 資訊教育 | AG3: 更改單元活動名稱 | AH3: 節數 | AI3: 彈性類別(選取) | AK3: 上課週次 | AL3: 代號 | AN3: 更改單元活動名稱 | AO3: 節數 | AP3: 彈性類別(選取) | AR3: 上課週次 | AS3: 代號 | AU3: 更改單元活動名稱 | AV3: 節數 | AW3: 彈性類別(選取) | BA3: 週次 | BB3: =K3 -> 校本課程d | BC3: 彈性類別 | BD3: =R3 -> 學習扶助(國語) | BE3: 彈性類別 | BF3: =Y3 -> 學習扶助(數學) | BG3: 彈性類別 | BH3: =AF3 -> 資訊教育 | BI3: 彈性類別 | BJ3: =AM3 -> 0 | BK3: 彈性類別 | BL3: =AT3 -> 0 | BM3: 彈性類別
C4: 教材來源 | D4: 自編1 | J4: 教材來源 | K4: 自編A | M4: =SUM(M5:M26) -> 11 | Q4: 教材來源 | R4: 自編B | T4: =SUM(T5:T26) -> 10 | X4: 教材來源 | Y4: 自編C | AA4: =SUM(AA5:AA26) -> 15 | AE4: 教材來源 | AF4: 自編D | AH4: =SUM(AH5:AH26) -> 20 | AL4: 教材來源 | AM4: 自編E | AO4: =SUM(AO5:AO26) -> 20 | AS4: 教材來源 | AT4: 自編F | AV4: =SUM(AV5:AV26) -> 0 | BC4: =COUNTA(BC5:BC26) -> 20 | BE4: 20 | BG4: 20 | BI4: 20 | BK4: 20
B5: 1 | I5: 1 | J5: SA | K5: SA:校本課程d | L5: 預防注射(流感)P(1_1) 一、生活高手 | M5: 1 | N5: a | P5: 1 | W5: 1 | X5: SC | Y5: SC:學習扶助(數學) | Z5: 數與量、幾何 一.體積 | AA5: 1 | AB5: a | AD5: 1 | AE5: SD | AF5: SD:資訊教育 | AG5: SD:一、簡報初體驗 | AH5: 1 | AI5: a | AK5: 1 | AL5: SE | AM5: SE:彈性英語 | AN5: 圖示介紹、角色介紹、發音複習表 | AO5: 1 | AP5: a | AR5: 1 | AY5: 1 | BA5: 1 | BB5: 一、生活高手 | BC5: a | BD5: 機智的故事 一、名人記趣 | BE5: a | BF5: 數與量、幾何 一.體積 | BG5: a | BH5: SD:一、簡報初體驗 | BI5: a | BJ5: 圖示介紹、角色介紹、發音複習表 | BK5: a | BM5: d | BZ5: 4 | CA5: 作文教學 | CB5: 1
B6: 2 | I6: 2 | J6: SA | K6: SA:校本課程d | L6: 一、生活高手 | M6: 1 | N6: a | P6: 2 | Q6: SB | R6: SB:學習扶助(國語) | S6: 機智的故事 二、秋江獨釣 | T6: 1 | U6: a | W6: 2 | X6: SC | Y6: SC:學習扶助(數學) | Z6: 數與量 二.分數的計算 | AA6: 1 | AB6: a | AD6: 2 | AE6: SD | AF6: SD:資訊教育 | AG6: SD:二、圖文並茂的簡報軟體：背景設計 | AH6: 1 | AI6: a | AK6: 2 | AL6: SE | AM6: SE:彈性英語 | AN6: Unit 1 What Day Is Today? | AO6: 1 | AP6: a | AR6: 2 | AY6: 2 | BA6: 2 | BB6: 一、生活高手 | BC6: a | BD6: 機智的故事 二、秋江獨釣 | BE6: a | BF6: 數與量 二.分數的計算 | BG6: a | BH6: SD:二、圖文並茂的簡報軟體：背景設計 | BI6: a | BJ6: Unit 1 What Day Is Today? | BK6: a | BM6: d | BZ6: 8 | CA6: 作文教學 | CB6: 1
B7: 3 | I7: 3 | J7: SA | K7: SA:校本課程d | L7: 口腔檢查P(3_1) 一、生活高手 | M7: 1 | N7: a | P7: 3 | W7: 3 | X7: SC | Y7: SC:學習扶助(數學) | Z7: 數與量 二.分數的計算 | AA7: 1 | AB7: a | AD7: 3 | AE7: SD | AF7: SD:資訊教育 | AG7: SD:三、簡報動起來：投影片切換 | AH7: 1 | AI7: a | AK7: 3 | AL7: SE | AM7: SE:彈性英語 | AN7: Unit 1 What Day Is Today? | AO7: 1 | AP7: a | AR7: 3 | AY7: 3 | BA7: 3 | BB7: 一、生活高手 | BC7: a | BD7: 機智的故事 三、智救養馬人 | BE7: a | BF7: 數與量 二.分數的計算 | BG7: a | BH7: SD:三、簡報動起來：投影片切換 | BI7: a | BJ7: Unit 1 What Day Is Today? | BK7: a | BM7: d | BZ7: 13 | CA7: 作文教學 | CB7: 1
B8: 4 | I8: 4 | L8: 作文教學P(4_1) 身高體重視力檢查P(4_1) | P8: 4 | W8: 4 | X8: SC | Y8: SC:學習扶助(數學) | Z8: 數與量 三.容積 | AA8: 1 | AB8: a | AD8: 4 | AE8: SD | AF8: SD:資訊教育 | AG8: SD:三、簡報動起來：版面配置 | AH8: 1 | AI8: a | AK8: 4 | AL8: SE | AM8: SE:彈性英語 | AN8: Unit 1 What Day Is Today? | AO8: 1 | AP8: a | AR8: 4 | AY8: 4 | BA8: 4 | BC8: a | BD8: 機智的故事 統整活動一 | BE8: a | BF8: 數與量 三.容積 | BG8: a | BH8: SD:三、簡報動起來：版面配置 | BI8: a | BJ8: Unit 1 What Day Is Today? | BK8: a | BM8: d | BZ8: 19 | CA8: 作文教學 | CB8: 1
B9: 5 | I9: 5 | J9: SA | K9: SA:校本課程d | L9: 一、生活高手 | M9: 1 | N9: a | P9: 5 | Q9: SB | R9: SB:學習扶助(國語) | S9: 藝術天地 四、故宮挖「寶」趣 | T9: 1 | U9: a | W9: 5 | X9: SC | Y9: SC:學習扶助(數學) | Z9: 數與量 三.容積 | AA9: 1 | AB9: a | AD9: 5 | AE9: SD | AF9: SD:資訊教育 | AG9: SD:四、簡報分鏡圖：物件動畫 | AH9: 1 | AI9: a | AK9: 5 | AL9: SE | AM9: SE:彈性英語 | AN9: Unit2HowDoYouGotoRedHouse? | AO9: 1 | AP9: a | AR9: 5 | AY9: 5 | BA9: 5 | BB9: 一、生活高手 | BC9: a | BD9: 藝術天地 四、故宮挖「寶」趣 | BE9: a | BF9: 數與量 三.容積 | BG9: a | BH9: SD:四、簡報分鏡圖：物件動畫 | BI9: a | BJ9: Unit2HowDoYouGotoRedHouse? | BK9: a | BM9: d | BZ9: 16 | CA9: 畢業典禮活動 | CB9: 1
B10: 6 | I10: 6 | J10: SA | K10: SA:校本課程d | L10: 一、生活高手 | M10: 1 | N10: a | P10: 6 | Q10: SB | R10: SB:學習扶助(國語) | S10: 藝術天地 五、恆久的美 | T10: 1 | U10: a | W10: 6 | X10: SC | Y10: SC:學習扶助(數學) | Z10: 數與量 四.小數的乘法 | AA10: 1 | AB10: a | AD10: 6 | AE10: SD | AF10: SD:資訊教育 | AG10: SD:五、簡報大導演：文字藝術師 | AH10: 1 | AI10: a | AK10: 6 | AL10: SE | AM10: SE:彈性英語 | AN10: Unit2HowDoYouGotoRedHouse? | AO10: 1 | AP10: a | AR10: 6 | AY10: 6 | BA10: 6 | BB10: 一、生活高手 | BC10: a | BD10: 藝術天地 五、恆久的美 | BE10: a | BF10: 數與量 四.小數的乘法 | BG10: a | BH10: SD:五、簡報大導演：文字藝術師 | BI10: a | BJ10: Unit2HowDoYouGotoRedHouse? | BK10: a | BM10: d | BZ10: 16 | CA10: 畢業典禮活動 | CB10: 1
B11: 7 | I11: 7 | L11: 兒童節慶祝活動P(7_2) | P11: 7 | W11: 7 | X11: SC | Y11: SC:學習扶助(數學) | Z11: 數與量 四.小數的乘法 | AA11: 1 | AB11: a | AD11: 7 | AE11: SD | AF11: SD:資訊教育 | AG11: SD:五、簡報大導演：視訊影片 | AH11: 1 | AI11: a | AK11: 7 | AL11: SE | AM11: SE:彈性英語 | AN11: Unit2HowDoYouGotoRedHouse? | AO11: 1 | AP11: a | AR11: 7 | AY11: 7 | BA11: 7 | BC11: a | BD11: 藝術天地 六、戲迷 | BE11: a | BF11: 數與量 四.小數的乘法 | BG11: a | BH11: SD:五、簡報大導演：視訊影片 | BI11: a | BJ11: Unit2HowDoYouGotoRedHouse? | BK11: a | BM11: d | BZ11: 16 | CA11: 畢業典禮活動 | CB11: 1
B12: 8 | I12: 8 | L12: 作文教學P(8_1) 兒童節慶祝活動P(8_1) | P12: 8 | W12: 8 | X12: SC | Y12: SC:學習扶助(數學) | Z12: 幾何 五.線對稱圖形 | AA12: 1 | AB12: a | AD12: 8 | AE12: SD | AF12: SD:資訊教育 | AG12: SD:五、簡報大導演：時間控管 | AH12: 1 | AI12: a | AK12: 8 | AL12: SE | AM12: SE:彈性英語 | AN12: Review 1& 期中成績考查 | AO12: 1 | AP12: a | AR12: 8 | AY12: 8 | BA12: 8 | BC12: a | BD12: 藝術天地 七、舞動美麗人生 | BE12: a | BF12: 幾何 五.線對稱圖形 | BG12: a | BH12: SD:五、簡報大導演：時間控管 | BI12: a | BJ12: Review 1& 期中成績考查 | BK12: a | BM12: d | BZ12: 17 | CA12: 畢業典禮活動 | CB12: 1
B13: 9 | I13: 9 | J13: SA | K13: SA:校本課程d | L13: 二、過關斬將 | M13: 1 | N13: a | P13: 9 | Q13: SB | R13: SB:學習扶助(國語) | S13: 藝術天地 統整活動二 | T13: 1 | U13: a | W13: 9 | X13: SC | Y13: SC:學習扶助(數學) | Z13: 數與量 六.整數、小數除以整數 | AA13: 1 | AB13: a | AD13: 9 | AE13: SD | AF13: SD:資訊教育 | AG13: SD:六、主題簡報製作 | AH13: 1 | AI13: a | AK13: 9 | AL13: SE | AM13: SE:彈性英語 | AN13: Culture & Festivals Easter | AO13: 1 | AP13: a | AR13: 9 | AY13: 9 | BA13: 9 | BB13: 二、過關斬將 | BC13: a | BD13: 藝術天地 統整活動二 | BE13: a | BF13: 數與量 六.整數、小數除以整數 | BG13: a | BH13: SD:六、主題簡報製作 | BI13: a | BJ13: Culture & Festivals Easter | BK13: a | BM13: d | BZ13: 17 | CA13: 畢業典禮活動 | CB13: 1
B14: 10 | I14: 10 | J14: SA | K14: SA:校本課程d | L14: 二、過關斬將 | M14: 1 | N14: a | P14: 10 | Q14: SB | R14: SB:學習扶助(國語) | S14: 閱讀階梯一、要挑最大的 | T14: 1 | U14: a | W14: 10 | X14: SC | Y14: SC:學習扶助(數學) | Z14: 數與量 六.整數、小數除以整數 | AA14: 1 | AB14: a | AD14: 10 | AE14: SD | AF14: SD:資訊教育 | AG14: SD:七、智慧財產小達人 【資訊倫理教育】 | AH14: 1 | AI14: a | AK14: 10 | AL14: SE | AM14: SE:彈性英語 | AN14: Unit 3 What’s Wrong? | AO14: 1 | AP14: a | AR14: 10 | AY14: 10 | BA14: 10 | BB14: 二、過關斬將 | BC14: a | BD14: 閱讀階梯一、要挑最大的 | BE14: a | BF14: 數與量 六.整數、小數除以整數 | BG14: a | BH14: SD:七、智慧財產小達人 【資訊倫理教育】 | BI14: a | BJ14: Unit 3 What’s Wrong? | BK14: a | BM14: d | BZ14: 17 | CA14: 畢業典禮活動 | CB14: 1
B15: 11 | I15: 11 | J15: SA | K15: SA:校本課程d | L15: 二、過關斬將 | M15: 1 | N15: a | P15: 11 | Q15: SB | R15: SB:學習扶助(國語) | S15: 問題與答案 八、動物的尾巴 | T15: 1 | U15: a | W15: 11 | X15: SC | Y15: SC:學習扶助(數學) | Z15: 代數 七.列式與解題 | AA15: 1 | AB15: a | AD15: 11 | AE15: SD | AF15: SD:資訊教育 | AG15: SD:八、知識王：問答遊戲規劃 | AH15: 1 | AI15: a | AK15: 11 | AL15: SE | AM15: SE:彈性英語 | AN15: Unit 3 What’s Wrong? | AO15: 1 | AP15: a | AR15: 11 | AY15: 11 | BA15: 11 | BB15: 二、過關斬將 | BC15: a | BD15: 問題與答案 八、動物的尾巴 | BE15: a | BF15: 代數 七.列式與解題 | BG15: a | BH15: SD:八、知識王：問答遊戲規劃 | BI15: a | BJ15: Unit 3 What’s Wrong? | BK15: a | BM15: d | BZ15: 3 | CA15: 口腔檢查 | CB15: 1
B16: 12 | I16: 12 | L16: 慶祝母親節活動P(12_2) | P16: 12 | W16: 12 | X16: SC | Y16: SC:學習扶助(數學) | Z16: 代數 七.列式與解題 | AA16: 1 | AB16: a | AD16: 12 | AE16: SD | AF16: SD:資訊教育 | AG16: SD:八、知識王：SmartArt圖形 | AH16: 1 | AI16: a | AK16: 12 | AL16: SE | AM16: SE:彈性英語 | AN16: Unit 3 What’s Wrong? | AO16: 1 | AP16: a | AR16: 12 | AY16: 12 | BA16: 12 | BC16: a | BD16: 問題與答案 九、生命中的「大石頭」 | BE16: a | BF16: 代數 七.列式與解題 | BG16: a | BH16: SD:八、知識王：SmartArt圖形 | BI16: a | BJ16: Unit 3 What’s Wrong? | BK16: a | BM16: d | BZ16: 4 | CA16: 身高體重視力檢查 | CB16: 1
B17: 13 | I17: 13 | L17: 作文教學P(13_1) 自治市長選舉P(13_1) | P17: 13 | W17: 13 | X17: SC | Y17: SC:學習扶助(數學) | Z17: 數與量、幾何 八.表面積 | AA17: 1 | AB17: a | AD17: 13 | AE17: SD | AF17: SD:資訊教育 | AG17: SD:八、知識王：互動連結 | AH17: 1 | AI17: a | AK17: 13 | AL17: SE | AM17: SE:彈性英語 | AN17: Unit4It’sTimetoGotoBed. | AO17: 1 | AP17: a | AR17: 13 | AY17: 13 | BA17: 13 | BC17: a | BD17: 問題與答案 十、果真如此嗎 | BE17: a | BF17: 數與量、幾何 八.表面積 | BG17: a | BH17: SD:八、知識王：互動連結 | BI17: a | BJ17: Unit4It’sTimetoGotoBed. | BK17: a | BM17: d | BZ17: 1 | CA17: 預防注射(流感) | CB17: 1
B18: 14 | I18: 14 | L18: 基本能力檢測(五年級)P(14_2) | P18: 14 | Q18: SB | R18: SB:學習扶助(國語) | S18: 問題與答案 統整活動三 | T18: 1 | U18: a | W18: 14 | AD18: 14 | AE18: SD | AF18: SD:資訊教育 | AG18: SD:八、知識王：簡報製作 | AH18: 1 | AI18: a | AK18: 14 | AL18: SE | AM18: SE:彈性英語 | AN18: Unit4It’sTimetoGotoBed. | AO18: 1 | AP18: a | AR18: 14 | AY18: 14 | BA18: 14 | BC18: a | BD18: 問題與答案 統整活動三 | BE18: a | BF18: 數與量、幾何 八.表面積 | BG18: a | BH18: SD:八、知識王：簡報製作 | BI18: a | BJ18: Unit4It’sTimetoGotoBed. | BK18: a | BM18: d | BZ18: 14 | CA18: 基本能力檢測(五年級) | CB18: 1
B19: 15 | I19: 15 | L19: 班際體育競賽P(15_1) 歡送畢業生園遊會P(15_2) | P19: 15 | W19: 15 | AD19: 15 | AE19: SD | AF19: SD:資訊教育 | AG19: SD:八、知識王：大家來找碴 | AH19: 1 | AI19: a | AK19: 15 | AL19: SE | AM19: SE:彈性英語 | AN19: Unit4It’sTimetoGotoBed. | AO19: 1 | AP19: a | AR19: 15 | AY19: 15 | BA19: 15 | BC19: a | BD19: 文學步道─感受自然 十一、湖光山色 | BE19: a | BF19: 數與量 九.比率與百分率 | BG19: a | BH19: SD:八、知識王：大家來找碴 | BI19: a | BJ19: Unit4It’sTimetoGotoBed. | BK19: a | BM19: d | BZ19: 14 | CA19: 基本能力檢測(五年級) | CB19: 1
B20: 16 | I20: 16 | L20: 畢業典禮活動P(16_3) | P20: 16 | W20: 16 | AD20: 16 | AE20: SD | AF20: SD:資訊教育 | AG20: SD:九、運算思維－WebBit：介紹 | AH20: 1 | AI20: a | AK20: 16 | AL20: SE | AM20: SE:彈性英語 | AN20: Unit5WhatDoYouLiketoDo? | AO20: 1 | AP20: a | AR20: 16 | AY20: 16 | BA20: 16 | BC20: a | BD20: 文學步道─感受自然 十二、田園交響曲 | BE20: a | BF20: 數與量 九.比率與百分率 | BG20: a | BH20: SD:九、運算思維－WebBit：介紹 | BI20: a | BJ20: Unit5WhatDoYouLiketoDo? | BK20: a | BM20: d | BZ20: 7 | CA20: 兒童節慶祝活動 | CB20: 1
B21: 17 | I21: 17 | L21: 畢業典禮活動P(17_3) | P21: 17 | W21: 17 | AD21: 17 | AE21: SD | AF21: SD:資訊教育 | AG21: SD:九、運算思維－WebBit：LED燈光秀 | AH21: 1 | AI21: a | AK21: 17 | AL21: SE | AM21: SE:彈性英語 | AN21: Unit5WhatDoYouLiketoDo? | AO21: 1 | AP21: a | AR21: 17 | AY21: 17 | BA21: 17 | BC21: a | BD21: 文學步道─感受自然 十三、山豬學校，飛鼠大學 | BE21: a | BF21: 數與量 九.比率與百分率 | BG21: a | BH21: SD:九、運算思維－WebBit：LED燈光秀 | BI21: a | BJ21: Unit5WhatDoYouLiketoDo? | BK21: a | BM21: d | BZ21: 7 | CA21: 兒童節慶祝活動 | CB21: 1
B22: 18 | I22: 18 | J22: SA | K22: SA:校本課程d | L22: 三、全民動起來 | M22: 1 | N22: a | P22: 18 | Q22: SB | R22: SB:學習扶助(國語) | S22: 文學步道─感受自然 十四、湖濱散記 | T22: 1 | U22: a | W22: 18 | X22: SC | Y22: SC:學習扶助(數學) | Z22: 數與量 十.生活中的單位與換算 | AA22: 1 | AB22: a | AD22: 18 | AE22: SD | AF22: SD:資訊教育 | AG22: SD:十、運算思維－WebBit：LED燈光秀 | AH22: 1 | AI22: a | AK22: 18 | AL22: SE | AM22: SE:彈性英語 | AN22: Unit5WhatDoYouLiketoDo? | AO22: 1 | AP22: a | AR22: 18 | BA22: 18 | BB22: 三、全民動起來 | BC22: a | BD22: 文學步道─感受自然 十四、湖濱散記 | BE22: a | BF22: 數與量 十.生活中的單位與換算 | BG22: a | BH22: SD:十、運算思維－WebBit：LED燈光秀 | BI22: a | BJ22: Unit5WhatDoYouLiketoDo? | BK22: a | BM22: d | BZ22: 8 | CA22: 兒童節慶祝活動 | CB22: 1
B23: 19 | I23: 19 | J23: SA | K23: SA:校本課程d | L23: 作文教學P(19_1) 三、全民動起來 | M23: 1 | N23: a | P23: 19 | Q23: SB | R23: SB:學習扶助(國語) | S23: 文學步道─感受自然 統整活動四 | T23: 1 | U23: a | W23: 19 | AD23: 19 | AE23: SD | AF23: SD:資訊教育 | AG23: SD:十、運算思維－WebBit：LED燈光秀 | AH23: 1 | AI23: a | AK23: 19 | AL23: SE | AM23: SE:彈性英語 | AN23: Review 2 | AO23: 1 | AP23: a | AR23: 19 | BA23: 19 | BB23: 三、全民動起來 | BC23: a | BD23: 文學步道─感受自然 統整活動四 | BE23: a | BF23: 數與量 十.生活中的單位與換算 | BG23: a | BH23: SD:十、運算思維－WebBit：LED燈光秀 | BI23: a | BJ23: Review 2 | BK23: a | BM23: d | BZ23: 13 | CA23: 自治市長選舉 | CB23: 1
B24: 20 | I24: 20 | J24: SA | K24: SA:校本課程d | L24: 三、全民動起來 | M24: 1 | N24: a | P24: 20 | Q24: SB | R24: SB:學習扶助(國語) | S24: 閱讀階梯二、蜘蛛的電報線 | T24: 1 | U24: a | W24: 20 | X24: SC | Y24: SC:學習扶助(數學) | Z24: 數與量 十.生活中的單位與換算 | AA24: 1 | AB24: a | AD24: 20 | AE24: SD | AF24: SD:資訊教育 | AG24: SD:十一、個人資料保護法 【資訊倫理教育】 | AH24: 1 | AI24: a | AK24: 20 | AL24: SE | AM24: SE:彈性英語 | AN24: Final Review 、期末考 | AO24: 1 | AP24: a | AR24: 20 | BA24: 20 | BB24: 三、全民動起來 | BC24: a | BD24: 閱讀階梯二、蜘蛛的電報線 | BE24: a | BF24: 數與量 十.生活中的單位與換算 | BG24: a | BH24: SD:十一、個人資料保護法 【資訊倫理教育】 | BI24: a | BJ24: Final Review 、期末考 | BK24: a | BM24: d | BZ24: 12 | CA24: 慶祝母親節活動 | CB24: 1
BZ25: 12 | CA25: 慶祝母親節活動 | CB25: 1
BZ26: 15 | CA26: 班際體育競賽 | CB26: 1
BZ27: 15 | CA27: 歡送畢業生園遊會 | CB27: 1
BZ28: 15 | CA28: 歡送畢業生園遊會 | CB28: 1
I29: 彈性類別 | J29: 節數
I30: a | J30: =SUMIF(N5:N26,"a",M5:M26)+SUMIF(U5:U26,"a",T5:T26)+SUMIF(AB5:AB26,"a",AA5:AA26)+SUMIF(AI5:AI26,"a",AH5:AH26)+SUMIF(AP5:AP26,"a",AO5:AO26)+SUMIF(AW5:AW26,"a",AV5:AV26)+SUMIF(G5:G26,"a",F5:F26) -> 76
I31: b | J31: =SUMIF(N5:N26,"b",M5:M26)+SUMIF(U5:U26,"b",T5:T26)+SUMIF(AB5:AB26,"b",AA5:AA26)+SUMIF(AI5:AI26,"b",AH5:AH26)+SUMIF(AP5:AP26,"b",AO5:AO26)+SUMIF(AW5:AW26,"b",AV5:AV26)+SUMIF(G5:G26,"b",F5:F26) -> 0
I32: c | J32: =SUMIF(N5:N26,"c",M5:M26)+SUMIF(U5:U26,"c",T5:T26)+SUMIF(AB5:AB26,"c",AA5:AA26)+SUMIF(AI5:AI26,"c",AH5:AH26)+SUMIF(AP5:AP26,"c",AO5:AO26)+SUMIF(AW5:AW26,"c",AV5:AV26)+SUMIF(G5:G26,"c",F5:F26) -> 0
I33: d | J33: =SUMIF(N5:N26,"d",M5:M26)+SUMIF(U5:U26,"d",T5:T26)+SUMIF(AB5:AB26,"d",AA5:AA26)+SUMIF(AI5:AI26,"d",AH5:AH26)+SUMIF(AP5:AP26,"d",AO5:AO26)+SUMIF(AW5:AW26,"d",AV5:AV26)+SUMIF(G5:G26,"d",F5:F26) -> 0

Sheet 檢核自評表
A1: * | Q1: 步驟8_1:學校自評: | R1: 完成 | S1: 年級 | V1: 總節數_下限 | AA1: 彈性總節數: | AC1: 總節數 | AF1: * | BA1: 實際上課總節數 | BD1: 彈性總節數: | BF1: 總節數 | BW1: ※說明：97課綱自100學年度逐年向上實施，至104學年度止，已實施新課綱之年級及學習 領域課程如下：
E2: 高雄市左營區屏山國小 | Q2: 步驟8_2:修正後自評: | R2: 完成 | AA2: 上學期 | BA2: 0 | BD2: 上學期 | BW2: 【一年級－國語、數學、健體、綜合、生活】、 【二年級－國語、數學、 健體、綜合、生活】、
E3: 109學年度學校課程計畫撰寫---檢核（自評）表 | R3: 下學期 | AA3: 下學期 | BA3: 0 | BD3: 下學期 | BH3: 檢核結果 | BW3: 【三年級－國語、數學、健體、綜合、自然、社會、藝文】、【四年級－國語、數學、健體、綜合、自然、社會、藝文】、
R4: 學校自評結果如下: | AG4: 教育局複評結果如下: | BW4: 【五年級－自然、社會、 藝文】、 【六年級－自然、社會、藝文】
I5: 上學期 | M5: 下學期 | R5: 上學期 | V5: 下學期 | AA5: 0 | AC5: =COUNTIF(AC7:AC150,"N") -> 0 | AD5: =COUNTA(AD8:AD150) -> 0 | AL5: 上學期 | AP5: 下學期 | AU5: 上學期 | AY5: 下學期 | BD5: 0 | BG5: 0
A6: 檢核編號之工作表位置 | B6: =COUNTIF(B7:B18,"N") -> 0 | C6: 流水號 | D6: 檢核代號 | E6: 檢核項目大綱 | F6: 檢 核 項 目 | G6: 課程規定節數類別 | H6: 年級 | I6: A:彈性 | J6: B:融入學習領域 | K6: D:非領域 | L6: 上學期 | M6: A:彈性 | N6: B:融入學習領域 | O6: D:非領域 | P6: 下學期 | Q6: 總節數 | R6: A:彈性 | S6: B:融入學習領域 | T6: D:非領域 | U6: 小計 | V6: A:彈性 | W6: B:融入學習領域 | X6: D:非領域 | Y6: 小 計 | Z6: 總節數 | AA6: 上學期增減節數 | AB6: 下學期增減節數 | AC6: 自評結果 | AD6: 節數不符原因說明 | AF6: 流水號 | AG6: 檢核代號 | AH6: 檢核項目大綱 | AI6: 檢 核 項 目 | AJ6: 課程規定節數類別 | AK6: 年級 | AL6: A:彈性 | AM6: B:融入學習領域 | AN6: D:非課程 | AO6: 上學期 | AP6: A:彈性 | AQ6: B:融入學習領域 | AR6: D:非課程 | AS6: 下學期 | AU6: A:彈性 | AV6: B:融入學習領域 | AW6: D:非課程 | AX6: 小計 | AY6: A:彈性 | AZ6: B:融入學習領域 | BA6: D:非課程 | BB6: 小計 | BC6: 總節數 | BD6: 上學期增減節數 | BE6: 下學期增減節數 | BF6: 總節數比對是否符合 | BG6: 節數不符原因說明 | BH6: 檢核記錄與說明
A7: 1.各年級總節數 | B7: Y | G7: 合計: | H7: 5 | I7: 105 | J7: 49 | K7: 3 | L7: 157 | M7: 100 | N7: 57 | O7: 3 | P7: 160 | Q7: 317 | R7: 105 | S7: 49 | T7: 3 | U7: 157 | V7: 100 | W7: 57 | X7: 3 | Y7: 160 | Z7: =U7+Y7 -> 317 | AA7: =SUM(AA8:AA200) -> 0 | AB7: =SUM(AB8:AB200) -> 0 | AC7: =IF(AND(L7=0,P7=0),"",IF(AND(L7=(U7-AA7),P7=(Y7-AB7)),"Y","N")) -> Y | BC7: =AX7+BB7 -> 0 | BD7: =SUM(BD8:BD200) -> 0 | BE7: =SUM(BE8:BE200) -> 0 | BF7: =IF(AND(AO7=0,AS7=0),"",IF(AND(AO7=(AX7-BD7),AS7=(BB7-BE7)),"Y","N")) -> 
A8: 2.上課總節數 | B8: Y | C8: 1 | D8: AC | E8: 家政教育 | F8: 9綜合 | G8: B | H8: 5~6 | J8: 12 | L8: 12 | N8: 12 | P8: 12 | Q8: 24 | S8: 12 | U8: 12 | W8: 12 | Y8: 12 | Z8: 12 | AA8: 0 | AB8: 0 | AC8: =IF(AND(L8=0,P8=0),"",IF(AND(L8=(U8-AA8),P8=(Y8-AB8)),"Y","N")) -> Y
A9: 3.年級節數新舊課程選取 | B9: Y | C9: 2 | D9: AD | E9: 7.【家庭教育】 | G9: D | H9: 1~6 | K9: 3 | L9: 3 | O9: 3 | P9: 3 | Q9: 6 | S9: 0 | T9: 3 | U9: 3 | W9: 0 | X9: 3 | Y9: 3 | Z9: 3 | AA9: 0 | AB9: 0 | AC9: Y
A10: 4.各年級彈性節數設定 | B10: Y | C10: 3 | D10: AE | E10: 家暴_家庭暴力防治教育 | G10: E | H10: 1~6 | J10: 3 | L10: 3 | N10: 3 | P10: 3 | Q10: 6 | S10: 3 | U10: 3 | W10: 3 | Y10: 3 | Z10: 3 | AA10: 0 | AB10: 0 | AC10: Y
A11: 5.領域節數% | B11: Y | C11: 4 | D11: AG | E11: 性侵害防治教育 | G11: E | H11: 1~6 | J11: 3 | L11: 3 | N11: 3 | P11: 3 | Q11: 6 | S11: 3 | U11: 3 | W11: 3 | Y11: 3 | Z11: 3 | AA11: 0 | AB11: 0 | AC11: Y
A12: 6.放假節日增減_上 | B12: Y | C12: 5 | D12: AH | E12: 1.【性別平等教育】 | G12: E | H12: 1~6 | J12: 6 | L12: 6 | N12: 6 | P12: 6 | Q12: 12 | S12: 6 | U12: 6 | W12: 6 | Y12: 6 | Z12: 6 | AA12: 0 | AB12: 0 | AC12: Y
A13: 7.放假節日增減_下 | B13: Y | C13: 6 | D13: AI | E13: 3.【環境教育】 | G13: E | H13: 1~6 | J13: 2 | L13: 2 | N13: 2 | P13: 2 | Q13: 4 | S13: 2 | U13: 2 | W13: 2 | Y13: 2 | Z13: 2 | AA13: 0 | AB13: 0 | AC13: Y
A14: 8.上課總節數確認_上 | B14: Y | C14: 7 | D14: AL | E14: 登革熱防治 | F14: 8健體 | G14: B | H14: 1~6 | J14: 1 | L14: 1 | N14: 1 | P14: 1 | Q14: 2 | S14: 1 | U14: 1 | W14: 1 | Y14: 1 | Z14: 1 | AA14: 0 | AB14: 0 | AC14: Y
A15: 9.上課總節數確認_下 | B15: Y | C15: 8 | D15: AN | E15: 作文教學 | G15: C | H15: 3~6 | I15: 4 | J15: 4 | L15: 8 | M15: 4 | N15: 4 | P15: 8 | Q15: 16 | R15: 4 | S15: 4 | U15: 8 | V15: 4 | W15: 4 | Y15: 8 | Z15: 12 | AA15: 0 | AB15: 0 | AC15: Y
A16: 10.彈性節數分配設定_上 | B16: Y | C16: 9 | D16: BA | E16: 飲食教育 | F16: 8健體 | G16: B | H16: 1~6 | J16: 5 | L16: 5 | N16: 5 | P16: 5 | Q16: 10 | S16: 5 | U16: 5 | W16: 5 | Y16: 5 | Z16: 5 | AA16: 0 | AB16: 0 | AC16: Y
A17: 11.彈性節數分配設定_下 | B17: Y | C17: 10 | D17: BF | E17: 職業試探 | G17: B | H17: 1~6 | J17: 1 | L17: 1 | N17: 1 | P17: 1 | Q17: 2 | S17: 1 | U17: 1 | W17: 1 | Y17: 1 | Z17: 1 | AA17: 0 | AB17: 0 | AC17: Y
A18: 12.學年度總節數統計 | B18: Y | C18: 11 | D18: BG | E18: 4.【海洋教育】 | G18: B | H18: 1~6 | J18: 1 | L18: 1 | N18: 1 | P18: 1 | Q18: 2 | S18: 1 | U18: 1 | W18: 1 | Y18: 1 | Z18: 1 | AA18: 0 | AB18: 0 | AC18: Y
C19: 12 | D19: BH | E19: 低碳教育 | G19: E | H19: 1~6 | J19: 1 | L19: 1 | N19: 1 | P19: 1 | Q19: 2 | S19: 1 | U19: 1 | W19: 1 | Y19: 1 | Z19: 1 | AA19: 0 | AB19: 0 | AC19: Y
C20: 13 | D20: BI | E20: 交通安全教育 | G20: B | H20: 1~6 | J20: 3 | L20: 3 | N20: 3 | P20: 3 | Q20: 6 | S20: 3 | U20: 3 | W20: 3 | Y20: 3 | Z20: 3 | AA20: 0 | AB20: 0 | AC20: Y
C21: 14 | D21: SA | E21: 校本課程d | F21: A2 | G21: A | H21: 1~6 | I21: 13 | L21: 13 | M21: 11 | P21: 11 | Q21: 24 | R21: 13 | S21: 0 | U21: 13 | V21: 11 | W21: 0 | Y21: 11 | Z21: 24 | AA21: 0 | AB21: 0 | AC21: Y
C22: 15 | D22: SB | E22: 學習扶助(國語) | F22: A3 | G22: A | H22: 1~6 | I22: 18 | L22: 18 | M22: 10 | P22: 10 | Q22: 28 | R22: 18 | S22: 0 | U22: 18 | V22: 10 | W22: 0 | Y22: 10 | Z22: 28 | AA22: 0 | AB22: 0 | AC22: Y
C23: 16 | D23: SC | E23: 學習扶助(數學) | F23: A4 | G23: A | H23: 1~6 | I23: 15 | L23: 15 | M23: 15 | P23: 15 | Q23: 30 | R23: 15 | S23: 0 | U23: 15 | V23: 15 | W23: 0 | Y23: 15 | Z23: 30 | AA23: 0 | AB23: 0 | AC23: Y
C24: 17 | D24: SD | E24: 資訊教育 | F24: A5 | G24: A | H24: 1~6 | I24: 21 | L24: 21 | M24: 20 | P24: 20 | Q24: 41 | R24: 21 | S24: 0 | U24: 21 | V24: 20 | W24: 0 | Y24: 20 | Z24: 41 | AA24: 0 | AB24: 0 | AC24: Y
C25: 18 | D25: SE | E25: 彈性英語 | F25: A6 | G25: A | H25: 1~6 | I25: 21 | L25: 21 | M25: 20 | P25: 20 | Q25: 41 | R25: 21 | S25: 0 | U25: 21 | V25: 20 | W25: 0 | Y25: 20 | Z25: 41 | AA25: 0 | AB25: 0 | AC25: Y
C26: 19 | D26: CC | E26: 校慶活動(含預演) | G26: A | H26: 3~6 | I26: 8 | J26: 0 | L26: 8 | P26: 0 | Q26: 8 | R26: 8 | S26: 0 | U26: 8 | Y26: 0 | Z26: 8 | AA26: 0 | AB26: 0 | AC26: Y
C27: 20 | D27: CD | E27: 18.【戶外教育】 | G27: C | H27: 1~6 | J27: 7 | L27: 7 | M27: 0 | N27: 7 | P27: 7 | Q27: 14 | S27: 7 | U27: 7 | W27: 7 | Y27: 7 | Z27: 7 | AA27: 0 | AB27: 0 | AC27: Y
C28: 21 | D28: CE | E28: 畢業典禮活動 | G28: A | H28: 1~6 | I28: 0 | L28: 0 | M28: 6 | N28: 0 | P28: 6 | Q28: 6 | S28: 0 | U28: 0 | V28: 6 | W28: 0 | Y28: 6 | Z28: 6 | AA28: 0 | AB28: 0 | AC28: Y
C29: 22 | D29: CG | E29: 口腔檢查 | G29: A | H29: 1~6 | I29: 1 | L29: 1 | M29: 1 | P29: 1 | Q29: 2 | R29: 1 | S29: 0 | U29: 1 | V29: 1 | W29: 0 | Y29: 1 | Z29: 2 | AA29: 0 | AB29: 0 | AC29: Y
C30: 23 | D30: CH | E30: 身高體重視力檢查 | G30: A | H30: 1~6 | I30: 1 | L30: 1 | M30: 1 | P30: 1 | Q30: 2 | R30: 1 | S30: 0 | U30: 1 | V30: 1 | W30: 0 | Y30: 1 | Z30: 2 | AA30: 0 | AB30: 0 | AC30: Y
C31: 24 | D31: CI | E31: 一四年級健康檢查 | G31: A | H31: 1~6 | L31: 0 | P31: 0 | Q31: 0 | U31: 0 | Y31: 0 | Z31: 0 | AA31: 0 | AB31: 0
C32: 25 | D32: CJ | E32: 預防注射(流感) | G32: A | H32: 1~6 | I32: 1 | L32: 1 | M32: 1 | P32: 1 | Q32: 2 | R32: 1 | S32: 0 | U32: 1 | V32: 1 | W32: 0 | Y32: 1 | Z32: 2 | AA32: 0 | AB32: 0 | AC32: Y
C33: 26 | D33: CK | E33: 聖誕節活動 | G33: A | H33: 1~6 | I33: 2 | L33: 2 | P33: 0 | Q33: 2 | R33: 2 | S33: 0 | U33: 2 | Y33: 0 | Z33: 2 | AA33: 0 | AB33: 0 | AC33: Y
C34: 27 | D34: CL | E34: 基本能力檢測(五年級) | G34: A | H34: 5 | L34: 0 | M34: 2 | P34: 2 | Q34: 2 | U34: 0 | V34: 2 | W34: 0 | Y34: 2 | Z34: 2 | AA34: 0 | AB34: 0 | AC34: Y
C35: 28 | D35: CM | E35: 兒童節慶祝活動 | G35: A | H35: 1~6 | L35: 0 | M35: 3 | P35: 3 | Q35: 3 | U35: 0 | V35: 3 | W35: 0 | Y35: 3 | Z35: 3 | AA35: 0 | AB35: 0 | AC35: Y
C36: 57 | D36: CN | E36: 自治市長選舉 | G36: A | H36: 1~6 | L36: 0 | M36: 1 | P36: 1 | Q36: 1 | U36: 0 | V36: 1 | W36: 0 | Y36: 1 | Z36: 1 | AA36: 0 | AB36: 0 | AC36: Y
C37: 58 | D37: CO | E37: 慶祝母親節活動 | G37: A | H37: 1~6 | L37: 0 | M37: 2 | P37: 2 | Q37: 2 | U37: 0 | V37: 2 | W37: 0 | Y37: 2 | Z37: 2 | AA37: 0 | AB37: 0 | AC37: Y
C38: 59 | D38: CP | E38: 班際體育競賽 | G38: A | H38: 1~6 | L38: 0 | M38: 1 | P38: 1 | Q38: 1 | U38: 0 | V38: 1 | W38: 0 | Y38: 1 | Z38: 1 | AA38: 0 | AB38: 0 | AC38: Y
C39: 60 | D39: CQ | E39: 歡送畢業生園遊會 | G39: A | H39: 1~6 | L39: 0 | M39: 2 | P39: 2 | Q39: 2 | U39: 0 | V39: 2 | W39: 0 | Y39: 2 | Z39: 2 | AA39: 0 | AB39: 0 | AC39: Y
C40: 61 | D40: CR | E40: 游泳教學 | G40: B | H40: 3~6 | L40: 0 | N40: 8 | P40: 8 | Q40: 8 | U40: 0 | W40: 8 | Y40: 8 | Z40: 0 | AA40: 0 | AB40: 0 | AC40: Y

Sheet 上_相關議題撰寫統整表
Z1: 高雄市大寮區後庄國小107年度
D4: 高雄市左營區屏山國小109年度上學期學校課程計畫相關議題撰寫統整表
C6: 檢核代號 | D6: 相關議題 | E6: 原設定節數小計 | F6: 課程規定節數類別 | G6: 年級 | H6: 實施領域週次及節數參考寫法如下: 彈性11(1)、12(1)、13(1)、14(1)、15(1)、18(1)，綜合4(2)、5(2)、8(2)，共12節。 | I6: 放假日後小計 | J6: 減少的節數 | K6: 原因 | L6: 備註 | M6: 教務處紅色_代號1 學務處藍色_代號2 總務處紫色_代號3 輔導處綠色_代號4 黑色_跨領域代號
B7: 1 | C7: AC | D7: 家政教育 | E7: 12 | F7: B | G7: 5~6 | H7: 融入課程:綜合2(2),綜合3(2),綜合4(2),綜合14(2),綜合15(2),綜合16(2)/共:12節 | I7: 12 | J7: 0
B8: 2 | C8: AD | D8: 7.【家庭教育】 | E8: 3 | F8: D | G8: 1~6 | H8: 非課程:2(1)3(1)4(1)/共:3節 | I8: 3 | J8: 0
B9: 3 | C9: AE | D9: 家暴_家庭暴力防治教育 | E9: 3 | F9: E | G9: 1~6 | H9: 融入課程:綜合5(1),綜合6(1),綜合7(1)/共:3節 | I9: 3 | J9: 0
B10: 4 | C10: AG | D10: 性侵害防治教育 | E10: 3 | F10: E | G10: 1~6 | H10: 融入課程:國語3(1),國語4(1),國語6(1)/共:3節 | I10: 3 | J10: 0
B11: 5 | C11: AH | D11: 1.【性別平等教育】 | E11: 6 | F11: E | G11: 1~6 | H11: 融入課程:綜合8(1),綜合9(1),綜合10(1),綜合12(1),綜合13(1),綜合14(1)/共:6節 | I11: 6 | J11: 0
B12: 6 | C12: AI | D12: 3.【環境教育】 | E12: 2 | F12: E | G12: 1~6 | H12: 融入課程:健康16(1),健康17(1)/共:2節 | I12: 2 | J12: 0
B13: 7 | C13: AL | D13: 登革熱防治 | E13: 1 | F13: B | G13: 1~6 | H13: 融入課程:健康3(1)/共:1節 | I13: 1 | J13: 0
B14: 8 | C14: AN | D14: 作文教學 | E14: 8 | F14: C | G14: 3~6 | H14: 全校活動:4(1),8(1),13(1),18(1) 融入課程:國語4(1),國語8(1),國語13(1),國語18(1)/共:8節 | I14: 8 | J14: 0
B15: 9 | C15: BA | D15: 飲食教育 | E15: 5 | F15: B | G15: 1~6 | H15: 融入課程:健康13(1),健康14(1),健康15(1),健康16(1),健康17(1)/共:5節 | I15: 5 | J15: 0
B16: 10 | C16: BF | D16: 職業試探 | E16: 1 | F16: B | G16: 1~6 | H16: 融入課程:綜合17(1)/共:1節 | I16: 1 | J16: 0
B17: 11 | C17: BG | D17: 4.【海洋教育】 | E17: 1 | F17: B | G17: 1~6 | H17: 融入課程:健康5(1)/共:1節 | I17: 1 | J17: 0
B18: 12 | C18: BH | D18: 低碳教育 | E18: 1 | F18: E | G18: 1~6 | H18: 融入課程:自然15(1)/共:1節 | I18: 1 | J18: 0
B19: 13 | C19: BI | D19: 交通安全教育 | E19: 3 | F19: B | G19: 1~6 | H19: 融入課程:綜合5(1),綜合6(1),綜合7(1)/共:3節 | I19: 3 | J19: 0
B20: 14 | C20: SA | D20: 校本課程d | E20: 13 | F20: A | G20: 1~6 | H20: 彈性課程:1(1),2(1),5(1),6(1),7(1),9(1),10(1),11(1),15(1),16(1),19(1),20(1),21(1)/共:13節 | I20: 13 | J20: 0
B21: 15 | C21: SB | D21: 學習扶助(國語) | E21: 18 | F21: A | G21: 1~6 | H21: 彈性課程:1(1),2(1),3(1),4(1),5(1),6(1),7(1),8(1),9(1),10(1),11(1),15(1),16(1),17(1),18(1),19(1),20(1),21(1)/共:18節 | I21: 18 | J21: 0
B22: 16 | C22: SC | D22: 學習扶助(數學) | E22: 15 | F22: A | G22: 1~6 | H22: 彈性課程:2(1),4(1),5(1),6(1),7(1),8(1),9(1),10(1),11(1),15(1),16(1),18(1),19(1),20(1),21(1)/共:15節 | I22: 15 | J22: 0
B23: 17 | C23: SD | D23: 資訊教育 | E23: 21 | F23: A | G23: 1~6 | H23: 彈性課程:1(1),2(1),3(1),4(1),5(1),6(1),7(1),8(1),9(1),10(1),11(1),12(1),13(1),14(1),15(1),16(1),17(1),18(1),19(1),20(1),21(1)/共:21節 | I23: 21 | J23: 0
B24: 18 | C24: SE | D24: 彈性英語 | E24: 21 | F24: A | G24: 1~6 | H24: 彈性課程:1(1),2(1),3(1),4(1),5(1),6(1),7(1),8(1),9(1),10(1),11(1),12(1),13(1),14(1),15(1),16(1),17(1),18(1),19(1),20(1),21(1)/共:21節 | I24: 21 | J24: 0
B25: 19 | C25: CC | D25: 校慶活動(含預演) | E25: 8 | F25: A | G25: 3~6 | H25: 全校活動:12(3),13(2),14(3)/共:8節 | I25: 8 | J25: 0
B26: 20 | C26: CD | D26: 18.【戶外教育】 | E26: 7 | F26: C | G26: 1~6 | H26: 融入課程:國語11(1),數學11(1),社會11(1),藝術11(1),自然11(1),健康11(1),綜合11(1)/共:7節 | I26: 7 | J26: 0
B27: 21 | C27: CE | D27: 畢業典禮活動 | E27: 0 | F27: A | G27: 1~6 | I27: 0 | J27: 0
B28: 22 | C28: CG | D28: 口腔檢查 | E28: 1 | F28: A | G28: 1~6 | H28: 全校活動:3(1)/共:1節 | I28: 1 | J28: 0
B29: 23 | C29: CH | D29: 身高體重視力檢查 | E29: 1 | F29: A | G29: 1~6 | H29: 全校活動:3(1)/共:1節 | I29: 1 | J29: 0
B30: 24 | C30: CI | D30: 一四年級健康檢查 | E30: 0 | F30: A | G30: 1~6 | I30: 0 | J30: 0
B31: 25 | C31: CJ | D31: 預防注射(流感) | E31: 1 | F31: A | G31: 1~6 | H31: 全校活動:1(1)/共:1節 | I31: 1 | J31: 0
B32: 26 | C32: CK | D32: 聖誕節活動 | E32: 2 | F32: A | G32: 1~6 | H32: 全校活動:17(2)/共:2節 | I32: 2 | J32: 0
B33: 27 | C33: CL | D33: 基本能力檢測(五年級) | E33: 0 | F33: A | G33: 5 | I33: 0 | J33: 0
B34: 28 | C34: CM | D34: 兒童節慶祝活動 | E34: 0 | F34: A | G34: 1~6 | I34: 0 | J34: 0
B35: 29 | C35: CN | D35: 自治市長選舉 | E35: 0 | F35: A | G35: 1~6 | I35: 0 | J35: 0
B36: 30 | C36: CO | D36: 慶祝母親節活動 | E36: 0 | F36: A | G36: 1~6 | I36: 0 | J36: 0
B37: 31 | C37: CP | D37: 班際體育競賽 | E37: 0 | F37: A | G37: 1~6 | I37: 0 | J37: 0
B38: 32 | C38: CQ | D38: 歡送畢業生園遊會 | E38: 0 | F38: A | G38: 1~6 | I38: 0 | J38: 0
B39: 33 | C39: CR | D39: 游泳教學 | E39: 0 | F39: B | G39: 3~6 | I39: 0 | J39: 0

Sheet 下_相關議題撰寫統整表
Z1: 高雄市大寮區後庄國小107年度
D4: 高雄市左營區屏山國小109年度下學期學校課程計畫相關議題撰寫統整表
C6: 檢核代號 | D6: 相關議題 | E6: 原設定節數小計 | F6: 課程規定節數類別 | G6: 年級 | H6: 實施領域週次及節數參考寫法如下: 彈性11(1)、12(1)、13(1)、14(1)、15(1)、18(1)，綜合4(2)、5(2)、8(2)，共12節。 | I6: 放假日後小計 | J6: 減少的節數 | K6: 原因 | L6: 備註 | M6: 教務處紅色_代號1 學務處藍色_代號2 總務處紫色_代號3 輔導處綠色_代號4 黑色_跨領域代號
B7: 1 | C7: AC | D7: 家政教育 | E7: 12 | F7: B | G7: 5~6 | H7: 融入課程:綜合6(2),綜合7(2),綜合8(2),綜合15(2),綜合16(2),綜合17(2)/共:12節 | I7: 12 | J7: 0
B8: 2 | C8: AD | D8: 7.【家庭教育】 | E8: 3 | F8: D | G8: 1~6 | H8: 非課程:7(1)8(1)9(1)/共:3節 | I8: 3 | J8: 0
B9: 3 | C9: AE | D9: 家暴_家庭暴力防治教育 | E9: 3 | F9: E | G9: 1~6 | H9: 融入課程:綜合13(1),綜合14(1),綜合15(1)/共:3節 | I9: 3 | J9: 0
B10: 4 | C10: AG | D10: 性侵害防治教育 | E10: 3 | F10: E | G10: 1~6 | H10: 融入課程:國語16(1),國語17(1),國語18(1)/共:3節 | I10: 3 | J10: 0
B11: 5 | C11: AH | D11: 1.【性別平等教育】 | E11: 6 | F11: E | G11: 1~6 | H11: 融入課程:綜合2(1),綜合3(1),綜合4(1),綜合16(1),綜合17(1),綜合18(1)/共:6節 | I11: 6 | J11: 0
B12: 6 | C12: AI | D12: 3.【環境教育】 | E12: 2 | F12: E | G12: 1~6 | H12: 融入課程:自然7(1),自然8(1)/共:2節 | I12: 2 | J12: 0
B13: 7 | C13: AL | D13: 登革熱防治 | E13: 1 | F13: B | G13: 1~6 | H13: 融入課程:健康13(1)/共:1節 | I13: 1 | J13: 0
B14: 8 | C14: AN | D14: 作文教學 | E14: 8 | F14: C | G14: 3~6 | H14: 全校活動:4(1),8(1),13(1),19(1) 融入課程:國語4(1),國語8(1),國語13(1),國語19(1)/共:8節 | I14: 8 | J14: 0
B15: 9 | C15: BA | D15: 飲食教育 | E15: 5 | F15: B | G15: 1~6 | H15: 融入課程:健康14(1),健康15(1),健康16(1),健康17(1),健康18(1)/共:5節 | I15: 5 | J15: 0
B16: 10 | C16: BF | D16: 職業試探 | E16: 1 | F16: B | G16: 1~6 | H16: 融入課程:綜合13(1)/共:1節 | I16: 1 | J16: 0
B17: 11 | C17: BG | D17: 4.【海洋教育】 | E17: 1 | F17: B | G17: 1~6 | H17: 融入課程:健康7(1)/共:1節 | I17: 1 | J17: 0
B18: 12 | C18: BH | D18: 低碳教育 | E18: 1 | F18: E | G18: 1~6 | H18: 融入課程:自然5(1)/共:1節 | I18: 1 | J18: 0
B19: 13 | C19: BI | D19: 交通安全教育 | E19: 3 | F19: B | G19: 1~6 | H19: 融入課程:綜合2(1),綜合3(1),綜合4(1)/共:3節 | I19: 3 | J19: 0
B20: 14 | C20: SA | D20: 校本課程d | E20: 11 | F20: A | G20: 1~6 | H20: 彈性課程:1(1),2(1),3(1),5(1),6(1),9(1),10(1),11(1),18(1),19(1),20(1)/共:11節 | I20: 11 | J20: 0
B21: 15 | C21: SB | D21: 學習扶助(國語) | E21: 10 | F21: A | G21: 1~6 | H21: 彈性課程:2(1),5(1),6(1),9(1),10(1),11(1),14(1),18(1),19(1),20(1)/共:10節 | I21: 10 | J21: 0
B22: 16 | C22: SC | D22: 學習扶助(數學) | E22: 15 | F22: A | G22: 1~6 | H22: 彈性課程:1(1),2(1),3(1),4(1),5(1),6(1),7(1),8(1),9(1),10(1),11(1),12(1),13(1),18(1),20(1)/共:15節 | I22: 15 | J22: 0
B23: 17 | C23: SD | D23: 資訊教育 | E23: 20 | F23: A | G23: 1~6 | H23: 彈性課程:1(1),2(1),3(1),4(1),5(1),6(1),7(1),8(1),9(1),10(1),11(1),12(1),13(1),14(1),15(1),16(1),17(1),18(1),19(1),20(1)/共:20節 | I23: 20 | J23: 0
B24: 18 | C24: SE | D24: 彈性英語 | E24: 20 | F24: A | G24: 1~6 | H24: 彈性課程:1(1),2(1),3(1),4(1),5(1),6(1),7(1),8(1),9(1),10(1),11(1),12(1),13(1),14(1),15(1),16(1),17(1),18(1),19(1),20(1)/共:20節 | I24: 20 | J24: 0
B25: 19 | C25: CC | D25: 校慶活動(含預演) | E25: 0 | F25: A | G25: 3~6 | I25: 0 | J25: 0
B26: 20 | C26: CD | D26: 18.【戶外教育】 | E26: 7 | F26: C | G26: 1~6 | H26: 融入課程:國語11(1),數學11(1),社會11(1),藝術11(1),自然11(1),健康11(1),綜合11(1)/共:7節 | I26: 7 | J26: 0
B27: 21 | C27: CE | D27: 畢業典禮活動 | E27: 6 | F27: A | G27: 1~6 | H27: 全校活動:16(3),17(3)/共:6節 | I27: 6 | J27: 0
B28: 22 | C28: CG | D28: 口腔檢查 | E28: 1 | F28: A | G28: 1~6 | H28: 全校活動:3(1)/共:1節 | I28: 1 | J28: 0
B29: 23 | C29: CH | D29: 身高體重視力檢查 | E29: 1 | F29: A | G29: 1~6 | H29: 全校活動:4(1)/共:1節 | I29: 1 | J29: 0
B30: 24 | C30: CI | D30: 一四年級健康檢查 | E30: 0 | F30: A | G30: 1~6 | I30: 0 | J30: 0
B31: 25 | C31: CJ | D31: 預防注射(流感) | E31: 1 | F31: A | G31: 1~6 | H31: 全校活動:1(1)/共:1節 | I31: 1 | J31: 0
B32: 26 | C32: CK | D32: 聖誕節活動 | E32: 0 | F32: A | G32: 1~6 | I32: 0 | J32: 0
B33: 27 | C33: CL | D33: 基本能力檢測(五年級) | E33: 2 | F33: A | G33: 5 | H33: 全校活動:14(2)/共:2節 | I33: 2 | J33: 0
B34: 28 | C34: CM | D34: 兒童節慶祝活動 | E34: 3 | F34: A | G34: 1~6 | H34: 全校活動:7(2),8(1)/共:3節 | I34: 3 | J34: 0
B35: 29 | C35: CN | D35: 自治市長選舉 | E35: 1 | F35: A | G35: 1~6 | H35: 全校活動:13(1)/共:1節 | I35: 1 | J35: 0
B36: 30 | C36: CO | D36: 慶祝母親節活動 | E36: 2 | F36: A | G36: 1~6 | H36: 全校活動:12(2)/共:2節 | I36: 2 | J36: 0
B37: 31 | C37: CP | D37: 班際體育競賽 | E37: 1 | F37: A | G37: 1~6 | H37: 全校活動:15(1)/共:1節 | I37: 1 | J37: 0
B38: 32 | C38: CQ | D38: 歡送畢業生園遊會 | E38: 2 | F38: A | G38: 1~6 | H38: 全校活動:15(2)/共:2節 | I38: 2 | J38: 0
B39: 33 | C39: CR | D39: 游泳教學 | E39: 8 | F39: B | G39: 3~6 | H39: 融入課程:健康8(2),健康9(2),健康10(2),健康11(2)/共:8節 | I39: 8 | J39: 0

Sheet 能力指標 (hidden)
D1: EXCEL標準格式檢查確認,按F1→OK→ | F1: 匯出能力指標到課程計畫表 | N1: 範例1 | O1: 範例2 | P1: 範例3
D3: 學期學習目標 | E3: 1.從植物種子的傳播繁殖，培養科學觀察的精神，學習大自然的智慧。 2.體會生活中的溫情，時時刻刻懷著感恩的心，回饋社會。 3.透過認識圖書館、閱讀分享、讀書會等閱讀活動，讓學生體會閱讀的樂趣，提高學生學習語文的興趣，並培養自我學習的能力。 | L3: =E3 -> 1.從植物種子的傳播繁殖，培養科學觀察的精神，學習大自然的智慧。 2.體會生活中的溫情，時時刻刻懷著感恩的心，回饋社會。 3.透過認識圖書館、閱讀分享、讀書會等閱讀活動，讓學生體會閱讀的樂趣，提高學生學習語文的興趣，並培養自我學習的能力。 | M3: =E3 -> 1.從植物種子的傳播繁殖，培養科學觀察的精神，學習大自然的智慧。 2.體會生活中的溫情，時時刻刻懷著感恩的心，回饋社會。 3.透過認識圖書館、閱讀分享、讀書會等閱讀活動，讓學生體會閱讀的樂趣，提高學生學習語文的興趣，並培養自我學習的能力。
D4: 融入重大議題之能力指標 | E4: 1. 應用注音符號，認識文字，輔助記錄訊息。 2. 培養良好的聆聽態度，並學會使用禮貌語言，適當應對。 3. 清楚覆述所聽到的事物，掌握說話主題。 4. 認識常用中國文字，並會使用字（詞）典。 5. 培養閱讀的興趣、態度和習慣，並流暢朗讀文章表達的情感。 6. 在口述作文和筆述作文中，培養豐富的想像力。 7. 練習利用不同的途徑和方式，蒐集各類寫作的材料。 4.學習日記的寫作方法，培養短文寫作的能力。 5.從故事中學習道理、感受趣味，培養喜愛閱讀的興趣。 | L4: =E4 -> 1. 應用注音符號，認識文字，輔助記錄訊息。 2. 培養良好的聆聽態度，並學會使用禮貌語言，適當應對。 3. 清楚覆述所聽到的事物，掌握說話主題。 4. 認識常用中國文字，並會使用字（詞）典。 5. 培養閱讀的興趣、態度和習慣，並流暢朗讀文章表達的情感。 6. 在口述作文和筆述作文中，培養豐富的想像力。 7. 練習利用不同的途徑和方式，蒐集各類寫作的材料。 4.學習日記的寫作方法，培養短文寫作的能力。 5.從故事中學習道理、感受趣味，培養喜愛閱讀的興趣。 | M4: =E4 -> 1. 應用注音符號，認識文字，輔助記錄訊息。 2. 培養良好的聆聽態度，並學會使用禮貌語言，適當應對。 3. 清楚覆述所聽到的事物，掌握說話主題。 4. 認識常用中國文字，並會使用字（詞）典。 5. 培養閱讀的興趣、態度和習慣，並流暢朗讀文章表達的情感。 6. 在口述作文和筆述作文中，培養豐富的想像力。 7. 練習利用不同的途徑和方式，蒐集各類寫作的材料。 4.學習日記的寫作方法，培養短文寫作的能力。 5.從故事中學習道理、感受趣味，培養喜愛閱讀的興趣。
D6: 週次 | E6: 各領域單元_能力指標COPY存放區 | F6: 評量方式 | G6: 備註(重大議題)
D7: 1 | E7: 【一、我是行道樹】 1-1-4-2 能運用注音讀物，擴充閱讀範圍。 2-1-2-6 能結合科技與資訊，提升聆聽的能力，以提高學習興趣。 3-1-1-7 能依照文意，概略讀出文章的節奏。 4-1-4-1 能掌握基本筆畫的名稱、字形和筆順。 5-1-3-1 能培養良好的閱讀興趣。 | F7: 1.朗讀評量。 2.口頭評量。 3.實作評量。 4.習作評量。 | G7: 【環境教育】 1-1-1 能運用五官觀察體驗、探究環境中的事物。 【生涯發展教育】 1-1-2 認識自己的長處及優點。
D8: 2 | E8: 【一、我是行道樹】 6-1-2-1 能運用學過的字詞，造出通順的短語或句子。 【二、歡迎來我家】 1-1-2-2 能運用注音符號，和他人分享自己的經驗和想法。 2-1-1-5 能注意聆聽，不做不必要的插嘴。 3-1-4-3 能依主題表達意見。 4-1-1-1 能利用部首或簡單造字原理，輔助識字。 | F8: 1.朗讀評量。 2.口頭評量。 3.實作評量。 4.習作評量。 | G8: 【環境教育】 1-1-1 能運用五官觀察體驗、探究環境中的事物。 【環境教育】 2-1-1 認識生活周遭的自然環境與人造環境，以及常見的動物、植物、微生物彼此之間的互動關係。 【生涯發展教育】 1-1-2 認識自己的長處及優點。
D9: 3 | E9: 【二、歡迎來我家】 5-1-4-1 能喜愛閱讀課外（注音）讀物，擴展閱讀視野。 6-1-1-1 能學習觀察簡單的圖畫和事物，並練習寫成一段文字。 【三、種子的旅行】 1-1-2-2 能運用注音符號，和他人分享自己的經驗和想法。 2-1-1-5 能注意聆聽，不做不必要的插嘴。 3-1-4-3 能依主題表達意見。 | F9: 1.口頭評量。 2.實作評量。 3.習作評量。 4.觀察評量。 | G9: 【環境教育】 2-1-1 認識生活周遭的自然環境與人造環境，以及常見的動物、植物、微生物彼此之間的互動關係。 【環境教育】 1-1-1 能運用五官觀察體驗、探究環境中的事物。 | L9: =LEFT(F9) -> 1
D10: 4 | E10: 【三、種子的旅行】 4-1-1-1 能利用部首或簡單造字原理，輔助識字。 5-1-2-2 能概略了解課文的內容與大意。 6-1-1-1 能學習觀察簡單的圖畫和事物，並練習寫成一段文字。 【四、綠色的海洋】 1-1-2-2 能運用注音符號，和他人分享自己的經驗和想法。 2-1-2-5 能聽出別人所表達的意思，達成溝通的目的。 3-1-1-8 能清楚說出自己的意思。 | F10: 1.遊戲評量。 2.口頭評量。 3.觀察評量。 4.朗讀評量。 5.習作評量。 | G10: 【環境教育】 1-1-1 能運用五官觀察體驗、探究環境中的事物。 【環境教育】 4-1-1 能以語言、文字或圖畫等表達自己對自然體驗或環境保護的想法。
D11: 5 | E11: 【四、綠色的海洋】 4-1-4-1 能掌握基本筆畫的名稱、字形和筆順。 5-1-2-2 能概略了解課文的內容與大意。 6-1-1-1 能學習觀察簡單的圖畫和事物，並練習寫成一段文字。 【統整活動一】 3-1-3-2 能生動的看圖說故事。 5-1-1 能熟習常用生字詞語的形音義。 5-1-7-2 能理解在閱讀過程中所觀察到的訊息。 5-1-7-3 能從閱讀的材料中，培養分析歸納的能力。 6-1-1-4 能經由作品欣賞、朗讀、美讀等方式，培養寫作的興趣。 6-1-2 能擴充詞彙，正確的遣詞造句，並練習常用的基本句型。 | F11: 1.實作評量。 2.朗讀評量。 3.習作評量。 4.口頭評量。 | G11: 【環境教育】 4-1-1 能以語言、文字或圖畫等表達自己對自然體驗或環境保護的想法。
D12: 6 | E12: 【五、爸爸】 1-1-2-1 能運用注音符號，提升說話及閱讀能力。 2-1-3-1 能概略聽出朗讀時優美的節奏。 3-1-1-7 能依照文意，概略讀出文章的節奏。 4-1-1-3 能利用新詞造句。 5-1-2-2 能概略了解課文的內容與大意。 | F12: 1.實作評量。 2.朗讀評量。 3.習作評量。 4.口頭評量。 | G12: 【家政教育】 4-1-2 察覺自己與家人的溝通方式。
D13: 7 | E13: 【五、爸爸】 6-1-2-1 能運用學過的字詞，造出通順的短語或句子。 【六、我的家人】 1-1-2-2 能運用注音符號，和他人分享自己的經驗和想法。 2-1-2-5 能聽出別人所表達的意思，達成溝通的目的。 3-1-1-1 能清楚明白的口述一件事情。 4-1-1-1 能利用部首或簡單造字原理，輔助識字。 | F13: 1.口頭評量。 2.活動評量。 3.實作評量。 4.朗讀評量。 5.習作評量。 | G13: 【家政教育】 4-1-1 認識家庭的組成分子與稱謂。 【家政教育】 4-1-2 察覺自己與家人的溝通方式。 【生涯發展教育】 2-1-1 培養互助合作的生活態度。
D14: 8 | E14: 【六、我的家人】 5-1-2-2 能概略了解課文的內容與大意。 6-1-1-1 能學習觀察簡單的圖畫和事物，並練習寫成一段文字。 【七、黃媽媽的笑臉】 1-1-2-1 能運用注音符號，提升說話及閱讀能力。 2-1-1-7 能學會使用有禮貌的語言，適當應對。 | F14: 1.口頭評量。 2.朗讀評量。 3.習作評量。 4.聆聽評量。 | G14: 【家政教育】 4-1-1 認識家庭的組成分子與稱謂。 【家政教育】 4-1-2 察覺自己與家人的溝通方式。 【生涯發展教育】 2-1-1 培養互助合作的生活態度。
D15: 9 | E15: 【七、黃媽媽的笑臉】 3-1-3-2 能生動的看圖說故事。 4-1-1-1 能利用部首或簡單造字原理，輔助識字。 5-1-7-2 能理解在閱讀過程中所觀察到的訊息。 6-1-2-2 能仿寫簡單句型。 【統整活動二】 2-1-1-3 能養成仔細聆聽的習慣。 3-1-1-8 能清楚說出自己的意思。 3-1-3 能生動活潑敘述故事。 5-1-3-2 能培養良好的閱讀習慣和態度。 5-1-4-2 能和別人分享閱讀的心得。 6-1-2-1 能運用學過的字詞，造出通順的短語或句子。 | F15: 1.朗讀評量。 2.口頭評量。 3.習作評量。 4.實作評量。 | G15: 【生涯發展教育】 2-1-1 培養互助合作的生活態度。
D16: 10 | E16: 【阿婆的良心傘】 1-1-4-1 能運用注音符號輔助認識文字。 2-1-2-5 能聽出別人所表達的意思，達成溝通的目的。 3-1-4-3 能依主題表達意見。 5-1-7-3 能從閱讀的材料中，培養分析歸納的能力。 【第一次評量週】 | F16: 1.習作評量。 2.朗讀評量。 3.口頭評量。 | G16: 【生涯發展教育】 2-1-1 培養互助合作的生活態度。
D17: 11 | E17: 【八、不說話的萬事通】 1-1-4-1 能運用注音符號輔助認識文字。 2-1-1-3 能養成仔細聆聽的習慣。 3-1-1-11 能用完整的語句，說出想要完成的事。 4-1-4-2 能正確認識楷書基本筆畫的書寫原則。 5-1-3 能培養良好的閱讀興趣。 6-1-1-2 能在口述作文和筆述作文中，培養豐富的想像力。 | F17: 1.口頭評量。 2.習作評量。 3.觀察評量。 4.實作評量。 | G17: 【環境教育】 2-1-1 認識生活周遭的自然環境與人造環境，以及常見的動物、植物、微生物彼此之間的互動關係。
D18: 12 | E18: 【八、不說話的萬事通】 6-1-2-1 能運用學過的字詞，造出通順的短語或句子。 【九、書香森林】 1-1-5-3 能就所讀的注音讀物，說出自己發現的問題和想法。 2-1-2-6 能結合科技與資訊，提升聆聽的能力，以提高學習興趣。 3-1-1-11 能用完整的語句，說出想要完成的事。 4-1-4-5 能認識楷書基本筆畫的變化。 | F18: 1.口頭評量。 2.習作評量。 3.朗讀評量。 4.實作評量。 | G18: 【環境教育】 2-1-1 認識生活周遭的自然環境與人造環境，以及常見的動物、植物、微生物彼此之間的互動關係。 【環境教育】 1-1-1 能運用五官觀察體驗、探究環境中的事物。 【家政教育】 3-1-1 了解自己所擁有的物品並願意與他人分享。
D19: 13 | E19: 【九、書香森林】 5-1-4-2 能和別人分享閱讀的心得。 6-1-1-2 能在口述作文和筆述作文中，培養豐富的想像力。 【十、小讀者樂園】 1-1-5-2 能運用注音符號之輔助，表達自己的經驗和想法（如：寫日記、便條等）。 2-1-1-8 能主動參與溝通，聆聽對方的說明。 3-1-1-11 能用完整的語句，說出想要完成的事。 4-1-4-3 能用硬筆寫出合理的筆順、正確的筆畫及形體結構的國字。 5-1-5-1 能了解圖書室的設施、使用途徑和功能，並能充分利用，以激發閱 讀興趣。 | F19: 1.口頭評量。 2.實作評量。 3.習作評量。 4.問答評量。 5.朗讀評量。 | G19: 【環境教育】 1-1-1 能運用五官觀察體驗、探究環境中的事物。 【家政教育】 3-1-1 了解自己所擁有的物品並願意與他人分享。 【人權教育】 1-1-2 了解、遵守團體的規則，並實踐民主法治的精神。
D20: 14 | E20: 【十、小讀者樂園】 6-1-3-2 能配合日常生活，練習寫簡單的應用文（如：賀卡、便條、書信及日記等）。 【十一、喜歡讀書的人】 1-1-2-1 能運用注音符號，提升說話及閱讀能力。 2-1-1-3 能養成仔細聆聽的習慣。 3-1-1-1 能清楚明白的口述一件事情。 4-1-4-3 能用硬筆寫出合理的筆順、正確的筆畫及形體結構的國字。 5-1-3 能培養良好的閱讀興趣、態度和習慣。 | F20: 1.習作評量。 2.問答評量。 3.朗讀評量。 4.觀察評量。 5.口頭評量。 | G20: 【人權教育】 1-1-2 了解、遵守團體的規則，並實踐民主法治的精神。 【家政教育】 3-1-1 了解自己所擁有的物品並願意與他人分享。
D21: 15 | E21: 【十一、喜歡讀書的人】 6-1-1 能經由觀摩、分享與欣賞，培養良好的寫作態度與興趣。 【統整活動三】 2-1-2-4 能有條理的掌握聆聽到的內容。 3-1-3-1 能流利的說故事。 5-1-7-2 能理解在閱讀過程中所觀察到的訊息。 6-1-1-3 能相互觀摩作品。 6-1-3-2 能配合日常生活，練習寫簡單的應用文（如：賀卡、便條、書信及日記等）。 6-1-6 能認識並練習使用常用的標點符號。 【十二、黃狗生蛋】 1-1-2-2 能運用注音符號，和他人分享自己的經驗和想法。 2-1-2-4 能有條理的掌握聆聽到的內容。 | F21: 1.朗讀評量。 2.口頭評量。 3.問答評量。 4.活動評量。 5.習作評量。 6.實作評量。 7.觀察評量。 8.聆聽評量。 | G21: 【家政教育】 3-1-1 了解自己所擁有的物品並願意與他人分享。 【性別平等教育】 1-1-2 尊重不同性別者的特質。 【性別平等教育】 2-1-3 表達自己的意見和感受，不受性別的限制。 【生涯發展教育】 2-1-1 培養互助合作的生活態度。
D22: 16 | E22: 【十二、黃狗生蛋】 3-1-3-2 能生動的看圖說故事。 4-1-1-3 能利用新詞造句。 5-1-7-3 能從閱讀的材料中，培養分析歸納的能力。 | F22: 1.口頭評量。 2.實作評量。 3.朗讀評量。 4.習作評量。 | G22: 【性別平等教育】 1-1-2 尊重不同性別者的特質。 【性別平等教育】 2-1-3 表達自己的意見和感受，不受性別的限制。 【生涯發展教育】 2-1-1 培養互助合作的生活態度。
D23: 17 | E23: 【十二、黃狗生蛋】 6-1-2 能擴充詞彙，正確的遣詞造句，並練習常用的基本句型。 【十三、小孩秤大象】 1-1-5-4 能就所讀的注音讀物，提出自己的看法，並做整理歸納。 2-1-1-8 能主動參與溝通，聆聽對方的說明。 3-1-1-1 能清楚明白的口述一件事情。 4-1-4-3 能用硬筆寫出合理的筆順、正確的筆畫及形體結構的漢字。 5-1-2-1 能讀懂課文內容，了解文章的大意。 | F23: 1.朗讀評量。 2.習作評量。 3.口頭評量。 4.聆聽評量。 | G23: 【性別平等教育】 1-1-2 尊重不同性別者的特質。 【性別平等教育】 2-1-3 表達自己的意見和感受，不受性別的限制。 【生涯發展教育】 1-1-2 認識自己的長處及優點。 【生涯發展教育】 2-1-1 培養互助合作的生活態度。 【環境教育】 1-1-1 能運用五官觀察體驗、探究環境中的事物。
D24: 18 | E24: 【十三、小孩秤大象】 6-1-2-1 能運用學過的字詞，造出通順的短語或句子。 【十四、勇士射太陽】 1-1-2-1 能運用注音符號，提升說話及閱讀能力。 2-1-2-4 能有條理的掌握聆聽到的內容。 3-1-3-1 能流利的說故事。 4-1-4-3 能用硬筆寫出合理的筆順、正確的筆畫及形體結構的國字。 | F24: 1.朗讀評量。 2.習作評量。 3.實作評量。 4.口頭評量。 | G24: 【性別平等教育】 2-1-3 表達自己的意見和感受，不受性別的限制。 【環境教育】 1-1-1 能運用五官觀察體驗、探究環境中的事物。 【環境教育】 3-1-2 能具有好奇心，體認人類在生態中的角色，以及自然環境與人的相互關係。 【生涯發展教育】 1-1-2 認識自己的長處及優點。
D25: 19 | E25: 【十四、勇士射太陽】 5-1-7-2 能理解在閱讀過程中所觀察到的訊息。 6-1-2-2 能仿寫簡單句型。 【統整活動四】 5-1-7-2 能理解在閱讀過程中所觀察到的訊息。 5-1-7-3 能從閱讀的材料中，培養分析歸納的能力。 6-1-6 能認識並練習使用常用的標點符號。 【第二次評量週】 | F25: 1.習作評量。 2.實作評量。 3.口頭評量。 4.自我評量。 | G25: 【環境教育】 3-1-2 能具有好奇心，體認人類在生態中的角色，以及自然環境與人的相互關係。
D26: 20 | E26: 【月光河】 1-1-4-2 能運用注音讀物，擴充閱讀範圍。 2-1-2-5 能聽出別人所表達的意思，達成溝通的目的。 3-1-1-7 能依照文意，概略讀出文章的節奏。 5-1-7-2 能理解在閱讀過程中所觀察到的訊息。 6-1-2 能擴充詞彙，正確的遣詞造句，並練習常用的基本句型。 【休業式】 | F26: 1.習作評量。 2.朗讀評量。 3.口頭評量。 | G26: 【性別平等教育】 2-1-3 表達自己的意見和感受，不受性別的限制。 【環境教育】 2-1-1 認識生活周遭的自然環境與人造環境，以及常見的動物、植物、微生物彼此之間的互動關係。
D27: 21
D28: 22
D32: word 複製貼上完成後,按F32→→ | F32: word格式轉到上方excell標準格式
E33: 步驟1:word 複製學習目標_COPY貼到_ E35儲存格 | F33: 步驟2:word 複製重大議題_COPY貼到_ F35儲存格
E34: 學期學習目標(最多15列) | F34: 融入重大議題之能力指標(最多15列)
D35: 內定最多15列 | E35: 1.從植物種子的傳播繁殖，培養科學觀察的精神，學習大自然的智慧。 | F35: 1. 應用注音符號，認識文字，輔助記錄訊息。
E36: 2.體會生活中的溫情，時時刻刻懷著感恩的心，回饋社會。 | F36: 2. 培養良好的聆聽態度，並學會使用禮貌語言，適當應對。
E37: 3.透過認識圖書館、閱讀分享、讀書會等閱讀活動，讓學生體會閱讀的樂趣，提高學生學習語文的興趣，並培養自我學習的能力。 | F37: 3. 清楚覆述所聽到的事物，掌握說話主題。
F38: 4. 認識常用中國文字，並會使用字（詞）典。
F39: 5. 培養閱讀的興趣、態度和習慣，並流暢朗讀文章表達的情感。
F40: 6. 在口述作文和筆述作文中，培養豐富的想像力。
F41: 7. 練習利用不同的途徑和方式，蒐集各類寫作的材料。
F42: 8.學習日記的寫作方法，培養短文寫作的能力。
F43: 9.從故事中學習道理、感受趣味，培養喜愛閱讀的興趣。
D50: 步驟3:word 複製週次_COPY貼到_ D52儲存格 | E50: 步驟4:word 複製能力指標_COPY貼到_ E52儲存格 | F50: 步驟5:word 複製_評量_COPY貼到 F52儲存格 | G50: 步驟6:word 複製_重大議題_COPY貼到G52儲存格
D51: 週次 | E51: 各領域單元_能力指標COPY存放區 | F51: 評量方式 | G51: 備註(重大議題)
D52: 一 | E52: 【一、我是行道樹】 | F52: 1.朗讀評量 | G52: 【環境教育】 | H52: 一、了解自我與發展潛能
E53: 1-1-4-2 能運用注音讀物，擴充閱讀範圍。 | F53: 2.口頭評量 | G53: 1-1-1 能運用五官觀察體驗、探究環境中的事物。 | H53: 二、欣賞、表現與創新
E54: 2-1-2-6 能結合科技與資訊，提升聆聽的能力，以提高學習興趣。 | F54: 3.實作評量 | G54: 【生涯發展教育】 | H54: 五、尊重、關懷與團隊合作
E55: 3-1-1-7 能依照文意，概略讀出文章的節奏。 | F55: 4.習作評量 | G55: 1-1-2 認識自己的長處及優點。
E56: 4-1-4-1 能掌握基本筆畫的名稱、字形和筆順。
E57: 5-1-3-1 能培養良好的閱讀興趣。
D58: 二 | E58: 【一、我是行道樹】 | F58: 1.朗讀評量 | G58: 【環境教育】 | H58: 一、了解自我與發展潛能
E59: 6-1-2-1 能運用學過的字詞，造出通順的短語或句子。 | F59: 2.口頭評量 | G59: 1-1-1 能運用五官觀察體驗、探究環境中的事物。 | H59: 二、欣賞、表現與創新
E60: 【二、歡迎來我家】 | F60: 3.實作評量 | G60: 【環境教育】 | H60: 五、尊重、關懷與團隊合作
E61: 1-1-2-2 能運用注音符號，和他人分享自己的經驗和想法。 | F61: 4.習作評量 | G61: 2-1-1 認識生活周遭的自然環境與人造環境，以及常見的動物、植物、微生物彼此之間的互動關係。
E62: 2-1-1-5 能注意聆聽，不做不必要的插嘴。 | G62: 【生涯發展教育】
E63: 3-1-4-3 能依主題表達意見。 | G63: 1-1-2 認識自己的長處及優點。
E64: 4-1-1-1 能利用部首或簡單造字原理，輔助識字。
D65: 三 | E65: 【二、歡迎來我家】 | F65: 1.口頭評量 | G65: 【環境教育】 | H65: 四、表達、溝通與分享
E66: 5-1-4-1 能喜愛閱讀課外（注音）讀物，擴展閱讀視野。 | F66: 2.實作評量 | G66: 2-1-1 認識生活周遭的自然環境與人造環境，以及常見的動物、植物、微生物彼此之間的互動關係。 | H66: 五、尊重、關懷與團隊合作
E67: 6-1-1-1 能學習觀察簡單的圖畫和事物，並練習寫成一段文字。 | F67: 3.習作評量 | G67: 【環境教育】 | H67: 七、規畫、組織與實踐
